Workbook

Sheet Cover
A1: =CELL("address",'Input-Gen'!A1) -> '[SoW Model - Pathway (LGIP)_SEP 2017 PCTC.xlsm]Input-Gen'!$A$1
D9: Brisbane City Council LGIP Schedule of Works Model Pathways Network DRAFT
D23: Model Name: | F23: =MID(A1,FIND("[",A1)+1,LEN(A1)-(FIND("$1",A1)-FIND("]",A1)+4)) -> SoW Model - Pathway (LGIP)_SEP 2017 PCTC.xlsm
D24: Last Updated: | F24: 2017-05-02T11:46:31
D25: Last Modified By: | F25: Rick Evans
C45: Admin Access Enabled? --> | F45: No
C46: V1.1

Sheet Inputs
F19: =MID(CELL("filename",A15),FIND("]",CELL("filename",A15))+1,256) -> Inputs

Sheet LGIP existing infrastructure
A1: Existing trunk infrastructure value
A2: Pathway network
C4: Land | G4: Construction
B5: Service catchment | C5: Primary cycle route | D5: Secondary cycle route | E5: Riverwalk | F5: Total | G5: Primary cycle route | H5: Secondary cycle route | I5: Riverwalk | J5: Total
B6: Citywide catchment | C6: 5324497.64 | D6: 5470374.62 | E6: 0 | F6: =SUM(C6:E6) -> 10794872.26 | G6: 47630501.73 | H6: 36504757.63 | I6: 122213038.1 | J6: 206348297.4
A8: Notes:
A9: Refer to the Transport network extrinsic material report for details on the valuation of existing assets for the ferry terminal network

Sheet LGIP future infrastrure
A1: LGIP ID (1) | B1: Map reference | C1: Suburb | D1: Project description | E1: Project type | F1: Estimated year of completion (2) | G1: Service catchment | H1: Length (m) | I1: Corrdior Width (m) | J1: Land cost ($) | K1: Direct construction cost ($) | L1: Indirect construction cost ($) (3) | M1: Project cost ($) (4) | N1: Construction contingency cost ($) (5) | O1: Total construction cost ($) (6) | P1: Value of the trunk infrastructure ($) (7) | Q1: Establishment cost ($) (8)
A2: ALB-SP-002 | B2: APT153 | C2: Albion | D2: Albion Bikeway (Bogan Street to Yulestar Street) | E2: Cycle Route (Secondary) | F2: 2021 - 2026 | G2: Citywide | H2: 548 | I2: 8 | J2: 1342380 | K2: 372231 | L2: 63279 | M2: 56616 | N2: 73819 | O2: 565945 | P2: 1908326 | Q2: 1908326
A3: ALB-SP-004 | B3: APT153 | C3: Albion, Hamilton | D3: Albion Bikeway (Cooksley Street to Crosby Park) | E3: Cycle Route (Secondary) | F3: 2021 - 2026 | G3: Citywide | H3: 171 | I3: 8 | J3: 704857 | K3: 128709 | L3: 21881 | M3: 19577 | N3: 25525 | O3: 195692 | P3: 900549 | Q3: 900549
A4: BHI-SP-002 | B4: APT32 | C4: Bald Hills | D4: South Pine River Bikeway (Wyampa Road to Kluver Street) | E4: Cycle Route (Secondary) | F4: 2021 - 2026 | G4: Citywide | H4: 399 | I4: 8 | J4: 36775 | K4: 271218 | L4: 46107 | M4: 41252 | N4: 53786 | O4: 412363 | P4: 449139 | Q4: 449139
A5: BRD-SP-001 | B5: APT92, APT91 | C5: Bridgeman Downs | D5: Cabbage Tree Creek Bikeway (Kensington Place Park to Albany Creek Road) | E5: Cycle Route (Secondary) | F5: 2016 - 2021 | G5: Citywide | H5: 307 | I5: 8 | J5: 18721 | K5: 208531 | L5: 35450 | M5: 31718 | N5: 20677 | O5: 296376 | P5: 315097 | Q5: 315097
A6: BRD-SP-002 | B6: APT91, APT92 | C6: Bridgeman Downs | D6: Cabbage Tree Creek Bikeway (Albany Creek Road to Coolabah Crescent Park) | E6: Cycle Route (Primary) | F6: 2021 - 2026 | G6: Citywide | H6: 278 | I6: 9 | J6: 19786 | K6: 188832 | L6: 32102 | M6: 28721 | N6: 37448 | O6: 287104 | P6: 306890 | Q6: 306890
A7: BUL-RW-001 | B7: APT174, APT154, APT153 | C7: Bulimba | D7: Bulimba (Riverside of 1-7 McConnell Street, and 3-69 Byron Street, Bulimba) | E7: RiverWalk | F7: 2021 - 2026 | G7: Citywide | H7: 396 | I7: 0 | J7: 0 | K7: 1113750 | L7: 189338 | M7: 169401 | N7: 220873 | O7: 1693362 | P7: 1693362 | Q7: 1693362
A8: BUL-RW-003 | B8: APT173 | C8: Bulimba | D8: Bulimba (Bulimba Riverside Park) | E8: RiverWalk | F8: 2021 - 2026 | G8: Citywide | H8: 137 | I8: 0 | J8: 0 | K8: 415356 | L8: 70610 | M8: 63176 | N8: 82371 | O8: 631513 | P8: 631513 | Q8: 631513
A9: CAR-SP-002 | B9: APT215, APT195 | C9: Carina | D9: Carina Bikeway (Fursden Road to Meadowlands Road) | E9: Cycle Route (Secondary) | F9: 2021 - 2026 | G9: Citywide | H9: 836 | I9: 8 | J9: 506214 | K9: 567856 | L9: 96535 | M9: 86371 | N9: 112614 | O9: 863377 | P9: 1369591 | Q9: 1369591
A10: CDE-SP-001 | B10: APT92 | C10: Carseldine | D10: Cabbage Tree Creek Bikeway (Coonawarra Drive to Kentia Street Park) | E10: Cycle Route (Secondary) | F10: 2016 - 2021 | G10: Citywide | H10: 66 | I10: 8 | J10: 4853 | K10: 60558 | L10: 10295 | M10: 9211 | N10: 6005 | O10: 86069 | P10: 90922 | Q10: 90922
A11: CDE-SP-002 | B11: APT92 | C11: Carseldine, Bridgeman Downs | D11: Cabbage Tree Creek Bikeway (Kentia Street Park to Kensington Place Park) | E11: Cycle Route (Secondary) | F11: 2016 - 2021 | G11: Citywide | H11: 190 | I11: 8 | J11: 6177 | K11: 143010 | L11: 24312 | M11: 21752 | N11: 14181 | O11: 203255 | P11: 209432 | Q11: 209432
A12: CDL-SP-010 | B12: APT235 | C12: Carindale | D12: Bulimba Creek Bikeway (Scrub Road to Eromanga Street Park) | E12: Cycle Route (Secondary) | F12: 2021 - 2026 | G12: Citywide | H12: 442 | I12: 8 | J12: 877398 | K12: 300230 | L12: 51039 | M12: 45665 | N12: 59540 | O12: 456474 | P12: 1333872 | Q12: 1333872
A13: CHE-SP-005 | B13: APT112 | C13: Chermside | D13: Chermside Bikeway (Yiada Street to Valente Close) | E13: Cycle Route (Secondary) | F13: 2021 - 2026 | G13: Citywide | H13: 157 | I13: 8 | J13: 575984 | K13: 118172 | L13: 20089 | M13: 17974 | N13: 23435 | O13: 179670 | P13: 755654 | Q13: 755654
A14: CHE-SP-010 | B14: APT112 | C14: Chermside | D14: Downfall Creek Bikeway (Gympie Road Underpass) | E14: Cycle Route (Primary) | F14: 2016 - 2021 | G14: Citywide | H14: 145 | I14: 9 | J14: 1487 | K14: 108801 | L14: 18496 | M14: 16549 | N14: 10788 | O14: 154634 | P14: 156121 | Q14: 156121
A15: CHW-SP-002 | B15: APT112 | C15: Chermside West | D15: Chermside West Bikeway (Maundrell Terrace to Chital Place) | E15: Cycle Route (Secondary) | F15: 2016 - 2021 | G15: Citywide | H15: 148 | I15: 8 | J15: 195979 | K15: 111398 | L15: 18938 | M15: 16944 | N15: 11046 | O15: 158325 | P15: 354303 | Q15: 354303
A16: COO-SP-004 | B16: APT214 | C16: Coorparoo | D16: Wembley Park Bikeway (Old Cleveland Road and Wembley Park) | E16: Cycle Route (Secondary) | F16: 2021 - 2026 | G16: Citywide | H16: 40 | I16: 8 | J16: 605200 | K16: 42224 | L16: 7178 | M16: 6422 | N16: 8374 | O16: 64198 | P16: 669398 | Q16: 669398
A17: CVE-SB-001 | B17: APT313 | C17: Calamvale | D17: Calamvale Bikeway (Bundabah Drive to Benhiam Street (bridge over creek)) | E17: Cycle Route (Secondary) | F17: 2021 - 2026 | G17: Citywide | H17: 60 | I17: 8 | J17: 4417 | K17: 720000 | L17: 122400 | M17: 109512 | N17: 142787 | O17: 1094699 | P17: 1099116 | Q17: 1099116
A18: CVE-SP-002 | B18: APT313 | C18: Calamvale | D18: Calamvale Bikeway (Ormskirk Street to Highlands Drive Park) | E18: Cycle Route (Secondary) | F18: 2021 - 2026 | G18: Citywide | H18: 1051 | I18: 8 | J18: 105907 | K18: 713692 | L18: 121328 | M18: 108552 | N18: 141536 | O18: 1085107 | P18: 1191014 | Q18: 1191014
A19: CVE-SP-003 | B19: APT313 | C19: Calamvale | D19: Calamvale Bikeway (Bundabah Drive to Benhiam Street) | E19: Cycle Route (Secondary) | F19: 2021 - 2026 | G19: Citywide | H19: 212 | I19: 8 | J19: 238292 | K19: 159569 | L19: 27127 | M19: 24271 | N19: 31645 | O19: 242612 | P19: 480904 | Q19: 480904
A20: DAR-SP-004 | B20: APT270 | C20: Darra, Oxley | D20: Oxley Bikeway (Harcourt Road to Englefield Road (southern side of railway line)) | E20: Cycle Route (Secondary) | F20: 2016 - 2021 | G20: Citywide | H20: 789 | I20: 8 | J20: 175488 | K20: 535931 | L20: 91108 | M20: 81515 | N20: 53142 | O20: 761696 | P20: 937184 | Q20: 937184
A21: DOO-SP-001 | B21: APT311 | C21: Doolandella, Durack | D21: Blunder Creek Bikeway (Armisfield Street to Peacock Street) | E21: Cycle Route (Secondary) | F21: 2021 - 2026 | G21: Citywide | H21: 420 | I21: 8 | J21: 91651 | K21: 285286 | L21: 48499 | M21: 43392 | N21: 56577 | O21: 433754 | P21: 525405 | Q21: 525405
A22: DUR-SP-002 | B22: APT291 | C22: Durack | D22: Blunder Creek Bikeway (Adeline Street to Messara Circuit) | E22: Cycle Route (Secondary) | F22: 2021 - 2026 | G22: Citywide | H22: 550 | I22: 8 | J22: 1456697 | K22: 373589 | L22: 63510 | M22: 56823 | N22: 74088 | O22: 568011 | P22: 2024708 | Q22: 2024708
A23: DUR-SP-003 | B23: APT291 | C23: Durack | D23: Blunder Creek Bikeway (Messara Circuit to King Avenue) | E23: Cycle Route (Secondary) | F23: 2021 - 2026 | G23: Citywide | H23: 289 | I23: 8 | J23: 17939 | K23: 196304 | L23: 33372 | M23: 29858 | N23: 38930 | O23: 298464 | P23: 316403 | Q23: 316403
A24: EAB-SP-001 | B24: APT213 | C24: East Brisbane | D24: Kingfisher Creek Bikeway (Withington Street to Caswell Street) | E24: Cycle Route (Secondary) | F24: 2021 - 2026 | G24: Citywide | H24: 471 | I24: 8 | J24: 28281 | K24: 319928 | L24: 54388 | M24: 48661 | N24: 63447 | O24: 486424 | P24: 514705 | Q24: 514705
A25: EAF-SP-001 | B25: APT134, APT154 | C25: Eagle Farm | D25: Moreton Bay Cycleway (The Boulevard to Trade Coast Drive) | E25: Cycle Route (Primary) | F25: 2016 - 2021 | G25: Citywide | H25: 758 | I25: 9 | J25: 820107 | K25: 514874 | L25: 87529 | M25: 78312 | N25: 51054 | O25: 731769 | P25: 1551875 | Q25: 1551875
A26: EAF-SP-003 | B26: APT154, APT155 | C26: Eagle Farm | D26: Kingsford Smith Drive Bikeway (Schneider Road to Viola Place) | E26: Cycle Route (Secondary) | F26: 2016 - 2021 | G26: Citywide | H26: 466 | I26: 8 | J26: 788052 | K26: 316586 | L26: 53820 | M26: 48153 | N26: 31392 | O26: 449951 | P26: 1238003 | Q26: 1238003
A27: EAF-SP-005 | B27: APT154, APT174 | C27: Eagle Farm | D27: Brisbane River Bikeway (Northshore Riverside Park to Curtin Avenue) | E27: Cycle Route (Secondary) | F27: 2021 - 2026 | G27: Citywide | H27: 824 | I27: 8 | J27: 1278076 | K27: 559929 | L27: 95188 | M27: 85165 | N27: 111042 | O27: 851324 | P27: 2129400 | Q27: 2129400
A28: ELG-SP-002 | B28: APT310 | C28: Ellen Grove | D28: Bullockhead Creek Bikeway (Waterford Road to Roxwell Street - along eastern side of creek) | E28: Cycle Route (Secondary) | F28: 2021 - 2026 | G28: Citywide | H28: 1383 | I28: 8 | J28: 0 | K28: 939407 | L28: 159699 | M28: 142884 | N28: 186299 | O28: 1428289 | P28: 1428289 | Q28: 1428289
A29: EMP-SP-001 | B29: APT275, APT274 | C29: Eight Mile Plains | D29: Bulimba Creek Bikeway (Maisie Dixon Park to Holmead Road) | E29: Cycle Route (Secondary) | F29: 2016 - 2021 | G29: Citywide | H29: 766 | I29: 8 | J29: 1044751 | K29: 520308 | L29: 88452 | M29: 79139 | N29: 51592 | O29: 739492 | P29: 1784243 | Q29: 1784243
A30: EMP-SP-004 | B30: APT295 | C30: Eight Mile Plains | D30: Bulimba Creek Bikeway (Underwood Road to Logan Road (western side of Gateway Motorway)) | E30: Cycle Route (Primary) | F30: 2021 - 2026 | G30: Citywide | H30: 1047 | I30: 9 | J30: 293086 | K30: 711178 | L30: 120900 | M30: 108170 | N30: 141037 | O30: 1081286 | P30: 1374372 | Q30: 1374372
A31: ENG-SB-001 | B31: APT131 | C31: Enoggera, Everton Park | D31: Kedron Brook Bikeway (Enoggera Memorial Park to northern side of creek) | E31: Cycle Route (Secondary) | F31: 2021 - 2026 | G31: Citywide | H31: 79 | I31: 8 | J31: 3272 | K31: 948000 | L31: 161160 | M31: 144191 | N31: 188003 | O31: 1441353 | P31: 1444625 | Q31: 1444625
A32: EVP-SP-001 | B32: APT111 | C32: Everton Park, McDowall | D32: Downfall Creek Bikeway (Trouts Road to Flockton Street) | E32: Cycle Route (Primary) | F32: 2021 - 2026 | G32: Citywide | H32: 439 | I32: 9 | J32: 1447645 | K32: 298192 | L32: 50693 | M32: 45355 | N32: 59136 | O32: 453376 | P32: 1901021 | Q32: 1901021
A33: FGR-SP-003 | B33: APT129 | C33: Ferny Grove | D33: Cedar Creek Bikeway (Keperra Picnic Ground Park to Nelson Place Park - Ferny Grove) | E33: Cycle Route (Secondary) | F33: 2021 - 2026 | G33: Citywide | H33: 662 | I33: 8 | J33: 1130628 | K33: 449666 | L33: 76443 | M33: 68394 | N33: 89175 | O33: 683679 | P33: 1814307 | Q33: 1814307
A34: FGR-SP-004 | B34: APT129 | C34: Ferny Grove | D34: Ferny Grove Bikeway (McAlroy Road to Hogarth Road) | E34: Cycle Route (Secondary) | F34: 2021 - 2026 | G34: Citywide | H34: 275 | I34: 8 | J34: 16866 | K34: 186795 | L34: 31755 | M34: 28411 | N34: 37044 | O34: 284005 | P34: 300872 | Q34: 300872
A35: FLK-SP-002 | B35: APT310 | C35: Forest Lake, Ellen Grove | D35: Bullockhead Creek Bikeway (Lilydale Place to Waterford Road) | E35: Cycle Route (Secondary) | F35: 2021 - 2026 | G35: Citywide | H35: 964 | I35: 8 | J35: 36990 | K35: 654800 | L35: 111316 | M35: 99595 | N35: 129857 | O35: 995568 | P35: 1032558 | Q35: 1032558
A36: HEA-SP-001 | B36: APT331 | C36: Heathwood, Forest Lake | D36: Heathwood Bikeway (Stapylton Road to Euengella Terrace Park) | E36: Cycle Route (Secondary) | F36: 2016 - 2021 | G36: Citywide | H36: 477 | I36: 8 | J36: 2058570 | K36: 324180 | L36: 55111 | M36: 49308 | N36: 32145 | O36: 460744 | P36: 2519313 | Q36: 2519313
A37: HER-SP-001 | B37: APT152 | C37: Herston | D37: Enoggera Creek Bikeway (Clyde Road to Gould Road Park) | E37: Cycle Route (Secondary) | F37: 2021 - 2026 | G37: Citywide | H37: 621 | I37: 8 | J37: 17987 | K37: 421816 | L37: 71709 | M37: 64158 | N37: 83653 | O37: 641336 | P37: 659323 | Q37: 659323
A38: HPW-SP-001 | B38: APT233 | C38: Holland Park West, Greenslopes | D38: Norman Creek Bikeway (Roseglen Street Park (no. 30) to Birdwood Road (north of 103 Birdwood Road)) | E38: Cycle Route (Secondary) | F38: 2021 - 2026 | G38: Citywide | H38: 427 | I38: 8 | J38: 200341 | K38: 289780 | L38: 49263 | M38: 44076 | N38: 57468 | O38: 440586 | P38: 640928 | Q38: 640928
A39: HPW-SP-002 | B39: APT233 | C39: Holland Park West | D39: Norman Creek Bikeway (existing bridge over Norman Creek to Birdwood Road / Esher Street Intersection) | E39: Cycle Route (Secondary) | F39: 2021 - 2026 | G39: Citywide | H39: 182 | I39: 8 | J39: 0 | K39: 136989 | L39: 23288 | M39: 20836 | N39: 27167 | O39: 208280 | P39: 208280 | Q39: 208280
A40: HPW-SP-003 | B40: APT233 | C40: Holland Park West | D40: Mott Creek Bikeway (Mananda Street to Woodford Street) | E40: Cycle Route (Secondary) | F40: 2021 - 2026 | G40: Citywide | H40: 165 | I40: 8 | J40: 22451 | K40: 124193 | L40: 21113 | M40: 18890 | N40: 24629 | O40: 188825 | P40: 211277 | Q40: 211277
A41: HPW-SP-004 | B41: APT233 | C41: Holland Park West | D41: Glindemann Creek Bikeway (Birdwood Road Park to Joachim Street Park) | E41: Cycle Route (Secondary) | F41: 2021 - 2026 | G41: Citywide | H41: 653 | I41: 8 | J41: 1234 | K41: 443552 | L41: 75404 | M41: 67464 | N41: 87963 | O41: 674384 | P41: 675618 | Q41: 675618
A42: KAN-SP-002 | B42: APT193, APT192 | C42: Kangaroo Point | D42: Kangaroo Point Bikeway (Goodwill Bridge to Thornton Street) | E42: Cycle Route (Primary) | F42: 2016 - 2021 | G42: Citywide | H42: 1982 | I42: 9 | J42: 2082297 | K42: 1346206 | L42: 228855 | M42: 204758 | N42: 133486 | O42: 1913305 | P42: 3995602 | Q42: 3995602
A43: KUR-SP-001 | B43: APT314 | C43: Kuraby, Runcorn | D43: Bulimba Creek Bikeway (Persse Road to Beenleigh Road) | E43: Cycle Route (Primary) | F43: 2021 - 2026 | G43: Citywide | H43: 805 | I43: 9 | J43: 509844 | K43: 546677 | L43: 92935 | M43: 83150 | N43: 108414 | O43: 831175 | P43: 1341020 | Q43: 1341020
A44: KUR-SP-003 | B44: APT315 | C44: Kuraby | D44: Kuraby Bikeway (Millers Road to Saint George Street plus links to Pioneer Drive and Edwin Street) | E44: Cycle Route (Secondary) | F44: 2016 - 2021 | G44: Citywide | H44: 1538 | I44: 8 | J44: 2119885 | K44: 1045004 | L44: 177651 | M44: 158945 | N44: 103620 | O44: 1485220 | P44: 3605105 | Q44: 3605105
A45: MDW-SP-002 | B45: APT111 | C45: McDowall | D45: Cabbage Tree Creek Bikeway (Hamilton Road to Old Northern Road) | E45: Cycle Route (Secondary) | F45: 2021 - 2026 | G45: Citywide | H45: 411 | I45: 8 | J45: 38970 | K45: 278969 | L45: 47425 | M45: 42431 | N45: 55324 | O45: 424149 | P45: 463120 | Q45: 463120
A46: MGE-SP-001 | B46: APT235 | C46: Mount Gravatt East, Carina Heights | D46: Salvin Creek Bikeway (Creek Road to Pine Mountain Road) | E46: Cycle Route (Secondary) | F46: 2021 - 2026 | G46: Citywide | H46: 266 | I46: 8 | J46: 53475 | K46: 180681 | L46: 30716 | M46: 27482 | N46: 35832 | O46: 274711 | P46: 328185 | Q46: 328185
A47: MIT-SP-003 | B47: APT130 | C47: Mitchelton | D47: Kedron Brook Bikeway (Cribb Avenue to Oxford Grove Park) | E47: Cycle Route (Secondary) | F47: 2016 - 2021 | G47: Citywide | H47: 171 | I47: 8 | J47: 11579 | K47: 128709 | L47: 21881 | M47: 19577 | N47: 12762 | O47: 182929 | P47: 194508 | Q47: 194508
A48: MKA-SP-003 | B48: APT252 | C48: Moorooka, Rocklea | D48: Rocky Water Holes Creek Bikeway (Muriel Avenue to John Bright Street) | E48: Cycle Route (Secondary) | F48: 2021 - 2026 | G48: Citywide | H48: 480 | I48: 8 | J48: 3239 | K48: 326042 | L48: 55427 | M48: 49591 | N48: 64659 | O48: 495719 | P48: 498958 | Q48: 498958
A49: MKA-SP-005 | B49: APT252 | C49: Moorooka | D49: Rocky Water Holes Creek Bikeway (Gladstone Street to Beaudesert Road) | E49: Cycle Route (Secondary) | F49: 2021 - 2026 | G49: Citywide | H49: 89 | I49: 8 | J49: 8045 | K49: 81694 | L49: 13888 | M49: 12426 | N49: 16201 | O49: 124209 | P49: 132253 | Q49: 132253
A50: MOR-SP-001 | B50: APT174 | C50: Morningside | D50: Perrin Creek Bikeway (Algoori Street to Beelarong Street) | E50: Cycle Route (Secondary) | F50: 2021 - 2026 | G50: Citywide | H50: 322 | I50: 8 | J50: 19204 | K50: 218720 | L50: 37182 | M50: 33267 | N50: 43375 | O50: 332545 | P50: 351749 | Q50: 351749
A51: MOR-SP-004 | B51: APT174 | C51: Morningside | D51: Perrin Creek Bikeway (Algoori Street to Baringa Street) | E51: Cycle Route (Secondary) | F51: 2021 - 2026 | G51: Citywide | H51: 213 | I51: 8 | J51: 29587 | K51: 160322 | L51: 27255 | M51: 24385 | N51: 31794 | O51: 243756 | P51: 273344 | Q51: 273344
A52: MOR-SP-008 | B52: APT174 | C52: Morningside | D52: Morningside Bikeway (Colmslie Reserve to Colmslie Road) | E52: Cycle Route (Secondary) | F52: 2016 - 2021 | G52: Citywide | H52: 498 | I52: 8 | J52: 995255 | K52: 337942 | L52: 57450 | M52: 51401 | N52: 33509 | O52: 480303 | P52: 1475557 | Q52: 1475557
A53: NOG-SP-001 | B53: APT114 | C53: Northgate, Eagle Farm | D53: Cannery Creek Bikeway (Shultz Canal Bikeway to Nudgee Road) | E53: Cycle Route (Secondary) | F53: 2021 - 2026 | G53: Citywide | H53: 878 | I53: 8 | J53: 43521 | K53: 596384 | L53: 101385 | M53: 90710 | N53: 118272 | O53: 906752 | P53: 950272 | Q53: 950272
A54: OXY-SP-001 | B54: APT270 | C54: Oxley | D54: Oxley Bikeway (Englefield Road to Douglas Street - southern side of railway line) | E54: Cycle Route (Secondary) | F54: 2021 - 2026 | G54: Citywide | H54: 689 | I54: 8 | J54: 283680 | K54: 468006 | L54: 79561 | M54: 71184 | N54: 92813 | O54: 711563 | P54: 995243 | Q54: 995243
A55: OXY-SP-002 | B55: APT251, APT270, APT271 | C55: Oxley | D55: Oxley Bikeway (Douglas Street to Oxley Station Road - southern side of railway line) | E55: Cycle Route (Secondary) | F55: 2021 - 2026 | G55: Citywide | H55: 687 | I55: 8 | J55: 561856 | K55: 466647 | L55: 79330 | M55: 70977 | N55: 92543 | O55: 709497 | P55: 1271353 | Q55: 1271353
A56: OXY-SP-005 | B56: APT251, APT271 | C56: Oxley | D56: Oxley Creek Bikeway (Cliveden Avenue to Lawson Street Park) | E56: Cycle Route (Secondary) | F56: 2021 - 2026 | G56: Citywide | H56: 1312 | I56: 8 | J56: 29914 | K56: 891391 | L56: 151536 | M56: 135581 | N56: 176776 | O56: 1355284 | P56: 1385199 | Q56: 1385199
A57: OXY-SP-006 | B57: APT271 | C57: Oxley | D57: Oxley Creek Bikeway (Lawson Street Park to Ipswich Motorway) | E57: Cycle Route (Secondary) | F57: 2021 - 2026 | G57: Citywide | H57: 1048 | I57: 8 | J57: 44638 | K57: 711803 | L57: 121007 | M57: 108265 | N57: 141161 | O57: 1082236 | P57: 1126875 | Q57: 1126875
A58: RIC-SP-002 | B58: APT290 | C58: Richlands | D58: Bullockhead Creek Bikeway (eastern side of Bullockhead Creek to Garden Road) | E58: Cycle Route (Secondary) | F58: 2021 - 2026 | G58: Citywide | H58: 100 | I58: 8 | J58: 18421 | K58: 75465 | L58: 12829 | M58: 11478 | N58: 14966 | O58: 114738 | P58: 133159 | Q58: 133159
A59: RIC-SP-003 | B59: APT290 | C59: Richlands | D59: Richlands Bikeway (Natalie Street to Eugenia Street) | E59: Cycle Route (Secondary) | F59: 2016 - 2021 | G59: Citywide | H59: 478 | I59: 8 | J59: 226301 | K59: 324507 | L59: 55166 | M59: 49358 | N59: 32177 | O59: 461208 | P59: 687509 | Q59: 687509
A60: RIC-SP-004 | B60: APT290 | C60: Richlands | D60: Bullockhead Creek Bikeway (proposed park on eastern side of creek to Garden Road) | E60: Cycle Route (Secondary) | F60: 2016 - 2021 | G60: Citywide | H60: 171 | I60: 8 | J60: 127779 | K60: 128493 | L60: 21844 | M60: 19544 | N60: 12741 | O60: 182622 | P60: 310401 | Q60: 310401
A61: RIC-SP-005 | B61: APT290 | C61: Richlands | D61: Bullockhead Creek Bikeway (eastern side of creek along proposed park boundary) | E61: Cycle Route (Secondary) | F61: 2016 - 2021 | G61: Citywide | H61: 167 | I61: 8 | J61: 455703 | K61: 125476 | L61: 21331 | M61: 19085 | N61: 12442 | O61: 178334 | P61: 634036 | Q61: 634036
A62: RIC-SP-006 | B62: APT290 | C62: Richlands | D62: Bullockhead Creek Bikeway (southern side of Bullockhead Creek to Pine Road) | E62: Cycle Route (Secondary) | F62: 2016 - 2021 | G62: Citywide | H62: 54 | I62: 8 | J62: 4032 | K62: 49933 | L62: 8489 | M62: 7595 | N62: 4951 | O62: 70968 | P62: 75000 | Q62: 75000
A63: RIV-SP-001 | B63: APT269, APT268 | C63: Riverhills | D63: Wolston Creek Bikeway (Wacol Station Road to Sumners Road) | E63: Cycle Route (Secondary) | F63: 2016 - 2021 | G63: Citywide | H63: 2071 | I63: 8 | J63: 73826 | K63: 1406734 | L63: 239145 | M63: 213964 | N63: 139488 | O63: 1999331 | P63: 2073157 | Q63: 2073157
A64: ROC-SP-002 | B64: APT275 | C64: Rochedale | D64: Rochedale Bikeway (Cooper Crescent to Prebble Street plus link to Gardner Road) | E64: Cycle Route (Primary) | F64: 2021 - 2026 | G64: Citywide | H64: 437 | I64: 9 | J64: 522131 | K64: 297149 | L64: 50515 | M64: 45196 | N64: 58929 | O64: 451790 | P64: 973922 | Q64: 973922
A65: ROC-SP-004 | B65: APT276, APT275 | C65: Rochedale | D65: Rochedale Bikeway (future road to Rochedale Road) | E65: Cycle Route (Secondary) | F65: 2021 - 2026 | G65: Citywide | H65: 847 | I65: 8 | J65: 482233 | K65: 575328 | L65: 97806 | M65: 87507 | N65: 114096 | O65: 874737 | P65: 1356970 | Q65: 1356970
A66: ROC-SP-005 | B66: APT276 | C66: Rochedale | D66: Rochedale Bikeway (future road to Rochedale Road ) | E66: Cycle Route (Secondary) | F66: 2021 - 2026 | G66: Citywide | H66: 886 | I66: 8 | J66: 1148853 | K66: 601819 | L66: 102309 | M66: 91537 | N66: 119350 | O66: 915014 | P66: 2063867 | Q66: 2063867
A67: ROC-SP-012 | B67: APT295 | C67: Rochedale | D67: Rochedale Bikeway (future road to Priestdale Road) | E67: Cycle Route (Secondary) | F67: 2021 - 2026 | G67: Citywide | H67: 1037 | I67: 8 | J67: 1219080 | K67: 704386 | L67: 119746 | M67: 107137 | N67: 139690 | O67: 1070959 | P67: 2290038 | Q67: 2290038
A68: ROC-SP-015 | B68: APT275 | C68: Rochedale | D68: Rochedale Bikeway (Miles Platting Road to future road) | E68: Cycle Route (Primary) | F68: 2016 - 2021 | G68: Citywide | H68: 324 | I68: 9 | J68: 492723 | K68: 220078 | L68: 37413 | M68: 33474 | N68: 21822 | O68: 312788 | P68: 805510 | Q68: 805510
A69: RUN-SP-002 | B69: APT294 | C69: Runcorn | D69: Runcorn Bikeway (Glenefer Street to Beenleigh Road) | E69: Cycle Route (Primary) | F69: 2016 - 2021 | G69: Citywide | H69: 736 | I69: 9 | J69: 78435 | K69: 499801 | L69: 84966 | M69: 76020 | N69: 49559 | O69: 710347 | P69: 788782 | Q69: 788782
A70: RUN-SP-003 | B70: APT295, APT294 | C70: Runcorn, Eight Mile Plains | D70: Bulimba Creek Bikeway (Corella Place to Underwood Road) | E70: Cycle Route (Primary) | F70: 2021 - 2026 | G70: Citywide | H70: 1209 | I70: 9 | J70: 512551 | K70: 821224 | L70: 139608 | M70: 124908 | N70: 162861 | O70: 1248602 | P70: 1761152 | Q70: 1761152
A71: RUN-SP-004 | B71: APT294, APT295 | C71: Runcorn | D71: Bulimba Creek Bikeway (Warrigal Road to Bulimba Creek Bikeway) | E71: Cycle Route (Primary) | F71: 2021 - 2026 | G71: Citywide | H71: 860 | I71: 9 | J71: 1138143 | K71: 584436 | L71: 99354 | M71: 88893 | N71: 115903 | O71: 888586 | P71: 2026729 | Q71: 2026729
A72: SAL-SP-002 | B72: APT253, APT252 | C72: Salisbury | D72: Rocky Water Holes Creek Bikeway (McCarthy Road to Precision Street) | E72: Cycle Route (Secondary) | F72: 2021 - 2026 | G72: Citywide | H72: 400 | I72: 8 | J72: 72042 | K72: 271701 | L72: 46189 | M72: 41326 | N72: 53882 | O72: 413099 | P72: 485141 | Q72: 485141
A73: SAL-SP-003 | B73: APT252 | C73: Salisbury | D73: Rocky Water Holes Creek Bikeway (Precision Street to Assembly Street) | E73: Cycle Route (Secondary) | F73: 2021 - 2026 | G73: Citywide | H73: 347 | I73: 8 | J73: 164481 | K73: 235701 | L73: 40069 | M73: 35850 | N73: 46743 | O73: 358363 | P73: 522845 | Q73: 522845
A74: SAL-SP-004 | B74: APT252 | C74: Salisbury | D74: Rocky Water Holes Creek Bikeway (Assembly Street to Beaudesert Road) | E74: Cycle Route (Secondary) | F74: 2021 - 2026 | G74: Citywide | H74: 814 | I74: 8 | J74: 115290 | K74: 552912 | L74: 93995 | M74: 84098 | N74: 109651 | O74: 840656 | P74: 955946 | Q74: 955946
A75: SIP-SB-001 | B75: APT250 | C75: Sinnamon Park | D75: Jindalee Creek Bikeway (Bridge over Jindalee Creek) | E75: Cycle Route (Secondary) | F75: 2021 - 2026 | G75: Citywide | H75: 70 | I75: 8 | J75: 6635 | K75: 840000 | L75: 142800 | M75: 127764 | N75: 166585 | O75: 1277149 | P75: 1283784 | Q75: 1283784
A76: SIP-SP-001 | B76: APT250 | C76: Sinnamon Park | D76: Jindalee Creek Bikeway (Oldfield Road to Centenary Motorway) | E76: Cycle Route (Secondary) | F76: 2016 - 2021 | G76: Citywide | H76: 526 | I76: 8 | J76: 292746 | K76: 357287 | L76: 60739 | M76: 54343 | N76: 35428 | O76: 507797 | P76: 800543 | Q76: 800543
A77: SIP-SP-002 | B77: APT250 | C77: Sinnamon Park | D77: Jindalee Creek Bikeway (Oldfield Road (west) to Jindalee Creek) | E77: Cycle Route (Secondary) | F77: 2016 - 2021 | G77: Citywide | H77: 207 | I77: 8 | J77: 183983 | K77: 155806 | L77: 26487 | M77: 23698 | N77: 15449 | O77: 221441 | P77: 405424 | Q77: 405424
A78: SIP-SP-003 | B78: APT250 | C78: Sinnamon Park | D78: Jindalee Creek Bikeway (Jindalee Creek to Seventeen Mile Rocks Road) | E78: Cycle Route (Secondary) | F78: 2016 - 2021 | G78: Citywide | H78: 172 | I78: 8 | J78: 587345 | K78: 129462 | L78: 22009 | M78: 19691 | N78: 12837 | O78: 183999 | P78: 771344 | Q78: 771344
A79: SIP-SP-004 | B79: APT250 | C79: Sinnamon Park, Seventeen Mile Rocks | D79: Jindalee Creek Bikeway (McPherson Road Park to Oldfield Road Park) | E79: Cycle Route (Secondary) | F79: 2021 - 2026 | G79: Citywide | H79: 796 | I79: 8 | J79: 40410 | K79: 540686 | L79: 91917 | M79: 82238 | N79: 107226 | O79: 822067 | P79: 862476 | Q79: 862476
A80: SLU-SP-001 | B80: APT211 | C80: St Lucia | D80: Gailey Road Bikeway (Sandford Street to Gailey Road) | E80: Cycle Route (Primary) | F80: 2016 - 2021 | G80: Citywide | H80: 41 | I80: 9 | J80: 168259 | K80: 43786 | L80: 7444 | M80: 6660 | N80: 4342 | O80: 62231 | P80: 230490 | Q80: 230490
A81: STF-SP-001 | B81: APT132 | C81: Stafford | D81: Kedron Brook Bikeway (Shand Street Park to Bilston Street Park) | E81: Cycle Route (Secondary) | F81: 2016 - 2021 | G81: Citywide | H81: 1501 | I81: 8 | J81: 29826 | K81: 1019559 | L81: 173325 | M81: 155075 | N81: 101097 | O81: 1449056 | P81: 1478882 | Q81: 1478882
A82: SVH-SP-001 | B82: APT194 | C82: Seven Hills | D82: Perrin Creek Bikeway (Darcy Road to Foxton Street) | E82: Cycle Route (Secondary) | F82: 2021 - 2026 | G82: Citywide | H82: 701 | I82: 8 | J82: 65040 | K82: 476157 | L82: 80947 | M82: 72423 | N82: 94429 | O82: 723956 | P82: 788996 | Q82: 788996
A83: TAI-SP-004 | B83: APT73 | C83: Taigum | D83: Cabbage Tree Creek Bikeway (Roghan Road Park (no. 335) to Taigum Place Park) | E83: Cycle Route (Secondary) | F83: 2021 - 2026 | G83: Citywide | H83: 204 | I83: 8 | J83: 31056 | K83: 153744 | L83: 26136 | M83: 23384 | N83: 30490 | O83: 233754 | P83: 264810 | Q83: 264810
A84: TOO-SP-002 | B84: APT191 | C84: Toowong | D84: Bicentennial Bikeway - Stage 5 (Regatta Park to Glen Road) | E84: Cycle Route (Primary) | F84: 2016 - 2021 | G84: Citywide | H84: 457 | I84: 9 | J84: 5447302 | K84: 310419 | L84: 52771 | M84: 47215 | N84: 30780 | O84: 441185 | P84: 5888487 | Q84: 5888487
A85: TRF-RW-001 | B85: APT173 | C85: Teneriffe | D85: Teneriffe (Riverside of 17-37 Skyring Terrace, Teneriffe) | E85: RiverWalk | F85: 2021 - 2026 | G85: Citywide | H85: 220 | I85: 0 | J85: 0 | K85: 639196 | L85: 108663 | M85: 97222 | N85: 126762 | O85: 971843 | P85: 971843 | Q85: 971843
A86: UMG-SP-002 | B86: APT254 | C86: Upper Mount Gravatt | D86: Mimosa Creek Bikeway (Hibiscus Sports Centre to Klumpp Road/Mains Road intersection) | E86: Cycle Route (Secondary) | F86: 2021 - 2026 | G86: Citywide | H86: 594 | I86: 8 | J86: 35062 | K86: 403597 | L86: 68612 | M86: 61387 | N86: 80039 | O86: 613636 | P86: 648697 | Q86: 648697
A87: WCL-SP-004 | B87: APT289 | C87: Wacol | D87: Bullockhead Creek Bikeway (Ipswich Motorway ramp to Boundary Road) | E87: Cycle Route (Secondary) | F87: 2021 - 2026 | G87: Citywide | H87: 676 | I87: 8 | J87: 630986 | K87: 459180 | L87: 78061 | M87: 69841 | N87: 91062 | O87: 698144 | P87: 1329131 | Q87: 1329131
A88: WSR-SP-001 | B88: APT173 | C88: Windsor | D88: Enoggera Creek Bikeway (Under ICB Bridge to Lutwyche Road) | E88: Cycle Route (Primary) | F88: 2016 - 2021 | G88: Citywide | H88: 183 | I88: 9 | J88: 25458 | K88: 137516 | L88: 23378 | M88: 20916 | N88: 13636 | O88: 195445 | P88: 220903 | Q88: 220903
I89: Total | J89: 37405660 | K89: 36222155 | L89: 6157771 | M89: 5509391 | N89: 6131244 | O89: 54020569 | P89: 91426229 | Q89: 91426229
A91: Notes-
A92: (1) Refer to the Local government infrastructure plan identifier (LGIP ID) when identifying the infrastructure projects on the plans for trunk infrastructure maps.
A93: (2) The estimated year of completion is an estimate of the earliest need for the project.
A94: (3) Indirect construction costs are on costs or overheads applied to the direct construction cost, to deliver the project. Indirect construction costs equate to 17% of the direct construction cost.
A95: (4) Project costs are on costs to undertake detailed design, survey, geotechnical investigations, project management, and supervision of construction works and obtain certification from a Registered Professional Engineer of Queensland. Project costs equate to 13% of the direct and indirect construction costs.
A96: (5) Contingency costs are based on the project delivery date, and applied to the direct construction cost, indirect construction cost and project cost. Contingencies equate to 7.5% for projects with a delivery date up to 2021 and 15% for projects with a delivery date up to 2026.
A97: (6) Total construction cost is the sum of direct construction cost, indirect construction cost, project cost and construction contingency cost, at 30 June 2016.
A98: (7) Value of the trunk infrastructure is the sum of land cost and total construction cost, at 30 June 2016.
A99: (8) Establishment cost is the total value of the trunk infrastructure item, comprising the total infrastructure cost, at 30 June 2016.
A100: (-) A dash denotes that the field is not applicable.

Sheet Input-Gen
F2: Brisbane City Council
F3: Schedule of Works Model - PATHWAY
F5: Input - General
G6: =IF(BaseCaseCheck=0,BaseCase,NotBaseCase) -> Please Note: Model is not currently applying Base Case parameter values
G7: =IF(Integrity=0,IntOK,IntErr) -> 
F15: General
G17: Timing & Structure
G19: Model Start Date | I19: dd-mmm-yy | M19: 2016-07-01
G20: Modelling Periods | I20: No. of Years | M20: =YEAR(M21)-YEAR(Model_Start_Date) -> 10
G21: Model End Date | I21: dd-mmm-yy | M21: 2026-06-30
G23: Months in Year | I23: months | M23: 12
G24: Duration between each planning period | I24: years | M24: 5
G25: Thousand Conversion | I25: # | M25: 1000
F27: Other Conditions
G29: Land, cut-off date for inclusion in infrastructure charges | I29: dd-mmm-yy | M29: 1990-01-01
G31: Maximum administration cost recoverable without approval from the Department of Infrastructure and Planning | I31: % | M31: 0
F33: Indexation/Discounting parameters
G35: Pathways
G37: Most recent PPI value | I37: # | M37: 110.5634114
G38: Base PPI value | I38: # | M38: 100.7685196
G40: Year of most recent PPI value | I40: year | M40: 2016
G41: Year of base PPI value | I41: year | M41: 2011
G43: Number of periods | I43: # | M43: =M40-M41 -> 5
G44: PPI Charge-rate indexation rate | I44: % | M44: =(M37/M38)^(1/M43)-1 -> 0.0187258123
G45: Over-ride default charge-rate indexation rate | I45: % | M45: 0
G46: Comparison charge-rate indexation rate | I46: % | M46: 0.025
G48: Recommended premium to bond rate, post-tax nominal | I48: % | M48: 0
G50: ="Ten year bond rate, average 20 working days to" & TEXT(Model_Start_Date," dd-mmm-yy") -> Ten year bond rate, average 20 working days to 01-Jul-16 | I50: % | M50: 0
G51: Rate of return, post-tax nominal (Nominal WACC) | I51: % | M51: 0.0591
G52: Rate of return, post-tax real (Real WACC) | I52: % | M52: =(1+M51)/(1+RevEsc)-1 -> 0.0591
F54: Integrity
G56: Integrity OK message | I56: text | M56: Model integrity OK
G57: Integrity error message | I57: text | M57: Model integrity error
G58: Number of decimal places to which integrity checks are calculated | I58: # | M58: 2
G60: Base case message | I60: text | M60: Model is applying base case parameter values
G61: Alternative scenario message | I61: text | M61: Please Note: Model is not currently applying Base Case parameter values
F63: Input File References
G65: General
G66: ID Number | I66: text | M66: Test
G67: Map Reference | I67: text
G68: Trunk Infrastructure Type | I68: text
G69: Other Description | I69: text
G71: Capacity
G72: Portion of existing asset in use at the beginning of the planning period | I72: text
G73: Spare capacity at end of planning period | I73: text
G74: External Usage | I74: text
G75: Future demand | I75: text
G77: Charge Area
G78: City Wide | I78: text
G80: Land Information
G81: Acquired Area | I81: text
G82: Date of Acquisition | I82: text
G83: Acquisition Cost (If already acquired) | I83: text
G84: ="Value existing land as at "&TEXT(Model_Start_Date-1,"dd-mmm-yy")&" for existing land" -> Value existing land as at 30-Jun-16 for existing land | I84: text
G85: Design & Supervision Cost | I85: text
G86: Contingency Cost | I86: text
G88: Constructed Asset Costs
G89: Expected Construction Completion / Commissioning Date | I89: text
G90: ="Actual / Expected Construction Cost at "&TEXT(Model_Start_Date-1,"dd-mmm-yy") -> Actual / Expected Construction Cost at 30-Jun-16 | I90: text
G91: Design & Supervision Cost | I91: text
G92: Contingency Cost | I92: text
G94: Administration Costs
G95: Date of Administration Cost | I95: text
G96: (A) Percentage point of total Constructed Asset costs | I96: text
G97: ="(B) Defined Value as at "&TEXT(Model_Start_Date-1,"dd-mmm-yy") -> (B) Defined Value as at 30-Jun-16 | I97: text
G98: ="Subsidies / Grants as at "&TEXT(Model_Start_Date-1,"dd-mmm-yy") -> Subsidies / Grants as at 30-Jun-16 | I98: text
F102: Notes
G104: Subsidies are assumed to be received on the same date as the Constructed Asset cost commencement and not the date when land is acquired.
F106: End of Page

Sheet Input-Infra
F2: Brisbane City Council
F3: ='Input-Gen'!$F$3 -> Schedule of Works Model - PATHWAY
F5: Input - Infrastructure Details
G6: =IF(BaseCaseCheck=0,BaseCase,NotBaseCase) -> Please Note: Model is not currently applying Base Case parameter values
G7: =IF(Integrity=0,IntOK,IntErr) -> 
L9: General
S10: Capacity
AA11: Service catchment
AG12: Land Information
AR13: Constructed Asset Costs
BE14: Administration Costs (not used in LGIP)
M17: LGIP ID Number | N17: LGIP Map Reference | O17: Trunk Infrastructure Type | P17: Other Description | T17: Portion of existing asset in use at the beginning of the planning period | U17: Spare capacity at end of planning period | V17: External Usage | W17: Future demand | X17: Total Capacity | AB17: City Wide | AD17: Total | AH17: Corridor width | AI17: Date of Acquisition | AJ17: Acquisition Cost (If already acquired) | AK17: ="Value as at "&TEXT(Model_Start_Date-1,"dd-mmm-yy")&" for existing land" -> Value as at 30-Jun-16 for existing land | AL17: Spare column | AM17: Spare column | AO17: Land Total | AS17: Expected Construction Completion / Commissioning Date | AT17: ="Actual / Expected Construction Cost" & " at " & TEXT(Model_Start_Date-1,"dd-mmm-yy") -> Actual / Expected Construction Cost at 30-Jun-16 | AU17: Construction allowances (incl. indirect construction cost/project cost & contingencies) | AV17: Spare column | AW17: Spare column | AX17: Spare column | AY17: ="Total @ " & TEXT(Model_Start_Date-1,"dd-mmm-yy") -> Total @ 30-Jun-16 | AZ17: Source (e.g. unit cost report, contract, asset register, etc.) | BB17: TOTAL (Land and Constructed Asset) | BF17: Date of Administration Cost | BG17: Methodology Option (A) = 0, (B) = 1 | BH17: (A) Percentage point of total Constructed Asset costs | BI17: ="(B) Defined Value @ " & TEXT(Model_Start_Date-1,"dd-mmm-yy") -> (B) Defined Value @ 30-Jun-16 | BJ17: ="Check: If (B) value is greater than "&TEXT('Input-Gen'!M31,"0%")&" of total Constructed Asset cost" -> Check: If (B) value is greater than 0% of total Constructed Asset cost | BL17: ="Subsidies / Grants @ " & TEXT(Model_Start_Date-1,"dd-mmm-yy") -> Subsidies / Grants @ 30-Jun-16
G18: Description/File Reference | U18: Unrecoverable costs due to unmet capacity | V18: Proportion of costs associated with future demand | W18: Unrecoverable costs | AB18: Proportion of total costs attributed to each catchment area
M19: # | N19: # | T19: % | U19: % | V19: % | W19: % | X19: % | AB19: % | AH19: m2 | AI19: dd-mmm-yy | AJ19: $'000 | AK19: $'000 | AL19: $'000 | AM19: $'000 | AO19: $'000 | AS19: dd-mmm-yy | AT19: $'000 | AU19: $'000 | AV19: $'000 | AY19: $'000 | BG19: Select >>> | BH19: % | BI19: $'000 | BL19: $'000
F23: Existing Infrastructure
G25: Citywide existing infrastructure | O25: Trunk parthways | P25: Catchment total | V25: 0 | X25: =SUM(T25:W25) -> 0 | AB25: 1 | AD25: =SUM(AB25:AB25) -> 1 | AI25: 1990-06-30 | AJ25: ='LGIP existing infrastructure'!F6/1000 -> 10794.87226 | AO25: =SUM(AJ25:AM25) -> 10794.87226 | AT25: ='LGIP existing infrastructure'!J6/1000 -> 206348.2974 | AY25: =SUM(AT25:AX25) -> 206348.2974 | BB25: =SUM(AY25,AO25) -> 217143.1697 | BG25: 0 | BH25: 0 | BJ25: =IF(BG25=1,IF(BI25>BB25*'Input-Gen'!$M$31,"Check value","OK"),"") -> 
G27: Total | AB27: =SUM(AB25:AB25) -> 1 | AD27: =(SUM(AD25:AD25)=SUM(AB27:AB27)) -> TRUE | AH27: =SUM(AH25:AH25) -> 0 | AJ27: =SUM(AJ25:AJ25) -> 10794.87226 | AK27: =SUM(AK25:AK25) -> 0 | AL27: =SUM(AL25:AL25) -> 0 | AM27: =SUM(AM25:AM25) -> 0 | AO27: =SUM(AO25:AO25) -> 10794.87226 | AT27: =SUM(AT25:AT25) -> 206348.2974 | AU27: =SUM(AU25:AU25) -> 0 | AV27: =SUM(AV25:AV25) -> 0 | AY27: =SUM(AY25:AY25) -> 206348.2974 | BB27: =SUM(BB25:BB25) -> 217143.1697 | BG27: =SUM(BG25:BG25) -> 0 | BI27: =SUM(BI25:BI25) -> 0 | BJ27: =IF(BG27=1,IF(BI27>BB27*'Input-Gen'!$M$31,"Check value","OK"),"") ->  | BL27: =SUM(BL25:BL25) -> 0
F30: Future Infrastructure
G32: =M32 -> ALB-SP-002 | M32: ='LGIP future infrastrure'!A2 -> ALB-SP-002 | N32: ='LGIP future infrastrure'!B2 -> APT153 | O32: ='LGIP future infrastrure'!E2 -> Cycle Route (Secondary) | P32: ='LGIP future infrastrure'!D2 -> Albion Bikeway (Bogan Street to Yulestar Street) | V32: 0 | X32: =SUM(T32:W32) -> 0 | AB32: 1 | AD32: =SUM(AB32:AB32) -> 1 | AH32: ='LGIP future infrastrure'!I2 -> 8 | AI32: =IF('LGIP future infrastrure'!F2="2016 - 2021",DATE(2019,6,30),DATE(2024,6,30)) -> 2024-06-30 | AK32: ='LGIP future infrastrure'!J2/1000 -> 1342.38 | AO32: =SUM(AK32:AM32) -> 1342.38 | AS32: =AI32 -> 2024-06-30 | AT32: ='LGIP future infrastrure'!K2/1000 -> 372.231 | AU32: =SUM('LGIP future infrastrure'!L2:N2)/1000 -> 193.714 | AY32: =AT32+AU32 -> 565.945 | BB32: =SUM(AY32,AO32) -> 1908.325 | BF32: =MAX(AS32,AI32) -> 2024-06-30 | BJ32: =IF(BG32=1,IF(BI32>BB32*'Input-Gen'!$M$31,"Check value","OK"),"") ->  | BL32: 0
G33: =M33 -> ALB-SP-004 | M33: ='LGIP future infrastrure'!A3 -> ALB-SP-004 | N33: ='LGIP future infrastrure'!B3 -> APT153 | O33: ='LGIP future infrastrure'!E3 -> Cycle Route (Secondary) | P33: ='LGIP future infrastrure'!D3 -> Albion Bikeway (Cooksley Street to Crosby Park) | V33: 0 | X33: =SUM(T33:W33) -> 0 | AB33: 1 | AD33: 1 | AH33: ='LGIP future infrastrure'!I3 -> 8 | AI33: =IF('LGIP future infrastrure'!F3="2016 - 2021",DATE(2019,6,30),DATE(2024,6,30)) -> 2024-06-30 | AK33: ='LGIP future infrastrure'!J3/1000 -> 704.857 | AO33: =SUM(AK33:AM33) -> 704.857 | AS33: =AI33 -> 2024-06-30 | AT33: ='LGIP future infrastrure'!K3/1000 -> 128.709 | AU33: =SUM('LGIP future infrastrure'!L3:N3)/1000 -> 66.983 | AY33: =AT33+AU33 -> 195.692 | BB33: 900.549 | BF33: 2024-06-30 | BJ33: =IF(BG33=1,IF(BI33>BB33*'Input-Gen'!$M$31,"Check value","OK"),"") ->  | BL33: 0
G34: BHI-SP-002 | M34: ='LGIP future infrastrure'!A4 -> BHI-SP-002 | N34: ='LGIP future infrastrure'!B4 -> APT32 | O34: ='LGIP future infrastrure'!E4 -> Cycle Route (Secondary) | P34: ='LGIP future infrastrure'!D4 -> South Pine River Bikeway (Wyampa Road to Kluver Street) | V34: 0 | X34: 0 | AB34: 1 | AD34: 1 | AH34: ='LGIP future infrastrure'!I4 -> 8 | AI34: =IF('LGIP future infrastrure'!F4="2016 - 2021",DATE(2019,6,30),DATE(2024,6,30)) -> 2024-06-30 | AK34: ='LGIP future infrastrure'!J4/1000 -> 36.775 | AO34: 36.775 | AS34: 2024-06-30 | AT34: ='LGIP future infrastrure'!K4/1000 -> 271.218 | AU34: =SUM('LGIP future infrastrure'!L4:N4)/1000 -> 141.145 | AY34: 412.363 | BB34: 449.138 | BF34: 2024-06-30 | BJ34: =IF(BG34=1,IF(BI34>BB34*'Input-Gen'!$M$31,"Check value","OK"),"") ->  | BL34: 0
G35: BRD-SP-001 | M35: ='LGIP future infrastrure'!A5 -> BRD-SP-001 | N35: ='LGIP future infrastrure'!B5 -> APT92, APT91 | O35: ='LGIP future infrastrure'!E5 -> Cycle Route (Secondary) | P35: ='LGIP future infrastrure'!D5 -> Cabbage Tree Creek Bikeway (Kensington Place Park to Albany Creek Road) | V35: 0 | X35: 0 | AB35: 1 | AD35: 1 | AH35: ='LGIP future infrastrure'!I5 -> 8 | AI35: =IF('LGIP future infrastrure'!F5="2016 - 2021",DATE(2019,6,30),DATE(2024,6,30)) -> 2019-06-30 | AK35: ='LGIP future infrastrure'!J5/1000 -> 18.721 | AO35: 18.721 | AS35: 2019-06-30 | AT35: ='LGIP future infrastrure'!K5/1000 -> 208.531 | AU35: =SUM('LGIP future infrastrure'!L5:N5)/1000 -> 87.845 | AY35: 296.376 | BB35: 315.097 | BF35: 2019-06-30 | BJ35: =IF(BG35=1,IF(BI35>BB35*'Input-Gen'!$M$31,"Check value","OK"),"") ->  | BL35: 0
G36: BRD-SP-002 | M36: ='LGIP future infrastrure'!A6 -> BRD-SP-002 | N36: ='LGIP future infrastrure'!B6 -> APT91, APT92 | O36: ='LGIP future infrastrure'!E6 -> Cycle Route (Primary) | P36: ='LGIP future infrastrure'!D6 -> Cabbage Tree Creek Bikeway (Albany Creek Road to Coolabah Crescent Park) | V36: 0 | X36: 0 | AB36: 1 | AD36: 1 | AH36: ='LGIP future infrastrure'!I6 -> 9 | AI36: =IF('LGIP future infrastrure'!F6="2016 - 2021",DATE(2019,6,30),DATE(2024,6,30)) -> 2024-06-30 | AK36: ='LGIP future infrastrure'!J6/1000 -> 19.786 | AO36: 19.786 | AS36: 2024-06-30 | AT36: ='LGIP future infrastrure'!K6/1000 -> 188.832 | AU36: =SUM('LGIP future infrastrure'!L6:N6)/1000 -> 98.271 | AY36: 287.103 | BB36: 306.889 | BF36: 2024-06-30 | BJ36: =IF(BG36=1,IF(BI36>BB36*'Input-Gen'!$M$31,"Check value","OK"),"") ->  | BL36: 0
G37: BUL-RW-001 | M37: ='LGIP future infrastrure'!A7 -> BUL-RW-001 | N37: ='LGIP future infrastrure'!B7 -> APT174, APT154, APT153 | O37: ='LGIP future infrastrure'!E7 -> RiverWalk | P37: ='LGIP future infrastrure'!D7 -> Bulimba (Riverside of 1-7 McConnell Street, and 3-69 Byron Street, Bulimba) | V37: 0 | X37: 0 | AB37: 1 | AD37: 1 | AH37: ='LGIP future infrastrure'!I7 -> 0 | AI37: =IF('LGIP future infrastrure'!F7="2016 - 2021",DATE(2019,6,30),DATE(2024,6,30)) -> 2024-06-30 | AK37: ='LGIP future infrastrure'!J7/1000 -> 0 | AO37: 0 | AS37: 2024-06-30 | AT37: ='LGIP future infrastrure'!K7/1000 -> 1113.75 | AU37: =SUM('LGIP future infrastrure'!L7:N7)/1000 -> 579.612 | AY37: 1693.362 | BB37: 1693.362 | BF37: 2024-06-30 | BJ37: =IF(BG37=1,IF(BI37>BB37*'Input-Gen'!$M$31,"Check value","OK"),"") ->  | BL37: 0
G38: BUL-RW-003 | M38: ='LGIP future infrastrure'!A8 -> BUL-RW-003 | N38: ='LGIP future infrastrure'!B8 -> APT173 | O38: ='LGIP future infrastrure'!E8 -> RiverWalk | P38: ='LGIP future infrastrure'!D8 -> Bulimba (Bulimba Riverside Park) | V38: 0 | X38: 0 | AB38: 1 | AD38: 1 | AH38: ='LGIP future infrastrure'!I8 -> 0 | AI38: =IF('LGIP future infrastrure'!F8="2016 - 2021",DATE(2019,6,30),DATE(2024,6,30)) -> 2024-06-30 | AK38: ='LGIP future infrastrure'!J8/1000 -> 0 | AO38: 0 | AS38: 2024-06-30 | AT38: ='LGIP future infrastrure'!K8/1000 -> 415.356 | AU38: =SUM('LGIP future infrastrure'!L8:N8)/1000 -> 216.157 | AY38: 631.513 | BB38: 631.513 | BF38: 2024-06-30 | BJ38: =IF(BG38=1,IF(BI38>BB38*'Input-Gen'!$M$31,"Check value","OK"),"") ->  | BL38: 0
G39: CAR-SP-002 | M39: ='LGIP future infrastrure'!A9 -> CAR-SP-002 | N39: ='LGIP future infrastrure'!B9 -> APT215, APT195 | O39: ='LGIP future infrastrure'!E9 -> Cycle Route (Secondary) | P39: ='LGIP future infrastrure'!D9 -> Carina Bikeway (Fursden Road to Meadowlands Road) | V39: 0 | X39: 0 | AB39: 1 | AD39: 1 | AH39: ='LGIP future infrastrure'!I9 -> 8 | AI39: =IF('LGIP future infrastrure'!F9="2016 - 2021",DATE(2019,6,30),DATE(2024,6,30)) -> 2024-06-30 | AK39: ='LGIP future infrastrure'!J9/1000 -> 506.214 | AO39: 506.214 | AS39: 2024-06-30 | AT39: ='LGIP future infrastrure'!K9/1000 -> 567.856 | AU39: =SUM('LGIP future infrastrure'!L9:N9)/1000 -> 295.52 | AY39: 863.376 | BB39: 1369.59 | BF39: 2024-06-30 | BJ39: =IF(BG39=1,IF(BI39>BB39*'Input-Gen'!$M$31,"Check value","OK"),"") ->  | BL39: 0
G40: CDE-SP-001 | M40: ='LGIP future infrastrure'!A10 -> CDE-SP-001 | N40: ='LGIP future infrastrure'!B10 -> APT92 | O40: ='LGIP future infrastrure'!E10 -> Cycle Route (Secondary) | P40: ='LGIP future infrastrure'!D10 -> Cabbage Tree Creek Bikeway (Coonawarra Drive to Kentia Street Park) | V40: 0 | X40: 0 | AB40: 1 | AD40: 1 | AH40: ='LGIP future infrastrure'!I10 -> 8 | AI40: =IF('LGIP future infrastrure'!F10="2016 - 2021",DATE(2019,6,30),DATE(2024,6,30)) -> 2019-06-30 | AK40: ='LGIP future infrastrure'!J10/1000 -> 4.853 | AO40: 4.853 | AS40: 2019-06-30 | AT40: ='LGIP future infrastrure'!K10/1000 -> 60.558 | AU40: =SUM('LGIP future infrastrure'!L10:N10)/1000 -> 25.511 | AY40: 86.069 | BB40: 90.922 | BF40: 2019-06-30 | BJ40: =IF(BG40=1,IF(BI40>BB40*'Input-Gen'!$M$31,"Check value","OK"),"") ->  | BL40: 0
G41: CDE-SP-002 | M41: ='LGIP future infrastrure'!A11 -> CDE-SP-002 | N41: ='LGIP future infrastrure'!B11 -> APT92 | O41: ='LGIP future infrastrure'!E11 -> Cycle Route (Secondary) | P41: ='LGIP future infrastrure'!D11 -> Cabbage Tree Creek Bikeway (Kentia Street Park to Kensington Place Park) | V41: 0 | X41: 0 | AB41: 1 | AD41: 1 | AH41: ='LGIP future infrastrure'!I11 -> 8 | AI41: =IF('LGIP future infrastrure'!F11="2016 - 2021",DATE(2019,6,30),DATE(2024,6,30)) -> 2019-06-30 | AK41: ='LGIP future infrastrure'!J11/1000 -> 6.177 | AO41: 6.177 | AS41: 2019-06-30 | AT41: ='LGIP future infrastrure'!K11/1000 -> 143.01 | AU41: =SUM('LGIP future infrastrure'!L11:N11)/1000 -> 60.245 | AY41: 203.255 | BB41: 209.432 | BF41: 2019-06-30 | BJ41: =IF(BG41=1,IF(BI41>BB41*'Input-Gen'!$M$31,"Check value","OK"),"") ->  | BL41: 0
G42: CDL-SP-010 | M42: ='LGIP future infrastrure'!A12 -> CDL-SP-010 | N42: ='LGIP future infrastrure'!B12 -> APT235 | O42: ='LGIP future infrastrure'!E12 -> Cycle Route (Secondary) | P42: ='LGIP future infrastrure'!D12 -> Bulimba Creek Bikeway (Scrub Road to Eromanga Street Park) | V42: 0 | X42: 0 | AB42: 1 | AD42: 1 | AH42: ='LGIP future infrastrure'!I12 -> 8 | AI42: =IF('LGIP future infrastrure'!F12="2016 - 2021",DATE(2019,6,30),DATE(2024,6,30)) -> 2024-06-30 | AK42: ='LGIP future infrastrure'!J12/1000 -> 877.398 | AO42: 877.398 | AS42: 2024-06-30 | AT42: ='LGIP future infrastrure'!K12/1000 -> 300.23 | AU42: =SUM('LGIP future infrastrure'!L12:N12)/1000 -> 156.244 | AY42: 456.474 | BB42: 1333.872 | BF42: 2024-06-30 | BJ42: =IF(BG42=1,IF(BI42>BB42*'Input-Gen'!$M$31,"Check value","OK"),"") ->  | BL42: 0
G43: CHE-SP-005 | M43: ='LGIP future infrastrure'!A13 -> CHE-SP-005 | N43: ='LGIP future infrastrure'!B13 -> APT112 | O43: ='LGIP future infrastrure'!E13 -> Cycle Route (Secondary) | P43: ='LGIP future infrastrure'!D13 -> Chermside Bikeway (Yiada Street to Valente Close) | V43: 0 | X43: 0 | AB43: 1 | AD43: 1 | AH43: ='LGIP future infrastrure'!I13 -> 8 | AI43: =IF('LGIP future infrastrure'!F13="2016 - 2021",DATE(2019,6,30),DATE(2024,6,30)) -> 2024-06-30 | AK43: ='LGIP future infrastrure'!J13/1000 -> 575.984 | AO43: 575.984 | AS43: 2024-06-30 | AT43: ='LGIP future infrastrure'!K13/1000 -> 118.172 | AU43: =SUM('LGIP future infrastrure'!L13:N13)/1000 -> 61.498 | AY43: 179.67 | BB43: 755.654 | BF43: 2024-06-30 | BJ43: =IF(BG43=1,IF(BI43>BB43*'Input-Gen'!$M$31,"Check value","OK"),"") ->  | BL43: 0
G44: CHE-SP-010 | M44: ='LGIP future infrastrure'!A14 -> CHE-SP-010 | N44: ='LGIP future infrastrure'!B14 -> APT112 | O44: ='LGIP future infrastrure'!E14 -> Cycle Route (Primary) | P44: ='LGIP future infrastrure'!D14 -> Downfall Creek Bikeway (Gympie Road Underpass) | V44: 0 | X44: 0 | AB44: 1 | AD44: 1 | AH44: ='LGIP future infrastrure'!I14 -> 9 | AI44: =IF('LGIP future infrastrure'!F14="2016 - 2021",DATE(2019,6,30),DATE(2024,6,30)) -> 2019-06-30 | AK44: ='LGIP future infrastrure'!J14/1000 -> 1.487 | AO44: 1.487 | AS44: 2019-06-30 | AT44: ='LGIP future infrastrure'!K14/1000 -> 108.801 | AU44: =SUM('LGIP future infrastrure'!L14:N14)/1000 -> 45.833 | AY44: 154.634 | BB44: 156.121 | BF44: 2019-06-30 | BJ44: =IF(BG44=1,IF(BI44>BB44*'Input-Gen'!$M$31,"Check value","OK"),"") ->  | BL44: 0
G45: CHW-SP-002 | M45: ='LGIP future infrastrure'!A15 -> CHW-SP-002 | N45: ='LGIP future infrastrure'!B15 -> APT112 | O45: ='LGIP future infrastrure'!E15 -> Cycle Route (Secondary) | P45: ='LGIP future infrastrure'!D15 -> Chermside West Bikeway (Maundrell Terrace to Chital Place) | V45: 0 | X45: 0 | AB45: 1 | AD45: 1 | AH45: ='LGIP future infrastrure'!I15 -> 8 | AI45: =IF('LGIP future infrastrure'!F15="2016 - 2021",DATE(2019,6,30),DATE(2024,6,30)) -> 2019-06-30 | AK45: ='LGIP future infrastrure'!J15/1000 -> 195.979 | AO45: 195.979 | AS45: 2019-06-30 | AT45: ='LGIP future infrastrure'!K15/1000 -> 111.398 | AU45: =SUM('LGIP future infrastrure'!L15:N15)/1000 -> 46.928 | AY45: 158.326 | BB45: 354.305 | BF45: 2019-06-30 | BJ45: =IF(BG45=1,IF(BI45>BB45*'Input-Gen'!$M$31,"Check value","OK"),"") ->  | BL45: 0
G46: COO-SP-004 | M46: ='LGIP future infrastrure'!A16 -> COO-SP-004 | N46: ='LGIP future infrastrure'!B16 -> APT214 | O46: ='LGIP future infrastrure'!E16 -> Cycle Route (Secondary) | P46: ='LGIP future infrastrure'!D16 -> Wembley Park Bikeway (Old Cleveland Road and Wembley Park) | V46: 0 | X46: 0 | AB46: 1 | AD46: 1 | AH46: ='LGIP future infrastrure'!I16 -> 8 | AI46: =IF('LGIP future infrastrure'!F16="2016 - 2021",DATE(2019,6,30),DATE(2024,6,30)) -> 2024-06-30 | AK46: ='LGIP future infrastrure'!J16/1000 -> 605.2 | AO46: 605.2 | AS46: 2024-06-30 | AT46: ='LGIP future infrastrure'!K16/1000 -> 42.224 | AU46: =SUM('LGIP future infrastrure'!L16:N16)/1000 -> 21.974 | AY46: 64.198 | BB46: 669.398 | BF46: 2024-06-30 | BJ46: =IF(BG46=1,IF(BI46>BB46*'Input-Gen'!$M$31,"Check value","OK"),"") ->  | BL46: 0
G47: CVE-SB-001 | M47: ='LGIP future infrastrure'!A17 -> CVE-SB-001 | N47: ='LGIP future infrastrure'!B17 -> APT313 | O47: ='LGIP future infrastrure'!E17 -> Cycle Route (Secondary) | P47: ='LGIP future infrastrure'!D17 -> Calamvale Bikeway (Bundabah Drive to Benhiam Street (bridge over creek)) | V47: 0 | X47: 0 | AB47: 1 | AD47: 1 | AH47: ='LGIP future infrastrure'!I17 -> 8 | AI47: =IF('LGIP future infrastrure'!F17="2016 - 2021",DATE(2019,6,30),DATE(2024,6,30)) -> 2024-06-30 | AK47: ='LGIP future infrastrure'!J17/1000 -> 4.417 | AO47: 4.417 | AS47: 2024-06-30 | AT47: ='LGIP future infrastrure'!K17/1000 -> 720 | AU47: =SUM('LGIP future infrastrure'!L17:N17)/1000 -> 374.699 | AY47: 1094.699 | BB47: 1099.116 | BF47: 2024-06-30 | BJ47: =IF(BG47=1,IF(BI47>BB47*'Input-Gen'!$M$31,"Check value","OK"),"") ->  | BL47: 0
G48: CVE-SP-002 | M48: ='LGIP future infrastrure'!A18 -> CVE-SP-002 | N48: ='LGIP future infrastrure'!B18 -> APT313 | O48: ='LGIP future infrastrure'!E18 -> Cycle Route (Secondary) | P48: ='LGIP future infrastrure'!D18 -> Calamvale Bikeway (Ormskirk Street to Highlands Drive Park) | V48: 0 | X48: 0 | AB48: 1 | AD48: 1 | AH48: ='LGIP future infrastrure'!I18 -> 8 | AI48: =IF('LGIP future infrastrure'!F18="2016 - 2021",DATE(2019,6,30),DATE(2024,6,30)) -> 2024-06-30 | AK48: ='LGIP future infrastrure'!J18/1000 -> 105.907 | AO48: 105.907 | AS48: 2024-06-30 | AT48: ='LGIP future infrastrure'!K18/1000 -> 713.692 | AU48: =SUM('LGIP future infrastrure'!L18:N18)/1000 -> 371.416 | AY48: 1085.108 | BB48: 1191.015 | BF48: 2024-06-30 | BJ48: =IF(BG48=1,IF(BI48>BB48*'Input-Gen'!$M$31,"Check value","OK"),"") ->  | BL48: 0
G49: CVE-SP-003 | M49: ='LGIP future infrastrure'!A19 -> CVE-SP-003 | N49: ='LGIP future infrastrure'!B19 -> APT313 | O49: ='LGIP future infrastrure'!E19 -> Cycle Route (Secondary) | P49: ='LGIP future infrastrure'!D19 -> Calamvale Bikeway (Bundabah Drive to Benhiam Street) | V49: 0 | X49: 0 | AB49: 1 | AD49: 1 | AH49: ='LGIP future infrastrure'!I19 -> 8 | AI49: =IF('LGIP future infrastrure'!F19="2016 - 2021",DATE(2019,6,30),DATE(2024,6,30)) -> 2024-06-30 | AK49: ='LGIP future infrastrure'!J19/1000 -> 238.292 | AO49: 238.292 | AS49: 2024-06-30 | AT49: ='LGIP future infrastrure'!K19/1000 -> 159.569 | AU49: =SUM('LGIP future infrastrure'!L19:N19)/1000 -> 83.043 | AY49: 242.612 | BB49: 480.904 | BF49: 2024-06-30 | BJ49: =IF(BG49=1,IF(BI49>BB49*'Input-Gen'!$M$31,"Check value","OK"),"") ->  | BL49: 0
G50: DAR-SP-004 | M50: ='LGIP future infrastrure'!A20 -> DAR-SP-004 | N50: ='LGIP future infrastrure'!B20 -> APT270 | O50: ='LGIP future infrastrure'!E20 -> Cycle Route (Secondary) | P50: ='LGIP future infrastrure'!D20 -> Oxley Bikeway (Harcourt Road to Englefield Road (southern side of railway line)) | V50: 0 | X50: 0 | AB50: 1 | AD50: 1 | AH50: ='LGIP future infrastrure'!I20 -> 8 | AI50: =IF('LGIP future infrastrure'!F20="2016 - 2021",DATE(2019,6,30),DATE(2024,6,30)) -> 2019-06-30 | AK50: ='LGIP future infrastrure'!J20/1000 -> 175.488 | AO50: 175.488 | AS50: 2019-06-30 | AT50: ='LGIP future infrastrure'!K20/1000 -> 535.931 | AU50: =SUM('LGIP future infrastrure'!L20:N20)/1000 -> 225.765 | AY50: 761.696 | BB50: 937.184 | BF50: 2019-06-30 | BJ50: =IF(BG50=1,IF(BI50>BB50*'Input-Gen'!$M$31,"Check value","OK"),"") ->  | BL50: 0
G51: DOO-SP-001 | M51: ='LGIP future infrastrure'!A21 -> DOO-SP-001 | N51: ='LGIP future infrastrure'!B21 -> APT311 | O51: ='LGIP future infrastrure'!E21 -> Cycle Route (Secondary) | P51: ='LGIP future infrastrure'!D21 -> Blunder Creek Bikeway (Armisfield Street to Peacock Street) | V51: 0 | X51: 0 | AB51: 1 | AD51: 1 | AH51: ='LGIP future infrastrure'!I21 -> 8 | AI51: =IF('LGIP future infrastrure'!F21="2016 - 2021",DATE(2019,6,30),DATE(2024,6,30)) -> 2024-06-30 | AK51: ='LGIP future infrastrure'!J21/1000 -> 91.651 | AO51: 91.651 | AS51: 2024-06-30 | AT51: ='LGIP future infrastrure'!K21/1000 -> 285.286 | AU51: =SUM('LGIP future infrastrure'!L21:N21)/1000 -> 148.468 | AY51: 433.754 | BB51: 525.405 | BF51: 2024-06-30 | BJ51: =IF(BG51=1,IF(BI51>BB51*'Input-Gen'!$M$31,"Check value","OK"),"") ->  | BL51: 0
G52: DUR-SP-002 | M52: ='LGIP future infrastrure'!A22 -> DUR-SP-002 | N52: ='LGIP future infrastrure'!B22 -> APT291 | O52: ='LGIP future infrastrure'!E22 -> Cycle Route (Secondary) | P52: ='LGIP future infrastrure'!D22 -> Blunder Creek Bikeway (Adeline Street to Messara Circuit) | V52: 0 | X52: 0 | AB52: 1 | AD52: 1 | AH52: ='LGIP future infrastrure'!I22 -> 8 | AI52: =IF('LGIP future infrastrure'!F22="2016 - 2021",DATE(2019,6,30),DATE(2024,6,30)) -> 2024-06-30 | AK52: ='LGIP future infrastrure'!J22/1000 -> 1456.697 | AO52: 1456.697 | AS52: 2024-06-30 | AT52: ='LGIP future infrastrure'!K22/1000 -> 373.589 | AU52: =SUM('LGIP future infrastrure'!L22:N22)/1000 -> 194.421 | AY52: 568.01 | BB52: 2024.707 | BF52: 2024-06-30 | BJ52: =IF(BG52=1,IF(BI52>BB52*'Input-Gen'!$M$31,"Check value","OK"),"") ->  | BL52: 0
G53: DUR-SP-003 | M53: ='LGIP future infrastrure'!A23 -> DUR-SP-003 | N53: ='LGIP future infrastrure'!B23 -> APT291 | O53: ='LGIP future infrastrure'!E23 -> Cycle Route (Secondary) | P53: ='LGIP future infrastrure'!D23 -> Blunder Creek Bikeway (Messara Circuit to King Avenue) | V53: 0 | X53: 0 | AB53: 1 | AD53: 1 | AH53: ='LGIP future infrastrure'!I23 -> 8 | AI53: =IF('LGIP future infrastrure'!F23="2016 - 2021",DATE(2019,6,30),DATE(2024,6,30)) -> 2024-06-30 | AK53: ='LGIP future infrastrure'!J23/1000 -> 17.939 | AO53: 17.939 | AS53: 2024-06-30 | AT53: ='LGIP future infrastrure'!K23/1000 -> 196.304 | AU53: =SUM('LGIP future infrastrure'!L23:N23)/1000 -> 102.16 | AY53: 298.464 | BB53: 316.403 | BF53: 2024-06-30 | BJ53: =IF(BG53=1,IF(BI53>BB53*'Input-Gen'!$M$31,"Check value","OK"),"") ->  | BL53: 0
G54: EAB-SP-001 | M54: ='LGIP future infrastrure'!A24 -> EAB-SP-001 | N54: ='LGIP future infrastrure'!B24 -> APT213 | O54: ='LGIP future infrastrure'!E24 -> Cycle Route (Secondary) | P54: ='LGIP future infrastrure'!D24 -> Kingfisher Creek Bikeway (Withington Street to Caswell Street) | V54: 0 | X54: 0 | AB54: 1 | AD54: 1 | AH54: ='LGIP future infrastrure'!I24 -> 8 | AI54: =IF('LGIP future infrastrure'!F24="2016 - 2021",DATE(2019,6,30),DATE(2024,6,30)) -> 2024-06-30 | AK54: ='LGIP future infrastrure'!J24/1000 -> 28.281 | AO54: 28.281 | AS54: 2024-06-30 | AT54: ='LGIP future infrastrure'!K24/1000 -> 319.928 | AU54: =SUM('LGIP future infrastrure'!L24:N24)/1000 -> 166.496 | AY54: 486.424 | BB54: 514.705 | BF54: 2024-06-30 | BJ54: =IF(BG54=1,IF(BI54>BB54*'Input-Gen'!$M$31,"Check value","OK"),"") ->  | BL54: 0
G55: EAF-SP-001 | M55: ='LGIP future infrastrure'!A25 -> EAF-SP-001 | N55: ='LGIP future infrastrure'!B25 -> APT134, APT154 | O55: ='LGIP future infrastrure'!E25 -> Cycle Route (Primary) | P55: ='LGIP future infrastrure'!D25 -> Moreton Bay Cycleway (The Boulevard to Trade Coast Drive) | V55: 0 | X55: 0 | AB55: 1 | AD55: 1 | AH55: ='LGIP future infrastrure'!I25 -> 9 | AI55: =IF('LGIP future infrastrure'!F25="2016 - 2021",DATE(2019,6,30),DATE(2024,6,30)) -> 2019-06-30 | AK55: ='LGIP future infrastrure'!J25/1000 -> 820.107 | AO55: 820.107 | AS55: 2019-06-30 | AT55: ='LGIP future infrastrure'!K25/1000 -> 514.874 | AU55: =SUM('LGIP future infrastrure'!L25:N25)/1000 -> 216.895 | AY55: 731.769 | BB55: 1551.876 | BF55: 2019-06-30 | BJ55: =IF(BG55=1,IF(BI55>BB55*'Input-Gen'!$M$31,"Check value","OK"),"") ->  | BL55: 0
G56: EAF-SP-003 | M56: ='LGIP future infrastrure'!A26 -> EAF-SP-003 | N56: ='LGIP future infrastrure'!B26 -> APT154, APT155 | O56: ='LGIP future infrastrure'!E26 -> Cycle Route (Secondary) | P56: ='LGIP future infrastrure'!D26 -> Kingsford Smith Drive Bikeway (Schneider Road to Viola Place) | V56: 0 | X56: 0 | AB56: 1 | AD56: 1 | AH56: ='LGIP future infrastrure'!I26 -> 8 | AI56: =IF('LGIP future infrastrure'!F26="2016 - 2021",DATE(2019,6,30),DATE(2024,6,30)) -> 2019-06-30 | AK56: ='LGIP future infrastrure'!J26/1000 -> 788.052 | AO56: 788.052 | AS56: 2019-06-30 | AT56: ='LGIP future infrastrure'!K26/1000 -> 316.586 | AU56: =SUM('LGIP future infrastrure'!L26:N26)/1000 -> 133.365 | AY56: 449.951 | BB56: 1238.003 | BF56: 2019-06-30 | BJ56: =IF(BG56=1,IF(BI56>BB56*'Input-Gen'!$M$31,"Check value","OK"),"") ->  | BL56: 0
G57: EAF-SP-005 | M57: ='LGIP future infrastrure'!A27 -> EAF-SP-005 | N57: ='LGIP future infrastrure'!B27 -> APT154, APT174 | O57: ='LGIP future infrastrure'!E27 -> Cycle Route (Secondary) | P57: ='LGIP future infrastrure'!D27 -> Brisbane River Bikeway (Northshore Riverside Park to Curtin Avenue) | V57: 0 | X57: 0 | AB57: 1 | AD57: 1 | AH57: ='LGIP future infrastrure'!I27 -> 8 | AI57: =IF('LGIP future infrastrure'!F27="2016 - 2021",DATE(2019,6,30),DATE(2024,6,30)) -> 2024-06-30 | AK57: ='LGIP future infrastrure'!J27/1000 -> 1278.076 | AO57: 1278.076 | AS57: 2024-06-30 | AT57: ='LGIP future infrastrure'!K27/1000 -> 559.929 | AU57: =SUM('LGIP future infrastrure'!L27:N27)/1000 -> 291.395 | AY57: 851.324 | BB57: 2129.4 | BF57: 2024-06-30 | BJ57: =IF(BG57=1,IF(BI57>BB57*'Input-Gen'!$M$31,"Check value","OK"),"") ->  | BL57: 0
G58: ELG-SP-002 | M58: ='LGIP future infrastrure'!A28 -> ELG-SP-002 | N58: ='LGIP future infrastrure'!B28 -> APT310 | O58: ='LGIP future infrastrure'!E28 -> Cycle Route (Secondary) | P58: ='LGIP future infrastrure'!D28 -> Bullockhead Creek Bikeway (Waterford Road to Roxwell Street - along eastern side of creek) | V58: 0 | X58: 0 | AB58: 1 | AD58: 1 | AH58: ='LGIP future infrastrure'!I28 -> 8 | AI58: =IF('LGIP future infrastrure'!F28="2016 - 2021",DATE(2019,6,30),DATE(2024,6,30)) -> 2024-06-30 | AK58: ='LGIP future infrastrure'!J28/1000 -> 0 | AO58: 0 | AS58: 2024-06-30 | AT58: ='LGIP future infrastrure'!K28/1000 -> 939.407 | AU58: =SUM('LGIP future infrastrure'!L28:N28)/1000 -> 488.882 | AY58: 1428.289 | BB58: 1428.289 | BF58: 2024-06-30 | BJ58: =IF(BG58=1,IF(BI58>BB58*'Input-Gen'!$M$31,"Check value","OK"),"") ->  | BL58: 0
G59: EMP-SP-001 | M59: ='LGIP future infrastrure'!A29 -> EMP-SP-001 | N59: ='LGIP future infrastrure'!B29 -> APT275, APT274 | O59: ='LGIP future infrastrure'!E29 -> Cycle Route (Secondary) | P59: ='LGIP future infrastrure'!D29 -> Bulimba Creek Bikeway (Maisie Dixon Park to Holmead Road) | V59: 0 | X59: 0 | AB59: 1 | AD59: 1 | AH59: ='LGIP future infrastrure'!I29 -> 8 | AI59: =IF('LGIP future infrastrure'!F29="2016 - 2021",DATE(2019,6,30),DATE(2024,6,30)) -> 2019-06-30 | AK59: ='LGIP future infrastrure'!J29/1000 -> 1044.751 | AO59: 1044.751 | AS59: 2019-06-30 | AT59: ='LGIP future infrastrure'!K29/1000 -> 520.308 | AU59: =SUM('LGIP future infrastrure'!L29:N29)/1000 -> 219.183 | AY59: 739.491 | BB59: 1784.242 | BF59: 2019-06-30 | BJ59: =IF(BG59=1,IF(BI59>BB59*'Input-Gen'!$M$31,"Check value","OK"),"") ->  | BL59: 0
G60: EMP-SP-004 | M60: ='LGIP future infrastrure'!A30 -> EMP-SP-004 | N60: ='LGIP future infrastrure'!B30 -> APT295 | O60: ='LGIP future infrastrure'!E30 -> Cycle Route (Primary) | P60: ='LGIP future infrastrure'!D30 -> Bulimba Creek Bikeway (Underwood Road to Logan Road (western side of Gateway Motorway)) | V60: 0 | X60: 0 | AB60: 1 | AD60: 1 | AH60: ='LGIP future infrastrure'!I30 -> 9 | AI60: =IF('LGIP future infrastrure'!F30="2016 - 2021",DATE(2019,6,30),DATE(2024,6,30)) -> 2024-06-30 | AK60: ='LGIP future infrastrure'!J30/1000 -> 293.086 | AO60: 293.086 | AS60: 2024-06-30 | AT60: ='LGIP future infrastrure'!K30/1000 -> 711.178 | AU60: =SUM('LGIP future infrastrure'!L30:N30)/1000 -> 370.107 | AY60: 1081.285 | BB60: 1374.371 | BF60: 2024-06-30 | BJ60: =IF(BG60=1,IF(BI60>BB60*'Input-Gen'!$M$31,"Check value","OK"),"") ->  | BL60: 0
G61: ENG-SB-001 | M61: ='LGIP future infrastrure'!A31 -> ENG-SB-001 | N61: ='LGIP future infrastrure'!B31 -> APT131 | O61: ='LGIP future infrastrure'!E31 -> Cycle Route (Secondary) | P61: ='LGIP future infrastrure'!D31 -> Kedron Brook Bikeway (Enoggera Memorial Park to northern side of creek) | V61: 0 | X61: 0 | AB61: 1 | AD61: 1 | AH61: ='LGIP future infrastrure'!I31 -> 8 | AI61: =IF('LGIP future infrastrure'!F31="2016 - 2021",DATE(2019,6,30),DATE(2024,6,30)) -> 2024-06-30 | AK61: ='LGIP future infrastrure'!J31/1000 -> 3.272 | AO61: 3.272 | AS61: 2024-06-30 | AT61: ='LGIP future infrastrure'!K31/1000 -> 948 | AU61: =SUM('LGIP future infrastrure'!L31:N31)/1000 -> 493.354 | AY61: 1441.354 | BB61: 1444.626 | BF61: 2024-06-30 | BJ61: =IF(BG61=1,IF(BI61>BB61*'Input-Gen'!$M$31,"Check value","OK"),"") ->  | BL61: 0
G62: EVP-SP-001 | M62: ='LGIP future infrastrure'!A32 -> EVP-SP-001 | N62: ='LGIP future infrastrure'!B32 -> APT111 | O62: ='LGIP future infrastrure'!E32 -> Cycle Route (Primary) | P62: ='LGIP future infrastrure'!D32 -> Downfall Creek Bikeway (Trouts Road to Flockton Street) | V62: 0 | X62: 0 | AB62: 1 | AD62: 1 | AH62: ='LGIP future infrastrure'!I32 -> 9 | AI62: =IF('LGIP future infrastrure'!F32="2016 - 2021",DATE(2019,6,30),DATE(2024,6,30)) -> 2024-06-30 | AK62: ='LGIP future infrastrure'!J32/1000 -> 1447.645 | AO62: 1447.645 | AS62: 2024-06-30 | AT62: ='LGIP future infrastrure'!K32/1000 -> 298.192 | AU62: =SUM('LGIP future infrastrure'!L32:N32)/1000 -> 155.184 | AY62: 453.376 | BB62: 1901.021 | BF62: 2024-06-30 | BJ62: =IF(BG62=1,IF(BI62>BB62*'Input-Gen'!$M$31,"Check value","OK"),"") ->  | BL62: 0
G63: FGR-SP-003 | M63: ='LGIP future infrastrure'!A33 -> FGR-SP-003 | N63: ='LGIP future infrastrure'!B33 -> APT129 | O63: ='LGIP future infrastrure'!E33 -> Cycle Route (Secondary) | P63: ='LGIP future infrastrure'!D33 -> Cedar Creek Bikeway (Keperra Picnic Ground Park to Nelson Place Park - Ferny Grove) | V63: 0 | X63: 0 | AB63: 1 | AD63: 1 | AH63: ='LGIP future infrastrure'!I33 -> 8 | AI63: =IF('LGIP future infrastrure'!F33="2016 - 2021",DATE(2019,6,30),DATE(2024,6,30)) -> 2024-06-30 | AK63: ='LGIP future infrastrure'!J33/1000 -> 1130.628 | AO63: 1130.628 | AS63: 2024-06-30 | AT63: ='LGIP future infrastrure'!K33/1000 -> 449.666 | AU63: =SUM('LGIP future infrastrure'!L33:N33)/1000 -> 234.012 | AY63: 683.678 | BB63: 1814.306 | BF63: 2024-06-30 | BJ63: =IF(BG63=1,IF(BI63>BB63*'Input-Gen'!$M$31,"Check value","OK"),"") ->  | BL63: 0
G64: FGR-SP-004 | M64: ='LGIP future infrastrure'!A34 -> FGR-SP-004 | N64: ='LGIP future infrastrure'!B34 -> APT129 | O64: ='LGIP future infrastrure'!E34 -> Cycle Route (Secondary) | P64: ='LGIP future infrastrure'!D34 -> Ferny Grove Bikeway (McAlroy Road to Hogarth Road) | V64: 0 | X64: 0 | AB64: 1 | AD64: 1 | AH64: ='LGIP future infrastrure'!I34 -> 8 | AI64: =IF('LGIP future infrastrure'!F34="2016 - 2021",DATE(2019,6,30),DATE(2024,6,30)) -> 2024-06-30 | AK64: ='LGIP future infrastrure'!J34/1000 -> 16.866 | AO64: 16.866 | AS64: 2024-06-30 | AT64: ='LGIP future infrastrure'!K34/1000 -> 186.795 | AU64: =SUM('LGIP future infrastrure'!L34:N34)/1000 -> 97.21 | AY64: 284.005 | BB64: 300.871 | BF64: 2024-06-30 | BJ64: =IF(BG64=1,IF(BI64>BB64*'Input-Gen'!$M$31,"Check value","OK"),"") ->  | BL64: 0
G65: FLK-SP-002 | M65: ='LGIP future infrastrure'!A35 -> FLK-SP-002 | N65: ='LGIP future infrastrure'!B35 -> APT310 | O65: ='LGIP future infrastrure'!E35 -> Cycle Route (Secondary) | P65: ='LGIP future infrastrure'!D35 -> Bullockhead Creek Bikeway (Lilydale Place to Waterford Road) | V65: 0 | X65: 0 | AB65: 1 | AD65: 1 | AH65: ='LGIP future infrastrure'!I35 -> 8 | AI65: =IF('LGIP future infrastrure'!F35="2016 - 2021",DATE(2019,6,30),DATE(2024,6,30)) -> 2024-06-30 | AK65: ='LGIP future infrastrure'!J35/1000 -> 36.99 | AO65: 36.99 | AS65: 2024-06-30 | AT65: ='LGIP future infrastrure'!K35/1000 -> 654.8 | AU65: =SUM('LGIP future infrastrure'!L35:N35)/1000 -> 340.768 | AY65: 995.568 | BB65: 1032.558 | BF65: 2024-06-30 | BJ65: =IF(BG65=1,IF(BI65>BB65*'Input-Gen'!$M$31,"Check value","OK"),"") ->  | BL65: 0
G66: HEA-SP-001 | M66: ='LGIP future infrastrure'!A36 -> HEA-SP-001 | N66: ='LGIP future infrastrure'!B36 -> APT331 | O66: ='LGIP future infrastrure'!E36 -> Cycle Route (Secondary) | P66: ='LGIP future infrastrure'!D36 -> Heathwood Bikeway (Stapylton Road to Euengella Terrace Park) | V66: 0 | X66: 0 | AB66: 1 | AD66: 1 | AH66: ='LGIP future infrastrure'!I36 -> 8 | AI66: =IF('LGIP future infrastrure'!F36="2016 - 2021",DATE(2019,6,30),DATE(2024,6,30)) -> 2019-06-30 | AK66: ='LGIP future infrastrure'!J36/1000 -> 2058.57 | AO66: 2058.57 | AS66: 2019-06-30 | AT66: ='LGIP future infrastrure'!K36/1000 -> 324.18 | AU66: =SUM('LGIP future infrastrure'!L36:N36)/1000 -> 136.564 | AY66: 460.744 | BB66: 2519.314 | BF66: 2019-06-30 | BJ66: =IF(BG66=1,IF(BI66>BB66*'Input-Gen'!$M$31,"Check value","OK"),"") ->  | BL66: 0
G67: HER-SP-001 | M67: ='LGIP future infrastrure'!A37 -> HER-SP-001 | N67: ='LGIP future infrastrure'!B37 -> APT152 | O67: ='LGIP future infrastrure'!E37 -> Cycle Route (Secondary) | P67: ='LGIP future infrastrure'!D37 -> Enoggera Creek Bikeway (Clyde Road to Gould Road Park) | V67: 0 | X67: 0 | AB67: 1 | AD67: 1 | AH67: ='LGIP future infrastrure'!I37 -> 8 | AI67: =IF('LGIP future infrastrure'!F37="2016 - 2021",DATE(2019,6,30),DATE(2024,6,30)) -> 2024-06-30 | AK67: ='LGIP future infrastrure'!J37/1000 -> 17.987 | AO67: 17.987 | AS67: 2024-06-30 | AT67: ='LGIP future infrastrure'!K37/1000 -> 421.816 | AU67: =SUM('LGIP future infrastrure'!L37:N37)/1000 -> 219.52 | AY67: 641.336 | BB67: 659.323 | BF67: 2024-06-30 | BJ67: =IF(BG67=1,IF(BI67>BB67*'Input-Gen'!$M$31,"Check value","OK"),"") ->  | BL67: 0
G68: HPW-SP-001 | M68: ='LGIP future infrastrure'!A38 -> HPW-SP-001 | N68: ='LGIP future infrastrure'!B38 -> APT233 | O68: ='LGIP future infrastrure'!E38 -> Cycle Route (Secondary) | P68: ='LGIP future infrastrure'!D38 -> Norman Creek Bikeway (Roseglen Street Park (no. 30) to Birdwood Road (north of 103 Birdwood Road)) | V68: 0 | X68: 0 | AB68: 1 | AD68: 1 | AH68: ='LGIP future infrastrure'!I38 -> 8 | AI68: =IF('LGIP future infrastrure'!F38="2016 - 2021",DATE(2019,6,30),DATE(2024,6,30)) -> 2024-06-30 | AK68: ='LGIP future infrastrure'!J38/1000 -> 200.341 | AO68: 200.341 | AS68: 2024-06-30 | AT68: ='LGIP future infrastrure'!K38/1000 -> 289.78 | AU68: =SUM('LGIP future infrastrure'!L38:N38)/1000 -> 150.807 | AY68: 440.587 | BB68: 640.928 | BF68: 2024-06-30 | BJ68: =IF(BG68=1,IF(BI68>BB68*'Input-Gen'!$M$31,"Check value","OK"),"") ->  | BL68: 0
G69: HPW-SP-002 | M69: ='LGIP future infrastrure'!A39 -> HPW-SP-002 | N69: ='LGIP future infrastrure'!B39 -> APT233 | O69: ='LGIP future infrastrure'!E39 -> Cycle Route (Secondary) | P69: ='LGIP future infrastrure'!D39 -> Norman Creek Bikeway (existing bridge over Norman Creek to Birdwood Road / Esher Street Intersection) | V69: 0 | X69: 0 | AB69: 1 | AD69: 1 | AH69: ='LGIP future infrastrure'!I39 -> 8 | AI69: =IF('LGIP future infrastrure'!F39="2016 - 2021",DATE(2019,6,30),DATE(2024,6,30)) -> 2024-06-30 | AK69: ='LGIP future infrastrure'!J39/1000 -> 0 | AO69: 0 | AS69: 2024-06-30 | AT69: ='LGIP future infrastrure'!K39/1000 -> 136.989 | AU69: =SUM('LGIP future infrastrure'!L39:N39)/1000 -> 71.291 | AY69: 208.28 | BB69: 208.28 | BF69: 2024-06-30 | BJ69: =IF(BG69=1,IF(BI69>BB69*'Input-Gen'!$M$31,"Check value","OK"),"") ->  | BL69: 0
G70: HPW-SP-003 | M70: ='LGIP future infrastrure'!A40 -> HPW-SP-003 | N70: ='LGIP future infrastrure'!B40 -> APT233 | O70: ='LGIP future infrastrure'!E40 -> Cycle Route (Secondary) | P70: ='LGIP future infrastrure'!D40 -> Mott Creek Bikeway (Mananda Street to Woodford Street) | V70: 0 | X70: 0 | AB70: 1 | AD70: 1 | AH70: ='LGIP future infrastrure'!I40 -> 8 | AI70: =IF('LGIP future infrastrure'!F40="2016 - 2021",DATE(2019,6,30),DATE(2024,6,30)) -> 2024-06-30 | AK70: ='LGIP future infrastrure'!J40/1000 -> 22.451 | AO70: 22.451 | AS70: 2024-06-30 | AT70: ='LGIP future infrastrure'!K40/1000 -> 124.193 | AU70: =SUM('LGIP future infrastrure'!L40:N40)/1000 -> 64.632 | AY70: 188.825 | BB70: 211.276 | BF70: 2024-06-30 | BJ70: =IF(BG70=1,IF(BI70>BB70*'Input-Gen'!$M$31,"Check value","OK"),"") ->  | BL70: 0
G71: HPW-SP-004 | M71: ='LGIP future infrastrure'!A41 -> HPW-SP-004 | N71: ='LGIP future infrastrure'!B41 -> APT233 | O71: ='LGIP future infrastrure'!E41 -> Cycle Route (Secondary) | P71: ='LGIP future infrastrure'!D41 -> Glindemann Creek Bikeway (Birdwood Road Park to Joachim Street Park) | V71: 0 | X71: 0 | AB71: 1 | AD71: 1 | AH71: ='LGIP future infrastrure'!I41 -> 8 | AI71: =IF('LGIP future infrastrure'!F41="2016 - 2021",DATE(2019,6,30),DATE(2024,6,30)) -> 2024-06-30 | AK71: ='LGIP future infrastrure'!J41/1000 -> 1.234 | AO71: 1.234 | AS71: 2024-06-30 | AT71: ='LGIP future infrastrure'!K41/1000 -> 443.552 | AU71: =SUM('LGIP future infrastrure'!L41:N41)/1000 -> 230.831 | AY71: 674.383 | BB71: 675.617 | BF71: 2024-06-30 | BJ71: =IF(BG71=1,IF(BI71>BB71*'Input-Gen'!$M$31,"Check value","OK"),"") ->  | BL71: 0
G72: KAN-SP-002 | M72: ='LGIP future infrastrure'!A42 -> KAN-SP-002 | N72: ='LGIP future infrastrure'!B42 -> APT193, APT192 | O72: ='LGIP future infrastrure'!E42 -> Cycle Route (Primary) | P72: ='LGIP future infrastrure'!D42 -> Kangaroo Point Bikeway (Goodwill Bridge to Thornton Street) | V72: 0 | X72: 0 | AB72: 1 | AD72: 1 | AH72: ='LGIP future infrastrure'!I42 -> 9 | AI72: =IF('LGIP future infrastrure'!F42="2016 - 2021",DATE(2019,6,30),DATE(2024,6,30)) -> 2019-06-30 | AK72: ='LGIP future infrastrure'!J42/1000 -> 2082.297 | AO72: 2082.297 | AS72: 2019-06-30 | AT72: ='LGIP future infrastrure'!K42/1000 -> 1346.206 | AU72: =SUM('LGIP future infrastrure'!L42:N42)/1000 -> 567.099 | AY72: 1913.305 | BB72: 3995.602 | BF72: 2019-06-30 | BJ72: =IF(BG72=1,IF(BI72>BB72*'Input-Gen'!$M$31,"Check value","OK"),"") ->  | BL72: 0
G73: KUR-SP-001 | M73: ='LGIP future infrastrure'!A43 -> KUR-SP-001 | N73: ='LGIP future infrastrure'!B43 -> APT314 | O73: ='LGIP future infrastrure'!E43 -> Cycle Route (Primary) | P73: ='LGIP future infrastrure'!D43 -> Bulimba Creek Bikeway (Persse Road to Beenleigh Road) | V73: 0 | X73: 0 | AB73: 1 | AD73: 1 | AH73: ='LGIP future infrastrure'!I43 -> 9 | AI73: =IF('LGIP future infrastrure'!F43="2016 - 2021",DATE(2019,6,30),DATE(2024,6,30)) -> 2024-06-30 | AK73: ='LGIP future infrastrure'!J43/1000 -> 509.844 | AO73: 509.844 | AS73: 2024-06-30 | AT73: ='LGIP future infrastrure'!K43/1000 -> 546.677 | AU73: =SUM('LGIP future infrastrure'!L43:N43)/1000 -> 284.499 | AY73: 831.176 | BB73: 1341.02 | BF73: 2024-06-30 | BJ73: =IF(BG73=1,IF(BI73>BB73*'Input-Gen'!$M$31,"Check value","OK"),"") ->  | BL73: 0
G74: KUR-SP-003 | M74: ='LGIP future infrastrure'!A44 -> KUR-SP-003 | N74: ='LGIP future infrastrure'!B44 -> APT315 | O74: ='LGIP future infrastrure'!E44 -> Cycle Route (Secondary) | P74: ='LGIP future infrastrure'!D44 -> Kuraby Bikeway (Millers Road to Saint George Street plus links to Pioneer Drive and Edwin Street) | V74: 0 | X74: 0 | AB74: 1 | AD74: 1 | AH74: ='LGIP future infrastrure'!I44 -> 8 | AI74: =IF('LGIP future infrastrure'!F44="2016 - 2021",DATE(2019,6,30),DATE(2024,6,30)) -> 2019-06-30 | AK74: ='LGIP future infrastrure'!J44/1000 -> 2119.885 | AO74: 2119.885 | AS74: 2019-06-30 | AT74: ='LGIP future infrastrure'!K44/1000 -> 1045.004 | AU74: =SUM('LGIP future infrastrure'!L44:N44)/1000 -> 440.216 | AY74: 1485.22 | BB74: 3605.105 | BF74: 2019-06-30 | BJ74: =IF(BG74=1,IF(BI74>BB74*'Input-Gen'!$M$31,"Check value","OK"),"") ->  | BL74: 0
G75: MDW-SP-002 | M75: ='LGIP future infrastrure'!A45 -> MDW-SP-002 | N75: ='LGIP future infrastrure'!B45 -> APT111 | O75: ='LGIP future infrastrure'!E45 -> Cycle Route (Secondary) | P75: ='LGIP future infrastrure'!D45 -> Cabbage Tree Creek Bikeway (Hamilton Road to Old Northern Road) | V75: 0 | X75: 0 | AB75: 1 | AD75: 1 | AH75: ='LGIP future infrastrure'!I45 -> 8 | AI75: =IF('LGIP future infrastrure'!F45="2016 - 2021",DATE(2019,6,30),DATE(2024,6,30)) -> 2024-06-30 | AK75: ='LGIP future infrastrure'!J45/1000 -> 38.97 | AO75: 38.97 | AS75: 2024-06-30 | AT75: ='LGIP future infrastrure'!K45/1000 -> 278.969 | AU75: =SUM('LGIP future infrastrure'!L45:N45)/1000 -> 145.18 | AY75: 424.149 | BB75: 463.119 | BF75: 2024-06-30 | BJ75: =IF(BG75=1,IF(BI75>BB75*'Input-Gen'!$M$31,"Check value","OK"),"") ->  | BL75: 0
G76: MGE-SP-001 | M76: ='LGIP future infrastrure'!A46 -> MGE-SP-001 | N76: ='LGIP future infrastrure'!B46 -> APT235 | O76: ='LGIP future infrastrure'!E46 -> Cycle Route (Secondary) | P76: ='LGIP future infrastrure'!D46 -> Salvin Creek Bikeway (Creek Road to Pine Mountain Road) | V76: 0 | X76: 0 | AB76: 1 | AD76: 1 | AH76: ='LGIP future infrastrure'!I46 -> 8 | AI76: =IF('LGIP future infrastrure'!F46="2016 - 2021",DATE(2019,6,30),DATE(2024,6,30)) -> 2024-06-30 | AK76: ='LGIP future infrastrure'!J46/1000 -> 53.475 | AO76: 53.475 | AS76: 2024-06-30 | AT76: ='LGIP future infrastrure'!K46/1000 -> 180.681 | AU76: =SUM('LGIP future infrastrure'!L46:N46)/1000 -> 94.03 | AY76: 274.711 | BB76: 328.186 | BF76: 2024-06-30 | BJ76: =IF(BG76=1,IF(BI76>BB76*'Input-Gen'!$M$31,"Check value","OK"),"") ->  | BL76: 0
G77: MIT-SP-003 | M77: ='LGIP future infrastrure'!A47 -> MIT-SP-003 | N77: ='LGIP future infrastrure'!B47 -> APT130 | O77: ='LGIP future infrastrure'!E47 -> Cycle Route (Secondary) | P77: ='LGIP future infrastrure'!D47 -> Kedron Brook Bikeway (Cribb Avenue to Oxford Grove Park) | V77: 0 | X77: 0 | AB77: 1 | AD77: 1 | AH77: ='LGIP future infrastrure'!I47 -> 8 | AI77: =IF('LGIP future infrastrure'!F47="2016 - 2021",DATE(2019,6,30),DATE(2024,6,30)) -> 2019-06-30 | AK77: ='LGIP future infrastrure'!J47/1000 -> 11.579 | AO77: 11.579 | AS77: 2019-06-30 | AT77: ='LGIP future infrastrure'!K47/1000 -> 128.709 | AU77: =SUM('LGIP future infrastrure'!L47:N47)/1000 -> 54.22 | AY77: 182.929 | BB77: 194.508 | BF77: 2019-06-30 | BJ77: =IF(BG77=1,IF(BI77>BB77*'Input-Gen'!$M$31,"Check value","OK"),"") ->  | BL77: 0
G78: MKA-SP-003 | M78: ='LGIP future infrastrure'!A48 -> MKA-SP-003 | N78: ='LGIP future infrastrure'!B48 -> APT252 | O78: ='LGIP future infrastrure'!E48 -> Cycle Route (Secondary) | P78: ='LGIP future infrastrure'!D48 -> Rocky Water Holes Creek Bikeway (Muriel Avenue to John Bright Street) | V78: 0 | X78: 0 | AB78: 1 | AD78: 1 | AH78: ='LGIP future infrastrure'!I48 -> 8 | AI78: =IF('LGIP future infrastrure'!F48="2016 - 2021",DATE(2019,6,30),DATE(2024,6,30)) -> 2024-06-30 | AK78: ='LGIP future infrastrure'!J48/1000 -> 3.239 | AO78: 3.239 | AS78: 2024-06-30 | AT78: ='LGIP future infrastrure'!K48/1000 -> 326.042 | AU78: =SUM('LGIP future infrastrure'!L48:N48)/1000 -> 169.677 | AY78: 495.719 | BB78: 498.958 | BF78: 2024-06-30 | BJ78: =IF(BG78=1,IF(BI78>BB78*'Input-Gen'!$M$31,"Check value","OK"),"") ->  | BL78: 0
G79: MKA-SP-005 | M79: ='LGIP future infrastrure'!A49 -> MKA-SP-005 | N79: ='LGIP future infrastrure'!B49 -> APT252 | O79: ='LGIP future infrastrure'!E49 -> Cycle Route (Secondary) | P79: ='LGIP future infrastrure'!D49 -> Rocky Water Holes Creek Bikeway (Gladstone Street to Beaudesert Road) | V79: 0 | X79: 0 | AB79: 1 | AD79: 1 | AH79: ='LGIP future infrastrure'!I49 -> 8 | AI79: =IF('LGIP future infrastrure'!F49="2016 - 2021",DATE(2019,6,30),DATE(2024,6,30)) -> 2024-06-30 | AK79: ='LGIP future infrastrure'!J49/1000 -> 8.045 | AO79: 8.045 | AS79: 2024-06-30 | AT79: ='LGIP future infrastrure'!K49/1000 -> 81.694 | AU79: =SUM('LGIP future infrastrure'!L49:N49)/1000 -> 42.515 | AY79: 124.209 | BB79: 132.254 | BF79: 2024-06-30 | BJ79: =IF(BG79=1,IF(BI79>BB79*'Input-Gen'!$M$31,"Check value","OK"),"") ->  | BL79: 0
G80: MOR-SP-001 | M80: ='LGIP future infrastrure'!A50 -> MOR-SP-001 | N80: ='LGIP future infrastrure'!B50 -> APT174 | O80: ='LGIP future infrastrure'!E50 -> Cycle Route (Secondary) | P80: ='LGIP future infrastrure'!D50 -> Perrin Creek Bikeway (Algoori Street to Beelarong Street) | V80: 0 | X80: 0 | AB80: 1 | AD80: 1 | AH80: ='LGIP future infrastrure'!I50 -> 8 | AI80: =IF('LGIP future infrastrure'!F50="2016 - 2021",DATE(2019,6,30),DATE(2024,6,30)) -> 2024-06-30 | AK80: ='LGIP future infrastrure'!J50/1000 -> 19.204 | AO80: 19.204 | AS80: 2024-06-30 | AT80: ='LGIP future infrastrure'!K50/1000 -> 218.72 | AU80: =SUM('LGIP future infrastrure'!L50:N50)/1000 -> 113.824 | AY80: 332.544 | BB80: 351.748 | BF80: 2024-06-30 | BJ80: =IF(BG80=1,IF(BI80>BB80*'Input-Gen'!$M$31,"Check value","OK"),"") ->  | BL80: 0
G81: MOR-SP-004 | M81: ='LGIP future infrastrure'!A51 -> MOR-SP-004 | N81: ='LGIP future infrastrure'!B51 -> APT174 | O81: ='LGIP future infrastrure'!E51 -> Cycle Route (Secondary) | P81: ='LGIP future infrastrure'!D51 -> Perrin Creek Bikeway (Algoori Street to Baringa Street) | V81: 0 | X81: 0 | AB81: 1 | AD81: 1 | AH81: ='LGIP future infrastrure'!I51 -> 8 | AI81: =IF('LGIP future infrastrure'!F51="2016 - 2021",DATE(2019,6,30),DATE(2024,6,30)) -> 2024-06-30 | AK81: ='LGIP future infrastrure'!J51/1000 -> 29.587 | AO81: 29.587 | AS81: 2024-06-30 | AT81: ='LGIP future infrastrure'!K51/1000 -> 160.322 | AU81: =SUM('LGIP future infrastrure'!L51:N51)/1000 -> 83.434 | AY81: 243.756 | BB81: 273.343 | BF81: 2024-06-30 | BJ81: =IF(BG81=1,IF(BI81>BB81*'Input-Gen'!$M$31,"Check value","OK"),"") ->  | BL81: 0
G82: MOR-SP-008 | M82: ='LGIP future infrastrure'!A52 -> MOR-SP-008 | N82: ='LGIP future infrastrure'!B52 -> APT174 | O82: ='LGIP future infrastrure'!E52 -> Cycle Route (Secondary) | P82: ='LGIP future infrastrure'!D52 -> Morningside Bikeway (Colmslie Reserve to Colmslie Road) | V82: 0 | X82: 0 | AB82: 1 | AD82: 1 | AH82: ='LGIP future infrastrure'!I52 -> 8 | AI82: =IF('LGIP future infrastrure'!F52="2016 - 2021",DATE(2019,6,30),DATE(2024,6,30)) -> 2019-06-30 | AK82: ='LGIP future infrastrure'!J52/1000 -> 995.255 | AO82: 995.255 | AS82: 2019-06-30 | AT82: ='LGIP future infrastrure'!K52/1000 -> 337.942 | AU82: =SUM('LGIP future infrastrure'!L52:N52)/1000 -> 142.36 | AY82: 480.302 | BB82: 1475.557 | BF82: 2019-06-30 | BJ82: =IF(BG82=1,IF(BI82>BB82*'Input-Gen'!$M$31,"Check value","OK"),"") ->  | BL82: 0
G83: NOG-SP-001 | M83: ='LGIP future infrastrure'!A53 -> NOG-SP-001 | N83: ='LGIP future infrastrure'!B53 -> APT114 | O83: ='LGIP future infrastrure'!E53 -> Cycle Route (Secondary) | P83: ='LGIP future infrastrure'!D53 -> Cannery Creek Bikeway (Shultz Canal Bikeway to Nudgee Road) | V83: 0 | X83: 0 | AB83: 1 | AD83: 1 | AH83: ='LGIP future infrastrure'!I53 -> 8 | AI83: =IF('LGIP future infrastrure'!F53="2016 - 2021",DATE(2019,6,30),DATE(2024,6,30)) -> 2024-06-30 | AK83: ='LGIP future infrastrure'!J53/1000 -> 43.521 | AO83: 43.521 | AS83: 2024-06-30 | AT83: ='LGIP future infrastrure'!K53/1000 -> 596.384 | AU83: =SUM('LGIP future infrastrure'!L53:N53)/1000 -> 310.367 | AY83: 906.751 | BB83: 950.272 | BF83: 2024-06-30 | BJ83: =IF(BG83=1,IF(BI83>BB83*'Input-Gen'!$M$31,"Check value","OK"),"") ->  | BL83: 0
G84: OXY-SP-001 | M84: ='LGIP future infrastrure'!A54 -> OXY-SP-001 | N84: ='LGIP future infrastrure'!B54 -> APT270 | O84: ='LGIP future infrastrure'!E54 -> Cycle Route (Secondary) | P84: ='LGIP future infrastrure'!D54 -> Oxley Bikeway (Englefield Road to Douglas Street - southern side of railway line) | V84: 0 | X84: 0 | AB84: 1 | AD84: 1 | AH84: ='LGIP future infrastrure'!I54 -> 8 | AI84: =IF('LGIP future infrastrure'!F54="2016 - 2021",DATE(2019,6,30),DATE(2024,6,30)) -> 2024-06-30 | AK84: ='LGIP future infrastrure'!J54/1000 -> 283.68 | AO84: 283.68 | AS84: 2024-06-30 | AT84: ='LGIP future infrastrure'!K54/1000 -> 468.006 | AU84: =SUM('LGIP future infrastrure'!L54:N54)/1000 -> 243.558 | AY84: 711.564 | BB84: 995.244 | BF84: 2024-06-30 | BJ84: =IF(BG84=1,IF(BI84>BB84*'Input-Gen'!$M$31,"Check value","OK"),"") ->  | BL84: 0
G85: OXY-SP-002 | M85: ='LGIP future infrastrure'!A55 -> OXY-SP-002 | N85: ='LGIP future infrastrure'!B55 -> APT251, APT270, APT271 | O85: ='LGIP future infrastrure'!E55 -> Cycle Route (Secondary) | P85: ='LGIP future infrastrure'!D55 -> Oxley Bikeway (Douglas Street to Oxley Station Road - southern side of railway line) | V85: 0 | X85: 0 | AB85: 1 | AD85: 1 | AH85: ='LGIP future infrastrure'!I55 -> 8 | AI85: =IF('LGIP future infrastrure'!F55="2016 - 2021",DATE(2019,6,30),DATE(2024,6,30)) -> 2024-06-30 | AK85: ='LGIP future infrastrure'!J55/1000 -> 561.856 | AO85: 561.856 | AS85: 2024-06-30 | AT85: ='LGIP future infrastrure'!K55/1000 -> 466.647 | AU85: =SUM('LGIP future infrastrure'!L55:N55)/1000 -> 242.85 | AY85: 709.497 | BB85: 1271.353 | BF85: 2024-06-30 | BJ85: =IF(BG85=1,IF(BI85>BB85*'Input-Gen'!$M$31,"Check value","OK"),"") ->  | BL85: 0
G86: OXY-SP-005 | M86: ='LGIP future infrastrure'!A56 -> OXY-SP-005 | N86: ='LGIP future infrastrure'!B56 -> APT251, APT271 | O86: ='LGIP future infrastrure'!E56 -> Cycle Route (Secondary) | P86: ='LGIP future infrastrure'!D56 -> Oxley Creek Bikeway (Cliveden Avenue to Lawson Street Park) | V86: 0 | X86: 0 | AB86: 1 | AD86: 1 | AH86: ='LGIP future infrastrure'!I56 -> 8 | AI86: =IF('LGIP future infrastrure'!F56="2016 - 2021",DATE(2019,6,30),DATE(2024,6,30)) -> 2024-06-30 | AK86: ='LGIP future infrastrure'!J56/1000 -> 29.914 | AO86: 29.914 | AS86: 2024-06-30 | AT86: ='LGIP future infrastrure'!K56/1000 -> 891.391 | AU86: =SUM('LGIP future infrastrure'!L56:N56)/1000 -> 463.893 | AY86: 1355.284 | BB86: 1385.198 | BF86: 2024-06-30 | BJ86: =IF(BG86=1,IF(BI86>BB86*'Input-Gen'!$M$31,"Check value","OK"),"") ->  | BL86: 0
G87: OXY-SP-006 | M87: ='LGIP future infrastrure'!A57 -> OXY-SP-006 | N87: ='LGIP future infrastrure'!B57 -> APT271 | O87: ='LGIP future infrastrure'!E57 -> Cycle Route (Secondary) | P87: ='LGIP future infrastrure'!D57 -> Oxley Creek Bikeway (Lawson Street Park to Ipswich Motorway) | V87: 0 | X87: 0 | AB87: 1 | AD87: 1 | AH87: ='LGIP future infrastrure'!I57 -> 8 | AI87: =IF('LGIP future infrastrure'!F57="2016 - 2021",DATE(2019,6,30),DATE(2024,6,30)) -> 2024-06-30 | AK87: ='LGIP future infrastrure'!J57/1000 -> 44.638 | AO87: 44.638 | AS87: 2024-06-30 | AT87: ='LGIP future infrastrure'!K57/1000 -> 711.803 | AU87: =SUM('LGIP future infrastrure'!L57:N57)/1000 -> 370.433 | AY87: 1082.236 | BB87: 1126.874 | BF87: 2024-06-30 | BJ87: =IF(BG87=1,IF(BI87>BB87*'Input-Gen'!$M$31,"Check value","OK"),"") ->  | BL87: 0
G88: RIC-SP-002 | M88: ='LGIP future infrastrure'!A58 -> RIC-SP-002 | N88: ='LGIP future infrastrure'!B58 -> APT290 | O88: ='LGIP future infrastrure'!E58 -> Cycle Route (Secondary) | P88: ='LGIP future infrastrure'!D58 -> Bullockhead Creek Bikeway (eastern side of Bullockhead Creek to Garden Road) | V88: 0 | X88: 0 | AB88: 1 | AD88: 1 | AH88: ='LGIP future infrastrure'!I58 -> 8 | AI88: =IF('LGIP future infrastrure'!F58="2016 - 2021",DATE(2019,6,30),DATE(2024,6,30)) -> 2024-06-30 | AK88: ='LGIP future infrastrure'!J58/1000 -> 18.421 | AO88: 18.421 | AS88: 2024-06-30 | AT88: ='LGIP future infrastrure'!K58/1000 -> 75.465 | AU88: =SUM('LGIP future infrastrure'!L58:N58)/1000 -> 39.273 | AY88: 114.738 | BB88: 133.159 | BF88: 2024-06-30 | BJ88: =IF(BG88=1,IF(BI88>BB88*'Input-Gen'!$M$31,"Check value","OK"),"") ->  | BL88: 0
G89: RIC-SP-003 | M89: ='LGIP future infrastrure'!A59 -> RIC-SP-003 | N89: ='LGIP future infrastrure'!B59 -> APT290 | O89: ='LGIP future infrastrure'!E59 -> Cycle Route (Secondary) | P89: ='LGIP future infrastrure'!D59 -> Richlands Bikeway (Natalie Street to Eugenia Street) | V89: 0 | X89: 0 | AB89: 1 | AD89: 1 | AH89: ='LGIP future infrastrure'!I59 -> 8 | AI89: =IF('LGIP future infrastrure'!F59="2016 - 2021",DATE(2019,6,30),DATE(2024,6,30)) -> 2019-06-30 | AK89: ='LGIP future infrastrure'!J59/1000 -> 226.301 | AO89: 226.301 | AS89: 2019-06-30 | AT89: ='LGIP future infrastrure'!K59/1000 -> 324.507 | AU89: =SUM('LGIP future infrastrure'!L59:N59)/1000 -> 136.701 | AY89: 461.208 | BB89: 687.509 | BF89: 2019-06-30 | BJ89: =IF(BG89=1,IF(BI89>BB89*'Input-Gen'!$M$31,"Check value","OK"),"") ->  | BL89: 0
G90: RIC-SP-004 | M90: ='LGIP future infrastrure'!A60 -> RIC-SP-004 | N90: ='LGIP future infrastrure'!B60 -> APT290 | O90: ='LGIP future infrastrure'!E60 -> Cycle Route (Secondary) | P90: ='LGIP future infrastrure'!D60 -> Bullockhead Creek Bikeway (proposed park on eastern side of creek to Garden Road) | V90: 0 | X90: 0 | AB90: 1 | AD90: 1 | AH90: ='LGIP future infrastrure'!I60 -> 8 | AI90: =IF('LGIP future infrastrure'!F60="2016 - 2021",DATE(2019,6,30),DATE(2024,6,30)) -> 2019-06-30 | AK90: ='LGIP future infrastrure'!J60/1000 -> 127.779 | AO90: 127.779 | AS90: 2019-06-30 | AT90: ='LGIP future infrastrure'!K60/1000 -> 128.493 | AU90: =SUM('LGIP future infrastrure'!L60:N60)/1000 -> 54.129 | AY90: 182.622 | BB90: 310.401 | BF90: 2019-06-30 | BJ90: =IF(BG90=1,IF(BI90>BB90*'Input-Gen'!$M$31,"Check value","OK"),"") ->  | BL90: 0
G91: RIC-SP-005 | M91: ='LGIP future infrastrure'!A61 -> RIC-SP-005 | N91: ='LGIP future infrastrure'!B61 -> APT290 | O91: ='LGIP future infrastrure'!E61 -> Cycle Route (Secondary) | P91: ='LGIP future infrastrure'!D61 -> Bullockhead Creek Bikeway (eastern side of creek along proposed park boundary) | V91: 0 | X91: 0 | AB91: 1 | AD91: 1 | AH91: ='LGIP future infrastrure'!I61 -> 8 | AI91: =IF('LGIP future infrastrure'!F61="2016 - 2021",DATE(2019,6,30),DATE(2024,6,30)) -> 2019-06-30 | AK91: ='LGIP future infrastrure'!J61/1000 -> 455.703 | AO91: 455.703 | AS91: 2019-06-30 | AT91: ='LGIP future infrastrure'!K61/1000 -> 125.476 | AU91: =SUM('LGIP future infrastrure'!L61:N61)/1000 -> 52.858 | AY91: 178.334 | BB91: 634.037 | BF91: 2019-06-30 | BJ91: =IF(BG91=1,IF(BI91>BB91*'Input-Gen'!$M$31,"Check value","OK"),"") ->  | BL91: 0
G92: RIC-SP-006 | M92: ='LGIP future infrastrure'!A62 -> RIC-SP-006 | N92: ='LGIP future infrastrure'!B62 -> APT290 | O92: ='LGIP future infrastrure'!E62 -> Cycle Route (Secondary) | P92: ='LGIP future infrastrure'!D62 -> Bullockhead Creek Bikeway (southern side of Bullockhead Creek to Pine Road) | V92: 0 | X92: 0 | AB92: 1 | AD92: 1 | AH92: ='LGIP future infrastrure'!I62 -> 8 | AI92: =IF('LGIP future infrastrure'!F62="2016 - 2021",DATE(2019,6,30),DATE(2024,6,30)) -> 2019-06-30 | AK92: ='LGIP future infrastrure'!J62/1000 -> 4.032 | AO92: 4.032 | AS92: 2019-06-30 | AT92: ='LGIP future infrastrure'!K62/1000 -> 49.933 | AU92: =SUM('LGIP future infrastrure'!L62:N62)/1000 -> 21.035 | AY92: 70.968 | BB92: 75 | BF92: 2019-06-30 | BJ92: =IF(BG92=1,IF(BI92>BB92*'Input-Gen'!$M$31,"Check value","OK"),"") ->  | BL92: 0
G93: RIV-SP-001 | M93: ='LGIP future infrastrure'!A63 -> RIV-SP-001 | N93: ='LGIP future infrastrure'!B63 -> APT269, APT268 | O93: ='LGIP future infrastrure'!E63 -> Cycle Route (Secondary) | P93: ='LGIP future infrastrure'!D63 -> Wolston Creek Bikeway (Wacol Station Road to Sumners Road) | V93: 0 | X93: 0 | AB93: 1 | AD93: 1 | AH93: ='LGIP future infrastrure'!I63 -> 8 | AI93: =IF('LGIP future infrastrure'!F63="2016 - 2021",DATE(2019,6,30),DATE(2024,6,30)) -> 2019-06-30 | AK93: ='LGIP future infrastrure'!J63/1000 -> 73.826 | AO93: 73.826 | AS93: 2019-06-30 | AT93: ='LGIP future infrastrure'!K63/1000 -> 1406.734 | AU93: =SUM('LGIP future infrastrure'!L63:N63)/1000 -> 592.597 | AY93: 1999.331 | BB93: 2073.157 | BF93: 2019-06-30 | BJ93: =IF(BG93=1,IF(BI93>BB93*'Input-Gen'!$M$31,"Check value","OK"),"") ->  | BL93: 0
G94: ROC-SP-002 | M94: ='LGIP future infrastrure'!A64 -> ROC-SP-002 | N94: ='LGIP future infrastrure'!B64 -> APT275 | O94: ='LGIP future infrastrure'!E64 -> Cycle Route (Primary) | P94: ='LGIP future infrastrure'!D64 -> Rochedale Bikeway (Cooper Crescent to Prebble Street plus link to Gardner Road) | V94: 0 | X94: 0 | AB94: 1 | AD94: 1 | AH94: ='LGIP future infrastrure'!I64 -> 9 | AI94: =IF('LGIP future infrastrure'!F64="2016 - 2021",DATE(2019,6,30),DATE(2024,6,30)) -> 2024-06-30 | AK94: ='LGIP future infrastrure'!J64/1000 -> 522.131 | AO94: 522.131 | AS94: 2024-06-30 | AT94: ='LGIP future infrastrure'!K64/1000 -> 297.149 | AU94: =SUM('LGIP future infrastrure'!L64:N64)/1000 -> 154.64 | AY94: 451.789 | BB94: 973.92 | BF94: 2024-06-30 | BJ94: =IF(BG94=1,IF(BI94>BB94*'Input-Gen'!$M$31,"Check value","OK"),"") ->  | BL94: 0
G95: ROC-SP-004 | M95: ='LGIP future infrastrure'!A65 -> ROC-SP-004 | N95: ='LGIP future infrastrure'!B65 -> APT276, APT275 | O95: ='LGIP future infrastrure'!E65 -> Cycle Route (Secondary) | P95: ='LGIP future infrastrure'!D65 -> Rochedale Bikeway (future road to Rochedale Road) | V95: 0 | X95: 0 | AB95: 1 | AD95: 1 | AH95: ='LGIP future infrastrure'!I65 -> 8 | AI95: =IF('LGIP future infrastrure'!F65="2016 - 2021",DATE(2019,6,30),DATE(2024,6,30)) -> 2024-06-30 | AK95: ='LGIP future infrastrure'!J65/1000 -> 482.233 | AO95: 482.233 | AS95: 2024-06-30 | AT95: ='LGIP future infrastrure'!K65/1000 -> 575.328 | AU95: =SUM('LGIP future infrastrure'!L65:N65)/1000 -> 299.409 | AY95: 874.737 | BB95: 1356.97 | BF95: 2024-06-30 | BJ95: =IF(BG95=1,IF(BI95>BB95*'Input-Gen'!$M$31,"Check value","OK"),"") ->  | BL95: 0
G96: ROC-SP-005 | M96: ='LGIP future infrastrure'!A66 -> ROC-SP-005 | N96: ='LGIP future infrastrure'!B66 -> APT276 | O96: ='LGIP future infrastrure'!E66 -> Cycle Route (Secondary) | P96: ='LGIP future infrastrure'!D66 -> Rochedale Bikeway (future road to Rochedale Road ) | V96: 0 | X96: 0 | AB96: 1 | AD96: =SUM(AB96:AB96) -> 1 | AH96: ='LGIP future infrastrure'!I66 -> 8 | AI96: =IF('LGIP future infrastrure'!F66="2016 - 2021",DATE(2019,6,30),DATE(2024,6,30)) -> 2024-06-30 | AK96: ='LGIP future infrastrure'!J66/1000 -> 1148.853 | AO96: 1148.853 | AS96: 2024-06-30 | AT96: ='LGIP future infrastrure'!K66/1000 -> 601.819 | AU96: =SUM('LGIP future infrastrure'!L66:N66)/1000 -> 313.196 | AY96: 915.015 | BB96: =SUM(AY96,AO96) -> 2063.868 | BF96: =MAX(AS96,AI96) -> 2024-06-30 | BJ96: =IF(BG96=1,IF(BI96>BB96*'Input-Gen'!$M$31,"Check value","OK"),"") ->  | BL96: 0
G97: =M97 -> ROC-SP-012 | M97: ='LGIP future infrastrure'!A67 -> ROC-SP-012 | N97: ='LGIP future infrastrure'!B67 -> APT295 | O97: ='LGIP future infrastrure'!E67 -> Cycle Route (Secondary) | P97: ='LGIP future infrastrure'!D67 -> Rochedale Bikeway (future road to Priestdale Road) | V97: 0 | X97: =SUM(T97:W97) -> 0 | AB97: 1 | AD97: 1 | AH97: ='LGIP future infrastrure'!I67 -> 8 | AI97: =IF('LGIP future infrastrure'!F67="2016 - 2021",DATE(2019,6,30),DATE(2024,6,30)) -> 2024-06-30 | AK97: ='LGIP future infrastrure'!J67/1000 -> 1219.08 | AO97: =SUM(AK97:AM97) -> 1219.08 | AS97: =AI97 -> 2024-06-30 | AT97: ='LGIP future infrastrure'!K67/1000 -> 704.386 | AU97: =SUM('LGIP future infrastrure'!L67:N67)/1000 -> 366.573 | AY97: =AT97+AU97 -> 1070.959 | BB97: 2290.039 | BF97: 2024-06-30 | BJ97: =IF(BG97=1,IF(BI97>BB97*'Input-Gen'!$M$31,"Check value","OK"),"") ->  | BL97: 0
G98: ROC-SP-015 | M98: ='LGIP future infrastrure'!A68 -> ROC-SP-015 | N98: ='LGIP future infrastrure'!B68 -> APT275 | O98: ='LGIP future infrastrure'!E68 -> Cycle Route (Primary) | P98: ='LGIP future infrastrure'!D68 -> Rochedale Bikeway (Miles Platting Road to future road) | V98: 0 | X98: 0 | AB98: 1 | AD98: 1 | AH98: ='LGIP future infrastrure'!I68 -> 9 | AI98: =IF('LGIP future infrastrure'!F68="2016 - 2021",DATE(2019,6,30),DATE(2024,6,30)) -> 2019-06-30 | AK98: ='LGIP future infrastrure'!J68/1000 -> 492.723 | AO98: 492.723 | AS98: 2019-06-30 | AT98: ='LGIP future infrastrure'!K68/1000 -> 220.078 | AU98: =SUM('LGIP future infrastrure'!L68:N68)/1000 -> 92.709 | AY98: 312.787 | BB98: 805.51 | BF98: 2019-06-30 | BJ98: =IF(BG98=1,IF(BI98>BB98*'Input-Gen'!$M$31,"Check value","OK"),"") ->  | BL98: 0
G99: RUN-SP-002 | M99: ='LGIP future infrastrure'!A69 -> RUN-SP-002 | N99: ='LGIP future infrastrure'!B69 -> APT294 | O99: ='LGIP future infrastrure'!E69 -> Cycle Route (Primary) | P99: ='LGIP future infrastrure'!D69 -> Runcorn Bikeway (Glenefer Street to Beenleigh Road) | V99: 0 | X99: 0 | AB99: 1 | AD99: 1 | AH99: ='LGIP future infrastrure'!I69 -> 9 | AI99: =IF('LGIP future infrastrure'!F69="2016 - 2021",DATE(2019,6,30),DATE(2024,6,30)) -> 2019-06-30 | AK99: ='LGIP future infrastrure'!J69/1000 -> 78.435 | AO99: 78.435 | AS99: 2019-06-30 | AT99: ='LGIP future infrastrure'!K69/1000 -> 499.801 | AU99: =SUM('LGIP future infrastrure'!L69:N69)/1000 -> 210.545 | AY99: 710.346 | BB99: 788.781 | BF99: 2019-06-30 | BJ99: =IF(BG99=1,IF(BI99>BB99*'Input-Gen'!$M$31,"Check value","OK"),"") ->  | BL99: 0
G100: RUN-SP-003 | M100: ='LGIP future infrastrure'!A70 -> RUN-SP-003 | N100: ='LGIP future infrastrure'!B70 -> APT295, APT294 | O100: ='LGIP future infrastrure'!E70 -> Cycle Route (Primary) | P100: ='LGIP future infrastrure'!D70 -> Bulimba Creek Bikeway (Corella Place to Underwood Road) | V100: 0 | X100: 0 | AB100: 1 | AD100: 1 | AH100: ='LGIP future infrastrure'!I70 -> 9 | AI100: =IF('LGIP future infrastrure'!F70="2016 - 2021",DATE(2019,6,30),DATE(2024,6,30)) -> 2024-06-30 | AK100: ='LGIP future infrastrure'!J70/1000 -> 512.551 | AO100: 512.551 | AS100: 2024-06-30 | AT100: ='LGIP future infrastrure'!K70/1000 -> 821.224 | AU100: =SUM('LGIP future infrastrure'!L70:N70)/1000 -> 427.377 | AY100: 1248.601 | BB100: 1761.152 | BF100: 2024-06-30 | BJ100: =IF(BG100=1,IF(BI100>BB100*'Input-Gen'!$M$31,"Check value","OK"),"") ->  | BL100: 0
G101: RUN-SP-004 | M101: ='LGIP future infrastrure'!A71 -> RUN-SP-004 | N101: ='LGIP future infrastrure'!B71 -> APT294, APT295 | O101: ='LGIP future infrastrure'!E71 -> Cycle Route (Primary) | P101: ='LGIP future infrastrure'!D71 -> Bulimba Creek Bikeway (Warrigal Road to Bulimba Creek Bikeway) | V101: 0 | X101: 0 | AB101: 1 | AD101: 1 | AH101: ='LGIP future infrastrure'!I71 -> 9 | AI101: =IF('LGIP future infrastrure'!F71="2016 - 2021",DATE(2019,6,30),DATE(2024,6,30)) -> 2024-06-30 | AK101: ='LGIP future infrastrure'!J71/1000 -> 1138.143 | AO101: 1138.143 | AS101: 2024-06-30 | AT101: ='LGIP future infrastrure'!K71/1000 -> 584.436 | AU101: =SUM('LGIP future infrastrure'!L71:N71)/1000 -> 304.15 | AY101: 888.586 | BB101: 2026.729 | BF101: 2024-06-30 | BJ101: =IF(BG101=1,IF(BI101>BB101*'Input-Gen'!$M$31,"Check value","OK"),"") ->  | BL101: 0
G102: SAL-SP-002 | M102: ='LGIP future infrastrure'!A72 -> SAL-SP-002 | N102: ='LGIP future infrastrure'!B72 -> APT253, APT252 | O102: ='LGIP future infrastrure'!E72 -> Cycle Route (Secondary) | P102: ='LGIP future infrastrure'!D72 -> Rocky Water Holes Creek Bikeway (McCarthy Road to Precision Street) | V102: 0 | X102: 0 | AB102: 1 | AD102: 1 | AH102: ='LGIP future infrastrure'!I72 -> 8 | AI102: =IF('LGIP future infrastrure'!F72="2016 - 2021",DATE(2019,6,30),DATE(2024,6,30)) -> 2024-06-30 | AK102: ='LGIP future infrastrure'!J72/1000 -> 72.042 | AO102: 72.042 | AS102: 2024-06-30 | AT102: ='LGIP future infrastrure'!K72/1000 -> 271.701 | AU102: =SUM('LGIP future infrastrure'!L72:N72)/1000 -> 141.397 | AY102: 413.098 | BB102: 485.14 | BF102: 2024-06-30 | BJ102: =IF(BG102=1,IF(BI102>BB102*'Input-Gen'!$M$31,"Check value","OK"),"") ->  | BL102: 0
G103: SAL-SP-003 | M103: ='LGIP future infrastrure'!A73 -> SAL-SP-003 | N103: ='LGIP future infrastrure'!B73 -> APT252 | O103: ='LGIP future infrastrure'!E73 -> Cycle Route (Secondary) | P103: ='LGIP future infrastrure'!D73 -> Rocky Water Holes Creek Bikeway (Precision Street to Assembly Street) | V103: 0 | X103: 0 | AB103: 1 | AD103: 1 | AH103: ='LGIP future infrastrure'!I73 -> 8 | AI103: =IF('LGIP future infrastrure'!F73="2016 - 2021",DATE(2019,6,30),DATE(2024,6,30)) -> 2024-06-30 | AK103: ='LGIP future infrastrure'!J73/1000 -> 164.481 | AO103: 164.481 | AS103: 2024-06-30 | AT103: ='LGIP future infrastrure'!K73/1000 -> 235.701 | AU103: =SUM('LGIP future infrastrure'!L73:N73)/1000 -> 122.662 | AY103: 358.363 | BB103: 522.844 | BF103: 2024-06-30 | BJ103: =IF(BG103=1,IF(BI103>BB103*'Input-Gen'!$M$31,"Check value","OK"),"") ->  | BL103: 0
G104: SAL-SP-004 | M104: ='LGIP future infrastrure'!A74 -> SAL-SP-004 | N104: ='LGIP future infrastrure'!B74 -> APT252 | O104: ='LGIP future infrastrure'!E74 -> Cycle Route (Secondary) | P104: ='LGIP future infrastrure'!D74 -> Rocky Water Holes Creek Bikeway (Assembly Street to Beaudesert Road) | V104: 0 | X104: 0 | AB104: 1 | AD104: 1 | AH104: ='LGIP future infrastrure'!I74 -> 8 | AI104: =IF('LGIP future infrastrure'!F74="2016 - 2021",DATE(2019,6,30),DATE(2024,6,30)) -> 2024-06-30 | AK104: ='LGIP future infrastrure'!J74/1000 -> 115.29 | AO104: 115.29 | AS104: 2024-06-30 | AT104: ='LGIP future infrastrure'!K74/1000 -> 552.912 | AU104: =SUM('LGIP future infrastrure'!L74:N74)/1000 -> 287.744 | AY104: 840.656 | BB104: 955.946 | BF104: 2024-06-30 | BJ104: =IF(BG104=1,IF(BI104>BB104*'Input-Gen'!$M$31,"Check value","OK"),"") ->  | BL104: 0
G105: SIP-SB-001 | M105: ='LGIP future infrastrure'!A75 -> SIP-SB-001 | N105: ='LGIP future infrastrure'!B75 -> APT250 | O105: ='LGIP future infrastrure'!E75 -> Cycle Route (Secondary) | P105: ='LGIP future infrastrure'!D75 -> Jindalee Creek Bikeway (Bridge over Jindalee Creek) | V105: 0 | X105: 0 | AB105: 1 | AD105: 1 | AH105: ='LGIP future infrastrure'!I75 -> 8 | AI105: =IF('LGIP future infrastrure'!F75="2016 - 2021",DATE(2019,6,30),DATE(2024,6,30)) -> 2024-06-30 | AK105: ='LGIP future infrastrure'!J75/1000 -> 6.635 | AO105: 6.635 | AS105: 2024-06-30 | AT105: ='LGIP future infrastrure'!K75/1000 -> 840 | AU105: =SUM('LGIP future infrastrure'!L75:N75)/1000 -> 437.149 | AY105: 1277.149 | BB105: 1283.784 | BF105: 2024-06-30 | BL105: 0
G106: SIP-SP-001 | M106: ='LGIP future infrastrure'!A76 -> SIP-SP-001 | N106: ='LGIP future infrastrure'!B76 -> APT250 | O106: ='LGIP future infrastrure'!E76 -> Cycle Route (Secondary) | P106: ='LGIP future infrastrure'!D76 -> Jindalee Creek Bikeway (Oldfield Road to Centenary Motorway) | V106: 0 | X106: 0 | AB106: 1 | AD106: 1 | AH106: ='LGIP future infrastrure'!I76 -> 8 | AI106: =IF('LGIP future infrastrure'!F76="2016 - 2021",DATE(2019,6,30),DATE(2024,6,30)) -> 2019-06-30 | AK106: ='LGIP future infrastrure'!J76/1000 -> 292.746 | AO106: 292.746 | AS106: 2019-06-30 | AT106: ='LGIP future infrastrure'!K76/1000 -> 357.287 | AU106: =SUM('LGIP future infrastrure'!L76:N76)/1000 -> 150.51 | AY106: 507.797 | BB106: 800.543 | BF106: 2019-06-30 | BJ106: =IF(BG106=1,IF(BI106>BB106*'Input-Gen'!$M$31,"Check value","OK"),"") ->  | BL106: 0
G107: SIP-SP-002 | M107: ='LGIP future infrastrure'!A77 -> SIP-SP-002 | N107: ='LGIP future infrastrure'!B77 -> APT250 | O107: ='LGIP future infrastrure'!E77 -> Cycle Route (Secondary) | P107: ='LGIP future infrastrure'!D77 -> Jindalee Creek Bikeway (Oldfield Road (west) to Jindalee Creek) | V107: 0 | X107: 0 | AB107: 1 | AD107: 1 | AH107: ='LGIP future infrastrure'!I77 -> 8 | AI107: =IF('LGIP future infrastrure'!F77="2016 - 2021",DATE(2019,6,30),DATE(2024,6,30)) -> 2019-06-30 | AK107: ='LGIP future infrastrure'!J77/1000 -> 183.983 | AO107: 183.983 | AS107: 2019-06-30 | AT107: ='LGIP future infrastrure'!K77/1000 -> 155.806 | AU107: =SUM('LGIP future infrastrure'!L77:N77)/1000 -> 65.634 | AY107: 221.44 | BB107: 405.423 | BF107: 2019-06-30 | BJ107: =IF(BG107=1,IF(BI107>BB107*'Input-Gen'!$M$31,"Check value","OK"),"") ->  | BL107: 0
G108: SIP-SP-003 | M108: ='LGIP future infrastrure'!A78 -> SIP-SP-003 | N108: ='LGIP future infrastrure'!B78 -> APT250 | O108: ='LGIP future infrastrure'!E78 -> Cycle Route (Secondary) | P108: ='LGIP future infrastrure'!D78 -> Jindalee Creek Bikeway (Jindalee Creek to Seventeen Mile Rocks Road) | V108: 0 | X108: 0 | AB108: 1 | AD108: 1 | AH108: ='LGIP future infrastrure'!I78 -> 8 | AI108: =IF('LGIP future infrastrure'!F78="2016 - 2021",DATE(2019,6,30),DATE(2024,6,30)) -> 2019-06-30 | AK108: ='LGIP future infrastrure'!J78/1000 -> 587.345 | AO108: 587.345 | AS108: 2019-06-30 | AT108: ='LGIP future infrastrure'!K78/1000 -> 129.462 | AU108: =SUM('LGIP future infrastrure'!L78:N78)/1000 -> 54.537 | AY108: 183.999 | BB108: 771.344 | BF108: 2019-06-30 | BJ108: =IF(BG108=1,IF(BI108>BB108*'Input-Gen'!$M$31,"Check value","OK"),"") ->  | BL108: 0
G109: SIP-SP-004 | M109: ='LGIP future infrastrure'!A79 -> SIP-SP-004 | N109: ='LGIP future infrastrure'!B79 -> APT250 | O109: ='LGIP future infrastrure'!E79 -> Cycle Route (Secondary) | P109: ='LGIP future infrastrure'!D79 -> Jindalee Creek Bikeway (McPherson Road Park to Oldfield Road Park) | V109: 0 | X109: 0 | AB109: 1 | AD109: 1 | AH109: ='LGIP future infrastrure'!I79 -> 8 | AI109: =IF('LGIP future infrastrure'!F79="2016 - 2021",DATE(2019,6,30),DATE(2024,6,30)) -> 2024-06-30 | AK109: ='LGIP future infrastrure'!J79/1000 -> 40.41 | AO109: 40.41 | AS109: 2024-06-30 | AT109: ='LGIP future infrastrure'!K79/1000 -> 540.686 | AU109: =SUM('LGIP future infrastrure'!L79:N79)/1000 -> 281.381 | AY109: 822.067 | BB109: 862.477 | BF109: 2024-06-30 | BJ109: =IF(BG109=1,IF(BI109>BB109*'Input-Gen'!$M$31,"Check value","OK"),"") ->  | BL109: 0
G110: SLU-SP-001 | M110: ='LGIP future infrastrure'!A80 -> SLU-SP-001 | N110: ='LGIP future infrastrure'!B80 -> APT211 | O110: ='LGIP future infrastrure'!E80 -> Cycle Route (Primary) | P110: ='LGIP future infrastrure'!D80 -> Gailey Road Bikeway (Sandford Street to Gailey Road) | V110: 0 | X110: 0 | AB110: 1 | AD110: 1 | AH110: ='LGIP future infrastrure'!I80 -> 9 | AI110: =IF('LGIP future infrastrure'!F80="2016 - 2021",DATE(2019,6,30),DATE(2024,6,30)) -> 2019-06-30 | AK110: ='LGIP future infrastrure'!J80/1000 -> 168.259 | AO110: 168.259 | AS110: 2019-06-30 | AT110: ='LGIP future infrastrure'!K80/1000 -> 43.786 | AU110: =SUM('LGIP future infrastrure'!L80:N80)/1000 -> 18.446 | AY110: 62.232 | BB110: 230.491 | BF110: 2019-06-30 | BJ110: =IF(BG110=1,IF(BI110>BB110*'Input-Gen'!$M$31,"Check value","OK"),"") ->  | BL110: 0
G111: STF-SP-001 | M111: ='LGIP future infrastrure'!A81 -> STF-SP-001 | N111: ='LGIP future infrastrure'!B81 -> APT132 | O111: ='LGIP future infrastrure'!E81 -> Cycle Route (Secondary) | P111: ='LGIP future infrastrure'!D81 -> Kedron Brook Bikeway (Shand Street Park to Bilston Street Park) | V111: 0 | X111: 0 | AB111: 1 | AD111: 1 | AH111: ='LGIP future infrastrure'!I81 -> 8 | AI111: =IF('LGIP future infrastrure'!F81="2016 - 2021",DATE(2019,6,30),DATE(2024,6,30)) -> 2019-06-30 | AK111: ='LGIP future infrastrure'!J81/1000 -> 29.826 | AO111: 29.826 | AS111: 2019-06-30 | AT111: ='LGIP future infrastrure'!K81/1000 -> 1019.559 | AU111: =SUM('LGIP future infrastrure'!L81:N81)/1000 -> 429.497 | AY111: 1449.056 | BB111: 1478.882 | BF111: 2019-06-30 | BJ111: =IF(BG111=1,IF(BI111>BB111*'Input-Gen'!$M$31,"Check value","OK"),"") ->  | BL111: 0
G112: SVH-SP-001 | M112: ='LGIP future infrastrure'!A82 -> SVH-SP-001 | N112: ='LGIP future infrastrure'!B82 -> APT194 | O112: ='LGIP future infrastrure'!E82 -> Cycle Route (Secondary) | P112: ='LGIP future infrastrure'!D82 -> Perrin Creek Bikeway (Darcy Road to Foxton Street) | V112: 0 | X112: 0 | AB112: 1 | AD112: 1 | AH112: ='LGIP future infrastrure'!I82 -> 8 | AI112: =IF('LGIP future infrastrure'!F82="2016 - 2021",DATE(2019,6,30),DATE(2024,6,30)) -> 2024-06-30 | AK112: ='LGIP future infrastrure'!J82/1000 -> 65.04 | AO112: 65.04 | AS112: 2024-06-30 | AT112: ='LGIP future infrastrure'!K82/1000 -> 476.157 | AU112: =SUM('LGIP future infrastrure'!L82:N82)/1000 -> 247.799 | AY112: 723.956 | BB112: 788.996 | BF112: 2024-06-30 | BJ112: =IF(BG112=1,IF(BI112>BB112*'Input-Gen'!$M$31,"Check value","OK"),"") ->  | BL112: 0
G113: TAI-SP-004 | M113: ='LGIP future infrastrure'!A83 -> TAI-SP-004 | N113: ='LGIP future infrastrure'!B83 -> APT73 | O113: ='LGIP future infrastrure'!E83 -> Cycle Route (Secondary) | P113: ='LGIP future infrastrure'!D83 -> Cabbage Tree Creek Bikeway (Roghan Road Park (no. 335) to Taigum Place Park) | V113: 0 | X113: 0 | AB113: 1 | AD113: 1 | AH113: ='LGIP future infrastrure'!I83 -> 8 | AI113: =IF('LGIP future infrastrure'!F83="2016 - 2021",DATE(2019,6,30),DATE(2024,6,30)) -> 2024-06-30 | AK113: ='LGIP future infrastrure'!J83/1000 -> 31.056 | AO113: 31.056 | AS113: 2024-06-30 | AT113: ='LGIP future infrastrure'!K83/1000 -> 153.744 | AU113: =SUM('LGIP future infrastrure'!L83:N83)/1000 -> 80.01 | AY113: 233.754 | BB113: 264.81 | BF113: 2024-06-30 | BJ113: =IF(BG113=1,IF(BI113>BB113*'Input-Gen'!$M$31,"Check value","OK"),"") ->  | BL113: 0
G114: TOO-SP-002 | M114: ='LGIP future infrastrure'!A84 -> TOO-SP-002 | N114: ='LGIP future infrastrure'!B84 -> APT191 | O114: ='LGIP future infrastrure'!E84 -> Cycle Route (Primary) | P114: ='LGIP future infrastrure'!D84 -> Bicentennial Bikeway - Stage 5 (Regatta Park to Glen Road) | V114: 0 | X114: 0 | AB114: 1 | AD114: 1 | AH114: ='LGIP future infrastrure'!I84 -> 9 | AI114: =IF('LGIP future infrastrure'!F84="2016 - 2021",DATE(2019,6,30),DATE(2024,6,30)) -> 2019-06-30 | AK114: ='LGIP future infrastrure'!J84/1000 -> 5447.302 | AO114: 5447.302 | AS114: 2019-06-30 | AT114: ='LGIP future infrastrure'!K84/1000 -> 310.419 | AU114: =SUM('LGIP future infrastrure'!L84:N84)/1000 -> 130.766 | AY114: 441.185 | BB114: 5888.487 | BF114: 2019-06-30 | BJ114: =IF(BG114=1,IF(BI114>BB114*'Input-Gen'!$M$31,"Check value","OK"),"") ->  | BL114: 0
G115: TRF-RW-001 | M115: ='LGIP future infrastrure'!A85 -> TRF-RW-001 | N115: ='LGIP future infrastrure'!B85 -> APT173 | O115: ='LGIP future infrastrure'!E85 -> RiverWalk | P115: ='LGIP future infrastrure'!D85 -> Teneriffe (Riverside of 17-37 Skyring Terrace, Teneriffe) | V115: 0 | X115: 0 | AB115: 1 | AD115: 1 | AH115: ='LGIP future infrastrure'!I85 -> 0 | AI115: =IF('LGIP future infrastrure'!F85="2016 - 2021",DATE(2019,6,30),DATE(2024,6,30)) -> 2024-06-30 | AK115: ='LGIP future infrastrure'!J85/1000 -> 0 | AO115: 0 | AS115: 2024-06-30 | AT115: ='LGIP future infrastrure'!K85/1000 -> 639.196 | AU115: =SUM('LGIP future infrastrure'!L85:N85)/1000 -> 332.647 | AY115: 971.843 | BB115: 971.843 | BF115: 2024-06-30 | BJ115: =IF(BG115=1,IF(BI115>BB115*'Input-Gen'!$M$31,"Check value","OK"),"") ->  | BL115: 0
G116: UMG-SP-002 | M116: ='LGIP future infrastrure'!A86 -> UMG-SP-002 | N116: ='LGIP future infrastrure'!B86 -> APT254 | O116: ='LGIP future infrastrure'!E86 -> Cycle Route (Secondary) | P116: ='LGIP future infrastrure'!D86 -> Mimosa Creek Bikeway (Hibiscus Sports Centre to Klumpp Road/Mains Road intersection) | V116: 0 | X116: 0 | AB116: 1 | AD116: 1 | AH116: ='LGIP future infrastrure'!I86 -> 8 | AI116: =IF('LGIP future infrastrure'!F86="2016 - 2021",DATE(2019,6,30),DATE(2024,6,30)) -> 2024-06-30 | AK116: ='LGIP future infrastrure'!J86/1000 -> 35.062 | AO116: 35.062 | AS116: 2024-06-30 | AT116: ='LGIP future infrastrure'!K86/1000 -> 403.597 | AU116: =SUM('LGIP future infrastrure'!L86:N86)/1000 -> 210.038 | AY116: 613.635 | BB116: 648.697 | BF116: 2024-06-30 | BJ116: =IF(BG116=1,IF(BI116>BB116*'Input-Gen'!$M$31,"Check value","OK"),"") ->  | BL116: 0
G117: WCL-SP-004 | M117: ='LGIP future infrastrure'!A87 -> WCL-SP-004 | N117: ='LGIP future infrastrure'!B87 -> APT289 | O117: ='LGIP future infrastrure'!E87 -> Cycle Route (Secondary) | P117: ='LGIP future infrastrure'!D87 -> Bullockhead Creek Bikeway (Ipswich Motorway ramp to Boundary Road) | V117: 0 | X117: 0 | AB117: 1 | AD117: 1 | AH117: ='LGIP future infrastrure'!I87 -> 8 | AI117: =IF('LGIP future infrastrure'!F87="2016 - 2021",DATE(2019,6,30),DATE(2024,6,30)) -> 2024-06-30 | AK117: ='LGIP future infrastrure'!J87/1000 -> 630.986 | AO117: 630.986 | AS117: 2024-06-30 | AT117: ='LGIP future infrastrure'!K87/1000 -> 459.18 | AU117: =SUM('LGIP future infrastrure'!L87:N87)/1000 -> 238.964 | AY117: 698.144 | BB117: 1329.13 | BF117: 2024-06-30 | BJ117: =IF(BG117=1,IF(BI117>BB117*'Input-Gen'!$M$31,"Check value","OK"),"") ->  | BL117: 0
G118: WSR-SP-001 | M118: ='LGIP future infrastrure'!A88 -> WSR-SP-001 | N118: ='LGIP future infrastrure'!B88 -> APT173 | O118: ='LGIP future infrastrure'!E88 -> Cycle Route (Primary) | P118: ='LGIP future infrastrure'!D88 -> Enoggera Creek Bikeway (Under ICB Bridge to Lutwyche Road) | V118: 0 | X118: 0 | AB118: 1 | AD118: 1 | AH118: ='LGIP future infrastrure'!I88 -> 9 | AI118: =IF('LGIP future infrastrure'!F88="2016 - 2021",DATE(2019,6,30),DATE(2024,6,30)) -> 2019-06-30 | AK118: ='LGIP future infrastrure'!J88/1000 -> 25.458 | AO118: 25.458 | AS118: 2019-06-30 | AT118: ='LGIP future infrastrure'!K88/1000 -> 137.516 | AU118: =SUM('LGIP future infrastrure'!L88:N88)/1000 -> 57.93 | AY118: 195.446 | BB118: 220.904 | BF118: 2019-06-30 | BJ118: =IF(BG118=1,IF(BI118>BB118*'Input-Gen'!$M$31,"Check value","OK"),"") ->  | BL118: 0
G119: Spare 1 | M119: Spare 1 | V119: 0 | X119: 0 | AB119: 1 | AD119: 1 | AO119: 0 | AY119: 0 | BB119: 0 | BF119: 00:00:00 | BJ119: =IF(BG119=1,IF(BI119>BB119*'Input-Gen'!$M$31,"Check value","OK"),"") ->  | BL119: 0
G120: Spare 2 | M120: Spare 2 | V120: 0 | X120: 0 | AB120: 1 | AD120: 1 | AO120: 0 | AY120: 0 | BB120: 0 | BF120: 00:00:00 | BJ120: =IF(BG120=1,IF(BI120>BB120*'Input-Gen'!$M$31,"Check value","OK"),"") ->  | BL120: 0
G121: Spare 3 | M121: Spare 3 | V121: 0 | X121: 0 | AB121: 1 | AD121: 1 | AO121: 0 | BB121: 0 | BF121: 00:00:00 | BJ121: =IF(BG121=1,IF(BI121>BB121*'Input-Gen'!$M$31,"Check value","OK"),"") ->  | BL121: 0
G122: Spare 4 | M122: Spare 4 | V122: 0 | X122: 0 | AB122: 1 | AD122: 1 | AO122: 0 | BB122: 0 | BF122: 00:00:00 | BJ122: =IF(BG122=1,IF(BI122>BB122*'Input-Gen'!$M$31,"Check value","OK"),"") ->  | BL122: 0
G123: Spare 5 | M123: Spare 5 | V123: 0 | X123: 0 | AB123: 1 | AD123: 1 | AO123: 0 | BB123: 0 | BF123: 00:00:00 | BJ123: =IF(BG123=1,IF(BI123>BB123*'Input-Gen'!$M$31,"Check value","OK"),"") ->  | BL123: 0
G124: Spare 6 | M124: Spare 6 | V124: 0 | X124: 0 | AB124: 1 | AD124: 1 | AO124: 0 | BB124: 0 | BF124: 00:00:00 | BJ124: =IF(BG124=1,IF(BI124>BB124*'Input-Gen'!$M$31,"Check value","OK"),"") ->  | BL124: 0
G125: Spare 7 | M125: Spare 7 | V125: 0 | X125: 0 | AB125: 1 | AD125: 1 | AO125: 0 | BB125: 0 | BF125: 00:00:00 | BJ125: =IF(BG125=1,IF(BI125>BB125*'Input-Gen'!$M$31,"Check value","OK"),"") ->  | BL125: 0
G126: Spare 8 | M126: Spare 8 | V126: 0 | X126: 0 | AB126: 1 | AD126: 1 | AO126: 0 | BB126: 0 | BF126: 00:00:00 | BJ126: =IF(BG126=1,IF(BI126>BB126*'Input-Gen'!$M$31,"Check value","OK"),"") ->  | BL126: 0
G127: Spare 9 | M127: Spare 9 | V127: 0 | X127: 0 | AB127: 1 | AD127: 1 | AO127: 0 | BB127: 0 | BF127: 00:00:00 | BJ127: =IF(BG127=1,IF(BI127>BB127*'Input-Gen'!$M$31,"Check value","OK"),"") ->  | BL127: 0
G128: Spare 10 | M128: Spare 10 | V128: 0 | X128: 0 | AB128: 1 | AD128: 1 | AO128: 0 | BB128: 0 | BF128: 00:00:00 | BJ128: =IF(BG128=1,IF(BI128>BB128*'Input-Gen'!$M$31,"Check value","OK"),"") ->  | BL128: 0
G129: Spare 11 | M129: Spare 11 | V129: 0 | X129: 0 | AB129: 1 | AD129: 1 | AO129: 0 | BB129: 0 | BF129: 00:00:00 | BJ129: =IF(BG129=1,IF(BI129>BB129*'Input-Gen'!$M$31,"Check value","OK"),"") ->  | BL129: 0
G130: Spare 12 | M130: Spare 12 | V130: 0 | X130: 0 | AB130: 1 | AD130: 1 | AO130: 0 | BB130: 0 | BF130: 00:00:00 | BJ130: =IF(BG130=1,IF(BI130>BB130*'Input-Gen'!$M$31,"Check value","OK"),"") ->  | BL130: 0
G131: Spare 13 | M131: Spare 13 | V131: 0 | X131: 0 | AB131: 1 | AD131: 1 | AO131: 0 | BB131: 0 | BF131: 00:00:00 | BJ131: =IF(BG131=1,IF(BI131>BB131*'Input-Gen'!$M$31,"Check value","OK"),"") ->  | BL131: 0
G132: Spare 14 | M132: Spare 14 | V132: 0 | X132: 0 | AB132: 1 | AD132: 1 | AO132: 0 | BB132: 0 | BF132: 00:00:00 | BJ132: =IF(BG132=1,IF(BI132>BB132*'Input-Gen'!$M$31,"Check value","OK"),"") ->  | BL132: 0
G133: Spare 15 | M133: Spare 15 | V133: 0 | X133: 0 | AB133: 1 | AD133: 1 | AO133: 0 | BB133: 0 | BF133: 00:00:00 | BJ133: =IF(BG133=1,IF(BI133>BB133*'Input-Gen'!$M$31,"Check value","OK"),"") ->  | BL133: 0
G134: Spare 16 | M134: Spare 16 | V134: 0 | X134: 0 | AB134: 1 | AD134: 1 | AO134: 0 | BB134: 0 | BF134: 00:00:00 | BJ134: =IF(BG134=1,IF(BI134>BB134*'Input-Gen'!$M$31,"Check value","OK"),"") ->  | BL134: 0
G135: Spare 17 | M135: Spare 17 | V135: 0 | X135: 0 | AB135: 1 | AD135: 1 | AO135: 0 | BB135: 0 | BF135: 00:00:00 | BJ135: =IF(BG135=1,IF(BI135>BB135*'Input-Gen'!$M$31,"Check value","OK"),"") ->  | BL135: 0
G136: Spare 18 | M136: Spare 18 | V136: 0 | X136: 0 | AB136: 1 | AD136: 1 | AO136: 0 | BB136: 0 | BF136: 00:00:00 | BJ136: =IF(BG136=1,IF(BI136>BB136*'Input-Gen'!$M$31,"Check value","OK"),"") ->  | BL136: 0
G137: Spare 19 | M137: Spare 19 | V137: 0 | X137: 0 | AB137: 1 | AD137: 1 | AO137: 0 | BB137: 0 | BF137: 00:00:00 | BJ137: =IF(BG137=1,IF(BI137>BB137*'Input-Gen'!$M$31,"Check value","OK"),"") ->  | BL137: 0
G138: Spare 20 | M138: Spare 20 | V138: 0 | X138: 0 | AB138: 1 | AD138: 1 | AO138: 0 | BB138: 0 | BF138: 00:00:00 | BJ138: =IF(BG138=1,IF(BI138>BB138*'Input-Gen'!$M$31,"Check value","OK"),"") ->  | BL138: 0
G139: Spare 21 | M139: Spare 21 | V139: 0 | X139: 0 | AB139: 1 | AD139: 1 | AO139: 0 | BB139: 0 | BF139: 00:00:00 | BJ139: =IF(BG139=1,IF(BI139>BB139*'Input-Gen'!$M$31,"Check value","OK"),"") ->  | BL139: 0
G140: Spare 22 | M140: Spare 22 | V140: 0 | X140: 0 | AB140: 1 | AD140: 1 | AO140: 0 | BB140: 0 | BF140: 00:00:00 | BJ140: =IF(BG140=1,IF(BI140>BB140*'Input-Gen'!$M$31,"Check value","OK"),"") ->  | BL140: 0
G141: Spare 23 | M141: Spare 23 | V141: 0 | X141: 0 | AB141: 1 | AD141: 1 | AO141: 0 | BB141: 0 | BF141: 00:00:00 | BJ141: =IF(BG141=1,IF(BI141>BB141*'Input-Gen'!$M$31,"Check value","OK"),"") ->  | BL141: 0
G142: Spare 24 | M142: Spare 24 | V142: 0 | X142: 0 | AB142: 1 | AD142: 1 | AO142: 0 | BB142: 0 | BF142: 00:00:00 | BJ142: =IF(BG142=1,IF(BI142>BB142*'Input-Gen'!$M$31,"Check value","OK"),"") ->  | BL142: 0
G143: Spare 25 | M143: Spare 25 | V143: 0 | X143: 0 | AB143: 1 | AD143: 1 | AO143: 0 | BB143: 0 | BF143: 00:00:00 | BJ143: =IF(BG143=1,IF(BI143>BB143*'Input-Gen'!$M$31,"Check value","OK"),"") ->  | BL143: 0
G144: Spare 26 | M144: Spare 26 | V144: 0 | X144: 0 | AB144: 1 | AD144: 1 | AO144: 0 | BB144: 0 | BF144: 00:00:00 | BJ144: =IF(BG144=1,IF(BI144>BB144*'Input-Gen'!$M$31,"Check value","OK"),"") ->  | BL144: 0
G145: Spare 27 | M145: Spare 27 | V145: 0 | X145: 0 | AB145: 1 | AD145: 1 | AO145: 0 | BB145: 0 | BF145: 00:00:00 | BJ145: =IF(BG145=1,IF(BI145>BB145*'Input-Gen'!$M$31,"Check value","OK"),"") ->  | BL145: 0
G146: Spare 28 | M146: Spare 28 | V146: 0 | X146: 0 | AB146: 1 | AD146: 1 | AO146: 0 | BB146: 0 | BF146: 00:00:00 | BJ146: =IF(BG146=1,IF(BI146>BB146*'Input-Gen'!$M$31,"Check value","OK"),"") ->  | BL146: 0
G147: Spare 29 | M147: Spare 29 | V147: 0 | X147: 0 | AB147: 1 | AD147: 1 | AO147: 0 | BB147: 0 | BF147: 00:00:00 | BJ147: =IF(BG147=1,IF(BI147>BB147*'Input-Gen'!$M$31,"Check value","OK"),"") ->  | BL147: 0
G148: Spare 30 | M148: Spare 30 | V148: 0 | X148: 0 | AB148: 1 | AD148: 1 | AO148: 0 | BB148: 0 | BF148: 00:00:00 | BJ148: =IF(BG148=1,IF(BI148>BB148*'Input-Gen'!$M$31,"Check value","OK"),"") ->  | BL148: 0
G149: Spare 31 | M149: Spare 31 | V149: 0 | X149: 0 | AB149: 1 | AD149: 1 | AO149: 0 | BB149: 0 | BF149: 00:00:00 | BJ149: =IF(BG149=1,IF(BI149>BB149*'Input-Gen'!$M$31,"Check value","OK"),"") ->  | BL149: 0
G150: Spare 32 | M150: Spare 32 | V150: 0 | X150: 0 | AB150: 1 | AD150: 1 | AO150: 0 | BB150: 0 | BF150: 00:00:00 | BJ150: =IF(BG150=1,IF(BI150>BB150*'Input-Gen'!$M$31,"Check value","OK"),"") ->  | BL150: 0
G151: Spare 33 | M151: Spare 33 | V151: 0 | X151: 0 | AB151: 1 | AD151: 1 | AO151: 0 | BB151: 0 | BF151: 00:00:00 | BJ151: =IF(BG151=1,IF(BI151>BB151*'Input-Gen'!$M$31,"Check value","OK"),"") ->  | BL151: 0
G152: Spare 34 | M152: Spare 34 | V152: 0 | X152: 0 | AB152: 1 | AD152: 1 | AO152: 0 | BB152: 0 | BF152: 00:00:00 | BJ152: =IF(BG152=1,IF(BI152>BB152*'Input-Gen'!$M$31,"Check value","OK"),"") ->  | BL152: 0
G153: Spare 35 | M153: Spare 35 | V153: 0 | X153: 0 | AB153: 1 | AD153: 1 | AO153: 0 | BB153: 0 | BF153: 00:00:00 | BJ153: =IF(BG153=1,IF(BI153>BB153*'Input-Gen'!$M$31,"Check value","OK"),"") ->  | BL153: 0
G154: Spare 36 | M154: Spare 36 | V154: 0 | X154: 0 | AB154: 1 | AD154: 1 | AO154: 0 | BB154: 0 | BF154: 00:00:00 | BJ154: =IF(BG154=1,IF(BI154>BB154*'Input-Gen'!$M$31,"Check value","OK"),"") ->  | BL154: 0
G155: Spare 37 | M155: Spare 37 | V155: 0 | X155: 0 | AB155: 1 | AD155: 1 | AO155: 0 | BB155: 0 | BF155: 00:00:00 | BJ155: =IF(BG155=1,IF(BI155>BB155*'Input-Gen'!$M$31,"Check value","OK"),"") ->  | BL155: 0
G156: Spare 38 | M156: Spare 38 | V156: 0 | X156: 0 | AB156: 1 | AD156: 1 | AO156: 0 | BB156: 0 | BF156: 00:00:00 | BJ156: =IF(BG156=1,IF(BI156>BB156*'Input-Gen'!$M$31,"Check value","OK"),"") ->  | BL156: 0
G157: Spare 39 | M157: Spare 39 | V157: 0 | X157: 0 | AB157: 1 | AD157: 1 | AO157: 0 | BB157: 0 | BF157: 00:00:00 | BJ157: =IF(BG157=1,IF(BI157>BB157*'Input-Gen'!$M$31,"Check value","OK"),"") ->  | BL157: 0
G158: Spare 40 | M158: Spare 40 | V158: 0 | X158: 0 | AB158: 1 | AD158: 1 | AO158: 0 | BB158: 0 | BF158: 00:00:00 | BJ158: =IF(BG158=1,IF(BI158>BB158*'Input-Gen'!$M$31,"Check value","OK"),"") ->  | BL158: 0
G159: Spare 41 | M159: Spare 41 | V159: 0 | X159: 0 | AB159: 1 | AD159: 1 | AO159: 0 | BB159: 0 | BF159: 00:00:00 | BJ159: =IF(BG159=1,IF(BI159>BB159*'Input-Gen'!$M$31,"Check value","OK"),"") ->  | BL159: 0
G160: Spare 42 | M160: Spare 42 | V160: 0 | X160: 0 | AB160: 1 | AD160: =SUM(AB160:AB160) -> 1 | AO160: 0 | BB160: =SUM(AY160,AO160) -> 0 | BF160: =MAX(AS160,AI160) -> 00:00:00 | BJ160: =IF(BG160=1,IF(BI160>BB160*'Input-Gen'!$M$31,"Check value","OK"),"") ->  | BL160: 0
G161: =M161 -> Spare 43 | M161: Spare 43 | V161: 0 | X161: =SUM(T161:W161) -> 0 | AB161: 1 | AD161: 1 | AO161: =SUM(AK161:AM161) -> 0 | BB161: 0 | BF161: 00:00:00 | BJ161: =IF(BG161=1,IF(BI161>BB161*'Input-Gen'!$M$31,"Check value","OK"),"") ->  | BL161: 0
G162: Spare 44 | M162: Spare 44 | V162: 0 | X162: 0 | AB162: 1 | AD162: 1 | AO162: 0 | BB162: 0 | BF162: 00:00:00 | BJ162: =IF(BG162=1,IF(BI162>BB162*'Input-Gen'!$M$31,"Check value","OK"),"") ->  | BL162: 0
G163: Spare 45 | M163: Spare 45 | V163: 0 | X163: 0 | AB163: 1 | AD163: 1 | AO163: 0 | BB163: 0 | BF163: 00:00:00 | BJ163: =IF(BG163=1,IF(BI163>BB163*'Input-Gen'!$M$31,"Check value","OK"),"") ->  | BL163: 0
G164: Spare 46 | M164: Spare 46 | V164: 0 | X164: 0 | AB164: 1 | AD164: 1 | AO164: 0 | BB164: 0 | BF164: 00:00:00 | BJ164: =IF(BG164=1,IF(BI164>BB164*'Input-Gen'!$M$31,"Check value","OK"),"") ->  | BL164: 0
G165: Spare 47 | M165: Spare 47 | V165: 0 | X165: 0 | AB165: 1 | AD165: 1 | AO165: 0 | BB165: 0 | BF165: 00:00:00 | BJ165: =IF(BG165=1,IF(BI165>BB165*'Input-Gen'!$M$31,"Check value","OK"),"") ->  | BL165: 0
G166: Spare 48 | M166: Spare 48 | V166: 0 | X166: 0 | AB166: 1 | AD166: 1 | AO166: 0 | BB166: 0 | BF166: 00:00:00 | BJ166: =IF(BG166=1,IF(BI166>BB166*'Input-Gen'!$M$31,"Check value","OK"),"") ->  | BL166: 0
G167: Spare 49 | M167: Spare 49 | V167: 0 | X167: 0 | AB167: 1 | AD167: 1 | AO167: 0 | BB167: 0 | BF167: 00:00:00 | BJ167: =IF(BG167=1,IF(BI167>BB167*'Input-Gen'!$M$31,"Check value","OK"),"") ->  | BL167: 0
G168: Spare 50 | M168: Spare 50 | V168: 0 | X168: 0 | AB168: 1 | AD168: 1 | AO168: 0 | BB168: 0 | BF168: 00:00:00 | BJ168: =IF(BG168=1,IF(BI168>BB168*'Input-Gen'!$M$31,"Check value","OK"),"") ->  | BL168: 0
G169: Spare 51 | M169: Spare 51 | V169: 0 | X169: 0 | AB169: 1 | AD169: 1 | AO169: 0 | BB169: 0 | BF169: 00:00:00 | BJ169: =IF(BG169=1,IF(BI169>BB169*'Input-Gen'!$M$31,"Check value","OK"),"") ->  | BL169: 0
G170: Spare 52 | M170: Spare 52 | V170: 0 | X170: 0 | AB170: 1 | AD170: 1 | AO170: 0 | BB170: 0 | BF170: 00:00:00 | BJ170: =IF(BG170=1,IF(BI170>BB170*'Input-Gen'!$M$31,"Check value","OK"),"") ->  | BL170: 0
G171: Spare 53 | M171: Spare 53 | V171: 0 | X171: 0 | AB171: 1 | AD171: 1 | AO171: 0 | BB171: 0 | BF171: 00:00:00 | BJ171: =IF(BG171=1,IF(BI171>BB171*'Input-Gen'!$M$31,"Check value","OK"),"") ->  | BL171: 0
G172: Spare 54 | M172: Spare 54 | V172: 0 | X172: 0 | AB172: 1 | AD172: 1 | AO172: 0 | BB172: 0 | BF172: 00:00:00 | BJ172: =IF(BG172=1,IF(BI172>BB172*'Input-Gen'!$M$31,"Check value","OK"),"") ->  | BL172: 0
G173: Spare 55 | M173: Spare 55 | V173: 0 | X173: 0 | AB173: 1 | AD173: 1 | AO173: 0 | BB173: 0 | BF173: 00:00:00 | BJ173: =IF(BG173=1,IF(BI173>BB173*'Input-Gen'!$M$31,"Check value","OK"),"") ->  | BL173: 0
G174: Spare 56 | M174: Spare 56 | V174: 0 | X174: 0 | AB174: 1 | AD174: 1 | AO174: 0 | BB174: 0 | BF174: 00:00:00 | BJ174: =IF(BG174=1,IF(BI174>BB174*'Input-Gen'!$M$31,"Check value","OK"),"") ->  | BL174: 0
G175: Spare 57 | M175: Spare 57 | V175: 0 | X175: 0 | AB175: 1 | AD175: 1 | AO175: 0 | BB175: 0 | BF175: 00:00:00 | BJ175: =IF(BG175=1,IF(BI175>BB175*'Input-Gen'!$M$31,"Check value","OK"),"") ->  | BL175: 0
G176: Spare 58 | M176: Spare 58 | V176: 0 | X176: 0 | AB176: 1 | AD176: 1 | AO176: 0 | BB176: 0 | BF176: 00:00:00 | BJ176: =IF(BG176=1,IF(BI176>BB176*'Input-Gen'!$M$31,"Check value","OK"),"") ->  | BL176: 0
G177: Spare 59 | M177: Spare 59 | V177: 0 | X177: 0 | AB177: 1 | AD177: 1 | AO177: 0 | BB177: 0 | BF177: 00:00:00 | BJ177: =IF(BG177=1,IF(BI177>BB177*'Input-Gen'!$M$31,"Check value","OK"),"") ->  | BL177: 0
G178: Spare 60 | M178: Spare 60 | V178: 0 | X178: 0 | AB178: 1 | AD178: 1 | AO178: 0 | BB178: 0 | BF178: 00:00:00 | BJ178: =IF(BG178=1,IF(BI178>BB178*'Input-Gen'!$M$31,"Check value","OK"),"") ->  | BL178: 0
G179: Spare 61 | M179: Spare 61 | V179: 0 | X179: 0 | AB179: 1 | AD179: 1 | AO179: 0 | BB179: 0 | BF179: 00:00:00 | BJ179: =IF(BG179=1,IF(BI179>BB179*'Input-Gen'!$M$31,"Check value","OK"),"") ->  | BL179: 0
G180: Spare 62 | M180: Spare 62 | V180: 0 | X180: 0 | AB180: 1 | AD180: 1 | AO180: 0 | BB180: 0 | BF180: 00:00:00 | BJ180: =IF(BG180=1,IF(BI180>BB180*'Input-Gen'!$M$31,"Check value","OK"),"") ->  | BL180: 0
G181: Spare 63 | M181: Spare 63 | V181: 0 | X181: 0 | AB181: 1 | AD181: 1 | AO181: 0 | BB181: 0 | BF181: 00:00:00 | BJ181: =IF(BG181=1,IF(BI181>BB181*'Input-Gen'!$M$31,"Check value","OK"),"") ->  | BL181: 0
G182: Spare 64 | M182: Spare 64 | V182: 0 | X182: 0 | AB182: 1 | AD182: 1 | AO182: 0 | BB182: 0 | BF182: 00:00:00 | BJ182: =IF(BG182=1,IF(BI182>BB182*'Input-Gen'!$M$31,"Check value","OK"),"") ->  | BL182: 0
G183: Spare 65 | M183: Spare 65 | V183: 0 | X183: 0 | AB183: 1 | AD183: 1 | AO183: 0 | BB183: 0 | BF183: 00:00:00 | BJ183: =IF(BG183=1,IF(BI183>BB183*'Input-Gen'!$M$31,"Check value","OK"),"") ->  | BL183: 0
G184: Spare 66 | M184: Spare 66 | V184: 0 | X184: 0 | AB184: 1 | AD184: 1 | AO184: 0 | BB184: 0 | BF184: 00:00:00 | BJ184: =IF(BG184=1,IF(BI184>BB184*'Input-Gen'!$M$31,"Check value","OK"),"") ->  | BL184: 0
G185: Spare 67 | M185: Spare 67 | V185: 0 | X185: 0 | AB185: 1 | AD185: 1 | AO185: 0 | BB185: 0 | BF185: 00:00:00 | BJ185: =IF(BG185=1,IF(BI185>BB185*'Input-Gen'!$M$31,"Check value","OK"),"") ->  | BL185: 0
G186: Spare 68 | M186: Spare 68 | V186: 0 | X186: 0 | AB186: 1 | AD186: 1 | AO186: 0 | BB186: 0 | BF186: 00:00:00 | BJ186: =IF(BG186=1,IF(BI186>BB186*'Input-Gen'!$M$31,"Check value","OK"),"") ->  | BL186: 0
G187: Spare 69 | M187: Spare 69 | V187: 0 | X187: 0 | AB187: 1 | AD187: 1 | AO187: 0 | BB187: 0 | BF187: 00:00:00 | BJ187: =IF(BG187=1,IF(BI187>BB187*'Input-Gen'!$M$31,"Check value","OK"),"") ->  | BL187: 0
G188: Spare 70 | M188: Spare 70 | V188: 0 | X188: 0 | AB188: 1 | AD188: 1 | AO188: 0 | BB188: 0 | BF188: 00:00:00 | BJ188: =IF(BG188=1,IF(BI188>BB188*'Input-Gen'!$M$31,"Check value","OK"),"") ->  | BL188: 0
G189: Spare 71 | M189: Spare 71 | V189: 0 | X189: 0 | AB189: 1 | AD189: 1 | AO189: 0 | BB189: 0 | BF189: 00:00:00 | BJ189: =IF(BG189=1,IF(BI189>BB189*'Input-Gen'!$M$31,"Check value","OK"),"") ->  | BL189: 0
G190: Spare 72 | M190: Spare 72 | V190: 0 | X190: 0 | AB190: 1 | AD190: 1 | AO190: 0 | BB190: 0 | BF190: 00:00:00 | BJ190: =IF(BG190=1,IF(BI190>BB190*'Input-Gen'!$M$31,"Check value","OK"),"") ->  | BL190: 0
G191: Spare 73 | M191: Spare 73 | V191: 0 | X191: 0 | AB191: 1 | AD191: 1 | AO191: 0 | BB191: 0 | BF191: 00:00:00 | BJ191: =IF(BG191=1,IF(BI191>BB191*'Input-Gen'!$M$31,"Check value","OK"),"") ->  | BL191: 0
G192: Spare 74 | M192: Spare 74 | V192: 0 | X192: 0 | AB192: 1 | AD192: 1 | AO192: 0 | BB192: 0 | BF192: 00:00:00 | BJ192: =IF(BG192=1,IF(BI192>BB192*'Input-Gen'!$M$31,"Check value","OK"),"") ->  | BL192: 0
G193: Spare 75 | M193: Spare 75 | V193: 0 | X193: 0 | AB193: 1 | AD193: 1 | AO193: 0 | BB193: 0 | BF193: 00:00:00 | BJ193: =IF(BG193=1,IF(BI193>BB193*'Input-Gen'!$M$31,"Check value","OK"),"") ->  | BL193: 0
G194: Spare 76 | M194: Spare 76 | V194: 0 | X194: 0 | AB194: 1 | AD194: 1 | AO194: 0 | BB194: 0 | BF194: 00:00:00 | BJ194: =IF(BG194=1,IF(BI194>BB194*'Input-Gen'!$M$31,"Check value","OK"),"") ->  | BL194: 0
G195: Spare 77 | M195: Spare 77 | V195: 0 | X195: 0 | AB195: 1 | AD195: 1 | AO195: 0 | BB195: 0 | BF195: 00:00:00 | BJ195: =IF(BG195=1,IF(BI195>BB195*'Input-Gen'!$M$31,"Check value","OK"),"") ->  | BL195: 0
G196: Spare 78 | M196: Spare 78 | V196: 0 | X196: 0 | AB196: 1 | AD196: 1 | AO196: 0 | BB196: 0 | BF196: 00:00:00 | BJ196: =IF(BG196=1,IF(BI196>BB196*'Input-Gen'!$M$31,"Check value","OK"),"") ->  | BL196: 0
G197: Spare 79 | M197: Spare 79 | V197: 0 | X197: 0 | AB197: 1 | AD197: 1 | AO197: 0 | BB197: 0 | BF197: 00:00:00 | BJ197: =IF(BG197=1,IF(BI197>BB197*'Input-Gen'!$M$31,"Check value","OK"),"") ->  | BL197: 0
G198: Spare 80 | M198: Spare 80 | V198: 0 | X198: 0 | AB198: 1 | AD198: 1 | AO198: 0 | BB198: 0 | BF198: 00:00:00 | BJ198: =IF(BG198=1,IF(BI198>BB198*'Input-Gen'!$M$31,"Check value","OK"),"") ->  | BL198: 0
G199: Spare 81 | M199: Spare 81 | V199: 0 | X199: 0 | AB199: 1 | AD199: 1 | AO199: 0 | BB199: 0 | BF199: 00:00:00 | BJ199: =IF(BG199=1,IF(BI199>BB199*'Input-Gen'!$M$31,"Check value","OK"),"") ->  | BL199: 0
G200: Spare 82 | M200: Spare 82 | V200: 0 | X200: 0 | AB200: 1 | AD200: 1 | AO200: 0 | BB200: 0 | BF200: 00:00:00 | BJ200: =IF(BG200=1,IF(BI200>BB200*'Input-Gen'!$M$31,"Check value","OK"),"") ->  | BL200: 0
G201: Spare 83 | M201: Spare 83 | V201: 0 | X201: 0 | AB201: 1 | AD201: 1 | AO201: 0 | BB201: 0 | BF201: 00:00:00 | BJ201: =IF(BG201=1,IF(BI201>BB201*'Input-Gen'!$M$31,"Check value","OK"),"") ->  | BL201: 0
G202: Spare 84 | M202: Spare 84 | V202: 0 | X202: 0 | AB202: 1 | AD202: 1 | AO202: 0 | BB202: 0 | BF202: 00:00:00 | BJ202: =IF(BG202=1,IF(BI202>BB202*'Input-Gen'!$M$31,"Check value","OK"),"") ->  | BL202: 0
G203: Spare 85 | M203: Spare 85 | V203: 0 | X203: 0 | AB203: 1 | AD203: 1 | AO203: 0 | BB203: 0 | BF203: 00:00:00 | BJ203: =IF(BG203=1,IF(BI203>BB203*'Input-Gen'!$M$31,"Check value","OK"),"") ->  | BL203: 0
G204: Spare 86 | M204: Spare 86 | V204: 0 | X204: 0 | AB204: 1 | AD204: 1 | AO204: 0 | BB204: 0 | BF204: 00:00:00 | BJ204: =IF(BG204=1,IF(BI204>BB204*'Input-Gen'!$M$31,"Check value","OK"),"") ->  | BL204: 0
G205: Spare 87 | M205: Spare 87 | V205: 0 | X205: 0 | AB205: 1 | AD205: 1 | AO205: 0 | BB205: 0 | BF205: 00:00:00 | BJ205: =IF(BG205=1,IF(BI205>BB205*'Input-Gen'!$M$31,"Check value","OK"),"") ->  | BL205: 0
G206: Spare 88 | M206: Spare 88 | V206: 0 | X206: 0 | AB206: 1 | AD206: 1 | AO206: 0 | BB206: 0 | BF206: 00:00:00 | BJ206: =IF(BG206=1,IF(BI206>BB206*'Input-Gen'!$M$31,"Check value","OK"),"") ->  | BL206: 0
G207: Spare 89 | M207: Spare 89 | V207: 0 | X207: 0 | AB207: 1 | AD207: 1 | AO207: 0 | BB207: 0 | BF207: 00:00:00 | BJ207: =IF(BG207=1,IF(BI207>BB207*'Input-Gen'!$M$31,"Check value","OK"),"") ->  | BL207: 0
G208: Spare 90 | M208: Spare 90 | V208: 0 | X208: 0 | AB208: 1 | AD208: 1 | AO208: 0 | BB208: 0 | BF208: 00:00:00 | BJ208: =IF(BG208=1,IF(BI208>BB208*'Input-Gen'!$M$31,"Check value","OK"),"") ->  | BL208: 0
G209: Spare 91 | M209: Spare 91 | V209: 0 | X209: 0 | AB209: 1 | AD209: 1 | AO209: 0 | BB209: 0 | BF209: 00:00:00 | BJ209: =IF(BG209=1,IF(BI209>BB209*'Input-Gen'!$M$31,"Check value","OK"),"") ->  | BL209: 0
G210: Spare 92 | M210: Spare 92 | V210: 0 | X210: 0 | AB210: 1 | AD210: 1 | AO210: 0 | BB210: 0 | BF210: 00:00:00 | BJ210: =IF(BG210=1,IF(BI210>BB210*'Input-Gen'!$M$31,"Check value","OK"),"") ->  | BL210: 0
G211: Spare 93 | M211: Spare 93 | V211: 0 | X211: 0 | AB211: 1 | AD211: 1 | AO211: 0 | BB211: 0 | BF211: 00:00:00 | BJ211: =IF(BG211=1,IF(BI211>BB211*'Input-Gen'!$M$31,"Check value","OK"),"") ->  | BL211: 0
G212: Spare 94 | M212: Spare 94 | V212: 0 | X212: 0 | AB212: 1 | AD212: 1 | AO212: 0 | BB212: 0 | BF212: 00:00:00 | BJ212: =IF(BG212=1,IF(BI212>BB212*'Input-Gen'!$M$31,"Check value","OK"),"") ->  | BL212: 0
G213: Spare 95 | M213: Spare 95 | V213: 0 | X213: 0 | AB213: 1 | AD213: 1 | AO213: 0 | BB213: 0 | BF213: 00:00:00 | BJ213: =IF(BG213=1,IF(BI213>BB213*'Input-Gen'!$M$31,"Check value","OK"),"") ->  | BL213: 0
... 774 more rows

Sheet Input-Time Series
F2: Brisbane City Council
F3: ='Input-Gen'!$F$3 -> Schedule of Works Model - PATHWAY
F5: Input - Time Series
G6: =IF(BaseCaseCheck=0,BaseCase,NotBaseCase) -> Please Note: Model is not currently applying Base Case parameter values
G7: =IF(Integrity=0,IntOK,IntErr) -> 
G9: Period Number | K9: ="NPV as at" & " " & TEXT(Model_Start_Date-1,"dd-mmm-yyyy") -> NPV as at 30-Jun-2016 | S9: =S17 -> 0 | T9: =T17 -> 1 | U9: 2 | V9: 3 | W9: 4 | X9: 5 | Y9: 6 | Z9: 7 | AA9: 8 | AB9: 9 | AC9: 10 | AD9: 11 | AE9: 12 | AF9: 13 | AG9: 14 | AH9: 15 | AI9: 16 | AJ9: 17 | AK9: 18 | AL9: 19 | AM9: 20
G10: Period Beginning Date | M10: Total Nominal Demand | O10: Future Demand | S10: =FY_Begin -> 2015-07-01 | T10: 2016-07-01 | U10: 2017-07-01 | V10: 2018-07-01 | W10: 2019-07-01 | X10: 2020-07-01 | Y10: 2021-07-01 | Z10: 2022-07-01 | AA10: 2023-07-01 | AB10: 2024-07-01 | AC10: 2025-07-01
G11: Period Ending Date | L11: 2005-06-30 | S11: =FY_End -> 2016-06-30 | T11: 2017-06-30 | U11: 2018-06-30 | V11: 2019-06-30 | W11: 2020-06-30 | X11: 2021-06-30 | Y11: 2022-06-30 | Z11: 2023-06-30 | AA11: 2024-06-30 | AB11: 2025-06-30 | AC11: 2026-06-30 | AO11: Source
F15: Timing and indexation calculations
G17: Period Number | I17: # | S17: 0 | T17: =S17+1 -> 1 | U17: =T17+1 -> 2 | V17: 3 | W17: 4 | X17: 5 | Y17: 6 | Z17: 7 | AA17: 8 | AB17: 9 | AC17: 10 | AD17: 11 | AE17: 12 | AF17: 13 | AG17: 14 | AH17: 15 | AI17: 16 | AJ17: 17 | AK17: 18 | AL17: 19 | AM17: 20
G18: Financial Year Beginning | I18: dd-mmm-yy | S18: =EOMONTH(S19,-Months_in_Year)+1 -> 2015-07-01 | T18: 2016-07-01 | U18: 2017-07-01 | V18: 2018-07-01 | W18: 2019-07-01 | X18: 2020-07-01 | Y18: 2021-07-01 | Z18: 2022-07-01 | AA18: 2023-07-01 | AB18: 2024-07-01 | AC18: 2025-07-01 | AD18: 2026-07-01 | AE18: 2027-07-01 | AF18: 2028-07-01 | AG18: 2029-07-01 | AH18: 2030-07-01 | AI18: 2031-07-01 | AJ18: 2032-07-01 | AK18: 2033-07-01 | AL18: 2034-07-01 | AM18: 2035-07-01
G19: Financial Year Ending | I19: dd-mmm-yy | S19: =IF(S17=0,Model_Start_Date-1,EOMONTH(R19,Months_in_Year)) -> 2016-06-30 | T19: 2017-06-30 | U19: 2018-06-30 | V19: 2019-06-30 | W19: 2020-06-30 | X19: 2021-06-30 | Y19: 2022-06-30 | Z19: 2023-06-30 | AA19: 2024-06-30 | AB19: 2025-06-30 | AC19: 2026-06-30 | AD19: 2027-06-30 | AE19: 2028-06-30 | AF19: 2029-06-30 | AG19: 2030-06-30 | AH19: 2031-06-30 | AI19: 2032-06-30 | AJ19: 2033-06-30 | AK19: 2034-06-30 | AL19: 2035-06-30 | AM19: 2036-06-30
G21: Escalation Rate - Historical
G23: Consumer Price Index (CPI) | I23: % pa | T23: 0.025 | U23: 0.025 | V23: 0.025 | W23: 0.025 | X23: 0.025 | Y23: 0.025 | Z23: 0.025 | AA23: 0.025 | AB23: 0.025 | AC23: 0.025 | AD23: 0.025 | AE23: 0.025 | AF23: 0.025 | AG23: 0.025 | AH23: 0.025 | AI23: 0.025 | AJ23: 0.025 | AK23: 0.025 | AL23: 0.025 | AM23: 0.025
G24: Land cost escalation | I24: % pa | T24: 0.025 | U24: 0.025 | V24: 0.025 | W24: 0.025 | X24: 0.025 | Y24: 0.025 | Z24: 0.025 | AA24: 0.025 | AB24: 0.025 | AC24: 0.025 | AD24: 0.025 | AE24: 0.025 | AF24: 0.025 | AG24: 0.025 | AH24: 0.025 | AI24: 0.025 | AJ24: 0.025 | AK24: 0.025 | AL24: 0.025 | AM24: 0.025
G25: Constructed Asset cost escalation | I25: % pa | T25: 0.0187258123 | U25: 0.0187258123 | V25: 0.0187258123 | W25: 0.0187258123 | X25: 0.0187258123 | Y25: 0.0187258123 | Z25: 0.0187258123 | AA25: 0.0187258123 | AB25: 0.0187258123 | AC25: 0.0187258123 | AD25: 0.0187258123 | AE25: 0.0187258123 | AF25: 0.0187258123 | AG25: 0.0187258123 | AH25: 0.0187258123 | AI25: 0.0187258123 | AJ25: 0.0187258123 | AK25: 0.0187258123 | AL25: 0.0187258123 | AM25: 0.0187258123
G26: Administration cost escalation | I26: % pa | T26: 0 | U26: 0 | V26: 0 | W26: 0 | X26: 0 | Y26: 0 | Z26: 0 | AA26: 0 | AB26: 0 | AC26: 0 | AD26: 0 | AE26: 0 | AF26: 0 | AG26: 0 | AH26: 0 | AI26: 0 | AJ26: 0 | AK26: 0 | AL26: 0 | AM26: 0
G27: Spare 1 | I27: % pa
G29: Escalation Rate used in model
G31: Consumer Price Index (CPI) | I31: % pa | S31: =IF(S$17>0,(1+S23)*R31,1) -> 1 | T31: 1.025 | U31: 1.050625 | V31: 1.076890625 | W31: 1.103812891 | X31: 1.131408213 | Y31: 1.159693418 | Z31: 1.188685754 | AA31: 1.218402898 | AB31: 1.24886297 | AC31: 1.280084544 | AD31: 1.312086658 | AE31: 1.344888824 | AF31: 1.378511045 | AG31: 1.412973821 | AH31: 1.448298166 | AI31: 1.484505621 | AJ31: 1.521618261 | AK31: 1.559658718 | AL31: 1.598650186 | AM31: 1.63861644
G32: Land cost escalation | I32: % pa | S32: =IF(S$17>0,(1+S24)*R32,1) -> 1 | T32: 1.025 | U32: 1.050625 | V32: 1.076890625 | W32: 1.103812891 | X32: 1.131408213 | Y32: 1.159693418 | Z32: 1.188685754 | AA32: 1.218402898 | AB32: 1.24886297 | AC32: 1.280084544 | AD32: 1.312086658 | AE32: 1.344888824 | AF32: 1.378511045 | AG32: 1.412973821 | AH32: 1.448298166 | AI32: 1.484505621 | AJ32: 1.521618261 | AK32: 1.559658718 | AL32: 1.598650186 | AM32: 1.63861644
G33: Constructed Asset cost escalation | I33: % pa | S33: =IF(S$17>0,(1+S25)*R33,1) -> 1 | T33: 1.018725812 | U33: 1.037802281 | V33: 1.057235971 | W33: 1.077033574 | X33: 1.097201902 | Y33: 1.117747899 | Z33: 1.138678636 | AA33: 1.160001319 | AB33: 1.181723286 | AC33: 1.203852014 | AD33: 1.226395121 | AE33: 1.249360366 | AF33: 1.272755654 | AG33: 1.296589037 | AH33: 1.32086872 | AI33: 1.34560306 | AJ33: 1.37080057 | AK33: 1.396469924 | AL33: 1.422619958 | AM33: 1.449259672
G34: Administration cost escalation | I34: % pa | S34: =IF(S$17>0,(1+S26)*R34,1) -> 1 | T34: 1 | U34: 1 | V34: 1 | W34: 1 | X34: 1 | Y34: 1 | Z34: 1 | AA34: 1 | AB34: 1 | AC34: 1 | AD34: 1 | AE34: 1 | AF34: 1 | AG34: 1 | AH34: 1 | AI34: 1 | AJ34: 1 | AK34: 1 | AL34: 1 | AM34: 1
G35: Spare 1 | I35: % pa | S35: =IF(S$17>0,(1+S27)*R35,1) -> 1 | T35: 1 | U35: 1 | V35: 1 | W35: 1 | X35: 1 | Y35: 1 | Z35: 1 | AA35: 1 | AB35: 1 | AC35: 1 | AD35: 1 | AE35: 1 | AF35: 1 | AG35: 1 | AH35: 1 | AI35: 1 | AJ35: 1 | AK35: 1 | AL35: 1 | AM35: 1
G36: Revenue escalation | I36: % pa | S36: =IF(S$17>0,(1+RevEsc)*R36,1) -> 1 | T36: =IF(T$17>0,(1+RevEsc)*S36,1) -> 1 | U36: =IF(U$17>0,(1+RevEsc)*T36,1) -> 1 | V36: =IF(V$17>0,(1+RevEsc)*U36,1) -> 1 | W36: =IF(W$17>0,(1+RevEsc)*V36,1) -> 1 | X36: =IF(X$17>0,(1+RevEsc)*W36,1) -> 1 | Y36: =IF(Y$17>0,(1+RevEsc)*X36,1) -> 1 | Z36: =IF(Z$17>0,(1+RevEsc)*Y36,1) -> 1 | AA36: =IF(AA$17>0,(1+RevEsc)*Z36,1) -> 1 | AB36: =IF(AB$17>0,(1+RevEsc)*AA36,1) -> 1 | AC36: =IF(AC$17>0,(1+RevEsc)*AB36,1) -> 1 | AD36: =IF(AD$17>0,(1+RevEsc)*AC36,1) -> 1 | AE36: =IF(AE$17>0,(1+RevEsc)*AD36,1) -> 1 | AF36: =IF(AF$17>0,(1+RevEsc)*AE36,1) -> 1 | AG36: =IF(AG$17>0,(1+RevEsc)*AF36,1) -> 1 | AH36: =IF(AH$17>0,(1+RevEsc)*AG36,1) -> 1 | AI36: =IF(AI$17>0,(1+RevEsc)*AH36,1) -> 1 | AJ36: =IF(AJ$17>0,(1+RevEsc)*AI36,1) -> 1 | AK36: =IF(AK$17>0,(1+RevEsc)*AJ36,1) -> 1 | AL36: =IF(AL$17>0,(1+RevEsc)*AK36,1) -> 1 | AM36: =IF(AM$17>0,(1+RevEsc)*AL36,1) -> 1
F38: Demand by Service catchment
G40: Total Demand | AP40: Area | AQ40: Growth
G42: ='Input-Infra'!AB$17 -> City Wide | I42: Trips | S42: 2886302.2 | X42: 3095528.6 | AC42: 3302455 | AP42: =G42 -> City Wide | AQ42: =AM42/S42-1 -> -1
G44: Total | I44: Trips | S44: =SUM(S42:S42) -> 2886302.2 | T44: 0 | U44: 0 | V44: 0 | W44: 0 | X44: 3095528.6 | Y44: 0 | Z44: 0 | AA44: 0 | AB44: 0 | AC44: 3302455 | AD44: 0 | AE44: 0 | AF44: 0 | AG44: 0 | AH44: 0 | AI44: 0 | AJ44: 0 | AK44: 0 | AL44: 0 | AM44: 0
G46: Existing Demand
G48: =G42 -> City Wide | I48: Trips | K48: =S48 -> 2886302.2 | M48: =S48 -> 2886302.2 | S48: =IF(S$17=0,S42,0) -> 2886302.2 | T48: 0 | U48: 0 | V48: 0 | W48: 0 | X48: 0 | Y48: 0 | Z48: 0 | AA48: 0 | AB48: 0 | AC48: 0 | AD48: 0 | AE48: 0 | AF48: 0 | AG48: 0 | AH48: 0 | AI48: 0 | AJ48: 0 | AK48: 0 | AL48: 0 | AM48: 0
G50: Total | I50: Trips | K50: =K48 -> 2886302.2 | M50: =M48 -> 2886302.2 | S50: =S48 -> 2886302.2 | T50: =T48 -> 0 | U50: 0 | V50: 0 | W50: 0 | X50: 0 | Y50: 0 | Z50: 0 | AA50: 0 | AB50: 0 | AC50: 0 | AD50: 0 | AE50: 0 | AF50: 0 | AG50: 0 | AH50: 0 | AI50: 0 | AJ50: 0 | AK50: 0 | AL50: 0 | AM50: 0
G52: Future Demand
G53: Year of Next Input
G54: City Wide | I54: Trips | M54: =SUM(S54:AC54) -> 80 | S54: =IF(S$9=MAX($S$9:$AM$9),S$9,SMALL((S$9:$AM$9)*ISNUMBER(S42:$AM42),SUM(IF((S$9:$AM$9)*ISNUMBER(S42:$AM42)=0,1,0))+1)) -> 5 | T54: =IF(T$9=MAX($S$9:$AM$9),T$9,SMALL((T$9:$AM$9)*ISNUMBER(T42:$AM42),SUM(IF((T$9:$AM$9)*ISNUMBER(T42:$AM42)=0,1,0))+1)) -> 5 | U54: =IF(U$9=MAX($S$9:$AM$9),U$9,SMALL((U$9:$AM$9)*ISNUMBER(U42:$AM42),SUM(IF((U$9:$AM$9)*ISNUMBER(U42:$AM42)=0,1,0))+1)) -> 5 | V54: =IF(V$9=MAX($S$9:$AM$9),V$9,SMALL((V$9:$AM$9)*ISNUMBER(V42:$AM42),SUM(IF((V$9:$AM$9)*ISNUMBER(V42:$AM42)=0,1,0))+1)) -> 5 | W54: =IF(W$9=MAX($S$9:$AM$9),W$9,SMALL((W$9:$AM$9)*ISNUMBER(W42:$AM42),SUM(IF((W$9:$AM$9)*ISNUMBER(W42:$AM42)=0,1,0))+1)) -> 5 | X54: =IF(X$9=MAX($S$9:$AM$9),X$9,SMALL((X$9:$AM$9)*ISNUMBER(X42:$AM42),SUM(IF((X$9:$AM$9)*ISNUMBER(X42:$AM42)=0,1,0))+1)) -> 5 | Y54: =IF(Y$9=MAX($S$9:$AM$9),Y$9,SMALL((Y$9:$AM$9)*ISNUMBER(Y42:$AM42),SUM(IF((Y$9:$AM$9)*ISNUMBER(Y42:$AM42)=0,1,0))+1)) -> 10 | Z54: =IF(Z$9=MAX($S$9:$AM$9),Z$9,SMALL((Z$9:$AM$9)*ISNUMBER(Z42:$AM42),SUM(IF((Z$9:$AM$9)*ISNUMBER(Z42:$AM42)=0,1,0))+1)) -> 10 | AA54: =IF(AA$9=MAX($S$9:$AM$9),AA$9,SMALL((AA$9:$AM$9)*ISNUMBER(AA42:$AM42),SUM(IF((AA$9:$AM$9)*ISNUMBER(AA42:$AM42)=0,1,0))+1)) -> 10 | AB54: =IF(AB$9=MAX($S$9:$AM$9),AB$9,SMALL((AB$9:$AM$9)*ISNUMBER(AB42:$AM42),SUM(IF((AB$9:$AM$9)*ISNUMBER(AB42:$AM42)=0,1,0))+1)) -> 10 | AC54: =IF(AC$9=MAX($S$9:$AM$9),AC$9,SMALL((AC$9:$AM$9)*ISNUMBER(AC42:$AM42),SUM(IF((AC$9:$AM$9)*ISNUMBER(AC42:$AM42)=0,1,0))+1)) -> 10 | AD54: =IF(AD$9=MAX($S$9:$AM$9),AD$9,SMALL((AD$9:$AM$9)*ISNUMBER(AD42:$AM42),SUM(IF((AD$9:$AM$9)*ISNUMBER(AD42:$AM42)=0,1,0))+1)) ->  | AE54: =IF(AE$9=MAX($S$9:$AM$9),AE$9,SMALL((AE$9:$AM$9)*ISNUMBER(AE42:$AM42),SUM(IF((AE$9:$AM$9)*ISNUMBER(AE42:$AM42)=0,1,0))+1)) ->  | AF54: =IF(AF$9=MAX($S$9:$AM$9),AF$9,SMALL((AF$9:$AM$9)*ISNUMBER(AF42:$AM42),SUM(IF((AF$9:$AM$9)*ISNUMBER(AF42:$AM42)=0,1,0))+1)) ->  | AG54: =IF(AG$9=MAX($S$9:$AM$9),AG$9,SMALL((AG$9:$AM$9)*ISNUMBER(AG42:$AM42),SUM(IF((AG$9:$AM$9)*ISNUMBER(AG42:$AM42)=0,1,0))+1)) ->  | AH54: =IF(AH$9=MAX($S$9:$AM$9),AH$9,SMALL((AH$9:$AM$9)*ISNUMBER(AH42:$AM42),SUM(IF((AH$9:$AM$9)*ISNUMBER(AH42:$AM42)=0,1,0))+1)) ->  | AI54: =IF(AI$9=MAX($S$9:$AM$9),AI$9,SMALL((AI$9:$AM$9)*ISNUMBER(AI42:$AM42),SUM(IF((AI$9:$AM$9)*ISNUMBER(AI42:$AM42)=0,1,0))+1)) ->  | AJ54: =IF(AJ$9=MAX($S$9:$AM$9),AJ$9,SMALL((AJ$9:$AM$9)*ISNUMBER(AJ42:$AM42),SUM(IF((AJ$9:$AM$9)*ISNUMBER(AJ42:$AM42)=0,1,0))+1)) ->  | AK54: =IF(AK$9=MAX($S$9:$AM$9),AK$9,SMALL((AK$9:$AM$9)*ISNUMBER(AK42:$AM42),SUM(IF((AK$9:$AM$9)*ISNUMBER(AK42:$AM42)=0,1,0))+1)) ->  | AL54: =IF(AL$9=MAX($S$9:$AM$9),AL$9,SMALL((AL$9:$AM$9)*ISNUMBER(AL42:$AM42),SUM(IF((AL$9:$AM$9)*ISNUMBER(AL42:$AM42)=0,1,0))+1)) ->  | AM54: =IF(AM$9=MAX($S$9:$AM$9),AM$9,SMALL((AM$9:$AM$9)*ISNUMBER(AM42:$AM42),SUM(IF((AM$9:$AM$9)*ISNUMBER(AM42:$AM42)=0,1,0))+1)) -> 20
G56: Year of Previous Input
G57: City Wide | I57: Trips | M57: =SUM(S57:AC57) -> 25 | S57: =IFERROR(SMALL(($R$9:S$9)*ISNUMBER($R42:S42),SUM(IF(($R$9:S$9)*ISNUMBER($R42:S42)<S$9,1,0))),S$9) -> 0 | T57: =IFERROR(SMALL(($R$9:T$9)*ISNUMBER($R42:T42),SUM(IF(($R$9:T$9)*ISNUMBER($R42:T42)<T$9,1,0))),T$9) -> 0 | U57: =IFERROR(SMALL(($R$9:U$9)*ISNUMBER($R42:U42),SUM(IF(($R$9:U$9)*ISNUMBER($R42:U42)<U$9,1,0))),U$9) -> 0 | V57: =IFERROR(SMALL(($R$9:V$9)*ISNUMBER($R42:V42),SUM(IF(($R$9:V$9)*ISNUMBER($R42:V42)<V$9,1,0))),V$9) -> 0 | W57: =IFERROR(SMALL(($R$9:W$9)*ISNUMBER($R42:W42),SUM(IF(($R$9:W$9)*ISNUMBER($R42:W42)<W$9,1,0))),W$9) -> 0 | X57: =IFERROR(SMALL(($R$9:X$9)*ISNUMBER($R42:X42),SUM(IF(($R$9:X$9)*ISNUMBER($R42:X42)<X$9,1,0))),X$9) -> 0 | Y57: =IFERROR(SMALL(($R$9:Y$9)*ISNUMBER($R42:Y42),SUM(IF(($R$9:Y$9)*ISNUMBER($R42:Y42)<Y$9,1,0))),Y$9) -> 5 | Z57: =IFERROR(SMALL(($R$9:Z$9)*ISNUMBER($R42:Z42),SUM(IF(($R$9:Z$9)*ISNUMBER($R42:Z42)<Z$9,1,0))),Z$9) -> 5 | AA57: =IFERROR(SMALL(($R$9:AA$9)*ISNUMBER($R42:AA42),SUM(IF(($R$9:AA$9)*ISNUMBER($R42:AA42)<AA$9,1,0))),AA$9) -> 5 | AB57: =IFERROR(SMALL(($R$9:AB$9)*ISNUMBER($R42:AB42),SUM(IF(($R$9:AB$9)*ISNUMBER($R42:AB42)<AB$9,1,0))),AB$9) -> 5 | AC57: =IFERROR(SMALL(($R$9:AC$9)*ISNUMBER($R42:AC42),SUM(IF(($R$9:AC$9)*ISNUMBER($R42:AC42)<AC$9,1,0))),AC$9) -> 5 | AD57: =IFERROR(SMALL(($R$9:AD$9)*ISNUMBER($R42:AD42),SUM(IF(($R$9:AD$9)*ISNUMBER($R42:AD42)<AD$9,1,0))),AD$9) -> 10 | AE57: =IFERROR(SMALL(($R$9:AE$9)*ISNUMBER($R42:AE42),SUM(IF(($R$9:AE$9)*ISNUMBER($R42:AE42)<AE$9,1,0))),AE$9) -> 10 | AF57: =IFERROR(SMALL(($R$9:AF$9)*ISNUMBER($R42:AF42),SUM(IF(($R$9:AF$9)*ISNUMBER($R42:AF42)<AF$9,1,0))),AF$9) -> 10 | AG57: =IFERROR(SMALL(($R$9:AG$9)*ISNUMBER($R42:AG42),SUM(IF(($R$9:AG$9)*ISNUMBER($R42:AG42)<AG$9,1,0))),AG$9) -> 10 | AH57: =IFERROR(SMALL(($R$9:AH$9)*ISNUMBER($R42:AH42),SUM(IF(($R$9:AH$9)*ISNUMBER($R42:AH42)<AH$9,1,0))),AH$9) -> 10 | AI57: =IFERROR(SMALL(($R$9:AI$9)*ISNUMBER($R42:AI42),SUM(IF(($R$9:AI$9)*ISNUMBER($R42:AI42)<AI$9,1,0))),AI$9) -> 10 | AJ57: =IFERROR(SMALL(($R$9:AJ$9)*ISNUMBER($R42:AJ42),SUM(IF(($R$9:AJ$9)*ISNUMBER($R42:AJ42)<AJ$9,1,0))),AJ$9) -> 10 | AK57: =IFERROR(SMALL(($R$9:AK$9)*ISNUMBER($R42:AK42),SUM(IF(($R$9:AK$9)*ISNUMBER($R42:AK42)<AK$9,1,0))),AK$9) -> 10 | AL57: =IFERROR(SMALL(($R$9:AL$9)*ISNUMBER($R42:AL42),SUM(IF(($R$9:AL$9)*ISNUMBER($R42:AL42)<AL$9,1,0))),AL$9) -> 10 | AM57: =IFERROR(SMALL(($R$9:AM$9)*ISNUMBER($R42:AM42),SUM(IF(($R$9:AM$9)*ISNUMBER($R42:AM42)<AM$9,1,0))),AM$9) -> 10
G59: Annual Demand
G60: City Wide | I60: Trips | K60: =NPV(WACC_real,T60:AC60) -> 307844.7279 | M60: =SUM(S60:AC60) -> 416152.8 | S60: =IF(S$9=MIN($S$9:$AM$9),0,(INDEX($S$42:$AM$42,,S54+1)-INDEX($S$42:$AM$42,,S57+1))/(S54-S57)) -> 0 | T60: 41845.28 | U60: 41845.28 | V60: 41845.28 | W60: 41845.28 | X60: 41845.28 | Y60: 41385.28 | Z60: 41385.28 | AA60: 41385.28 | AB60: 41385.28 | AC60: 41385.28 | AM60: -330245.5
G62: Total | I62: Trips | K62: =K60 -> 307844.7279 | M62: =M60 -> 416152.8 | S62: =S60 -> 0 | T62: =T60 -> 41845.28 | U62: 41845.28 | V62: 41845.28 | W62: 41845.28 | X62: 41845.28 | Y62: 41385.28 | Z62: 41385.28 | AA62: 41385.28 | AB62: 41385.28 | AC62: 41385.28 | AM62: -330245.5
G64: Cumulative Total
G66: =G60 -> City Wide | I66: Trips | K66: =K48+K60 -> 3194146.928 | M66: =M48+M60 -> 3302455 | S66: =IF(S9=0,S42,R66+S60) -> 2886302.2 | T66: 2928147.48 | U66: 2969992.76 | V66: 3011838.04 | W66: 3053683.32 | X66: 3095528.6 | Y66: 3136913.88 | Z66: 3178299.16 | AA66: 3219684.44 | AB66: 3261069.72 | AC66: 3302455
G68: Total | I68: Trips | K68: =K66 -> 3194146.928 | M68: =M66 -> 3302455 | S68: =S66 -> 2886302.2 | T68: =T66 -> 2928147.48 | U68: 2969992.76 | V68: 3011838.04 | W68: 3053683.32 | X68: 3095528.6 | Y68: 3136913.88 | Z68: 3178299.16 | AA68: 3219684.44 | AB68: 3261069.72 | AC68: 3302455
G70: Internal check | S70: =ROUND(IF(S42>0,S42-S66,0),IntAccuracy) -> 0 | T70: 0 | U70: 0 | V70: 0 | W70: 0 | X70: 0 | Y70: 0 | Z70: 0 | AA70: 0 | AB70: 0 | AC70: 0 | AD70: 0 | AE70: 0 | AF70: 0 | AG70: 0 | AH70: 0 | AI70: 0 | AJ70: 0 | AK70: 0 | AL70: 0 | AM70: 0
F72: End of Page

Sheet Calculations
F19: =MID(CELL("filename",A15),FIND("]",CELL("filename",A15))+1,256) -> Calculations

Sheet Nominal cost (Ave)
F2: Brisbane City Council
F3: ='Input-Gen'!$F$3 -> Schedule of Works Model - PATHWAY
F5: Allocation | G5: NPV of Total Costs
G6: =IF(BaseCaseCheck=0,BaseCase,NotBaseCase) -> Please Note: Model is not currently applying Base Case parameter values
G7: =IF(Integrity=0,IntOK,IntErr) -> 
G9: Period Number | K9: ="NPV as at" & " " & TEXT(Model_Start_Date-1,"dd-mmm-yyyy") -> NPV as at 30-Jun-2016 | M9: Difference between Input Value & Nominal Value | Q9: Total Nominal Value | S9: =ForecastPeriod -> 0 | T9: 1 | U9: 2 | V9: 3 | W9: 4 | X9: 5 | Y9: 6 | Z9: 7 | AA9: 8 | AB9: 9 | AC9: 10 | AD9: 11 | AE9: 12 | AF9: 13 | AG9: 14 | AH9: 15 | AI9: 16 | AJ9: 17 | AK9: 18 | AL9: 19 | AM9: 20
G10: Period Beginning Date | S10: =FY_Begin -> 2015-07-01 | T10: 2016-07-01 | U10: 2017-07-01 | V10: 2018-07-01 | W10: 2019-07-01 | X10: 2020-07-01 | Y10: 2021-07-01 | Z10: 2022-07-01 | AA10: 2023-07-01 | AB10: 2024-07-01 | AC10: 2025-07-01
G11: Period Ending Date | S11: =FY_End -> 2016-06-30 | T11: 2017-06-30 | U11: 2018-06-30 | V11: 2019-06-30 | W11: 2020-06-30 | X11: 2021-06-30 | Y11: 2022-06-30 | Z11: 2023-06-30 | AA11: 2024-06-30 | AB11: 2025-06-30 | AC11: 2026-06-30
F15: Timing and Index Calculations
G17: Consumer Price Index (CPI) | I17: # | S17: ='Input-Time Series'!S31 -> 1 | T17: ='Input-Time Series'!T31 -> 1.025 | U17: ='Input-Time Series'!U31 -> 1.050625 | V17: ='Input-Time Series'!V31 -> 1.076890625 | W17: ='Input-Time Series'!W31 -> 1.103812891 | X17: ='Input-Time Series'!X31 -> 1.131408213 | Y17: ='Input-Time Series'!Y31 -> 1.159693418 | Z17: ='Input-Time Series'!Z31 -> 1.188685754 | AA17: ='Input-Time Series'!AA31 -> 1.218402898 | AB17: ='Input-Time Series'!AB31 -> 1.24886297 | AC17: ='Input-Time Series'!AC31 -> 1.280084544 | AD17: ='Input-Time Series'!AD31 -> 1.312086658 | AE17: ='Input-Time Series'!AE31 -> 1.344888824 | AF17: ='Input-Time Series'!AF31 -> 1.378511045 | AG17: ='Input-Time Series'!AG31 -> 1.412973821 | AH17: ='Input-Time Series'!AH31 -> 1.448298166 | AI17: ='Input-Time Series'!AI31 -> 1.484505621 | AJ17: ='Input-Time Series'!AJ31 -> 1.521618261 | AK17: ='Input-Time Series'!AK31 -> 1.559658718 | AL17: ='Input-Time Series'!AL31 -> 1.598650186 | AM17: ='Input-Time Series'!AM31 -> 1.63861644
G18: Land cost escalation | I18: # | S18: ='Input-Time Series'!S32 -> 1 | T18: ='Input-Time Series'!T32 -> 1.025 | U18: ='Input-Time Series'!U32 -> 1.050625 | V18: ='Input-Time Series'!V32 -> 1.076890625 | W18: ='Input-Time Series'!W32 -> 1.103812891 | X18: ='Input-Time Series'!X32 -> 1.131408213 | Y18: ='Input-Time Series'!Y32 -> 1.159693418 | Z18: ='Input-Time Series'!Z32 -> 1.188685754 | AA18: ='Input-Time Series'!AA32 -> 1.218402898 | AB18: ='Input-Time Series'!AB32 -> 1.24886297 | AC18: ='Input-Time Series'!AC32 -> 1.280084544 | AD18: ='Input-Time Series'!AD32 -> 1.312086658 | AE18: ='Input-Time Series'!AE32 -> 1.344888824 | AF18: ='Input-Time Series'!AF32 -> 1.378511045 | AG18: ='Input-Time Series'!AG32 -> 1.412973821 | AH18: ='Input-Time Series'!AH32 -> 1.448298166 | AI18: ='Input-Time Series'!AI32 -> 1.484505621 | AJ18: ='Input-Time Series'!AJ32 -> 1.521618261 | AK18: ='Input-Time Series'!AK32 -> 1.559658718 | AL18: ='Input-Time Series'!AL32 -> 1.598650186 | AM18: ='Input-Time Series'!AM32 -> 1.63861644
G19: Constructed Asset cost escalation | I19: # | S19: ='Input-Time Series'!S33 -> 1 | T19: ='Input-Time Series'!T33 -> 1.018725812 | U19: ='Input-Time Series'!U33 -> 1.037802281 | V19: ='Input-Time Series'!V33 -> 1.057235971 | W19: ='Input-Time Series'!W33 -> 1.077033574 | X19: ='Input-Time Series'!X33 -> 1.097201902 | Y19: ='Input-Time Series'!Y33 -> 1.117747899 | Z19: ='Input-Time Series'!Z33 -> 1.138678636 | AA19: ='Input-Time Series'!AA33 -> 1.160001319 | AB19: ='Input-Time Series'!AB33 -> 1.181723286 | AC19: ='Input-Time Series'!AC33 -> 1.203852014 | AD19: ='Input-Time Series'!AD33 -> 1.226395121 | AE19: ='Input-Time Series'!AE33 -> 1.249360366 | AF19: ='Input-Time Series'!AF33 -> 1.272755654 | AG19: ='Input-Time Series'!AG33 -> 1.296589037 | AH19: ='Input-Time Series'!AH33 -> 1.32086872 | AI19: ='Input-Time Series'!AI33 -> 1.34560306 | AJ19: ='Input-Time Series'!AJ33 -> 1.37080057 | AK19: ='Input-Time Series'!AK33 -> 1.396469924 | AL19: ='Input-Time Series'!AL33 -> 1.422619958 | AM19: ='Input-Time Series'!AM33 -> 1.449259672
G20: Administration cost escalation | I20: # | S20: ='Input-Time Series'!S34 -> 1 | T20: ='Input-Time Series'!T34 -> 1 | U20: ='Input-Time Series'!U34 -> 1 | V20: ='Input-Time Series'!V34 -> 1 | W20: ='Input-Time Series'!W34 -> 1 | X20: ='Input-Time Series'!X34 -> 1 | Y20: ='Input-Time Series'!Y34 -> 1 | Z20: ='Input-Time Series'!Z34 -> 1 | AA20: ='Input-Time Series'!AA34 -> 1 | AB20: ='Input-Time Series'!AB34 -> 1 | AC20: ='Input-Time Series'!AC34 -> 1 | AD20: ='Input-Time Series'!AD34 -> 1 | AE20: ='Input-Time Series'!AE34 -> 1 | AF20: ='Input-Time Series'!AF34 -> 1 | AG20: ='Input-Time Series'!AG34 -> 1 | AH20: ='Input-Time Series'!AH34 -> 1 | AI20: ='Input-Time Series'!AI34 -> 1 | AJ20: ='Input-Time Series'!AJ34 -> 1 | AK20: ='Input-Time Series'!AK34 -> 1 | AL20: ='Input-Time Series'!AL34 -> 1 | AM20: ='Input-Time Series'!AM34 -> 1
G21: Spare 1 | I21: # | S21: ='Input-Time Series'!S35 -> 1 | T21: ='Input-Time Series'!T35 -> 1 | U21: ='Input-Time Series'!U35 -> 1 | V21: ='Input-Time Series'!V35 -> 1 | W21: ='Input-Time Series'!W35 -> 1 | X21: ='Input-Time Series'!X35 -> 1 | Y21: ='Input-Time Series'!Y35 -> 1 | Z21: ='Input-Time Series'!Z35 -> 1 | AA21: ='Input-Time Series'!AA35 -> 1 | AB21: ='Input-Time Series'!AB35 -> 1 | AC21: ='Input-Time Series'!AC35 -> 1 | AD21: ='Input-Time Series'!AD35 -> 1 | AE21: ='Input-Time Series'!AE35 -> 1 | AF21: ='Input-Time Series'!AF35 -> 1 | AG21: ='Input-Time Series'!AG35 -> 1 | AH21: ='Input-Time Series'!AH35 -> 1 | AI21: ='Input-Time Series'!AI35 -> 1 | AJ21: ='Input-Time Series'!AJ35 -> 1 | AK21: ='Input-Time Series'!AK35 -> 1 | AL21: ='Input-Time Series'!AL35 -> 1 | AM21: ='Input-Time Series'!AM35 -> 1
G22: Revenue escalation | I22: # | S22: ='Input-Time Series'!S36 -> 1 | T22: ='Input-Time Series'!T36 -> 1 | U22: ='Input-Time Series'!U36 -> 1 | V22: ='Input-Time Series'!V36 -> 1 | W22: ='Input-Time Series'!W36 -> 1 | X22: ='Input-Time Series'!X36 -> 1 | Y22: ='Input-Time Series'!Y36 -> 1 | Z22: ='Input-Time Series'!Z36 -> 1 | AA22: ='Input-Time Series'!AA36 -> 1 | AB22: ='Input-Time Series'!AB36 -> 1 | AC22: ='Input-Time Series'!AC36 -> 1 | AD22: ='Input-Time Series'!AD36 -> 1 | AE22: ='Input-Time Series'!AE36 -> 1 | AF22: ='Input-Time Series'!AF36 -> 1 | AG22: ='Input-Time Series'!AG36 -> 1 | AH22: ='Input-Time Series'!AH36 -> 1 | AI22: ='Input-Time Series'!AI36 -> 1 | AJ22: ='Input-Time Series'!AJ36 -> 1 | AK22: ='Input-Time Series'!AK36 -> 1 | AL22: ='Input-Time Series'!AL36 -> 1 | AM22: ='Input-Time Series'!AM36 -> 1
F25: Total costs
G27: Existing Infrastructure
G29: =Existing -> Citywide existing infrastructure | I29: $'000 | K29: =NPV(WACC_nom,T29:AC29)+Q29 -> 217143.1697 | Q29: =SUM(S29:AC29) -> 217143.1697 | S29: =IF('Input-Infra'!$AI25>='Input-Gen'!$M$29,S999,0) + S1969 + S4878 -S2939 -> 217143.1697 | T29: =IF('Input-Infra'!$AI25>='Input-Gen'!$M$29,T999,0) + T1969 + T4878 -T2939 -> 0 | U29: =IF('Input-Infra'!$AI25>='Input-Gen'!$M$29,U999,0) + U1969 + U4878 -U2939 -> 0 | V29: =IF('Input-Infra'!$AI25>='Input-Gen'!$M$29,V999,0) + V1969 + V4878 -V2939 -> 0 | W29: =IF('Input-Infra'!$AI25>='Input-Gen'!$M$29,W999,0) + W1969 + W4878 -W2939 -> 0 | X29: =IF('Input-Infra'!$AI25>='Input-Gen'!$M$29,X999,0) + X1969 + X4878 -X2939 -> 0 | Y29: =IF('Input-Infra'!$AI25>='Input-Gen'!$M$29,Y999,0) + Y1969 + Y4878 -Y2939 -> 0 | Z29: =IF('Input-Infra'!$AI25>='Input-Gen'!$M$29,Z999,0) + Z1969 + Z4878 -Z2939 -> 0 | AA29: =IF('Input-Infra'!$AI25>='Input-Gen'!$M$29,AA999,0) + AA1969 + AA4878 -AA2939 -> 0 | AB29: =IF('Input-Infra'!$AI25>='Input-Gen'!$M$29,AB999,0) + AB1969 + AB4878 -AB2939 -> 0 | AC29: =IF('Input-Infra'!$AI25>='Input-Gen'!$M$29,AC999,0) + AC1969 + AC4878 -AC2939 -> 0 | AD29: =IF('Input-Infra'!$AI25>='Input-Gen'!$M$29,AD999,0) + AD1969 + AD4878 -AD2939 -> 0 | AE29: =IF('Input-Infra'!$AI25>='Input-Gen'!$M$29,AE999,0) + AE1969 + AE4878 -AE2939 -> 0 | AF29: =IF('Input-Infra'!$AI25>='Input-Gen'!$M$29,AF999,0) + AF1969 + AF4878 -AF2939 -> 0 | AG29: =IF('Input-Infra'!$AI25>='Input-Gen'!$M$29,AG999,0) + AG1969 + AG4878 -AG2939 -> 0 | AH29: =IF('Input-Infra'!$AI25>='Input-Gen'!$M$29,AH999,0) + AH1969 + AH4878 -AH2939 -> 0 | AI29: =IF('Input-Infra'!$AI25>='Input-Gen'!$M$29,AI999,0) + AI1969 + AI4878 -AI2939 -> 0 | AJ29: =IF('Input-Infra'!$AI25>='Input-Gen'!$M$29,AJ999,0) + AJ1969 + AJ4878 -AJ2939 -> 0 | AK29: =IF('Input-Infra'!$AI25>='Input-Gen'!$M$29,AK999,0) + AK1969 + AK4878 -AK2939 -> 0 | AL29: =IF('Input-Infra'!$AI25>='Input-Gen'!$M$29,AL999,0) + AL1969 + AL4878 -AL2939 -> 0 | AM29: =IF('Input-Infra'!$AI25>='Input-Gen'!$M$29,AM999,0) + AM1969 + AM4878 -AM2939 -> 0
G31: Subtotal | I31: $'000 | K31: =SUM(K29:K29) -> 217143.1697 | Q31: =SUM(Q29:Q29) -> 217143.1697 | S31: =SUM(S29:S29) -> 217143.1697 | T31: 0 | U31: 0 | V31: 0 | W31: 0 | X31: 0 | Y31: 0 | Z31: 0 | AA31: 0 | AB31: 0 | AC31: 0 | AD31: 0 | AE31: 0 | AF31: 0 | AG31: 0 | AH31: 0 | AI31: 0 | AJ31: 0 | AK31: 0 | AL31: 0 | AM31: 0
G33: Future Infrastructure
G35: =Future -> ALB-SP-002 | I35: $'000 | K35: =NPV(WACC_nom,T35:AC35)+S35 -> 1447.870098 | Q35: =SUM(S35:AC35) -> 2292.056628 | S35: =IF('Input-Infra'!$AI32>='Input-Gen'!$M$29,S1005,0) + S1975 + S4884 - S2945 -> 0 | T35: =IF('Input-Infra'!$AI32>='Input-Gen'!$M$29,T1005,0) + T1975 + T4884 - T2945 -> 0 | U35: =IF('Input-Infra'!$AI32>='Input-Gen'!$M$29,U1005,0) + U1975 + U4884 - U2945 -> 0 | V35: =IF('Input-Infra'!$AI32>='Input-Gen'!$M$29,V1005,0) + V1975 + V4884 - V2945 -> 0 | W35: =IF('Input-Infra'!$AI32>='Input-Gen'!$M$29,W1005,0) + W1975 + W4884 - W2945 -> 0 | X35: =IF('Input-Infra'!$AI32>='Input-Gen'!$M$29,X1005,0) + X1975 + X4884 - X2945 -> 0 | Y35: =IF('Input-Infra'!$AI32>='Input-Gen'!$M$29,Y1005,0) + Y1975 + Y4884 - Y2945 -> 0 | Z35: =IF('Input-Infra'!$AI32>='Input-Gen'!$M$29,Z1005,0) + Z1975 + Z4884 - Z2945 -> 0 | AA35: =IF('Input-Infra'!$AI32>='Input-Gen'!$M$29,AA1005,0) + AA1975 + AA4884 - AA2945 -> 2292.056628 | AB35: =IF('Input-Infra'!$AI32>='Input-Gen'!$M$29,AB1005,0) + AB1975 + AB4884 - AB2945 -> 0 | AC35: =IF('Input-Infra'!$AI32>='Input-Gen'!$M$29,AC1005,0) + AC1975 + AC4884 - AC2945 -> 0 | AD35: =IF('Input-Infra'!$AI32>='Input-Gen'!$M$29,AD1005,0) + AD1975 + AD4884 - AD2945 ->  | AE35: =IF('Input-Infra'!$AI32>='Input-Gen'!$M$29,AE1005,0) + AE1975 + AE4884 - AE2945 ->  | AF35: =IF('Input-Infra'!$AI32>='Input-Gen'!$M$29,AF1005,0) + AF1975 + AF4884 - AF2945 ->  | AG35: =IF('Input-Infra'!$AI32>='Input-Gen'!$M$29,AG1005,0) + AG1975 + AG4884 - AG2945 ->  | AH35: =IF('Input-Infra'!$AI32>='Input-Gen'!$M$29,AH1005,0) + AH1975 + AH4884 - AH2945 ->  | AI35: =IF('Input-Infra'!$AI32>='Input-Gen'!$M$29,AI1005,0) + AI1975 + AI4884 - AI2945 ->  | AJ35: =IF('Input-Infra'!$AI32>='Input-Gen'!$M$29,AJ1005,0) + AJ1975 + AJ4884 - AJ2945 ->  | AK35: =IF('Input-Infra'!$AI32>='Input-Gen'!$M$29,AK1005,0) + AK1975 + AK4884 - AK2945 ->  | AL35: =IF('Input-Infra'!$AI32>='Input-Gen'!$M$29,AL1005,0) + AL1975 + AL4884 - AL2945 ->  | AM35: =IF('Input-Infra'!$AI32>='Input-Gen'!$M$29,AM1005,0) + AM1975 + AM4884 - AM2945 -> 
G36: ALB-SP-004 | I36: $'000 | K36: 685.8911649 | Q36: =SUM(S36:AC36) -> 1085.802789 | S36: =IF('Input-Infra'!$AI33>='Input-Gen'!$M$29,S1006,0) + S1976 + S4885 - S2946 -> 0 | T36: =IF('Input-Infra'!$AI33>='Input-Gen'!$M$29,T1006,0) + T1976 + T4885 - T2946 -> 0 | U36: =IF('Input-Infra'!$AI33>='Input-Gen'!$M$29,U1006,0) + U1976 + U4885 - U2946 -> 0 | V36: =IF('Input-Infra'!$AI33>='Input-Gen'!$M$29,V1006,0) + V1976 + V4885 - V2946 -> 0 | W36: =IF('Input-Infra'!$AI33>='Input-Gen'!$M$29,W1006,0) + W1976 + W4885 - W2946 -> 0 | X36: =IF('Input-Infra'!$AI33>='Input-Gen'!$M$29,X1006,0) + X1976 + X4885 - X2946 -> 0 | Y36: =IF('Input-Infra'!$AI33>='Input-Gen'!$M$29,Y1006,0) + Y1976 + Y4885 - Y2946 -> 0 | Z36: =IF('Input-Infra'!$AI33>='Input-Gen'!$M$29,Z1006,0) + Z1976 + Z4885 - Z2946 -> 0 | AA36: =IF('Input-Infra'!$AI33>='Input-Gen'!$M$29,AA1006,0) + AA1976 + AA4885 - AA2946 -> 1085.802789 | AB36: =IF('Input-Infra'!$AI33>='Input-Gen'!$M$29,AB1006,0) + AB1976 + AB4885 - AB2946 -> 0 | AC36: =IF('Input-Infra'!$AI33>='Input-Gen'!$M$29,AC1006,0) + AC1976 + AC4885 - AC2946 -> 0 | AD36: =IF('Input-Infra'!$AI33>='Input-Gen'!$M$29,AD1006,0) + AD1976 + AD4885 - AD2946 ->  | AE36: =IF('Input-Infra'!$AI33>='Input-Gen'!$M$29,AE1006,0) + AE1976 + AE4885 - AE2946 ->  | AF36: =IF('Input-Infra'!$AI33>='Input-Gen'!$M$29,AF1006,0) + AF1976 + AF4885 - AF2946 ->  | AG36: =IF('Input-Infra'!$AI33>='Input-Gen'!$M$29,AG1006,0) + AG1976 + AG4885 - AG2946 ->  | AH36: =IF('Input-Infra'!$AI33>='Input-Gen'!$M$29,AH1006,0) + AH1976 + AH4885 - AH2946 ->  | AI36: =IF('Input-Infra'!$AI33>='Input-Gen'!$M$29,AI1006,0) + AI1976 + AI4885 - AI2946 ->  | AJ36: =IF('Input-Infra'!$AI33>='Input-Gen'!$M$29,AJ1006,0) + AJ1976 + AJ4885 - AJ2946 ->  | AK36: =IF('Input-Infra'!$AI33>='Input-Gen'!$M$29,AK1006,0) + AK1976 + AK4885 - AK2946 ->  | AL36: =IF('Input-Infra'!$AI33>='Input-Gen'!$M$29,AL1006,0) + AL1976 + AL4885 - AL2946 ->  | AM36: =IF('Input-Infra'!$AI33>='Input-Gen'!$M$29,AM1006,0) + AM1976 + AM4885 - AM2946 -> 
G37: BHI-SP-002 | I37: $'000 | K37: 330.4677999 | Q37: 523.1483904 | S37: =IF('Input-Infra'!$AI34>='Input-Gen'!$M$29,S1007,0) + S1977 + S4886 - S2947 -> 0 | T37: =IF('Input-Infra'!$AI34>='Input-Gen'!$M$29,T1007,0) + T1977 + T4886 - T2947 -> 0 | U37: =IF('Input-Infra'!$AI34>='Input-Gen'!$M$29,U1007,0) + U1977 + U4886 - U2947 -> 0 | V37: =IF('Input-Infra'!$AI34>='Input-Gen'!$M$29,V1007,0) + V1977 + V4886 - V2947 -> 0 | W37: =IF('Input-Infra'!$AI34>='Input-Gen'!$M$29,W1007,0) + W1977 + W4886 - W2947 -> 0 | X37: =IF('Input-Infra'!$AI34>='Input-Gen'!$M$29,X1007,0) + X1977 + X4886 - X2947 -> 0 | Y37: =IF('Input-Infra'!$AI34>='Input-Gen'!$M$29,Y1007,0) + Y1977 + Y4886 - Y2947 -> 0 | Z37: =IF('Input-Infra'!$AI34>='Input-Gen'!$M$29,Z1007,0) + Z1977 + Z4886 - Z2947 -> 0 | AA37: =IF('Input-Infra'!$AI34>='Input-Gen'!$M$29,AA1007,0) + AA1977 + AA4886 - AA2947 -> 523.1483904 | AB37: =IF('Input-Infra'!$AI34>='Input-Gen'!$M$29,AB1007,0) + AB1977 + AB4886 - AB2947 -> 0 | AC37: =IF('Input-Infra'!$AI34>='Input-Gen'!$M$29,AC1007,0) + AC1977 + AC4886 - AC2947 -> 0 | AD37: =IF('Input-Infra'!$AI34>='Input-Gen'!$M$29,AD1007,0) + AD1977 + AD4886 - AD2947 ->  | AE37: =IF('Input-Infra'!$AI34>='Input-Gen'!$M$29,AE1007,0) + AE1977 + AE4886 - AE2947 ->  | AF37: =IF('Input-Infra'!$AI34>='Input-Gen'!$M$29,AF1007,0) + AF1977 + AF4886 - AF2947 ->  | AG37: =IF('Input-Infra'!$AI34>='Input-Gen'!$M$29,AG1007,0) + AG1977 + AG4886 - AG2947 ->  | AH37: =IF('Input-Infra'!$AI34>='Input-Gen'!$M$29,AH1007,0) + AH1977 + AH4886 - AH2947 ->  | AI37: =IF('Input-Infra'!$AI34>='Input-Gen'!$M$29,AI1007,0) + AI1977 + AI4886 - AI2947 ->  | AJ37: =IF('Input-Infra'!$AI34>='Input-Gen'!$M$29,AJ1007,0) + AJ1977 + AJ4886 - AJ2947 ->  | AK37: =IF('Input-Infra'!$AI34>='Input-Gen'!$M$29,AK1007,0) + AK1977 + AK4886 - AK2947 ->  | AL37: =IF('Input-Infra'!$AI34>='Input-Gen'!$M$29,AL1007,0) + AL1977 + AL4886 - AL2947 ->  | AM37: =IF('Input-Infra'!$AI34>='Input-Gen'!$M$29,AM1007,0) + AM1977 + AM4886 - AM2947 -> 
G38: BRD-SP-001 | I38: $'000 | K38: 280.7273478 | Q38: 333.4998376 | S38: =IF('Input-Infra'!$AI35>='Input-Gen'!$M$29,S1008,0) + S1978 + S4887 - S2948 -> 0 | T38: =IF('Input-Infra'!$AI35>='Input-Gen'!$M$29,T1008,0) + T1978 + T4887 - T2948 -> 0 | U38: =IF('Input-Infra'!$AI35>='Input-Gen'!$M$29,U1008,0) + U1978 + U4887 - U2948 -> 0 | V38: =IF('Input-Infra'!$AI35>='Input-Gen'!$M$29,V1008,0) + V1978 + V4887 - V2948 -> 333.4998376 | W38: =IF('Input-Infra'!$AI35>='Input-Gen'!$M$29,W1008,0) + W1978 + W4887 - W2948 -> 0 | X38: =IF('Input-Infra'!$AI35>='Input-Gen'!$M$29,X1008,0) + X1978 + X4887 - X2948 -> 0 | Y38: =IF('Input-Infra'!$AI35>='Input-Gen'!$M$29,Y1008,0) + Y1978 + Y4887 - Y2948 -> 0 | Z38: =IF('Input-Infra'!$AI35>='Input-Gen'!$M$29,Z1008,0) + Z1978 + Z4887 - Z2948 -> 0 | AA38: =IF('Input-Infra'!$AI35>='Input-Gen'!$M$29,AA1008,0) + AA1978 + AA4887 - AA2948 -> 0 | AB38: =IF('Input-Infra'!$AI35>='Input-Gen'!$M$29,AB1008,0) + AB1978 + AB4887 - AB2948 -> 0 | AC38: =IF('Input-Infra'!$AI35>='Input-Gen'!$M$29,AC1008,0) + AC1978 + AC4887 - AC2948 -> 0 | AD38: =IF('Input-Infra'!$AI35>='Input-Gen'!$M$29,AD1008,0) + AD1978 + AD4887 - AD2948 ->  | AE38: =IF('Input-Infra'!$AI35>='Input-Gen'!$M$29,AE1008,0) + AE1978 + AE4887 - AE2948 ->  | AF38: =IF('Input-Infra'!$AI35>='Input-Gen'!$M$29,AF1008,0) + AF1978 + AF4887 - AF2948 ->  | AG38: =IF('Input-Infra'!$AI35>='Input-Gen'!$M$29,AG1008,0) + AG1978 + AG4887 - AG2948 ->  | AH38: =IF('Input-Infra'!$AI35>='Input-Gen'!$M$29,AH1008,0) + AH1978 + AH4887 - AH2948 ->  | AI38: =IF('Input-Infra'!$AI35>='Input-Gen'!$M$29,AI1008,0) + AI1978 + AI4887 - AI2948 ->  | AJ38: =IF('Input-Infra'!$AI35>='Input-Gen'!$M$29,AJ1008,0) + AJ1978 + AJ4887 - AJ2948 ->  | AK38: =IF('Input-Infra'!$AI35>='Input-Gen'!$M$29,AK1008,0) + AK1978 + AK4887 - AK2948 ->  | AL38: =IF('Input-Infra'!$AI35>='Input-Gen'!$M$29,AL1008,0) + AL1978 + AL4887 - AL2948 ->  | AM38: =IF('Input-Infra'!$AI35>='Input-Gen'!$M$29,AM1008,0) + AM1978 + AM4887 - AM2948 -> 
G39: BRD-SP-002 | I39: $'000 | K39: 225.606433 | Q39: 357.1471784 | S39: =IF('Input-Infra'!$AI36>='Input-Gen'!$M$29,S1009,0) + S1979 + S4888 - S2949 -> 0 | T39: =IF('Input-Infra'!$AI36>='Input-Gen'!$M$29,T1009,0) + T1979 + T4888 - T2949 -> 0 | U39: =IF('Input-Infra'!$AI36>='Input-Gen'!$M$29,U1009,0) + U1979 + U4888 - U2949 -> 0 | V39: =IF('Input-Infra'!$AI36>='Input-Gen'!$M$29,V1009,0) + V1979 + V4888 - V2949 -> 0 | W39: =IF('Input-Infra'!$AI36>='Input-Gen'!$M$29,W1009,0) + W1979 + W4888 - W2949 -> 0 | X39: =IF('Input-Infra'!$AI36>='Input-Gen'!$M$29,X1009,0) + X1979 + X4888 - X2949 -> 0 | Y39: =IF('Input-Infra'!$AI36>='Input-Gen'!$M$29,Y1009,0) + Y1979 + Y4888 - Y2949 -> 0 | Z39: =IF('Input-Infra'!$AI36>='Input-Gen'!$M$29,Z1009,0) + Z1979 + Z4888 - Z2949 -> 0 | AA39: =IF('Input-Infra'!$AI36>='Input-Gen'!$M$29,AA1009,0) + AA1979 + AA4888 - AA2949 -> 357.1471784 | AB39: =IF('Input-Infra'!$AI36>='Input-Gen'!$M$29,AB1009,0) + AB1979 + AB4888 - AB2949 -> 0 | AC39: =IF('Input-Infra'!$AI36>='Input-Gen'!$M$29,AC1009,0) + AC1979 + AC4888 - AC2949 -> 0 | AD39: =IF('Input-Infra'!$AI36>='Input-Gen'!$M$29,AD1009,0) + AD1979 + AD4888 - AD2949 ->  | AE39: =IF('Input-Infra'!$AI36>='Input-Gen'!$M$29,AE1009,0) + AE1979 + AE4888 - AE2949 ->  | AF39: =IF('Input-Infra'!$AI36>='Input-Gen'!$M$29,AF1009,0) + AF1979 + AF4888 - AF2949 ->  | AG39: =IF('Input-Infra'!$AI36>='Input-Gen'!$M$29,AG1009,0) + AG1979 + AG4888 - AG2949 ->  | AH39: =IF('Input-Infra'!$AI36>='Input-Gen'!$M$29,AH1009,0) + AH1979 + AH4888 - AH2949 ->  | AI39: =IF('Input-Infra'!$AI36>='Input-Gen'!$M$29,AI1009,0) + AI1979 + AI4888 - AI2949 ->  | AJ39: =IF('Input-Infra'!$AI36>='Input-Gen'!$M$29,AJ1009,0) + AJ1979 + AJ4888 - AJ2949 ->  | AK39: =IF('Input-Infra'!$AI36>='Input-Gen'!$M$29,AK1009,0) + AK1979 + AK4888 - AK2949 ->  | AL39: =IF('Input-Infra'!$AI36>='Input-Gen'!$M$29,AL1009,0) + AL1979 + AL4888 - AL2949 ->  | AM39: =IF('Input-Infra'!$AI36>='Input-Gen'!$M$29,AM1009,0) + AM1979 + AM4888 - AM2949 -> 
G40: BUL-RW-001 | I40: $'000 | K40: 1240.830753 | Q40: 1964.302153 | S40: =IF('Input-Infra'!$AI37>='Input-Gen'!$M$29,S1010,0) + S1980 + S4889 - S2950 -> 0 | T40: =IF('Input-Infra'!$AI37>='Input-Gen'!$M$29,T1010,0) + T1980 + T4889 - T2950 -> 0 | U40: =IF('Input-Infra'!$AI37>='Input-Gen'!$M$29,U1010,0) + U1980 + U4889 - U2950 -> 0 | V40: =IF('Input-Infra'!$AI37>='Input-Gen'!$M$29,V1010,0) + V1980 + V4889 - V2950 -> 0 | W40: =IF('Input-Infra'!$AI37>='Input-Gen'!$M$29,W1010,0) + W1980 + W4889 - W2950 -> 0 | X40: =IF('Input-Infra'!$AI37>='Input-Gen'!$M$29,X1010,0) + X1980 + X4889 - X2950 -> 0 | Y40: =IF('Input-Infra'!$AI37>='Input-Gen'!$M$29,Y1010,0) + Y1980 + Y4889 - Y2950 -> 0 | Z40: =IF('Input-Infra'!$AI37>='Input-Gen'!$M$29,Z1010,0) + Z1980 + Z4889 - Z2950 -> 0 | AA40: =IF('Input-Infra'!$AI37>='Input-Gen'!$M$29,AA1010,0) + AA1980 + AA4889 - AA2950 -> 1964.302153 | AB40: =IF('Input-Infra'!$AI37>='Input-Gen'!$M$29,AB1010,0) + AB1980 + AB4889 - AB2950 -> 0 | AC40: =IF('Input-Infra'!$AI37>='Input-Gen'!$M$29,AC1010,0) + AC1980 + AC4889 - AC2950 -> 0 | AD40: =IF('Input-Infra'!$AI37>='Input-Gen'!$M$29,AD1010,0) + AD1980 + AD4889 - AD2950 ->  | AE40: =IF('Input-Infra'!$AI37>='Input-Gen'!$M$29,AE1010,0) + AE1980 + AE4889 - AE2950 ->  | AF40: =IF('Input-Infra'!$AI37>='Input-Gen'!$M$29,AF1010,0) + AF1980 + AF4889 - AF2950 ->  | AG40: =IF('Input-Infra'!$AI37>='Input-Gen'!$M$29,AG1010,0) + AG1980 + AG4889 - AG2950 ->  | AH40: =IF('Input-Infra'!$AI37>='Input-Gen'!$M$29,AH1010,0) + AH1980 + AH4889 - AH2950 ->  | AI40: =IF('Input-Infra'!$AI37>='Input-Gen'!$M$29,AI1010,0) + AI1980 + AI4889 - AI2950 ->  | AJ40: =IF('Input-Infra'!$AI37>='Input-Gen'!$M$29,AJ1010,0) + AJ1980 + AJ4889 - AJ2950 ->  | AK40: =IF('Input-Infra'!$AI37>='Input-Gen'!$M$29,AK1010,0) + AK1980 + AK4889 - AK2950 ->  | AL40: =IF('Input-Infra'!$AI37>='Input-Gen'!$M$29,AL1010,0) + AL1980 + AL4889 - AL2950 ->  | AM40: =IF('Input-Infra'!$AI37>='Input-Gen'!$M$29,AM1010,0) + AM1980 + AM4889 - AM2950 -> 
G41: BUL-RW-003 | I41: $'000 | K41: 462.7485151 | Q41: 732.5559129 | S41: =IF('Input-Infra'!$AI38>='Input-Gen'!$M$29,S1011,0) + S1981 + S4890 - S2951 -> 0 | T41: =IF('Input-Infra'!$AI38>='Input-Gen'!$M$29,T1011,0) + T1981 + T4890 - T2951 -> 0 | U41: =IF('Input-Infra'!$AI38>='Input-Gen'!$M$29,U1011,0) + U1981 + U4890 - U2951 -> 0 | V41: =IF('Input-Infra'!$AI38>='Input-Gen'!$M$29,V1011,0) + V1981 + V4890 - V2951 -> 0 | W41: =IF('Input-Infra'!$AI38>='Input-Gen'!$M$29,W1011,0) + W1981 + W4890 - W2951 -> 0 | X41: =IF('Input-Infra'!$AI38>='Input-Gen'!$M$29,X1011,0) + X1981 + X4890 - X2951 -> 0 | Y41: =IF('Input-Infra'!$AI38>='Input-Gen'!$M$29,Y1011,0) + Y1981 + Y4890 - Y2951 -> 0 | Z41: =IF('Input-Infra'!$AI38>='Input-Gen'!$M$29,Z1011,0) + Z1981 + Z4890 - Z2951 -> 0 | AA41: =IF('Input-Infra'!$AI38>='Input-Gen'!$M$29,AA1011,0) + AA1981 + AA4890 - AA2951 -> 732.5559129 | AB41: =IF('Input-Infra'!$AI38>='Input-Gen'!$M$29,AB1011,0) + AB1981 + AB4890 - AB2951 -> 0 | AC41: =IF('Input-Infra'!$AI38>='Input-Gen'!$M$29,AC1011,0) + AC1981 + AC4890 - AC2951 -> 0 | AD41: =IF('Input-Infra'!$AI38>='Input-Gen'!$M$29,AD1011,0) + AD1981 + AD4890 - AD2951 ->  | AE41: =IF('Input-Infra'!$AI38>='Input-Gen'!$M$29,AE1011,0) + AE1981 + AE4890 - AE2951 ->  | AF41: =IF('Input-Infra'!$AI38>='Input-Gen'!$M$29,AF1011,0) + AF1981 + AF4890 - AF2951 ->  | AG41: =IF('Input-Infra'!$AI38>='Input-Gen'!$M$29,AG1011,0) + AG1981 + AG4890 - AG2951 ->  | AH41: =IF('Input-Infra'!$AI38>='Input-Gen'!$M$29,AH1011,0) + AH1981 + AH4890 - AH2951 ->  | AI41: =IF('Input-Infra'!$AI38>='Input-Gen'!$M$29,AI1011,0) + AI1981 + AI4890 - AI2951 ->  | AJ41: =IF('Input-Infra'!$AI38>='Input-Gen'!$M$29,AJ1011,0) + AJ1981 + AJ4890 - AJ2951 ->  | AK41: =IF('Input-Infra'!$AI38>='Input-Gen'!$M$29,AK1011,0) + AK1981 + AK4890 - AK2951 ->  | AL41: =IF('Input-Infra'!$AI38>='Input-Gen'!$M$29,AL1011,0) + AL1981 + AL4890 - AL2951 ->  | AM41: =IF('Input-Infra'!$AI38>='Input-Gen'!$M$29,AM1011,0) + AM1981 + AM4890 - AM2951 -> 
G42: CAR-SP-002 | I42: $'000 | K42: 1022.258146 | Q42: 1618.289903 | S42: =IF('Input-Infra'!$AI39>='Input-Gen'!$M$29,S1012,0) + S1982 + S4891 - S2952 -> 0 | T42: =IF('Input-Infra'!$AI39>='Input-Gen'!$M$29,T1012,0) + T1982 + T4891 - T2952 -> 0 | U42: =IF('Input-Infra'!$AI39>='Input-Gen'!$M$29,U1012,0) + U1982 + U4891 - U2952 -> 0 | V42: =IF('Input-Infra'!$AI39>='Input-Gen'!$M$29,V1012,0) + V1982 + V4891 - V2952 -> 0 | W42: =IF('Input-Infra'!$AI39>='Input-Gen'!$M$29,W1012,0) + W1982 + W4891 - W2952 -> 0 | X42: =IF('Input-Infra'!$AI39>='Input-Gen'!$M$29,X1012,0) + X1982 + X4891 - X2952 -> 0 | Y42: =IF('Input-Infra'!$AI39>='Input-Gen'!$M$29,Y1012,0) + Y1982 + Y4891 - Y2952 -> 0 | Z42: =IF('Input-Infra'!$AI39>='Input-Gen'!$M$29,Z1012,0) + Z1982 + Z4891 - Z2952 -> 0 | AA42: =IF('Input-Infra'!$AI39>='Input-Gen'!$M$29,AA1012,0) + AA1982 + AA4891 - AA2952 -> 1618.289903 | AB42: =IF('Input-Infra'!$AI39>='Input-Gen'!$M$29,AB1012,0) + AB1982 + AB4891 - AB2952 -> 0 | AC42: =IF('Input-Infra'!$AI39>='Input-Gen'!$M$29,AC1012,0) + AC1982 + AC4891 - AC2952 -> 0 | AD42: =IF('Input-Infra'!$AI39>='Input-Gen'!$M$29,AD1012,0) + AD1982 + AD4891 - AD2952 ->  | AE42: =IF('Input-Infra'!$AI39>='Input-Gen'!$M$29,AE1012,0) + AE1982 + AE4891 - AE2952 ->  | AF42: =IF('Input-Infra'!$AI39>='Input-Gen'!$M$29,AF1012,0) + AF1982 + AF4891 - AF2952 ->  | AG42: =IF('Input-Infra'!$AI39>='Input-Gen'!$M$29,AG1012,0) + AG1982 + AG4891 - AG2952 ->  | AH42: =IF('Input-Infra'!$AI39>='Input-Gen'!$M$29,AH1012,0) + AH1982 + AH4891 - AH2952 ->  | AI42: =IF('Input-Infra'!$AI39>='Input-Gen'!$M$29,AI1012,0) + AI1982 + AI4891 - AI2952 ->  | AJ42: =IF('Input-Infra'!$AI39>='Input-Gen'!$M$29,AJ1012,0) + AJ1982 + AJ4891 - AJ2952 ->  | AK42: =IF('Input-Infra'!$AI39>='Input-Gen'!$M$29,AK1012,0) + AK1982 + AK4891 - AK2952 ->  | AL42: =IF('Input-Infra'!$AI39>='Input-Gen'!$M$29,AL1012,0) + AL1982 + AL4891 - AL2952 ->  | AM42: =IF('Input-Infra'!$AI39>='Input-Gen'!$M$29,AM1012,0) + AM1982 + AM4891 - AM2952 -> 
G43: CDE-SP-001 | I43: $'000 | K43: 80.99547112 | Q43: 96.22139302 | S43: =IF('Input-Infra'!$AI40>='Input-Gen'!$M$29,S1013,0) + S1983 + S4892 - S2953 -> 0 | T43: =IF('Input-Infra'!$AI40>='Input-Gen'!$M$29,T1013,0) + T1983 + T4892 - T2953 -> 0 | U43: =IF('Input-Infra'!$AI40>='Input-Gen'!$M$29,U1013,0) + U1983 + U4892 - U2953 -> 0 | V43: =IF('Input-Infra'!$AI40>='Input-Gen'!$M$29,V1013,0) + V1983 + V4892 - V2953 -> 96.22139302 | W43: =IF('Input-Infra'!$AI40>='Input-Gen'!$M$29,W1013,0) + W1983 + W4892 - W2953 -> 0 | X43: =IF('Input-Infra'!$AI40>='Input-Gen'!$M$29,X1013,0) + X1983 + X4892 - X2953 -> 0 | Y43: =IF('Input-Infra'!$AI40>='Input-Gen'!$M$29,Y1013,0) + Y1983 + Y4892 - Y2953 -> 0 | Z43: =IF('Input-Infra'!$AI40>='Input-Gen'!$M$29,Z1013,0) + Z1983 + Z4892 - Z2953 -> 0 | AA43: =IF('Input-Infra'!$AI40>='Input-Gen'!$M$29,AA1013,0) + AA1983 + AA4892 - AA2953 -> 0 | AB43: =IF('Input-Infra'!$AI40>='Input-Gen'!$M$29,AB1013,0) + AB1983 + AB4892 - AB2953 -> 0 | AC43: =IF('Input-Infra'!$AI40>='Input-Gen'!$M$29,AC1013,0) + AC1983 + AC4892 - AC2953 -> 0 | AD43: =IF('Input-Infra'!$AI40>='Input-Gen'!$M$29,AD1013,0) + AD1983 + AD4892 - AD2953 ->  | AE43: =IF('Input-Infra'!$AI40>='Input-Gen'!$M$29,AE1013,0) + AE1983 + AE4892 - AE2953 ->  | AF43: =IF('Input-Infra'!$AI40>='Input-Gen'!$M$29,AF1013,0) + AF1983 + AF4892 - AF2953 ->  | AG43: =IF('Input-Infra'!$AI40>='Input-Gen'!$M$29,AG1013,0) + AG1983 + AG4892 - AG2953 ->  | AH43: =IF('Input-Infra'!$AI40>='Input-Gen'!$M$29,AH1013,0) + AH1983 + AH4892 - AH2953 ->  | AI43: =IF('Input-Infra'!$AI40>='Input-Gen'!$M$29,AI1013,0) + AI1983 + AI4892 - AI2953 ->  | AJ43: =IF('Input-Infra'!$AI40>='Input-Gen'!$M$29,AJ1013,0) + AJ1983 + AJ4892 - AJ2953 ->  | AK43: =IF('Input-Infra'!$AI40>='Input-Gen'!$M$29,AK1013,0) + AK1983 + AK4892 - AK2953 ->  | AL43: =IF('Input-Infra'!$AI40>='Input-Gen'!$M$29,AL1013,0) + AL1983 + AL4892 - AL2953 ->  | AM43: =IF('Input-Infra'!$AI40>='Input-Gen'!$M$29,AM1013,0) + AM1983 + AM4892 - AM2953 -> 
G44: CDE-SP-002 | I44: $'000 | K44: 186.4842382 | Q44: 221.5404507 | S44: =IF('Input-Infra'!$AI41>='Input-Gen'!$M$29,S1014,0) + S1984 + S4893 - S2954 -> 0 | T44: =IF('Input-Infra'!$AI41>='Input-Gen'!$M$29,T1014,0) + T1984 + T4893 - T2954 -> 0 | U44: =IF('Input-Infra'!$AI41>='Input-Gen'!$M$29,U1014,0) + U1984 + U4893 - U2954 -> 0 | V44: =IF('Input-Infra'!$AI41>='Input-Gen'!$M$29,V1014,0) + V1984 + V4893 - V2954 -> 221.5404507 | W44: =IF('Input-Infra'!$AI41>='Input-Gen'!$M$29,W1014,0) + W1984 + W4893 - W2954 -> 0 | X44: =IF('Input-Infra'!$AI41>='Input-Gen'!$M$29,X1014,0) + X1984 + X4893 - X2954 -> 0 | Y44: =IF('Input-Infra'!$AI41>='Input-Gen'!$M$29,Y1014,0) + Y1984 + Y4893 - Y2954 -> 0 | Z44: =IF('Input-Infra'!$AI41>='Input-Gen'!$M$29,Z1014,0) + Z1984 + Z4893 - Z2954 -> 0 | AA44: =IF('Input-Infra'!$AI41>='Input-Gen'!$M$29,AA1014,0) + AA1984 + AA4893 - AA2954 -> 0 | AB44: =IF('Input-Infra'!$AI41>='Input-Gen'!$M$29,AB1014,0) + AB1984 + AB4893 - AB2954 -> 0 | AC44: =IF('Input-Infra'!$AI41>='Input-Gen'!$M$29,AC1014,0) + AC1984 + AC4893 - AC2954 -> 0 | AD44: =IF('Input-Infra'!$AI41>='Input-Gen'!$M$29,AD1014,0) + AD1984 + AD4893 - AD2954 ->  | AE44: =IF('Input-Infra'!$AI41>='Input-Gen'!$M$29,AE1014,0) + AE1984 + AE4893 - AE2954 ->  | AF44: =IF('Input-Infra'!$AI41>='Input-Gen'!$M$29,AF1014,0) + AF1984 + AF4893 - AF2954 ->  | AG44: =IF('Input-Infra'!$AI41>='Input-Gen'!$M$29,AG1014,0) + AG1984 + AG4893 - AG2954 ->  | AH44: =IF('Input-Infra'!$AI41>='Input-Gen'!$M$29,AH1014,0) + AH1984 + AH4893 - AH2954 ->  | AI44: =IF('Input-Infra'!$AI41>='Input-Gen'!$M$29,AI1014,0) + AI1984 + AI4893 - AI2954 ->  | AJ44: =IF('Input-Infra'!$AI41>='Input-Gen'!$M$29,AJ1014,0) + AJ1984 + AJ4893 - AJ2954 ->  | AK44: =IF('Input-Infra'!$AI41>='Input-Gen'!$M$29,AK1014,0) + AK1984 + AK4893 - AK2954 ->  | AL44: =IF('Input-Infra'!$AI41>='Input-Gen'!$M$29,AL1014,0) + AL1984 + AL4893 - AL2954 ->  | AM44: =IF('Input-Infra'!$AI41>='Input-Gen'!$M$29,AM1014,0) + AM1984 + AM4893 - AM2954 -> 
G45: CDL-SP-010 | I45: $'000 | K45: 1009.77898 | Q45: 1598.534708 | S45: =IF('Input-Infra'!$AI42>='Input-Gen'!$M$29,S1015,0) + S1985 + S4894 - S2955 -> 0 | T45: =IF('Input-Infra'!$AI42>='Input-Gen'!$M$29,T1015,0) + T1985 + T4894 - T2955 -> 0 | U45: =IF('Input-Infra'!$AI42>='Input-Gen'!$M$29,U1015,0) + U1985 + U4894 - U2955 -> 0 | V45: =IF('Input-Infra'!$AI42>='Input-Gen'!$M$29,V1015,0) + V1985 + V4894 - V2955 -> 0 | W45: =IF('Input-Infra'!$AI42>='Input-Gen'!$M$29,W1015,0) + W1985 + W4894 - W2955 -> 0 | X45: =IF('Input-Infra'!$AI42>='Input-Gen'!$M$29,X1015,0) + X1985 + X4894 - X2955 -> 0 | Y45: =IF('Input-Infra'!$AI42>='Input-Gen'!$M$29,Y1015,0) + Y1985 + Y4894 - Y2955 -> 0 | Z45: =IF('Input-Infra'!$AI42>='Input-Gen'!$M$29,Z1015,0) + Z1985 + Z4894 - Z2955 -> 0 | AA45: =IF('Input-Infra'!$AI42>='Input-Gen'!$M$29,AA1015,0) + AA1985 + AA4894 - AA2955 -> 1598.534708 | AB45: =IF('Input-Infra'!$AI42>='Input-Gen'!$M$29,AB1015,0) + AB1985 + AB4894 - AB2955 -> 0 | AC45: =IF('Input-Infra'!$AI42>='Input-Gen'!$M$29,AC1015,0) + AC1985 + AC4894 - AC2955 -> 0 | AD45: =IF('Input-Infra'!$AI42>='Input-Gen'!$M$29,AD1015,0) + AD1985 + AD4894 - AD2955 ->  | AE45: =IF('Input-Infra'!$AI42>='Input-Gen'!$M$29,AE1015,0) + AE1985 + AE4894 - AE2955 ->  | AF45: =IF('Input-Infra'!$AI42>='Input-Gen'!$M$29,AF1015,0) + AF1985 + AF4894 - AF2955 ->  | AG45: =IF('Input-Infra'!$AI42>='Input-Gen'!$M$29,AG1015,0) + AG1985 + AG4894 - AG2955 ->  | AH45: =IF('Input-Infra'!$AI42>='Input-Gen'!$M$29,AH1015,0) + AH1985 + AH4894 - AH2955 ->  | AI45: =IF('Input-Infra'!$AI42>='Input-Gen'!$M$29,AI1015,0) + AI1985 + AI4894 - AI2955 ->  | AJ45: =IF('Input-Infra'!$AI42>='Input-Gen'!$M$29,AJ1015,0) + AJ1985 + AJ4894 - AJ2955 ->  | AK45: =IF('Input-Infra'!$AI42>='Input-Gen'!$M$29,AK1015,0) + AK1985 + AK4894 - AK2955 ->  | AL45: =IF('Input-Infra'!$AI42>='Input-Gen'!$M$29,AL1015,0) + AL1985 + AL4894 - AL2955 ->  | AM45: =IF('Input-Infra'!$AI42>='Input-Gen'!$M$29,AM1015,0) + AM1985 + AM4894 - AM2955 -> 
G46: CHE-SP-005 | I46: $'000 | K46: 574.963318 | Q46: 910.1980115 | S46: =IF('Input-Infra'!$AI43>='Input-Gen'!$M$29,S1016,0) + S1986 + S4895 - S2956 -> 0 | T46: =IF('Input-Infra'!$AI43>='Input-Gen'!$M$29,T1016,0) + T1986 + T4895 - T2956 -> 0 | U46: =IF('Input-Infra'!$AI43>='Input-Gen'!$M$29,U1016,0) + U1986 + U4895 - U2956 -> 0 | V46: =IF('Input-Infra'!$AI43>='Input-Gen'!$M$29,V1016,0) + V1986 + V4895 - V2956 -> 0 | W46: =IF('Input-Infra'!$AI43>='Input-Gen'!$M$29,W1016,0) + W1986 + W4895 - W2956 -> 0 | X46: =IF('Input-Infra'!$AI43>='Input-Gen'!$M$29,X1016,0) + X1986 + X4895 - X2956 -> 0 | Y46: =IF('Input-Infra'!$AI43>='Input-Gen'!$M$29,Y1016,0) + Y1986 + Y4895 - Y2956 -> 0 | Z46: =IF('Input-Infra'!$AI43>='Input-Gen'!$M$29,Z1016,0) + Z1986 + Z4895 - Z2956 -> 0 | AA46: =IF('Input-Infra'!$AI43>='Input-Gen'!$M$29,AA1016,0) + AA1986 + AA4895 - AA2956 -> 910.1980115 | AB46: =IF('Input-Infra'!$AI43>='Input-Gen'!$M$29,AB1016,0) + AB1986 + AB4895 - AB2956 -> 0 | AC46: =IF('Input-Infra'!$AI43>='Input-Gen'!$M$29,AC1016,0) + AC1986 + AC4895 - AC2956 -> 0 | AD46: =IF('Input-Infra'!$AI43>='Input-Gen'!$M$29,AD1016,0) + AD1986 + AD4895 - AD2956 ->  | AE46: =IF('Input-Infra'!$AI43>='Input-Gen'!$M$29,AE1016,0) + AE1986 + AE4895 - AE2956 ->  | AF46: =IF('Input-Infra'!$AI43>='Input-Gen'!$M$29,AF1016,0) + AF1986 + AF4895 - AF2956 ->  | AG46: =IF('Input-Infra'!$AI43>='Input-Gen'!$M$29,AG1016,0) + AG1986 + AG4895 - AG2956 ->  | AH46: =IF('Input-Infra'!$AI43>='Input-Gen'!$M$29,AH1016,0) + AH1986 + AH4895 - AH2956 ->  | AI46: =IF('Input-Infra'!$AI43>='Input-Gen'!$M$29,AI1016,0) + AI1986 + AI4895 - AI2956 ->  | AJ46: =IF('Input-Infra'!$AI43>='Input-Gen'!$M$29,AJ1016,0) + AJ1986 + AJ4895 - AJ2956 ->  | AK46: =IF('Input-Infra'!$AI43>='Input-Gen'!$M$29,AK1016,0) + AK1986 + AK4895 - AK2956 ->  | AL46: =IF('Input-Infra'!$AI43>='Input-Gen'!$M$29,AL1016,0) + AL1986 + AL4895 - AL2956 ->  | AM46: =IF('Input-Infra'!$AI43>='Input-Gen'!$M$29,AM1016,0) + AM1986 + AM4895 - AM2956 -> 
G47: CHE-SP-010 | I47: $'000 | K47: 138.9630203 | Q47: 165.0859636 | S47: =IF('Input-Infra'!$AI44>='Input-Gen'!$M$29,S1017,0) + S1987 + S4896 - S2957 -> 0 | T47: =IF('Input-Infra'!$AI44>='Input-Gen'!$M$29,T1017,0) + T1987 + T4896 - T2957 -> 0 | U47: =IF('Input-Infra'!$AI44>='Input-Gen'!$M$29,U1017,0) + U1987 + U4896 - U2957 -> 0 | V47: =IF('Input-Infra'!$AI44>='Input-Gen'!$M$29,V1017,0) + V1987 + V4896 - V2957 -> 165.0859636 | W47: =IF('Input-Infra'!$AI44>='Input-Gen'!$M$29,W1017,0) + W1987 + W4896 - W2957 -> 0 | X47: =IF('Input-Infra'!$AI44>='Input-Gen'!$M$29,X1017,0) + X1987 + X4896 - X2957 -> 0 | Y47: =IF('Input-Infra'!$AI44>='Input-Gen'!$M$29,Y1017,0) + Y1987 + Y4896 - Y2957 -> 0 | Z47: =IF('Input-Infra'!$AI44>='Input-Gen'!$M$29,Z1017,0) + Z1987 + Z4896 - Z2957 -> 0 | AA47: =IF('Input-Infra'!$AI44>='Input-Gen'!$M$29,AA1017,0) + AA1987 + AA4896 - AA2957 -> 0 | AB47: =IF('Input-Infra'!$AI44>='Input-Gen'!$M$29,AB1017,0) + AB1987 + AB4896 - AB2957 -> 0 | AC47: =IF('Input-Infra'!$AI44>='Input-Gen'!$M$29,AC1017,0) + AC1987 + AC4896 - AC2957 -> 0 | AD47: =IF('Input-Infra'!$AI44>='Input-Gen'!$M$29,AD1017,0) + AD1987 + AD4896 - AD2957 ->  | AE47: =IF('Input-Infra'!$AI44>='Input-Gen'!$M$29,AE1017,0) + AE1987 + AE4896 - AE2957 ->  | AF47: =IF('Input-Infra'!$AI44>='Input-Gen'!$M$29,AF1017,0) + AF1987 + AF4896 - AF2957 ->  | AG47: =IF('Input-Infra'!$AI44>='Input-Gen'!$M$29,AG1017,0) + AG1987 + AG4896 - AG2957 ->  | AH47: =IF('Input-Infra'!$AI44>='Input-Gen'!$M$29,AH1017,0) + AH1987 + AH4896 - AH2957 ->  | AI47: =IF('Input-Infra'!$AI44>='Input-Gen'!$M$29,AI1017,0) + AI1987 + AI4896 - AI2957 ->  | AJ47: =IF('Input-Infra'!$AI44>='Input-Gen'!$M$29,AJ1017,0) + AJ1987 + AJ4896 - AJ2957 ->  | AK47: =IF('Input-Infra'!$AI44>='Input-Gen'!$M$29,AK1017,0) + AK1987 + AK4896 - AK2957 ->  | AL47: =IF('Input-Infra'!$AI44>='Input-Gen'!$M$29,AL1017,0) + AL1987 + AL4896 - AL2957 ->  | AM47: =IF('Input-Infra'!$AI44>='Input-Gen'!$M$29,AM1017,0) + AM1987 + AM4896 - AM2957 -> 
G48: CHW-SP-002 | I48: $'000 | K48: 318.5527901 | Q48: 378.4358902 | S48: =IF('Input-Infra'!$AI45>='Input-Gen'!$M$29,S1018,0) + S1988 + S4897 - S2958 -> 0 | T48: =IF('Input-Infra'!$AI45>='Input-Gen'!$M$29,T1018,0) + T1988 + T4897 - T2958 -> 0 | U48: =IF('Input-Infra'!$AI45>='Input-Gen'!$M$29,U1018,0) + U1988 + U4897 - U2958 -> 0 | V48: =IF('Input-Infra'!$AI45>='Input-Gen'!$M$29,V1018,0) + V1988 + V4897 - V2958 -> 378.4358902 | W48: =IF('Input-Infra'!$AI45>='Input-Gen'!$M$29,W1018,0) + W1988 + W4897 - W2958 -> 0 | X48: =IF('Input-Infra'!$AI45>='Input-Gen'!$M$29,X1018,0) + X1988 + X4897 - X2958 -> 0 | Y48: =IF('Input-Infra'!$AI45>='Input-Gen'!$M$29,Y1018,0) + Y1988 + Y4897 - Y2958 -> 0 | Z48: =IF('Input-Infra'!$AI45>='Input-Gen'!$M$29,Z1018,0) + Z1988 + Z4897 - Z2958 -> 0 | AA48: =IF('Input-Infra'!$AI45>='Input-Gen'!$M$29,AA1018,0) + AA1988 + AA4897 - AA2958 -> 0 | AB48: =IF('Input-Infra'!$AI45>='Input-Gen'!$M$29,AB1018,0) + AB1988 + AB4897 - AB2958 -> 0 | AC48: =IF('Input-Infra'!$AI45>='Input-Gen'!$M$29,AC1018,0) + AC1988 + AC4897 - AC2958 -> 0 | AD48: =IF('Input-Infra'!$AI45>='Input-Gen'!$M$29,AD1018,0) + AD1988 + AD4897 - AD2958 ->  | AE48: =IF('Input-Infra'!$AI45>='Input-Gen'!$M$29,AE1018,0) + AE1988 + AE4897 - AE2958 ->  | AF48: =IF('Input-Infra'!$AI45>='Input-Gen'!$M$29,AF1018,0) + AF1988 + AF4897 - AF2958 ->  | AG48: =IF('Input-Infra'!$AI45>='Input-Gen'!$M$29,AG1018,0) + AG1988 + AG4897 - AG2958 ->  | AH48: =IF('Input-Infra'!$AI45>='Input-Gen'!$M$29,AH1018,0) + AH1988 + AH4897 - AH2958 ->  | AI48: =IF('Input-Infra'!$AI45>='Input-Gen'!$M$29,AI1018,0) + AI1988 + AI4897 - AI2958 ->  | AJ48: =IF('Input-Infra'!$AI45>='Input-Gen'!$M$29,AJ1018,0) + AJ1988 + AJ4897 - AJ2958 ->  | AK48: =IF('Input-Infra'!$AI45>='Input-Gen'!$M$29,AK1018,0) + AK1988 + AK4897 - AK2958 ->  | AL48: =IF('Input-Infra'!$AI45>='Input-Gen'!$M$29,AL1018,0) + AL1988 + AL4897 - AL2958 ->  | AM48: =IF('Input-Infra'!$AI45>='Input-Gen'!$M$29,AM1018,0) + AM1988 + AM4897 - AM2958 -> 
G49: COO-SP-004 | I49: $'000 | K49: 512.8360564 | Q49: 811.8471982 | S49: =IF('Input-Infra'!$AI46>='Input-Gen'!$M$29,S1019,0) + S1989 + S4898 - S2959 -> 0 | T49: =IF('Input-Infra'!$AI46>='Input-Gen'!$M$29,T1019,0) + T1989 + T4898 - T2959 -> 0 | U49: =IF('Input-Infra'!$AI46>='Input-Gen'!$M$29,U1019,0) + U1989 + U4898 - U2959 -> 0 | V49: =IF('Input-Infra'!$AI46>='Input-Gen'!$M$29,V1019,0) + V1989 + V4898 - V2959 -> 0 | W49: =IF('Input-Infra'!$AI46>='Input-Gen'!$M$29,W1019,0) + W1989 + W4898 - W2959 -> 0 | X49: =IF('Input-Infra'!$AI46>='Input-Gen'!$M$29,X1019,0) + X1989 + X4898 - X2959 -> 0 | Y49: =IF('Input-Infra'!$AI46>='Input-Gen'!$M$29,Y1019,0) + Y1989 + Y4898 - Y2959 -> 0 | Z49: =IF('Input-Infra'!$AI46>='Input-Gen'!$M$29,Z1019,0) + Z1989 + Z4898 - Z2959 -> 0 | AA49: =IF('Input-Infra'!$AI46>='Input-Gen'!$M$29,AA1019,0) + AA1989 + AA4898 - AA2959 -> 811.8471982 | AB49: =IF('Input-Infra'!$AI46>='Input-Gen'!$M$29,AB1019,0) + AB1989 + AB4898 - AB2959 -> 0 | AC49: =IF('Input-Infra'!$AI46>='Input-Gen'!$M$29,AC1019,0) + AC1989 + AC4898 - AC2959 -> 0 | AD49: =IF('Input-Infra'!$AI46>='Input-Gen'!$M$29,AD1019,0) + AD1989 + AD4898 - AD2959 ->  | AE49: =IF('Input-Infra'!$AI46>='Input-Gen'!$M$29,AE1019,0) + AE1989 + AE4898 - AE2959 ->  | AF49: =IF('Input-Infra'!$AI46>='Input-Gen'!$M$29,AF1019,0) + AF1989 + AF4898 - AF2959 ->  | AG49: =IF('Input-Infra'!$AI46>='Input-Gen'!$M$29,AG1019,0) + AG1989 + AG4898 - AG2959 ->  | AH49: =IF('Input-Infra'!$AI46>='Input-Gen'!$M$29,AH1019,0) + AH1989 + AH4898 - AH2959 ->  | AI49: =IF('Input-Infra'!$AI46>='Input-Gen'!$M$29,AI1019,0) + AI1989 + AI4898 - AI2959 ->  | AJ49: =IF('Input-Infra'!$AI46>='Input-Gen'!$M$29,AJ1019,0) + AJ1989 + AJ4898 - AJ2959 ->  | AK49: =IF('Input-Infra'!$AI46>='Input-Gen'!$M$29,AK1019,0) + AK1989 + AK4898 - AK2959 ->  | AL49: =IF('Input-Infra'!$AI46>='Input-Gen'!$M$29,AL1019,0) + AL1989 + AL4898 - AL2959 ->  | AM49: =IF('Input-Infra'!$AI46>='Input-Gen'!$M$29,AM1019,0) + AM1989 + AM4898 - AM2959 -> 
G50: CVE-SB-001 | I50: $'000 | K50: 805.553017 | Q50: 1275.233969 | S50: =IF('Input-Infra'!$AI47>='Input-Gen'!$M$29,S1020,0) + S1990 + S4899 - S2960 -> 0 | T50: =IF('Input-Infra'!$AI47>='Input-Gen'!$M$29,T1020,0) + T1990 + T4899 - T2960 -> 0 | U50: =IF('Input-Infra'!$AI47>='Input-Gen'!$M$29,U1020,0) + U1990 + U4899 - U2960 -> 0 | V50: =IF('Input-Infra'!$AI47>='Input-Gen'!$M$29,V1020,0) + V1990 + V4899 - V2960 -> 0 | W50: =IF('Input-Infra'!$AI47>='Input-Gen'!$M$29,W1020,0) + W1990 + W4899 - W2960 -> 0 | X50: =IF('Input-Infra'!$AI47>='Input-Gen'!$M$29,X1020,0) + X1990 + X4899 - X2960 -> 0 | Y50: =IF('Input-Infra'!$AI47>='Input-Gen'!$M$29,Y1020,0) + Y1990 + Y4899 - Y2960 -> 0 | Z50: =IF('Input-Infra'!$AI47>='Input-Gen'!$M$29,Z1020,0) + Z1990 + Z4899 - Z2960 -> 0 | AA50: =IF('Input-Infra'!$AI47>='Input-Gen'!$M$29,AA1020,0) + AA1990 + AA4899 - AA2960 -> 1275.233969 | AB50: =IF('Input-Infra'!$AI47>='Input-Gen'!$M$29,AB1020,0) + AB1990 + AB4899 - AB2960 -> 0 | AC50: =IF('Input-Infra'!$AI47>='Input-Gen'!$M$29,AC1020,0) + AC1990 + AC4899 - AC2960 -> 0 | AD50: =IF('Input-Infra'!$AI47>='Input-Gen'!$M$29,AD1020,0) + AD1990 + AD4899 - AD2960 ->  | AE50: =IF('Input-Infra'!$AI47>='Input-Gen'!$M$29,AE1020,0) + AE1990 + AE4899 - AE2960 ->  | AF50: =IF('Input-Infra'!$AI47>='Input-Gen'!$M$29,AF1020,0) + AF1990 + AF4899 - AF2960 ->  | AG50: =IF('Input-Infra'!$AI47>='Input-Gen'!$M$29,AG1020,0) + AG1990 + AG4899 - AG2960 ->  | AH50: =IF('Input-Infra'!$AI47>='Input-Gen'!$M$29,AH1020,0) + AH1990 + AH4899 - AH2960 ->  | AI50: =IF('Input-Infra'!$AI47>='Input-Gen'!$M$29,AI1020,0) + AI1990 + AI4899 - AI2960 ->  | AJ50: =IF('Input-Infra'!$AI47>='Input-Gen'!$M$29,AJ1020,0) + AJ1990 + AJ4899 - AJ2960 ->  | AK50: =IF('Input-Infra'!$AI47>='Input-Gen'!$M$29,AK1020,0) + AK1990 + AK4899 - AK2960 ->  | AL50: =IF('Input-Infra'!$AI47>='Input-Gen'!$M$29,AL1020,0) + AL1990 + AL4899 - AL2960 ->  | AM50: =IF('Input-Infra'!$AI47>='Input-Gen'!$M$29,AM1020,0) + AM1990 + AM4899 - AM2960 -> 
G51: CVE-SP-002 | I51: $'000 | K51: 876.6372211 | Q51: 1387.764107 | S51: =IF('Input-Infra'!$AI48>='Input-Gen'!$M$29,S1021,0) + S1991 + S4900 - S2961 -> 0 | T51: =IF('Input-Infra'!$AI48>='Input-Gen'!$M$29,T1021,0) + T1991 + T4900 - T2961 -> 0 | U51: =IF('Input-Infra'!$AI48>='Input-Gen'!$M$29,U1021,0) + U1991 + U4900 - U2961 -> 0 | V51: =IF('Input-Infra'!$AI48>='Input-Gen'!$M$29,V1021,0) + V1991 + V4900 - V2961 -> 0 | W51: =IF('Input-Infra'!$AI48>='Input-Gen'!$M$29,W1021,0) + W1991 + W4900 - W2961 -> 0 | X51: =IF('Input-Infra'!$AI48>='Input-Gen'!$M$29,X1021,0) + X1991 + X4900 - X2961 -> 0 | Y51: =IF('Input-Infra'!$AI48>='Input-Gen'!$M$29,Y1021,0) + Y1991 + Y4900 - Y2961 -> 0 | Z51: =IF('Input-Infra'!$AI48>='Input-Gen'!$M$29,Z1021,0) + Z1991 + Z4900 - Z2961 -> 0 | AA51: =IF('Input-Infra'!$AI48>='Input-Gen'!$M$29,AA1021,0) + AA1991 + AA4900 - AA2961 -> 1387.764107 | AB51: =IF('Input-Infra'!$AI48>='Input-Gen'!$M$29,AB1021,0) + AB1991 + AB4900 - AB2961 -> 0 | AC51: =IF('Input-Infra'!$AI48>='Input-Gen'!$M$29,AC1021,0) + AC1991 + AC4900 - AC2961 -> 0 | AD51: =IF('Input-Infra'!$AI48>='Input-Gen'!$M$29,AD1021,0) + AD1991 + AD4900 - AD2961 ->  | AE51: =IF('Input-Infra'!$AI48>='Input-Gen'!$M$29,AE1021,0) + AE1991 + AE4900 - AE2961 ->  | AF51: =IF('Input-Infra'!$AI48>='Input-Gen'!$M$29,AF1021,0) + AF1991 + AF4900 - AF2961 ->  | AG51: =IF('Input-Infra'!$AI48>='Input-Gen'!$M$29,AG1021,0) + AG1991 + AG4900 - AG2961 ->  | AH51: =IF('Input-Infra'!$AI48>='Input-Gen'!$M$29,AH1021,0) + AH1991 + AH4900 - AH2961 ->  | AI51: =IF('Input-Infra'!$AI48>='Input-Gen'!$M$29,AI1021,0) + AI1991 + AI4900 - AI2961 ->  | AJ51: =IF('Input-Infra'!$AI48>='Input-Gen'!$M$29,AJ1021,0) + AJ1991 + AJ4900 - AJ2961 ->  | AK51: =IF('Input-Infra'!$AI48>='Input-Gen'!$M$29,AK1021,0) + AK1991 + AK4900 - AK2961 ->  | AL51: =IF('Input-Infra'!$AI48>='Input-Gen'!$M$29,AL1021,0) + AL1991 + AL4900 - AL2961 ->  | AM51: =IF('Input-Infra'!$AI48>='Input-Gen'!$M$29,AM1021,0) + AM1991 + AM4900 - AM2961 -> 
G52: CVE-SP-003 | I52: $'000 | K52: 361.1790145 | Q52: 571.7659032 | S52: =IF('Input-Infra'!$AI49>='Input-Gen'!$M$29,S1022,0) + S1992 + S4901 - S2962 -> 0 | T52: =IF('Input-Infra'!$AI49>='Input-Gen'!$M$29,T1022,0) + T1992 + T4901 - T2962 -> 0 | U52: =IF('Input-Infra'!$AI49>='Input-Gen'!$M$29,U1022,0) + U1992 + U4901 - U2962 -> 0 | V52: =IF('Input-Infra'!$AI49>='Input-Gen'!$M$29,V1022,0) + V1992 + V4901 - V2962 -> 0 | W52: =IF('Input-Infra'!$AI49>='Input-Gen'!$M$29,W1022,0) + W1992 + W4901 - W2962 -> 0 | X52: =IF('Input-Infra'!$AI49>='Input-Gen'!$M$29,X1022,0) + X1992 + X4901 - X2962 -> 0 | Y52: =IF('Input-Infra'!$AI49>='Input-Gen'!$M$29,Y1022,0) + Y1992 + Y4901 - Y2962 -> 0 | Z52: =IF('Input-Infra'!$AI49>='Input-Gen'!$M$29,Z1022,0) + Z1992 + Z4901 - Z2962 -> 0 | AA52: =IF('Input-Infra'!$AI49>='Input-Gen'!$M$29,AA1022,0) + AA1992 + AA4901 - AA2962 -> 571.7659032 | AB52: =IF('Input-Infra'!$AI49>='Input-Gen'!$M$29,AB1022,0) + AB1992 + AB4901 - AB2962 -> 0 | AC52: =IF('Input-Infra'!$AI49>='Input-Gen'!$M$29,AC1022,0) + AC1992 + AC4901 - AC2962 -> 0 | AD52: =IF('Input-Infra'!$AI49>='Input-Gen'!$M$29,AD1022,0) + AD1992 + AD4901 - AD2962 ->  | AE52: =IF('Input-Infra'!$AI49>='Input-Gen'!$M$29,AE1022,0) + AE1992 + AE4901 - AE2962 ->  | AF52: =IF('Input-Infra'!$AI49>='Input-Gen'!$M$29,AF1022,0) + AF1992 + AF4901 - AF2962 ->  | AG52: =IF('Input-Infra'!$AI49>='Input-Gen'!$M$29,AG1022,0) + AG1992 + AG4901 - AG2962 ->  | AH52: =IF('Input-Infra'!$AI49>='Input-Gen'!$M$29,AH1022,0) + AH1992 + AH4901 - AH2962 ->  | AI52: =IF('Input-Infra'!$AI49>='Input-Gen'!$M$29,AI1022,0) + AI1992 + AI4901 - AI2962 ->  | AJ52: =IF('Input-Infra'!$AI49>='Input-Gen'!$M$29,AJ1022,0) + AJ1992 + AJ4901 - AJ2962 ->  | AK52: =IF('Input-Infra'!$AI49>='Input-Gen'!$M$29,AK1022,0) + AK1992 + AK4901 - AK2962 ->  | AL52: =IF('Input-Infra'!$AI49>='Input-Gen'!$M$29,AL1022,0) + AL1992 + AL4901 - AL2962 ->  | AM52: =IF('Input-Infra'!$AI49>='Input-Gen'!$M$29,AM1022,0) + AM1992 + AM4901 - AM2962 -> 
G53: DAR-SP-004 | I53: $'000 | K53: 836.9414713 | Q53: 994.2737924 | S53: =IF('Input-Infra'!$AI50>='Input-Gen'!$M$29,S1023,0) + S1993 + S4902 - S2963 -> 0 | T53: =IF('Input-Infra'!$AI50>='Input-Gen'!$M$29,T1023,0) + T1993 + T4902 - T2963 -> 0 | U53: =IF('Input-Infra'!$AI50>='Input-Gen'!$M$29,U1023,0) + U1993 + U4902 - U2963 -> 0 | V53: =IF('Input-Infra'!$AI50>='Input-Gen'!$M$29,V1023,0) + V1993 + V4902 - V2963 -> 994.2737924 | W53: =IF('Input-Infra'!$AI50>='Input-Gen'!$M$29,W1023,0) + W1993 + W4902 - W2963 -> 0 | X53: =IF('Input-Infra'!$AI50>='Input-Gen'!$M$29,X1023,0) + X1993 + X4902 - X2963 -> 0 | Y53: =IF('Input-Infra'!$AI50>='Input-Gen'!$M$29,Y1023,0) + Y1993 + Y4902 - Y2963 -> 0 | Z53: =IF('Input-Infra'!$AI50>='Input-Gen'!$M$29,Z1023,0) + Z1993 + Z4902 - Z2963 -> 0 | AA53: =IF('Input-Infra'!$AI50>='Input-Gen'!$M$29,AA1023,0) + AA1993 + AA4902 - AA2963 -> 0 | AB53: =IF('Input-Infra'!$AI50>='Input-Gen'!$M$29,AB1023,0) + AB1993 + AB4902 - AB2963 -> 0 | AC53: =IF('Input-Infra'!$AI50>='Input-Gen'!$M$29,AC1023,0) + AC1993 + AC4902 - AC2963 -> 0 | AD53: =IF('Input-Infra'!$AI50>='Input-Gen'!$M$29,AD1023,0) + AD1993 + AD4902 - AD2963 ->  | AE53: =IF('Input-Infra'!$AI50>='Input-Gen'!$M$29,AE1023,0) + AE1993 + AE4902 - AE2963 ->  | AF53: =IF('Input-Infra'!$AI50>='Input-Gen'!$M$29,AF1023,0) + AF1993 + AF4902 - AF2963 ->  | AG53: =IF('Input-Infra'!$AI50>='Input-Gen'!$M$29,AG1023,0) + AG1993 + AG4902 - AG2963 ->  | AH53: =IF('Input-Infra'!$AI50>='Input-Gen'!$M$29,AH1023,0) + AH1993 + AH4902 - AH2963 ->  | AI53: =IF('Input-Infra'!$AI50>='Input-Gen'!$M$29,AI1023,0) + AI1993 + AI4902 - AI2963 ->  | AJ53: =IF('Input-Infra'!$AI50>='Input-Gen'!$M$29,AJ1023,0) + AJ1993 + AJ4902 - AJ2963 ->  | AK53: =IF('Input-Infra'!$AI50>='Input-Gen'!$M$29,AK1023,0) + AK1993 + AK4902 - AK2963 ->  | AL53: =IF('Input-Infra'!$AI50>='Input-Gen'!$M$29,AL1023,0) + AL1993 + AL4902 - AL2963 ->  | AM53: =IF('Input-Infra'!$AI50>='Input-Gen'!$M$29,AM1023,0) + AM1993 + AM4902 - AM2963 -> 
G54: DOO-SP-001 | I54: $'000 | K54: 388.3778033 | Q54: 614.823056 | S54: =IF('Input-Infra'!$AI51>='Input-Gen'!$M$29,S1024,0) + S1994 + S4903 - S2964 -> 0 | T54: =IF('Input-Infra'!$AI51>='Input-Gen'!$M$29,T1024,0) + T1994 + T4903 - T2964 -> 0 | U54: =IF('Input-Infra'!$AI51>='Input-Gen'!$M$29,U1024,0) + U1994 + U4903 - U2964 -> 0 | V54: =IF('Input-Infra'!$AI51>='Input-Gen'!$M$29,V1024,0) + V1994 + V4903 - V2964 -> 0 | W54: =IF('Input-Infra'!$AI51>='Input-Gen'!$M$29,W1024,0) + W1994 + W4903 - W2964 -> 0 | X54: =IF('Input-Infra'!$AI51>='Input-Gen'!$M$29,X1024,0) + X1994 + X4903 - X2964 -> 0 | Y54: =IF('Input-Infra'!$AI51>='Input-Gen'!$M$29,Y1024,0) + Y1994 + Y4903 - Y2964 -> 0 | Z54: =IF('Input-Infra'!$AI51>='Input-Gen'!$M$29,Z1024,0) + Z1994 + Z4903 - Z2964 -> 0 | AA54: =IF('Input-Infra'!$AI51>='Input-Gen'!$M$29,AA1024,0) + AA1994 + AA4903 - AA2964 -> 614.823056 | AB54: =IF('Input-Infra'!$AI51>='Input-Gen'!$M$29,AB1024,0) + AB1994 + AB4903 - AB2964 -> 0 | AC54: =IF('Input-Infra'!$AI51>='Input-Gen'!$M$29,AC1024,0) + AC1994 + AC4903 - AC2964 -> 0 | AD54: =IF('Input-Infra'!$AI51>='Input-Gen'!$M$29,AD1024,0) + AD1994 + AD4903 - AD2964 ->  | AE54: =IF('Input-Infra'!$AI51>='Input-Gen'!$M$29,AE1024,0) + AE1994 + AE4903 - AE2964 ->  | AF54: =IF('Input-Infra'!$AI51>='Input-Gen'!$M$29,AF1024,0) + AF1994 + AF4903 - AF2964 ->  | AG54: =IF('Input-Infra'!$AI51>='Input-Gen'!$M$29,AG1024,0) + AG1994 + AG4903 - AG2964 ->  | AH54: =IF('Input-Infra'!$AI51>='Input-Gen'!$M$29,AH1024,0) + AH1994 + AH4903 - AH2964 ->  | AI54: =IF('Input-Infra'!$AI51>='Input-Gen'!$M$29,AI1024,0) + AI1994 + AI4903 - AI2964 ->  | AJ54: =IF('Input-Infra'!$AI51>='Input-Gen'!$M$29,AJ1024,0) + AJ1994 + AJ4903 - AJ2964 ->  | AK54: =IF('Input-Infra'!$AI51>='Input-Gen'!$M$29,AK1024,0) + AK1994 + AK4903 - AK2964 ->  | AL54: =IF('Input-Infra'!$AI51>='Input-Gen'!$M$29,AL1024,0) + AL1994 + AL4903 - AL2964 ->  | AM54: =IF('Input-Infra'!$AI51>='Input-Gen'!$M$29,AM1024,0) + AM1994 + AM4903 - AM2964 -> 
G55: DUR-SP-002 | I55: $'000 | K55: 1537.367716 | Q55: 2433.736195 | S55: =IF('Input-Infra'!$AI52>='Input-Gen'!$M$29,S1025,0) + S1995 + S4904 - S2965 -> 0 | T55: =IF('Input-Infra'!$AI52>='Input-Gen'!$M$29,T1025,0) + T1995 + T4904 - T2965 -> 0 | U55: =IF('Input-Infra'!$AI52>='Input-Gen'!$M$29,U1025,0) + U1995 + U4904 - U2965 -> 0 | V55: =IF('Input-Infra'!$AI52>='Input-Gen'!$M$29,V1025,0) + V1995 + V4904 - V2965 -> 0 | W55: =IF('Input-Infra'!$AI52>='Input-Gen'!$M$29,W1025,0) + W1995 + W4904 - W2965 -> 0 | X55: =IF('Input-Infra'!$AI52>='Input-Gen'!$M$29,X1025,0) + X1995 + X4904 - X2965 -> 0 | Y55: =IF('Input-Infra'!$AI52>='Input-Gen'!$M$29,Y1025,0) + Y1995 + Y4904 - Y2965 -> 0 | Z55: =IF('Input-Infra'!$AI52>='Input-Gen'!$M$29,Z1025,0) + Z1995 + Z4904 - Z2965 -> 0 | AA55: =IF('Input-Infra'!$AI52>='Input-Gen'!$M$29,AA1025,0) + AA1995 + AA4904 - AA2965 -> 2433.736195 | AB55: =IF('Input-Infra'!$AI52>='Input-Gen'!$M$29,AB1025,0) + AB1995 + AB4904 - AB2965 -> 0 | AC55: =IF('Input-Infra'!$AI52>='Input-Gen'!$M$29,AC1025,0) + AC1995 + AC4904 - AC2965 -> 0 | AD55: =IF('Input-Infra'!$AI52>='Input-Gen'!$M$29,AD1025,0) + AD1995 + AD4904 - AD2965 ->  | AE55: =IF('Input-Infra'!$AI52>='Input-Gen'!$M$29,AE1025,0) + AE1995 + AE4904 - AE2965 ->  | AF55: =IF('Input-Infra'!$AI52>='Input-Gen'!$M$29,AF1025,0) + AF1995 + AF4904 - AF2965 ->  | AG55: =IF('Input-Infra'!$AI52>='Input-Gen'!$M$29,AG1025,0) + AG1995 + AG4904 - AG2965 ->  | AH55: =IF('Input-Infra'!$AI52>='Input-Gen'!$M$29,AH1025,0) + AH1995 + AH4904 - AH2965 ->  | AI55: =IF('Input-Infra'!$AI52>='Input-Gen'!$M$29,AI1025,0) + AI1995 + AI4904 - AI2965 ->  | AJ55: =IF('Input-Infra'!$AI52>='Input-Gen'!$M$29,AJ1025,0) + AJ1995 + AJ4904 - AJ2965 ->  | AK55: =IF('Input-Infra'!$AI52>='Input-Gen'!$M$29,AK1025,0) + AK1995 + AK4904 - AK2965 ->  | AL55: =IF('Input-Infra'!$AI52>='Input-Gen'!$M$29,AL1025,0) + AL1995 + AL4904 - AL2965 ->  | AM55: =IF('Input-Infra'!$AI52>='Input-Gen'!$M$29,AM1025,0) + AM1995 + AM4904 - AM2965 -> 
G56: DUR-SP-003 | I56: $'000 | K56: 232.5097884 | Q56: 368.0755632 | S56: =IF('Input-Infra'!$AI53>='Input-Gen'!$M$29,S1026,0) + S1996 + S4905 - S2966 -> 0 | T56: =IF('Input-Infra'!$AI53>='Input-Gen'!$M$29,T1026,0) + T1996 + T4905 - T2966 -> 0 | U56: =IF('Input-Infra'!$AI53>='Input-Gen'!$M$29,U1026,0) + U1996 + U4905 - U2966 -> 0 | V56: =IF('Input-Infra'!$AI53>='Input-Gen'!$M$29,V1026,0) + V1996 + V4905 - V2966 -> 0 | W56: =IF('Input-Infra'!$AI53>='Input-Gen'!$M$29,W1026,0) + W1996 + W4905 - W2966 -> 0 | X56: =IF('Input-Infra'!$AI53>='Input-Gen'!$M$29,X1026,0) + X1996 + X4905 - X2966 -> 0 | Y56: =IF('Input-Infra'!$AI53>='Input-Gen'!$M$29,Y1026,0) + Y1996 + Y4905 - Y2966 -> 0 | Z56: =IF('Input-Infra'!$AI53>='Input-Gen'!$M$29,Z1026,0) + Z1996 + Z4905 - Z2966 -> 0 | AA56: =IF('Input-Infra'!$AI53>='Input-Gen'!$M$29,AA1026,0) + AA1996 + AA4905 - AA2966 -> 368.0755632 | AB56: =IF('Input-Infra'!$AI53>='Input-Gen'!$M$29,AB1026,0) + AB1996 + AB4905 - AB2966 -> 0 | AC56: =IF('Input-Infra'!$AI53>='Input-Gen'!$M$29,AC1026,0) + AC1996 + AC4905 - AC2966 -> 0 | AD56: =IF('Input-Infra'!$AI53>='Input-Gen'!$M$29,AD1026,0) + AD1996 + AD4905 - AD2966 ->  | AE56: =IF('Input-Infra'!$AI53>='Input-Gen'!$M$29,AE1026,0) + AE1996 + AE4905 - AE2966 ->  | AF56: =IF('Input-Infra'!$AI53>='Input-Gen'!$M$29,AF1026,0) + AF1996 + AF4905 - AF2966 ->  | AG56: =IF('Input-Infra'!$AI53>='Input-Gen'!$M$29,AG1026,0) + AG1996 + AG4905 - AG2966 ->  | AH56: =IF('Input-Infra'!$AI53>='Input-Gen'!$M$29,AH1026,0) + AH1996 + AH4905 - AH2966 ->  | AI56: =IF('Input-Infra'!$AI53>='Input-Gen'!$M$29,AI1026,0) + AI1996 + AI4905 - AI2966 ->  | AJ56: =IF('Input-Infra'!$AI53>='Input-Gen'!$M$29,AJ1026,0) + AJ1996 + AJ4905 - AJ2966 ->  | AK56: =IF('Input-Infra'!$AI53>='Input-Gen'!$M$29,AK1026,0) + AK1996 + AK4905 - AK2966 ->  | AL56: =IF('Input-Infra'!$AI53>='Input-Gen'!$M$29,AL1026,0) + AL1996 + AL4905 - AL2966 ->  | AM56: =IF('Input-Infra'!$AI53>='Input-Gen'!$M$29,AM1026,0) + AM1996 + AM4905 - AM2966 -> 
G57: EAB-SP-001 | I57: $'000 | K57: 378.1994256 | Q57: 598.7101339 | S57: =IF('Input-Infra'!$AI54>='Input-Gen'!$M$29,S1027,0) + S1997 + S4906 - S2967 -> 0 | T57: =IF('Input-Infra'!$AI54>='Input-Gen'!$M$29,T1027,0) + T1997 + T4906 - T2967 -> 0 | U57: =IF('Input-Infra'!$AI54>='Input-Gen'!$M$29,U1027,0) + U1997 + U4906 - U2967 -> 0 | V57: =IF('Input-Infra'!$AI54>='Input-Gen'!$M$29,V1027,0) + V1997 + V4906 - V2967 -> 0 | W57: =IF('Input-Infra'!$AI54>='Input-Gen'!$M$29,W1027,0) + W1997 + W4906 - W2967 -> 0 | X57: =IF('Input-Infra'!$AI54>='Input-Gen'!$M$29,X1027,0) + X1997 + X4906 - X2967 -> 0 | Y57: =IF('Input-Infra'!$AI54>='Input-Gen'!$M$29,Y1027,0) + Y1997 + Y4906 - Y2967 -> 0 | Z57: =IF('Input-Infra'!$AI54>='Input-Gen'!$M$29,Z1027,0) + Z1997 + Z4906 - Z2967 -> 0 | AA57: =IF('Input-Infra'!$AI54>='Input-Gen'!$M$29,AA1027,0) + AA1997 + AA4906 - AA2967 -> 598.7101339 | AB57: =IF('Input-Infra'!$AI54>='Input-Gen'!$M$29,AB1027,0) + AB1997 + AB4906 - AB2967 -> 0 | AC57: =IF('Input-Infra'!$AI54>='Input-Gen'!$M$29,AC1027,0) + AC1997 + AC4906 - AC2967 -> 0 | AD57: =IF('Input-Infra'!$AI54>='Input-Gen'!$M$29,AD1027,0) + AD1997 + AD4906 - AD2967 ->  | AE57: =IF('Input-Infra'!$AI54>='Input-Gen'!$M$29,AE1027,0) + AE1997 + AE4906 - AE2967 ->  | AF57: =IF('Input-Infra'!$AI54>='Input-Gen'!$M$29,AF1027,0) + AF1997 + AF4906 - AF2967 ->  | AG57: =IF('Input-Infra'!$AI54>='Input-Gen'!$M$29,AG1027,0) + AG1997 + AG4906 - AG2967 ->  | AH57: =IF('Input-Infra'!$AI54>='Input-Gen'!$M$29,AH1027,0) + AH1997 + AH4906 - AH2967 ->  | AI57: =IF('Input-Infra'!$AI54>='Input-Gen'!$M$29,AI1027,0) + AI1997 + AI4906 - AI2967 ->  | AJ57: =IF('Input-Infra'!$AI54>='Input-Gen'!$M$29,AJ1027,0) + AJ1997 + AJ4906 - AJ2967 ->  | AK57: =IF('Input-Infra'!$AI54>='Input-Gen'!$M$29,AK1027,0) + AK1997 + AK4906 - AK2967 ->  | AL57: =IF('Input-Infra'!$AI54>='Input-Gen'!$M$29,AL1027,0) + AL1997 + AL4906 - AL2967 ->  | AM57: =IF('Input-Infra'!$AI54>='Input-Gen'!$M$29,AM1027,0) + AM1997 + AM4906 - AM2967 -> 
G58: EAF-SP-001 | I58: $'000 | K58: 1394.645767 | Q58: 1656.818049 | S58: =IF('Input-Infra'!$AI55>='Input-Gen'!$M$29,S1028,0) + S1998 + S4907 - S2968 -> 0 | T58: =IF('Input-Infra'!$AI55>='Input-Gen'!$M$29,T1028,0) + T1998 + T4907 - T2968 -> 0 | U58: =IF('Input-Infra'!$AI55>='Input-Gen'!$M$29,U1028,0) + U1998 + U4907 - U2968 -> 0 | V58: =IF('Input-Infra'!$AI55>='Input-Gen'!$M$29,V1028,0) + V1998 + V4907 - V2968 -> 1656.818049 | W58: =IF('Input-Infra'!$AI55>='Input-Gen'!$M$29,W1028,0) + W1998 + W4907 - W2968 -> 0 | X58: =IF('Input-Infra'!$AI55>='Input-Gen'!$M$29,X1028,0) + X1998 + X4907 - X2968 -> 0 | Y58: =IF('Input-Infra'!$AI55>='Input-Gen'!$M$29,Y1028,0) + Y1998 + Y4907 - Y2968 -> 0 | Z58: =IF('Input-Infra'!$AI55>='Input-Gen'!$M$29,Z1028,0) + Z1998 + Z4907 - Z2968 -> 0 | AA58: =IF('Input-Infra'!$AI55>='Input-Gen'!$M$29,AA1028,0) + AA1998 + AA4907 - AA2968 -> 0 | AB58: =IF('Input-Infra'!$AI55>='Input-Gen'!$M$29,AB1028,0) + AB1998 + AB4907 - AB2968 -> 0 | AC58: =IF('Input-Infra'!$AI55>='Input-Gen'!$M$29,AC1028,0) + AC1998 + AC4907 - AC2968 -> 0 | AD58: =IF('Input-Infra'!$AI55>='Input-Gen'!$M$29,AD1028,0) + AD1998 + AD4907 - AD2968 ->  | AE58: =IF('Input-Infra'!$AI55>='Input-Gen'!$M$29,AE1028,0) + AE1998 + AE4907 - AE2968 ->  | AF58: =IF('Input-Infra'!$AI55>='Input-Gen'!$M$29,AF1028,0) + AF1998 + AF4907 - AF2968 ->  | AG58: =IF('Input-Infra'!$AI55>='Input-Gen'!$M$29,AG1028,0) + AG1998 + AG4907 - AG2968 ->  | AH58: =IF('Input-Infra'!$AI55>='Input-Gen'!$M$29,AH1028,0) + AH1998 + AH4907 - AH2968 ->  | AI58: =IF('Input-Infra'!$AI55>='Input-Gen'!$M$29,AI1028,0) + AI1998 + AI4907 - AI2968 ->  | AJ58: =IF('Input-Infra'!$AI55>='Input-Gen'!$M$29,AJ1028,0) + AJ1998 + AJ4907 - AJ2968 ->  | AK58: =IF('Input-Infra'!$AI55>='Input-Gen'!$M$29,AK1028,0) + AK1998 + AK4907 - AK2968 ->  | AL58: =IF('Input-Infra'!$AI55>='Input-Gen'!$M$29,AL1028,0) + AL1998 + AL4907 - AL2968 ->  | AM58: =IF('Input-Infra'!$AI55>='Input-Gen'!$M$29,AM1028,0) + AM1998 + AM4907 - AM2968 -> 
G59: EAF-SP-003 | I59: $'000 | K59: 1114.787102 | Q59: 1324.350193 | S59: =IF('Input-Infra'!$AI56>='Input-Gen'!$M$29,S1029,0) + S1999 + S4908 - S2969 -> 0 | T59: =IF('Input-Infra'!$AI56>='Input-Gen'!$M$29,T1029,0) + T1999 + T4908 - T2969 -> 0 | U59: =IF('Input-Infra'!$AI56>='Input-Gen'!$M$29,U1029,0) + U1999 + U4908 - U2969 -> 0 | V59: =IF('Input-Infra'!$AI56>='Input-Gen'!$M$29,V1029,0) + V1999 + V4908 - V2969 -> 1324.350193 | W59: =IF('Input-Infra'!$AI56>='Input-Gen'!$M$29,W1029,0) + W1999 + W4908 - W2969 -> 0 | X59: =IF('Input-Infra'!$AI56>='Input-Gen'!$M$29,X1029,0) + X1999 + X4908 - X2969 -> 0 | Y59: =IF('Input-Infra'!$AI56>='Input-Gen'!$M$29,Y1029,0) + Y1999 + Y4908 - Y2969 -> 0 | Z59: =IF('Input-Infra'!$AI56>='Input-Gen'!$M$29,Z1029,0) + Z1999 + Z4908 - Z2969 -> 0 | AA59: =IF('Input-Infra'!$AI56>='Input-Gen'!$M$29,AA1029,0) + AA1999 + AA4908 - AA2969 -> 0 | AB59: =IF('Input-Infra'!$AI56>='Input-Gen'!$M$29,AB1029,0) + AB1999 + AB4908 - AB2969 -> 0 | AC59: =IF('Input-Infra'!$AI56>='Input-Gen'!$M$29,AC1029,0) + AC1999 + AC4908 - AC2969 -> 0 | AD59: =IF('Input-Infra'!$AI56>='Input-Gen'!$M$29,AD1029,0) + AD1999 + AD4908 - AD2969 ->  | AE59: =IF('Input-Infra'!$AI56>='Input-Gen'!$M$29,AE1029,0) + AE1999 + AE4908 - AE2969 ->  | AF59: =IF('Input-Infra'!$AI56>='Input-Gen'!$M$29,AF1029,0) + AF1999 + AF4908 - AF2969 ->  | AG59: =IF('Input-Infra'!$AI56>='Input-Gen'!$M$29,AG1029,0) + AG1999 + AG4908 - AG2969 ->  | AH59: =IF('Input-Infra'!$AI56>='Input-Gen'!$M$29,AH1029,0) + AH1999 + AH4908 - AH2969 ->  | AI59: =IF('Input-Infra'!$AI56>='Input-Gen'!$M$29,AI1029,0) + AI1999 + AI4908 - AI2969 ->  | AJ59: =IF('Input-Infra'!$AI56>='Input-Gen'!$M$29,AJ1029,0) + AJ1999 + AJ4908 - AJ2969 ->  | AK59: =IF('Input-Infra'!$AI56>='Input-Gen'!$M$29,AK1029,0) + AK1999 + AK4908 - AK2969 ->  | AL59: =IF('Input-Infra'!$AI56>='Input-Gen'!$M$29,AL1029,0) + AL1999 + AL4908 - AL2969 ->  | AM59: =IF('Input-Infra'!$AI56>='Input-Gen'!$M$29,AM1029,0) + AM1999 + AM4908 - AM2969 -> 
G60: EAF-SP-005 | I60: $'000 | K60: 1607.493097 | Q60: 2544.748464 | S60: =IF('Input-Infra'!$AI57>='Input-Gen'!$M$29,S1030,0) + S2000 + S4909 - S2970 -> 0 | T60: =IF('Input-Infra'!$AI57>='Input-Gen'!$M$29,T1030,0) + T2000 + T4909 - T2970 -> 0 | U60: =IF('Input-Infra'!$AI57>='Input-Gen'!$M$29,U1030,0) + U2000 + U4909 - U2970 -> 0 | V60: =IF('Input-Infra'!$AI57>='Input-Gen'!$M$29,V1030,0) + V2000 + V4909 - V2970 -> 0 | W60: =IF('Input-Infra'!$AI57>='Input-Gen'!$M$29,W1030,0) + W2000 + W4909 - W2970 -> 0 | X60: =IF('Input-Infra'!$AI57>='Input-Gen'!$M$29,X1030,0) + X2000 + X4909 - X2970 -> 0 | Y60: =IF('Input-Infra'!$AI57>='Input-Gen'!$M$29,Y1030,0) + Y2000 + Y4909 - Y2970 -> 0 | Z60: =IF('Input-Infra'!$AI57>='Input-Gen'!$M$29,Z1030,0) + Z2000 + Z4909 - Z2970 -> 0 | AA60: =IF('Input-Infra'!$AI57>='Input-Gen'!$M$29,AA1030,0) + AA2000 + AA4909 - AA2970 -> 2544.748464 | AB60: =IF('Input-Infra'!$AI57>='Input-Gen'!$M$29,AB1030,0) + AB2000 + AB4909 - AB2970 -> 0 | AC60: =IF('Input-Infra'!$AI57>='Input-Gen'!$M$29,AC1030,0) + AC2000 + AC4909 - AC2970 -> 0 | AD60: =IF('Input-Infra'!$AI57>='Input-Gen'!$M$29,AD1030,0) + AD2000 + AD4909 - AD2970 ->  | AE60: =IF('Input-Infra'!$AI57>='Input-Gen'!$M$29,AE1030,0) + AE2000 + AE4909 - AE2970 ->  | AF60: =IF('Input-Infra'!$AI57>='Input-Gen'!$M$29,AF1030,0) + AF2000 + AF4909 - AF2970 ->  | AG60: =IF('Input-Infra'!$AI57>='Input-Gen'!$M$29,AG1030,0) + AG2000 + AG4909 - AG2970 ->  | AH60: =IF('Input-Infra'!$AI57>='Input-Gen'!$M$29,AH1030,0) + AH2000 + AH4909 - AH2970 ->  | AI60: =IF('Input-Infra'!$AI57>='Input-Gen'!$M$29,AI1030,0) + AI2000 + AI4909 - AI2970 ->  | AJ60: =IF('Input-Infra'!$AI57>='Input-Gen'!$M$29,AJ1030,0) + AJ2000 + AJ4909 - AJ2970 ->  | AK60: =IF('Input-Infra'!$AI57>='Input-Gen'!$M$29,AK1030,0) + AK2000 + AK4909 - AK2970 ->  | AL60: =IF('Input-Infra'!$AI57>='Input-Gen'!$M$29,AL1030,0) + AL2000 + AL4909 - AL2970 ->  | AM60: =IF('Input-Infra'!$AI57>='Input-Gen'!$M$29,AM1030,0) + AM2000 + AM4909 - AM2970 -> 
G61: ELG-SP-002 | I61: $'000 | K61: 1046.595421 | Q61: 1656.817124 | S61: =IF('Input-Infra'!$AI58>='Input-Gen'!$M$29,S1031,0) + S2001 + S4910 - S2971 -> 0 | T61: =IF('Input-Infra'!$AI58>='Input-Gen'!$M$29,T1031,0) + T2001 + T4910 - T2971 -> 0 | U61: =IF('Input-Infra'!$AI58>='Input-Gen'!$M$29,U1031,0) + U2001 + U4910 - U2971 -> 0 | V61: =IF('Input-Infra'!$AI58>='Input-Gen'!$M$29,V1031,0) + V2001 + V4910 - V2971 -> 0 | W61: =IF('Input-Infra'!$AI58>='Input-Gen'!$M$29,W1031,0) + W2001 + W4910 - W2971 -> 0 | X61: =IF('Input-Infra'!$AI58>='Input-Gen'!$M$29,X1031,0) + X2001 + X4910 - X2971 -> 0 | Y61: =IF('Input-Infra'!$AI58>='Input-Gen'!$M$29,Y1031,0) + Y2001 + Y4910 - Y2971 -> 0 | Z61: =IF('Input-Infra'!$AI58>='Input-Gen'!$M$29,Z1031,0) + Z2001 + Z4910 - Z2971 -> 0 | AA61: =IF('Input-Infra'!$AI58>='Input-Gen'!$M$29,AA1031,0) + AA2001 + AA4910 - AA2971 -> 1656.817124 | AB61: =IF('Input-Infra'!$AI58>='Input-Gen'!$M$29,AB1031,0) + AB2001 + AB4910 - AB2971 -> 0 | AC61: =IF('Input-Infra'!$AI58>='Input-Gen'!$M$29,AC1031,0) + AC2001 + AC4910 - AC2971 -> 0 | AD61: =IF('Input-Infra'!$AI58>='Input-Gen'!$M$29,AD1031,0) + AD2001 + AD4910 - AD2971 ->  | AE61: =IF('Input-Infra'!$AI58>='Input-Gen'!$M$29,AE1031,0) + AE2001 + AE4910 - AE2971 ->  | AF61: =IF('Input-Infra'!$AI58>='Input-Gen'!$M$29,AF1031,0) + AF2001 + AF4910 - AF2971 ->  | AG61: =IF('Input-Infra'!$AI58>='Input-Gen'!$M$29,AG1031,0) + AG2001 + AG4910 - AG2971 ->  | AH61: =IF('Input-Infra'!$AI58>='Input-Gen'!$M$29,AH1031,0) + AH2001 + AH4910 - AH2971 ->  | AI61: =IF('Input-Infra'!$AI58>='Input-Gen'!$M$29,AI1031,0) + AI2001 + AI4910 - AI2971 ->  | AJ61: =IF('Input-Infra'!$AI58>='Input-Gen'!$M$29,AJ1031,0) + AJ2001 + AJ4910 - AJ2971 ->  | AK61: =IF('Input-Infra'!$AI58>='Input-Gen'!$M$29,AK1031,0) + AK2001 + AK4910 - AK2971 ->  | AL61: =IF('Input-Infra'!$AI58>='Input-Gen'!$M$29,AL1031,0) + AL2001 + AL4910 - AL2971 ->  | AM61: =IF('Input-Infra'!$AI58>='Input-Gen'!$M$29,AM1031,0) + AM2001 + AM4910 - AM2971 -> 
G62: EMP-SP-001 | I62: $'000 | K62: 1605.154338 | Q62: 1906.899043 | S62: =IF('Input-Infra'!$AI59>='Input-Gen'!$M$29,S1032,0) + S2002 + S4911 - S2972 -> 0 | T62: =IF('Input-Infra'!$AI59>='Input-Gen'!$M$29,T1032,0) + T2002 + T4911 - T2972 -> 0 | U62: =IF('Input-Infra'!$AI59>='Input-Gen'!$M$29,U1032,0) + U2002 + U4911 - U2972 -> 0 | V62: =IF('Input-Infra'!$AI59>='Input-Gen'!$M$29,V1032,0) + V2002 + V4911 - V2972 -> 1906.899043 | W62: =IF('Input-Infra'!$AI59>='Input-Gen'!$M$29,W1032,0) + W2002 + W4911 - W2972 -> 0 | X62: =IF('Input-Infra'!$AI59>='Input-Gen'!$M$29,X1032,0) + X2002 + X4911 - X2972 -> 0 | Y62: =IF('Input-Infra'!$AI59>='Input-Gen'!$M$29,Y1032,0) + Y2002 + Y4911 - Y2972 -> 0 | Z62: =IF('Input-Infra'!$AI59>='Input-Gen'!$M$29,Z1032,0) + Z2002 + Z4911 - Z2972 -> 0 | AA62: =IF('Input-Infra'!$AI59>='Input-Gen'!$M$29,AA1032,0) + AA2002 + AA4911 - AA2972 -> 0 | AB62: =IF('Input-Infra'!$AI59>='Input-Gen'!$M$29,AB1032,0) + AB2002 + AB4911 - AB2972 -> 0 | AC62: =IF('Input-Infra'!$AI59>='Input-Gen'!$M$29,AC1032,0) + AC2002 + AC4911 - AC2972 -> 0 | AD62: =IF('Input-Infra'!$AI59>='Input-Gen'!$M$29,AD1032,0) + AD2002 + AD4911 - AD2972 ->  | AE62: =IF('Input-Infra'!$AI59>='Input-Gen'!$M$29,AE1032,0) + AE2002 + AE4911 - AE2972 ->  | AF62: =IF('Input-Infra'!$AI59>='Input-Gen'!$M$29,AF1032,0) + AF2002 + AF4911 - AF2972 ->  | AG62: =IF('Input-Infra'!$AI59>='Input-Gen'!$M$29,AG1032,0) + AG2002 + AG4911 - AG2972 ->  | AH62: =IF('Input-Infra'!$AI59>='Input-Gen'!$M$29,AH1032,0) + AH2002 + AH4911 - AH2972 ->  | AI62: =IF('Input-Infra'!$AI59>='Input-Gen'!$M$29,AI1032,0) + AI2002 + AI4911 - AI2972 ->  | AJ62: =IF('Input-Infra'!$AI59>='Input-Gen'!$M$29,AJ1032,0) + AJ2002 + AJ4911 - AJ2972 ->  | AK62: =IF('Input-Infra'!$AI59>='Input-Gen'!$M$29,AK1032,0) + AK2002 + AK4911 - AK2972 ->  | AL62: =IF('Input-Infra'!$AI59>='Input-Gen'!$M$29,AL1032,0) + AL2002 + AL4911 - AL2972 ->  | AM62: =IF('Input-Infra'!$AI59>='Input-Gen'!$M$29,AM1032,0) + AM2002 + AM4911 - AM2972 -> 
G63: EMP-SP-004 | I63: $'000 | K63: 1017.898823 | Q63: 1611.388858 | S63: =IF('Input-Infra'!$AI60>='Input-Gen'!$M$29,S1033,0) + S2003 + S4912 - S2973 -> 0 | T63: =IF('Input-Infra'!$AI60>='Input-Gen'!$M$29,T1033,0) + T2003 + T4912 - T2973 -> 0 | U63: =IF('Input-Infra'!$AI60>='Input-Gen'!$M$29,U1033,0) + U2003 + U4912 - U2973 -> 0 | V63: =IF('Input-Infra'!$AI60>='Input-Gen'!$M$29,V1033,0) + V2003 + V4912 - V2973 -> 0 | W63: =IF('Input-Infra'!$AI60>='Input-Gen'!$M$29,W1033,0) + W2003 + W4912 - W2973 -> 0 | X63: =IF('Input-Infra'!$AI60>='Input-Gen'!$M$29,X1033,0) + X2003 + X4912 - X2973 -> 0 | Y63: =IF('Input-Infra'!$AI60>='Input-Gen'!$M$29,Y1033,0) + Y2003 + Y4912 - Y2973 -> 0 | Z63: =IF('Input-Infra'!$AI60>='Input-Gen'!$M$29,Z1033,0) + Z2003 + Z4912 - Z2973 -> 0 | AA63: =IF('Input-Infra'!$AI60>='Input-Gen'!$M$29,AA1033,0) + AA2003 + AA4912 - AA2973 -> 1611.388858 | AB63: =IF('Input-Infra'!$AI60>='Input-Gen'!$M$29,AB1033,0) + AB2003 + AB4912 - AB2973 -> 0 | AC63: =IF('Input-Infra'!$AI60>='Input-Gen'!$M$29,AC1033,0) + AC2003 + AC4912 - AC2973 -> 0 | AD63: =IF('Input-Infra'!$AI60>='Input-Gen'!$M$29,AD1033,0) + AD2003 + AD4912 - AD2973 ->  | AE63: =IF('Input-Infra'!$AI60>='Input-Gen'!$M$29,AE1033,0) + AE2003 + AE4912 - AE2973 ->  | AF63: =IF('Input-Infra'!$AI60>='Input-Gen'!$M$29,AF1033,0) + AF2003 + AF4912 - AF2973 ->  | AG63: =IF('Input-Infra'!$AI60>='Input-Gen'!$M$29,AG1033,0) + AG2003 + AG4912 - AG2973 ->  | AH63: =IF('Input-Infra'!$AI60>='Input-Gen'!$M$29,AH1033,0) + AH2003 + AH4912 - AH2973 ->  | AI63: =IF('Input-Infra'!$AI60>='Input-Gen'!$M$29,AI1033,0) + AI2003 + AI4912 - AI2973 ->  | AJ63: =IF('Input-Infra'!$AI60>='Input-Gen'!$M$29,AJ1033,0) + AJ2003 + AJ4912 - AJ2973 ->  | AK63: =IF('Input-Infra'!$AI60>='Input-Gen'!$M$29,AK1033,0) + AK2003 + AK4912 - AK2973 ->  | AL63: =IF('Input-Infra'!$AI60>='Input-Gen'!$M$29,AL1033,0) + AL2003 + AL4912 - AL2973 ->  | AM63: =IF('Input-Infra'!$AI60>='Input-Gen'!$M$29,AM1033,0) + AM2003 + AM4912 - AM2973 -> 
G64: ENG-SB-001 | I64: $'000 | K64: 1058.687258 | Q64: 1675.959155 | S64: =IF('Input-Infra'!$AI61>='Input-Gen'!$M$29,S1034,0) + S2004 + S4913 - S2974 -> 0 | T64: =IF('Input-Infra'!$AI61>='Input-Gen'!$M$29,T1034,0) + T2004 + T4913 - T2974 -> 0 | U64: =IF('Input-Infra'!$AI61>='Input-Gen'!$M$29,U1034,0) + U2004 + U4913 - U2974 -> 0 | V64: =IF('Input-Infra'!$AI61>='Input-Gen'!$M$29,V1034,0) + V2004 + V4913 - V2974 -> 0 | W64: =IF('Input-Infra'!$AI61>='Input-Gen'!$M$29,W1034,0) + W2004 + W4913 - W2974 -> 0 | X64: =IF('Input-Infra'!$AI61>='Input-Gen'!$M$29,X1034,0) + X2004 + X4913 - X2974 -> 0 | Y64: =IF('Input-Infra'!$AI61>='Input-Gen'!$M$29,Y1034,0) + Y2004 + Y4913 - Y2974 -> 0 | Z64: =IF('Input-Infra'!$AI61>='Input-Gen'!$M$29,Z1034,0) + Z2004 + Z4913 - Z2974 -> 0 | AA64: =IF('Input-Infra'!$AI61>='Input-Gen'!$M$29,AA1034,0) + AA2004 + AA4913 - AA2974 -> 1675.959155 | AB64: =IF('Input-Infra'!$AI61>='Input-Gen'!$M$29,AB1034,0) + AB2004 + AB4913 - AB2974 -> 0 | AC64: =IF('Input-Infra'!$AI61>='Input-Gen'!$M$29,AC1034,0) + AC2004 + AC4913 - AC2974 -> 0 | AD64: =IF('Input-Infra'!$AI61>='Input-Gen'!$M$29,AD1034,0) + AD2004 + AD4913 - AD2974 ->  | AE64: =IF('Input-Infra'!$AI61>='Input-Gen'!$M$29,AE1034,0) + AE2004 + AE4913 - AE2974 ->  | AF64: =IF('Input-Infra'!$AI61>='Input-Gen'!$M$29,AF1034,0) + AF2004 + AF4913 - AF2974 ->  | AG64: =IF('Input-Infra'!$AI61>='Input-Gen'!$M$29,AG1034,0) + AG2004 + AG4913 - AG2974 ->  | AH64: =IF('Input-Infra'!$AI61>='Input-Gen'!$M$29,AH1034,0) + AH2004 + AH4913 - AH2974 ->  | AI64: =IF('Input-Infra'!$AI61>='Input-Gen'!$M$29,AI1034,0) + AI2004 + AI4913 - AI2974 ->  | AJ64: =IF('Input-Infra'!$AI61>='Input-Gen'!$M$29,AJ1034,0) + AJ2004 + AJ4913 - AJ2974 ->  | AK64: =IF('Input-Infra'!$AI61>='Input-Gen'!$M$29,AK1034,0) + AK2004 + AK4913 - AK2974 ->  | AL64: =IF('Input-Infra'!$AI61>='Input-Gen'!$M$29,AL1034,0) + AL2004 + AL4913 - AL2974 ->  | AM64: =IF('Input-Infra'!$AI61>='Input-Gen'!$M$29,AM1034,0) + AM2004 + AM4913 - AM2974 -> 
G65: EVP-SP-001 | I65: $'000 | K65: 1446.401413 | Q65: 2289.731621 | S65: =IF('Input-Infra'!$AI62>='Input-Gen'!$M$29,S1035,0) + S2005 + S4914 - S2975 -> 0 | T65: =IF('Input-Infra'!$AI62>='Input-Gen'!$M$29,T1035,0) + T2005 + T4914 - T2975 -> 0 | U65: =IF('Input-Infra'!$AI62>='Input-Gen'!$M$29,U1035,0) + U2005 + U4914 - U2975 -> 0 | V65: =IF('Input-Infra'!$AI62>='Input-Gen'!$M$29,V1035,0) + V2005 + V4914 - V2975 -> 0 | W65: =IF('Input-Infra'!$AI62>='Input-Gen'!$M$29,W1035,0) + W2005 + W4914 - W2975 -> 0 | X65: =IF('Input-Infra'!$AI62>='Input-Gen'!$M$29,X1035,0) + X2005 + X4914 - X2975 -> 0 | Y65: =IF('Input-Infra'!$AI62>='Input-Gen'!$M$29,Y1035,0) + Y2005 + Y4914 - Y2975 -> 0 | Z65: =IF('Input-Infra'!$AI62>='Input-Gen'!$M$29,Z1035,0) + Z2005 + Z4914 - Z2975 -> 0 | AA65: =IF('Input-Infra'!$AI62>='Input-Gen'!$M$29,AA1035,0) + AA2005 + AA4914 - AA2975 -> 2289.731621 | AB65: =IF('Input-Infra'!$AI62>='Input-Gen'!$M$29,AB1035,0) + AB2005 + AB4914 - AB2975 -> 0 | AC65: =IF('Input-Infra'!$AI62>='Input-Gen'!$M$29,AC1035,0) + AC2005 + AC4914 - AC2975 -> 0 | AD65: =IF('Input-Infra'!$AI62>='Input-Gen'!$M$29,AD1035,0) + AD2005 + AD4914 - AD2975 ->  | AE65: =IF('Input-Infra'!$AI62>='Input-Gen'!$M$29,AE1035,0) + AE2005 + AE4914 - AE2975 ->  | AF65: =IF('Input-Infra'!$AI62>='Input-Gen'!$M$29,AF1035,0) + AF2005 + AF4914 - AF2975 ->  | AG65: =IF('Input-Infra'!$AI62>='Input-Gen'!$M$29,AG1035,0) + AG2005 + AG4914 - AG2975 ->  | AH65: =IF('Input-Infra'!$AI62>='Input-Gen'!$M$29,AH1035,0) + AH2005 + AH4914 - AH2975 ->  | AI65: =IF('Input-Infra'!$AI62>='Input-Gen'!$M$29,AI1035,0) + AI2005 + AI4914 - AI2975 ->  | AJ65: =IF('Input-Infra'!$AI62>='Input-Gen'!$M$29,AJ1035,0) + AJ2005 + AJ4914 - AJ2975 ->  | AK65: =IF('Input-Infra'!$AI62>='Input-Gen'!$M$29,AK1035,0) + AK2005 + AK4914 - AK2975 ->  | AL65: =IF('Input-Infra'!$AI62>='Input-Gen'!$M$29,AL1035,0) + AL2005 + AL4914 - AL2975 ->  | AM65: =IF('Input-Infra'!$AI62>='Input-Gen'!$M$29,AM1035,0) + AM2005 + AM4914 - AM2975 -> 
G66: FGR-SP-003 | I66: $'000 | K66: 1371.164685 | Q66: 2170.627813 | S66: =IF('Input-Infra'!$AI63>='Input-Gen'!$M$29,S1036,0) + S2006 + S4915 - S2976 -> 0 | T66: =IF('Input-Infra'!$AI63>='Input-Gen'!$M$29,T1036,0) + T2006 + T4915 - T2976 -> 0 | U66: =IF('Input-Infra'!$AI63>='Input-Gen'!$M$29,U1036,0) + U2006 + U4915 - U2976 -> 0 | V66: =IF('Input-Infra'!$AI63>='Input-Gen'!$M$29,V1036,0) + V2006 + V4915 - V2976 -> 0 | W66: =IF('Input-Infra'!$AI63>='Input-Gen'!$M$29,W1036,0) + W2006 + W4915 - W2976 -> 0 | X66: =IF('Input-Infra'!$AI63>='Input-Gen'!$M$29,X1036,0) + X2006 + X4915 - X2976 -> 0 | Y66: =IF('Input-Infra'!$AI63>='Input-Gen'!$M$29,Y1036,0) + Y2006 + Y4915 - Y2976 -> 0 | Z66: =IF('Input-Infra'!$AI63>='Input-Gen'!$M$29,Z1036,0) + Z2006 + Z4915 - Z2976 -> 0 | AA66: =IF('Input-Infra'!$AI63>='Input-Gen'!$M$29,AA1036,0) + AA2006 + AA4915 - AA2976 -> 2170.627813 | AB66: =IF('Input-Infra'!$AI63>='Input-Gen'!$M$29,AB1036,0) + AB2006 + AB4915 - AB2976 -> 0 | AC66: =IF('Input-Infra'!$AI63>='Input-Gen'!$M$29,AC1036,0) + AC2006 + AC4915 - AC2976 -> 0 | AD66: =IF('Input-Infra'!$AI63>='Input-Gen'!$M$29,AD1036,0) + AD2006 + AD4915 - AD2976 ->  | AE66: =IF('Input-Infra'!$AI63>='Input-Gen'!$M$29,AE1036,0) + AE2006 + AE4915 - AE2976 ->  | AF66: =IF('Input-Infra'!$AI63>='Input-Gen'!$M$29,AF1036,0) + AF2006 + AF4915 - AF2976 ->  | AG66: =IF('Input-Infra'!$AI63>='Input-Gen'!$M$29,AG1036,0) + AG2006 + AG4915 - AG2976 ->  | AH66: =IF('Input-Infra'!$AI63>='Input-Gen'!$M$29,AH1036,0) + AH2006 + AH4915 - AH2976 ->  | AI66: =IF('Input-Infra'!$AI63>='Input-Gen'!$M$29,AI1036,0) + AI2006 + AI4915 - AI2976 ->  | AJ66: =IF('Input-Infra'!$AI63>='Input-Gen'!$M$29,AJ1036,0) + AJ2006 + AJ4915 - AJ2976 ->  | AK66: =IF('Input-Infra'!$AI63>='Input-Gen'!$M$29,AK1036,0) + AK2006 + AK4915 - AK2976 ->  | AL66: =IF('Input-Infra'!$AI63>='Input-Gen'!$M$29,AL1036,0) + AL2006 + AL4915 - AL2976 ->  | AM66: =IF('Input-Infra'!$AI63>='Input-Gen'!$M$29,AM1036,0) + AM2006 + AM4915 - AM2976 -> 
G67: FGR-SP-004 | I67: $'000 | K67: 221.0889495 | Q67: 349.9957578 | S67: =IF('Input-Infra'!$AI64>='Input-Gen'!$M$29,S1037,0) + S2007 + S4916 - S2977 -> 0 | T67: =IF('Input-Infra'!$AI64>='Input-Gen'!$M$29,T1037,0) + T2007 + T4916 - T2977 -> 0 | U67: =IF('Input-Infra'!$AI64>='Input-Gen'!$M$29,U1037,0) + U2007 + U4916 - U2977 -> 0 | V67: =IF('Input-Infra'!$AI64>='Input-Gen'!$M$29,V1037,0) + V2007 + V4916 - V2977 -> 0 | W67: =IF('Input-Infra'!$AI64>='Input-Gen'!$M$29,W1037,0) + W2007 + W4916 - W2977 -> 0 | X67: =IF('Input-Infra'!$AI64>='Input-Gen'!$M$29,X1037,0) + X2007 + X4916 - X2977 -> 0 | Y67: =IF('Input-Infra'!$AI64>='Input-Gen'!$M$29,Y1037,0) + Y2007 + Y4916 - Y2977 -> 0 | Z67: =IF('Input-Infra'!$AI64>='Input-Gen'!$M$29,Z1037,0) + Z2007 + Z4916 - Z2977 -> 0 | AA67: =IF('Input-Infra'!$AI64>='Input-Gen'!$M$29,AA1037,0) + AA2007 + AA4916 - AA2977 -> 349.9957578 | AB67: =IF('Input-Infra'!$AI64>='Input-Gen'!$M$29,AB1037,0) + AB2007 + AB4916 - AB2977 -> 0 | AC67: =IF('Input-Infra'!$AI64>='Input-Gen'!$M$29,AC1037,0) + AC2007 + AC4916 - AC2977 -> 0 | AD67: =IF('Input-Infra'!$AI64>='Input-Gen'!$M$29,AD1037,0) + AD2007 + AD4916 - AD2977 ->  | AE67: =IF('Input-Infra'!$AI64>='Input-Gen'!$M$29,AE1037,0) + AE2007 + AE4916 - AE2977 ->  | AF67: =IF('Input-Infra'!$AI64>='Input-Gen'!$M$29,AF1037,0) + AF2007 + AF4916 - AF2977 ->  | AG67: =IF('Input-Infra'!$AI64>='Input-Gen'!$M$29,AG1037,0) + AG2007 + AG4916 - AG2977 ->  | AH67: =IF('Input-Infra'!$AI64>='Input-Gen'!$M$29,AH1037,0) + AH2007 + AH4916 - AH2977 ->  | AI67: =IF('Input-Infra'!$AI64>='Input-Gen'!$M$29,AI1037,0) + AI2007 + AI4916 - AI2977 ->  | AJ67: =IF('Input-Infra'!$AI64>='Input-Gen'!$M$29,AJ1037,0) + AJ2007 + AJ4916 - AJ2977 ->  | AK67: =IF('Input-Infra'!$AI64>='Input-Gen'!$M$29,AK1037,0) + AK2007 + AK4916 - AK2977 ->  | AL67: =IF('Input-Infra'!$AI64>='Input-Gen'!$M$29,AL1037,0) + AL2007 + AL4916 - AL2977 ->  | AM67: =IF('Input-Infra'!$AI64>='Input-Gen'!$M$29,AM1037,0) + AM2007 + AM4916 - AM2977 -> 
G68: FLK-SP-002 | I68: $'000 | K68: 757.9835402 | Q68: 1199.928916 | S68: =IF('Input-Infra'!$AI65>='Input-Gen'!$M$29,S1038,0) + S2008 + S4917 - S2978 -> 0 | T68: =IF('Input-Infra'!$AI65>='Input-Gen'!$M$29,T1038,0) + T2008 + T4917 - T2978 -> 0 | U68: =IF('Input-Infra'!$AI65>='Input-Gen'!$M$29,U1038,0) + U2008 + U4917 - U2978 -> 0 | V68: =IF('Input-Infra'!$AI65>='Input-Gen'!$M$29,V1038,0) + V2008 + V4917 - V2978 -> 0 | W68: =IF('Input-Infra'!$AI65>='Input-Gen'!$M$29,W1038,0) + W2008 + W4917 - W2978 -> 0 | X68: =IF('Input-Infra'!$AI65>='Input-Gen'!$M$29,X1038,0) + X2008 + X4917 - X2978 -> 0 | Y68: =IF('Input-Infra'!$AI65>='Input-Gen'!$M$29,Y1038,0) + Y2008 + Y4917 - Y2978 -> 0 | Z68: =IF('Input-Infra'!$AI65>='Input-Gen'!$M$29,Z1038,0) + Z2008 + Z4917 - Z2978 -> 0 | AA68: =IF('Input-Infra'!$AI65>='Input-Gen'!$M$29,AA1038,0) + AA2008 + AA4917 - AA2978 -> 1199.928916 | AB68: =IF('Input-Infra'!$AI65>='Input-Gen'!$M$29,AB1038,0) + AB2008 + AB4917 - AB2978 -> 0 | AC68: =IF('Input-Infra'!$AI65>='Input-Gen'!$M$29,AC1038,0) + AC2008 + AC4917 - AC2978 -> 0 | AD68: =IF('Input-Infra'!$AI65>='Input-Gen'!$M$29,AD1038,0) + AD2008 + AD4917 - AD2978 ->  | AE68: =IF('Input-Infra'!$AI65>='Input-Gen'!$M$29,AE1038,0) + AE2008 + AE4917 - AE2978 ->  | AF68: =IF('Input-Infra'!$AI65>='Input-Gen'!$M$29,AF1038,0) + AF2008 + AF4917 - AF2978 ->  | AG68: =IF('Input-Infra'!$AI65>='Input-Gen'!$M$29,AG1038,0) + AG2008 + AG4917 - AG2978 ->  | AH68: =IF('Input-Infra'!$AI65>='Input-Gen'!$M$29,AH1038,0) + AH2008 + AH4917 - AH2978 ->  | AI68: =IF('Input-Infra'!$AI65>='Input-Gen'!$M$29,AI1038,0) + AI2008 + AI4917 - AI2978 ->  | AJ68: =IF('Input-Infra'!$AI65>='Input-Gen'!$M$29,AJ1038,0) + AJ2008 + AJ4917 - AJ2978 ->  | AK68: =IF('Input-Infra'!$AI65>='Input-Gen'!$M$29,AK1038,0) + AK2008 + AK4917 - AK2978 ->  | AL68: =IF('Input-Infra'!$AI65>='Input-Gen'!$M$29,AL1038,0) + AL2008 + AL4917 - AL2978 ->  | AM68: =IF('Input-Infra'!$AI65>='Input-Gen'!$M$29,AM1038,0) + AM2008 + AM4917 - AM2978 -> 
G69: HEA-SP-001 | I69: $'000 | K69: 2276.097926 | Q69: 2703.969864 | S69: =IF('Input-Infra'!$AI66>='Input-Gen'!$M$29,S1039,0) + S2009 + S4918 - S2979 -> 0 | T69: =IF('Input-Infra'!$AI66>='Input-Gen'!$M$29,T1039,0) + T2009 + T4918 - T2979 -> 0 | U69: =IF('Input-Infra'!$AI66>='Input-Gen'!$M$29,U1039,0) + U2009 + U4918 - U2979 -> 0 | V69: =IF('Input-Infra'!$AI66>='Input-Gen'!$M$29,V1039,0) + V2009 + V4918 - V2979 -> 2703.969864 | W69: =IF('Input-Infra'!$AI66>='Input-Gen'!$M$29,W1039,0) + W2009 + W4918 - W2979 -> 0 | X69: =IF('Input-Infra'!$AI66>='Input-Gen'!$M$29,X1039,0) + X2009 + X4918 - X2979 -> 0 | Y69: =IF('Input-Infra'!$AI66>='Input-Gen'!$M$29,Y1039,0) + Y2009 + Y4918 - Y2979 -> 0 | Z69: =IF('Input-Infra'!$AI66>='Input-Gen'!$M$29,Z1039,0) + Z2009 + Z4918 - Z2979 -> 0 | AA69: =IF('Input-Infra'!$AI66>='Input-Gen'!$M$29,AA1039,0) + AA2009 + AA4918 - AA2979 -> 0 | AB69: =IF('Input-Infra'!$AI66>='Input-Gen'!$M$29,AB1039,0) + AB2009 + AB4918 - AB2979 -> 0 | AC69: =IF('Input-Infra'!$AI66>='Input-Gen'!$M$29,AC1039,0) + AC2009 + AC4918 - AC2979 -> 0 | AD69: =IF('Input-Infra'!$AI66>='Input-Gen'!$M$29,AD1039,0) + AD2009 + AD4918 - AD2979 ->  | AE69: =IF('Input-Infra'!$AI66>='Input-Gen'!$M$29,AE1039,0) + AE2009 + AE4918 - AE2979 ->  | AF69: =IF('Input-Infra'!$AI66>='Input-Gen'!$M$29,AF1039,0) + AF2009 + AF4918 - AF2979 ->  | AG69: =IF('Input-Infra'!$AI66>='Input-Gen'!$M$29,AG1039,0) + AG2009 + AG4918 - AG2979 ->  | AH69: =IF('Input-Infra'!$AI66>='Input-Gen'!$M$29,AH1039,0) + AH2009 + AH4918 - AH2979 ->  | AI69: =IF('Input-Infra'!$AI66>='Input-Gen'!$M$29,AI1039,0) + AI2009 + AI4918 - AI2979 ->  | AJ69: =IF('Input-Infra'!$AI66>='Input-Gen'!$M$29,AJ1039,0) + AJ2009 + AJ4918 - AJ2979 ->  | AK69: =IF('Input-Infra'!$AI66>='Input-Gen'!$M$29,AK1039,0) + AK2009 + AK4918 - AK2979 ->  | AL69: =IF('Input-Infra'!$AI66>='Input-Gen'!$M$29,AL1039,0) + AL2009 + AL4918 - AL2979 ->  | AM69: =IF('Input-Infra'!$AI66>='Input-Gen'!$M$29,AM1039,0) + AM2009 + AM4918 - AM2979 -> 
G70: HER-SP-001 | I70: $'000 | K70: 483.7901882 | Q70: 765.8660188 | S70: =IF('Input-Infra'!$AI67>='Input-Gen'!$M$29,S1040,0) + S2010 + S4919 - S2980 -> 0 | T70: =IF('Input-Infra'!$AI67>='Input-Gen'!$M$29,T1040,0) + T2010 + T4919 - T2980 -> 0 | U70: =IF('Input-Infra'!$AI67>='Input-Gen'!$M$29,U1040,0) + U2010 + U4919 - U2980 -> 0 | V70: =IF('Input-Infra'!$AI67>='Input-Gen'!$M$29,V1040,0) + V2010 + V4919 - V2980 -> 0 | W70: =IF('Input-Infra'!$AI67>='Input-Gen'!$M$29,W1040,0) + W2010 + W4919 - W2980 -> 0 | X70: =IF('Input-Infra'!$AI67>='Input-Gen'!$M$29,X1040,0) + X2010 + X4919 - X2980 -> 0 | Y70: =IF('Input-Infra'!$AI67>='Input-Gen'!$M$29,Y1040,0) + Y2010 + Y4919 - Y2980 -> 0 | Z70: =IF('Input-Infra'!$AI67>='Input-Gen'!$M$29,Z1040,0) + Z2010 + Z4919 - Z2980 -> 0 | AA70: =IF('Input-Infra'!$AI67>='Input-Gen'!$M$29,AA1040,0) + AA2010 + AA4919 - AA2980 -> 765.8660188 | AB70: =IF('Input-Infra'!$AI67>='Input-Gen'!$M$29,AB1040,0) + AB2010 + AB4919 - AB2980 -> 0 | AC70: =IF('Input-Infra'!$AI67>='Input-Gen'!$M$29,AC1040,0) + AC2010 + AC4919 - AC2980 -> 0 | AD70: =IF('Input-Infra'!$AI67>='Input-Gen'!$M$29,AD1040,0) + AD2010 + AD4919 - AD2980 ->  | AE70: =IF('Input-Infra'!$AI67>='Input-Gen'!$M$29,AE1040,0) + AE2010 + AE4919 - AE2980 ->  | AF70: =IF('Input-Infra'!$AI67>='Input-Gen'!$M$29,AF1040,0) + AF2010 + AF4919 - AF2980 ->  | AG70: =IF('Input-Infra'!$AI67>='Input-Gen'!$M$29,AG1040,0) + AG2010 + AG4919 - AG2980 ->  | AH70: =IF('Input-Infra'!$AI67>='Input-Gen'!$M$29,AH1040,0) + AH2010 + AH4919 - AH2980 ->  | AI70: =IF('Input-Infra'!$AI67>='Input-Gen'!$M$29,AI1040,0) + AI2010 + AI4919 - AI2980 ->  | AJ70: =IF('Input-Infra'!$AI67>='Input-Gen'!$M$29,AJ1040,0) + AJ2010 + AJ4919 - AJ2980 ->  | AK70: =IF('Input-Infra'!$AI67>='Input-Gen'!$M$29,AK1040,0) + AK2010 + AK4919 - AK2980 ->  | AL70: =IF('Input-Infra'!$AI67>='Input-Gen'!$M$29,AL1040,0) + AL2010 + AL4919 - AL2980 ->  | AM70: =IF('Input-Infra'!$AI67>='Input-Gen'!$M$29,AM1040,0) + AM2010 + AM4919 - AM2980 -> 
G71: HPW-SP-001 | I71: $'000 | K71: 477.0383892 | Q71: 755.177556 | S71: =IF('Input-Infra'!$AI68>='Input-Gen'!$M$29,S1041,0) + S2011 + S4920 - S2981 -> 0 | T71: =IF('Input-Infra'!$AI68>='Input-Gen'!$M$29,T1041,0) + T2011 + T4920 - T2981 -> 0 | U71: =IF('Input-Infra'!$AI68>='Input-Gen'!$M$29,U1041,0) + U2011 + U4920 - U2981 -> 0 | V71: =IF('Input-Infra'!$AI68>='Input-Gen'!$M$29,V1041,0) + V2011 + V4920 - V2981 -> 0 | W71: =IF('Input-Infra'!$AI68>='Input-Gen'!$M$29,W1041,0) + W2011 + W4920 - W2981 -> 0 | X71: =IF('Input-Infra'!$AI68>='Input-Gen'!$M$29,X1041,0) + X2011 + X4920 - X2981 -> 0 | Y71: =IF('Input-Infra'!$AI68>='Input-Gen'!$M$29,Y1041,0) + Y2011 + Y4920 - Y2981 -> 0 | Z71: =IF('Input-Infra'!$AI68>='Input-Gen'!$M$29,Z1041,0) + Z2011 + Z4920 - Z2981 -> 0 | AA71: =IF('Input-Infra'!$AI68>='Input-Gen'!$M$29,AA1041,0) + AA2011 + AA4920 - AA2981 -> 755.177556 | AB71: =IF('Input-Infra'!$AI68>='Input-Gen'!$M$29,AB1041,0) + AB2011 + AB4920 - AB2981 -> 0 | AC71: =IF('Input-Infra'!$AI68>='Input-Gen'!$M$29,AC1041,0) + AC2011 + AC4920 - AC2981 -> 0 | AD71: =IF('Input-Infra'!$AI68>='Input-Gen'!$M$29,AD1041,0) + AD2011 + AD4920 - AD2981 ->  | AE71: =IF('Input-Infra'!$AI68>='Input-Gen'!$M$29,AE1041,0) + AE2011 + AE4920 - AE2981 ->  | AF71: =IF('Input-Infra'!$AI68>='Input-Gen'!$M$29,AF1041,0) + AF2011 + AF4920 - AF2981 ->  | AG71: =IF('Input-Infra'!$AI68>='Input-Gen'!$M$29,AG1041,0) + AG2011 + AG4920 - AG2981 ->  | AH71: =IF('Input-Infra'!$AI68>='Input-Gen'!$M$29,AH1041,0) + AH2011 + AH4920 - AH2981 ->  | AI71: =IF('Input-Infra'!$AI68>='Input-Gen'!$M$29,AI1041,0) + AI2011 + AI4920 - AI2981 ->  | AJ71: =IF('Input-Infra'!$AI68>='Input-Gen'!$M$29,AJ1041,0) + AJ2011 + AJ4920 - AJ2981 ->  | AK71: =IF('Input-Infra'!$AI68>='Input-Gen'!$M$29,AK1041,0) + AK2011 + AK4920 - AK2981 ->  | AL71: =IF('Input-Infra'!$AI68>='Input-Gen'!$M$29,AL1041,0) + AL2011 + AL4920 - AL2981 ->  | AM71: =IF('Input-Infra'!$AI68>='Input-Gen'!$M$29,AM1041,0) + AM2011 + AM4920 - AM2981 -> 
G72: HPW-SP-002 | I72: $'000 | K72: 152.6195989 | Q72: 241.6050747 | S72: =IF('Input-Infra'!$AI69>='Input-Gen'!$M$29,S1042,0) + S2012 + S4921 - S2982 -> 0 | T72: =IF('Input-Infra'!$AI69>='Input-Gen'!$M$29,T1042,0) + T2012 + T4921 - T2982 -> 0 | U72: =IF('Input-Infra'!$AI69>='Input-Gen'!$M$29,U1042,0) + U2012 + U4921 - U2982 -> 0 | V72: =IF('Input-Infra'!$AI69>='Input-Gen'!$M$29,V1042,0) + V2012 + V4921 - V2982 -> 0 | W72: =IF('Input-Infra'!$AI69>='Input-Gen'!$M$29,W1042,0) + W2012 + W4921 - W2982 -> 0 | X72: =IF('Input-Infra'!$AI69>='Input-Gen'!$M$29,X1042,0) + X2012 + X4921 - X2982 -> 0 | Y72: =IF('Input-Infra'!$AI69>='Input-Gen'!$M$29,Y1042,0) + Y2012 + Y4921 - Y2982 -> 0 | Z72: =IF('Input-Infra'!$AI69>='Input-Gen'!$M$29,Z1042,0) + Z2012 + Z4921 - Z2982 -> 0 | AA72: =IF('Input-Infra'!$AI69>='Input-Gen'!$M$29,AA1042,0) + AA2012 + AA4921 - AA2982 -> 241.6050747 | AB72: =IF('Input-Infra'!$AI69>='Input-Gen'!$M$29,AB1042,0) + AB2012 + AB4921 - AB2982 -> 0 | AC72: =IF('Input-Infra'!$AI69>='Input-Gen'!$M$29,AC1042,0) + AC2012 + AC4921 - AC2982 -> 0 | AD72: =IF('Input-Infra'!$AI69>='Input-Gen'!$M$29,AD1042,0) + AD2012 + AD4921 - AD2982 ->  | AE72: =IF('Input-Infra'!$AI69>='Input-Gen'!$M$29,AE1042,0) + AE2012 + AE4921 - AE2982 ->  | AF72: =IF('Input-Infra'!$AI69>='Input-Gen'!$M$29,AF1042,0) + AF2012 + AF4921 - AF2982 ->  | AG72: =IF('Input-Infra'!$AI69>='Input-Gen'!$M$29,AG1042,0) + AG2012 + AG4921 - AG2982 ->  | AH72: =IF('Input-Infra'!$AI69>='Input-Gen'!$M$29,AH1042,0) + AH2012 + AH4921 - AH2982 ->  | AI72: =IF('Input-Infra'!$AI69>='Input-Gen'!$M$29,AI1042,0) + AI2012 + AI4921 - AI2982 ->  | AJ72: =IF('Input-Infra'!$AI69>='Input-Gen'!$M$29,AJ1042,0) + AJ2012 + AJ4921 - AJ2982 ->  | AK72: =IF('Input-Infra'!$AI69>='Input-Gen'!$M$29,AK1042,0) + AK2012 + AK4921 - AK2982 ->  | AL72: =IF('Input-Infra'!$AI69>='Input-Gen'!$M$29,AL1042,0) + AL2012 + AL4921 - AL2982 ->  | AM72: =IF('Input-Infra'!$AI69>='Input-Gen'!$M$29,AM1042,0) + AM2012 + AM4921 - AM2982 -> 
G73: HPW-SP-003 | I73: $'000 | K73: 155.6432087 | Q73: 246.3916125 | S73: =IF('Input-Infra'!$AI70>='Input-Gen'!$M$29,S1043,0) + S2013 + S4922 - S2983 -> 0 | T73: =IF('Input-Infra'!$AI70>='Input-Gen'!$M$29,T1043,0) + T2013 + T4922 - T2983 -> 0 | U73: =IF('Input-Infra'!$AI70>='Input-Gen'!$M$29,U1043,0) + U2013 + U4922 - U2983 -> 0 | V73: =IF('Input-Infra'!$AI70>='Input-Gen'!$M$29,V1043,0) + V2013 + V4922 - V2983 -> 0 | W73: =IF('Input-Infra'!$AI70>='Input-Gen'!$M$29,W1043,0) + W2013 + W4922 - W2983 -> 0 | X73: =IF('Input-Infra'!$AI70>='Input-Gen'!$M$29,X1043,0) + X2013 + X4922 - X2983 -> 0 | Y73: =IF('Input-Infra'!$AI70>='Input-Gen'!$M$29,Y1043,0) + Y2013 + Y4922 - Y2983 -> 0 | Z73: =IF('Input-Infra'!$AI70>='Input-Gen'!$M$29,Z1043,0) + Z2013 + Z4922 - Z2983 -> 0 | AA73: =IF('Input-Infra'!$AI70>='Input-Gen'!$M$29,AA1043,0) + AA2013 + AA4922 - AA2983 -> 246.3916125 | AB73: =IF('Input-Infra'!$AI70>='Input-Gen'!$M$29,AB1043,0) + AB2013 + AB4922 - AB2983 -> 0 | AC73: =IF('Input-Infra'!$AI70>='Input-Gen'!$M$29,AC1043,0) + AC2013 + AC4922 - AC2983 -> 0 | AD73: =IF('Input-Infra'!$AI70>='Input-Gen'!$M$29,AD1043,0) + AD2013 + AD4922 - AD2983 ->  | AE73: =IF('Input-Infra'!$AI70>='Input-Gen'!$M$29,AE1043,0) + AE2013 + AE4922 - AE2983 ->  | AF73: =IF('Input-Infra'!$AI70>='Input-Gen'!$M$29,AF1043,0) + AF2013 + AF4922 - AF2983 ->  | AG73: =IF('Input-Infra'!$AI70>='Input-Gen'!$M$29,AG1043,0) + AG2013 + AG4922 - AG2983 ->  | AH73: =IF('Input-Infra'!$AI70>='Input-Gen'!$M$29,AH1043,0) + AH2013 + AH4922 - AH2983 ->  | AI73: =IF('Input-Infra'!$AI70>='Input-Gen'!$M$29,AI1043,0) + AI2013 + AI4922 - AI2983 ->  | AJ73: =IF('Input-Infra'!$AI70>='Input-Gen'!$M$29,AJ1043,0) + AJ2013 + AJ4922 - AJ2983 ->  | AK73: =IF('Input-Infra'!$AI70>='Input-Gen'!$M$29,AK1043,0) + AK2013 + AK4922 - AK2983 ->  | AL73: =IF('Input-Infra'!$AI70>='Input-Gen'!$M$29,AL1043,0) + AL2013 + AL4922 - AL2983 ->  | AM73: =IF('Input-Infra'!$AI70>='Input-Gen'!$M$29,AM1043,0) + AM2013 + AM4922 - AM2983 -> 
G74: HPW-SP-004 | I74: $'000 | K74: 495.1117598 | Q74: 783.7886786 | S74: =IF('Input-Infra'!$AI71>='Input-Gen'!$M$29,S1044,0) + S2014 + S4923 - S2984 -> 0 | T74: =IF('Input-Infra'!$AI71>='Input-Gen'!$M$29,T1044,0) + T2014 + T4923 - T2984 -> 0 | U74: =IF('Input-Infra'!$AI71>='Input-Gen'!$M$29,U1044,0) + U2014 + U4923 - U2984 -> 0 | V74: =IF('Input-Infra'!$AI71>='Input-Gen'!$M$29,V1044,0) + V2014 + V4923 - V2984 -> 0 | W74: =IF('Input-Infra'!$AI71>='Input-Gen'!$M$29,W1044,0) + W2014 + W4923 - W2984 -> 0 | X74: =IF('Input-Infra'!$AI71>='Input-Gen'!$M$29,X1044,0) + X2014 + X4923 - X2984 -> 0 | Y74: =IF('Input-Infra'!$AI71>='Input-Gen'!$M$29,Y1044,0) + Y2014 + Y4923 - Y2984 -> 0 | Z74: =IF('Input-Infra'!$AI71>='Input-Gen'!$M$29,Z1044,0) + Z2014 + Z4923 - Z2984 -> 0 | AA74: =IF('Input-Infra'!$AI71>='Input-Gen'!$M$29,AA1044,0) + AA2014 + AA4923 - AA2984 -> 783.7886786 | AB74: =IF('Input-Infra'!$AI71>='Input-Gen'!$M$29,AB1044,0) + AB2014 + AB4923 - AB2984 -> 0 | AC74: =IF('Input-Infra'!$AI71>='Input-Gen'!$M$29,AC1044,0) + AC2014 + AC4923 - AC2984 -> 0 | AD74: =IF('Input-Infra'!$AI71>='Input-Gen'!$M$29,AD1044,0) + AD2014 + AD4923 - AD2984 ->  | AE74: =IF('Input-Infra'!$AI71>='Input-Gen'!$M$29,AE1044,0) + AE2014 + AE4923 - AE2984 ->  | AF74: =IF('Input-Infra'!$AI71>='Input-Gen'!$M$29,AF1044,0) + AF2014 + AF4923 - AF2984 ->  | AG74: =IF('Input-Infra'!$AI71>='Input-Gen'!$M$29,AG1044,0) + AG2014 + AG4923 - AG2984 ->  | AH74: =IF('Input-Infra'!$AI71>='Input-Gen'!$M$29,AH1044,0) + AH2014 + AH4923 - AH2984 ->  | AI74: =IF('Input-Infra'!$AI71>='Input-Gen'!$M$29,AI1044,0) + AI2014 + AI4923 - AI2984 ->  | AJ74: =IF('Input-Infra'!$AI71>='Input-Gen'!$M$29,AJ1044,0) + AJ2014 + AJ4923 - AJ2984 ->  | AK74: =IF('Input-Infra'!$AI71>='Input-Gen'!$M$29,AK1044,0) + AK2014 + AK4923 - AK2984 ->  | AL74: =IF('Input-Infra'!$AI71>='Input-Gen'!$M$29,AL1044,0) + AL2014 + AL4923 - AL2984 ->  | AM74: =IF('Input-Infra'!$AI71>='Input-Gen'!$M$29,AM1044,0) + AM2014 + AM4923 - AM2984 -> 
G75: KAN-SP-002 | I75: $'000 | K75: 3590.299127 | Q75: 4265.220988 | S75: =IF('Input-Infra'!$AI72>='Input-Gen'!$M$29,S1045,0) + S2015 + S4924 - S2985 -> 0 | T75: =IF('Input-Infra'!$AI72>='Input-Gen'!$M$29,T1045,0) + T2015 + T4924 - T2985 -> 0 | U75: =IF('Input-Infra'!$AI72>='Input-Gen'!$M$29,U1045,0) + U2015 + U4924 - U2985 -> 0 | V75: =IF('Input-Infra'!$AI72>='Input-Gen'!$M$29,V1045,0) + V2015 + V4924 - V2985 -> 4265.220988 | W75: =IF('Input-Infra'!$AI72>='Input-Gen'!$M$29,W1045,0) + W2015 + W4924 - W2985 -> 0 | X75: =IF('Input-Infra'!$AI72>='Input-Gen'!$M$29,X1045,0) + X2015 + X4924 - X2985 -> 0 | Y75: =IF('Input-Infra'!$AI72>='Input-Gen'!$M$29,Y1045,0) + Y2015 + Y4924 - Y2985 -> 0 | Z75: =IF('Input-Infra'!$AI72>='Input-Gen'!$M$29,Z1045,0) + Z2015 + Z4924 - Z2985 -> 0 | AA75: =IF('Input-Infra'!$AI72>='Input-Gen'!$M$29,AA1045,0) + AA2015 + AA4924 - AA2985 -> 0 | AB75: =IF('Input-Infra'!$AI72>='Input-Gen'!$M$29,AB1045,0) + AB2015 + AB4924 - AB2985 -> 0 | AC75: =IF('Input-Infra'!$AI72>='Input-Gen'!$M$29,AC1045,0) + AC2015 + AC4924 - AC2985 -> 0 | AD75: =IF('Input-Infra'!$AI72>='Input-Gen'!$M$29,AD1045,0) + AD2015 + AD4924 - AD2985 ->  | AE75: =IF('Input-Infra'!$AI72>='Input-Gen'!$M$29,AE1045,0) + AE2015 + AE4924 - AE2985 ->  | AF75: =IF('Input-Infra'!$AI72>='Input-Gen'!$M$29,AF1045,0) + AF2015 + AF4924 - AF2985 ->  | AG75: =IF('Input-Infra'!$AI72>='Input-Gen'!$M$29,AG1045,0) + AG2015 + AG4924 - AG2985 ->  | AH75: =IF('Input-Infra'!$AI72>='Input-Gen'!$M$29,AH1045,0) + AH2015 + AH4924 - AH2985 ->  | AI75: =IF('Input-Infra'!$AI72>='Input-Gen'!$M$29,AI1045,0) + AI2015 + AI4924 - AI2985 ->  | AJ75: =IF('Input-Infra'!$AI72>='Input-Gen'!$M$29,AJ1045,0) + AJ2015 + AJ4924 - AJ2985 ->  | AK75: =IF('Input-Infra'!$AI72>='Input-Gen'!$M$29,AK1045,0) + AK2015 + AK4924 - AK2985 ->  | AL75: =IF('Input-Infra'!$AI72>='Input-Gen'!$M$29,AL1045,0) + AL2015 + AL4924 - AL2985 ->  | AM75: =IF('Input-Infra'!$AI72>='Input-Gen'!$M$29,AM1045,0) + AM2015 + AM4924 - AM2985 -> 
G76: KUR-SP-001 | I76: $'000 | K76: 1001.457063 | Q76: 1585.360663 | S76: =IF('Input-Infra'!$AI73>='Input-Gen'!$M$29,S1046,0) + S2016 + S4925 - S2986 -> 0 | T76: =IF('Input-Infra'!$AI73>='Input-Gen'!$M$29,T1046,0) + T2016 + T4925 - T2986 -> 0 | U76: =IF('Input-Infra'!$AI73>='Input-Gen'!$M$29,U1046,0) + U2016 + U4925 - U2986 -> 0 | V76: =IF('Input-Infra'!$AI73>='Input-Gen'!$M$29,V1046,0) + V2016 + V4925 - V2986 -> 0 | W76: =IF('Input-Infra'!$AI73>='Input-Gen'!$M$29,W1046,0) + W2016 + W4925 - W2986 -> 0 | X76: =IF('Input-Infra'!$AI73>='Input-Gen'!$M$29,X1046,0) + X2016 + X4925 - X2986 -> 0 | Y76: =IF('Input-Infra'!$AI73>='Input-Gen'!$M$29,Y1046,0) + Y2016 + Y4925 - Y2986 -> 0 | Z76: =IF('Input-Infra'!$AI73>='Input-Gen'!$M$29,Z1046,0) + Z2016 + Z4925 - Z2986 -> 0 | AA76: =IF('Input-Infra'!$AI73>='Input-Gen'!$M$29,AA1046,0) + AA2016 + AA4925 - AA2986 -> 1585.360663 | AB76: =IF('Input-Infra'!$AI73>='Input-Gen'!$M$29,AB1046,0) + AB2016 + AB4925 - AB2986 -> 0 | AC76: =IF('Input-Infra'!$AI73>='Input-Gen'!$M$29,AC1046,0) + AC2016 + AC4925 - AC2986 -> 0 | AD76: =IF('Input-Infra'!$AI73>='Input-Gen'!$M$29,AD1046,0) + AD2016 + AD4925 - AD2986 ->  | AE76: =IF('Input-Infra'!$AI73>='Input-Gen'!$M$29,AE1046,0) + AE2016 + AE4925 - AE2986 ->  | AF76: =IF('Input-Infra'!$AI73>='Input-Gen'!$M$29,AF1046,0) + AF2016 + AF4925 - AF2986 ->  | AG76: =IF('Input-Infra'!$AI73>='Input-Gen'!$M$29,AG1046,0) + AG2016 + AG4925 - AG2986 ->  | AH76: =IF('Input-Infra'!$AI73>='Input-Gen'!$M$29,AH1046,0) + AH2016 + AH4925 - AH2986 ->  | AI76: =IF('Input-Infra'!$AI73>='Input-Gen'!$M$29,AI1046,0) + AI2016 + AI4925 - AI2986 ->  | AJ76: =IF('Input-Infra'!$AI73>='Input-Gen'!$M$29,AJ1046,0) + AJ2016 + AJ4925 - AJ2986 ->  | AK76: =IF('Input-Infra'!$AI73>='Input-Gen'!$M$29,AK1046,0) + AK2016 + AK4925 - AK2986 ->  | AL76: =IF('Input-Infra'!$AI73>='Input-Gen'!$M$29,AL1046,0) + AL2016 + AL4925 - AL2986 ->  | AM76: =IF('Input-Infra'!$AI73>='Input-Gen'!$M$29,AM1046,0) + AM2016 + AM4925 - AM2986 -> 
G77: KUR-SP-003 | I77: $'000 | K77: 3243.401863 | Q77: 3853.112292 | S77: =IF('Input-Infra'!$AI74>='Input-Gen'!$M$29,S1047,0) + S2017 + S4926 - S2987 -> 0 | T77: =IF('Input-Infra'!$AI74>='Input-Gen'!$M$29,T1047,0) + T2017 + T4926 - T2987 -> 0 | U77: =IF('Input-Infra'!$AI74>='Input-Gen'!$M$29,U1047,0) + U2017 + U4926 - U2987 -> 0 | V77: =IF('Input-Infra'!$AI74>='Input-Gen'!$M$29,V1047,0) + V2017 + V4926 - V2987 -> 3853.112292 | W77: =IF('Input-Infra'!$AI74>='Input-Gen'!$M$29,W1047,0) + W2017 + W4926 - W2987 -> 0 | X77: =IF('Input-Infra'!$AI74>='Input-Gen'!$M$29,X1047,0) + X2017 + X4926 - X2987 -> 0 | Y77: =IF('Input-Infra'!$AI74>='Input-Gen'!$M$29,Y1047,0) + Y2017 + Y4926 - Y2987 -> 0 | Z77: =IF('Input-Infra'!$AI74>='Input-Gen'!$M$29,Z1047,0) + Z2017 + Z4926 - Z2987 -> 0 | AA77: =IF('Input-Infra'!$AI74>='Input-Gen'!$M$29,AA1047,0) + AA2017 + AA4926 - AA2987 -> 0 | AB77: =IF('Input-Infra'!$AI74>='Input-Gen'!$M$29,AB1047,0) + AB2017 + AB4926 - AB2987 -> 0 | AC77: =IF('Input-Infra'!$AI74>='Input-Gen'!$M$29,AC1047,0) + AC2017 + AC4926 - AC2987 -> 0 | AD77: =IF('Input-Infra'!$AI74>='Input-Gen'!$M$29,AD1047,0) + AD2017 + AD4926 - AD2987 ->  | AE77: =IF('Input-Infra'!$AI74>='Input-Gen'!$M$29,AE1047,0) + AE2017 + AE4926 - AE2987 ->  | AF77: =IF('Input-Infra'!$AI74>='Input-Gen'!$M$29,AF1047,0) + AF2017 + AF4926 - AF2987 ->  | AG77: =IF('Input-Infra'!$AI74>='Input-Gen'!$M$29,AG1047,0) + AG2017 + AG4926 - AG2987 ->  | AH77: =IF('Input-Infra'!$AI74>='Input-Gen'!$M$29,AH1047,0) + AH2017 + AH4926 - AH2987 ->  | AI77: =IF('Input-Infra'!$AI74>='Input-Gen'!$M$29,AI1047,0) + AI2017 + AI4926 - AI2987 ->  | AJ77: =IF('Input-Infra'!$AI74>='Input-Gen'!$M$29,AJ1047,0) + AJ2017 + AJ4926 - AJ2987 ->  | AK77: =IF('Input-Infra'!$AI74>='Input-Gen'!$M$29,AK1047,0) + AK2017 + AK4926 - AK2987 ->  | AL77: =IF('Input-Infra'!$AI74>='Input-Gen'!$M$29,AL1047,0) + AL2017 + AL4926 - AL2987 ->  | AM77: =IF('Input-Infra'!$AI74>='Input-Gen'!$M$29,AM1047,0) + AM2017 + AM4926 - AM2987 -> 
G78: MDW-SP-002 | I78: $'000 | K78: 340.793518 | Q78: 539.4945603 | S78: =IF('Input-Infra'!$AI75>='Input-Gen'!$M$29,S1048,0) + S2018 + S4927 - S2988 -> 0 | T78: =IF('Input-Infra'!$AI75>='Input-Gen'!$M$29,T1048,0) + T2018 + T4927 - T2988 -> 0 | U78: =IF('Input-Infra'!$AI75>='Input-Gen'!$M$29,U1048,0) + U2018 + U4927 - U2988 -> 0 | V78: =IF('Input-Infra'!$AI75>='Input-Gen'!$M$29,V1048,0) + V2018 + V4927 - V2988 -> 0 | W78: =IF('Input-Infra'!$AI75>='Input-Gen'!$M$29,W1048,0) + W2018 + W4927 - W2988 -> 0 | X78: =IF('Input-Infra'!$AI75>='Input-Gen'!$M$29,X1048,0) + X2018 + X4927 - X2988 -> 0 | Y78: =IF('Input-Infra'!$AI75>='Input-Gen'!$M$29,Y1048,0) + Y2018 + Y4927 - Y2988 -> 0 | Z78: =IF('Input-Infra'!$AI75>='Input-Gen'!$M$29,Z1048,0) + Z2018 + Z4927 - Z2988 -> 0 | AA78: =IF('Input-Infra'!$AI75>='Input-Gen'!$M$29,AA1048,0) + AA2018 + AA4927 - AA2988 -> 539.4945603 | AB78: =IF('Input-Infra'!$AI75>='Input-Gen'!$M$29,AB1048,0) + AB2018 + AB4927 - AB2988 -> 0 | AC78: =IF('Input-Infra'!$AI75>='Input-Gen'!$M$29,AC1048,0) + AC2018 + AC4927 - AC2988 -> 0 | AD78: =IF('Input-Infra'!$AI75>='Input-Gen'!$M$29,AD1048,0) + AD2018 + AD4927 - AD2988 ->  | AE78: =IF('Input-Infra'!$AI75>='Input-Gen'!$M$29,AE1048,0) + AE2018 + AE4927 - AE2988 ->  | AF78: =IF('Input-Infra'!$AI75>='Input-Gen'!$M$29,AF1048,0) + AF2018 + AF4927 - AF2988 ->  | AG78: =IF('Input-Infra'!$AI75>='Input-Gen'!$M$29,AG1048,0) + AG2018 + AG4927 - AG2988 ->  | AH78: =IF('Input-Infra'!$AI75>='Input-Gen'!$M$29,AH1048,0) + AH2018 + AH4927 - AH2988 ->  | AI78: =IF('Input-Infra'!$AI75>='Input-Gen'!$M$29,AI1048,0) + AI2018 + AI4927 - AI2988 ->  | AJ78: =IF('Input-Infra'!$AI75>='Input-Gen'!$M$29,AJ1048,0) + AJ2018 + AJ4927 - AJ2988 ->  | AK78: =IF('Input-Infra'!$AI75>='Input-Gen'!$M$29,AK1048,0) + AK2018 + AK4927 - AK2988 ->  | AL78: =IF('Input-Infra'!$AI75>='Input-Gen'!$M$29,AL1048,0) + AL2018 + AL4927 - AL2988 ->  | AM78: =IF('Input-Infra'!$AI75>='Input-Gen'!$M$29,AM1048,0) + AM2018 + AM4927 - AM2988 -> 
G79: MGE-SP-001 | I79: $'000 | K79: 242.4549031 | Q79: 383.8192173 | S79: =IF('Input-Infra'!$AI76>='Input-Gen'!$M$29,S1049,0) + S2019 + S4928 - S2989 -> 0 | T79: =IF('Input-Infra'!$AI76>='Input-Gen'!$M$29,T1049,0) + T2019 + T4928 - T2989 -> 0 | U79: =IF('Input-Infra'!$AI76>='Input-Gen'!$M$29,U1049,0) + U2019 + U4928 - U2989 -> 0 | V79: =IF('Input-Infra'!$AI76>='Input-Gen'!$M$29,V1049,0) + V2019 + V4928 - V2989 -> 0 | W79: =IF('Input-Infra'!$AI76>='Input-Gen'!$M$29,W1049,0) + W2019 + W4928 - W2989 -> 0 | X79: =IF('Input-Infra'!$AI76>='Input-Gen'!$M$29,X1049,0) + X2019 + X4928 - X2989 -> 0 | Y79: =IF('Input-Infra'!$AI76>='Input-Gen'!$M$29,Y1049,0) + Y2019 + Y4928 - Y2989 -> 0 | Z79: =IF('Input-Infra'!$AI76>='Input-Gen'!$M$29,Z1049,0) + Z2019 + Z4928 - Z2989 -> 0 | AA79: =IF('Input-Infra'!$AI76>='Input-Gen'!$M$29,AA1049,0) + AA2019 + AA4928 - AA2989 -> 383.8192173 | AB79: =IF('Input-Infra'!$AI76>='Input-Gen'!$M$29,AB1049,0) + AB2019 + AB4928 - AB2989 -> 0 | AC79: =IF('Input-Infra'!$AI76>='Input-Gen'!$M$29,AC1049,0) + AC2019 + AC4928 - AC2989 -> 0 | AD79: =IF('Input-Infra'!$AI76>='Input-Gen'!$M$29,AD1049,0) + AD2019 + AD4928 - AD2989 ->  | AE79: =IF('Input-Infra'!$AI76>='Input-Gen'!$M$29,AE1049,0) + AE2019 + AE4928 - AE2989 ->  | AF79: =IF('Input-Infra'!$AI76>='Input-Gen'!$M$29,AF1049,0) + AF2019 + AF4928 - AF2989 ->  | AG79: =IF('Input-Infra'!$AI76>='Input-Gen'!$M$29,AG1049,0) + AG2019 + AG4928 - AG2989 ->  | AH79: =IF('Input-Infra'!$AI76>='Input-Gen'!$M$29,AH1049,0) + AH2019 + AH4928 - AH2989 ->  | AI79: =IF('Input-Infra'!$AI76>='Input-Gen'!$M$29,AI1049,0) + AI2019 + AI4928 - AI2989 ->  | AJ79: =IF('Input-Infra'!$AI76>='Input-Gen'!$M$29,AJ1049,0) + AJ2019 + AJ4928 - AJ2989 ->  | AK79: =IF('Input-Infra'!$AI76>='Input-Gen'!$M$29,AK1049,0) + AK2019 + AK4928 - AK2989 ->  | AL79: =IF('Input-Infra'!$AI76>='Input-Gen'!$M$29,AL1049,0) + AL2019 + AL4928 - AL2989 ->  | AM79: =IF('Input-Infra'!$AI76>='Input-Gen'!$M$29,AM1049,0) + AM2019 + AM4928 - AM2989 -> 
G80: MIT-SP-003 | I80: $'000 | K80: 173.2921381 | Q80: 205.8684356 | S80: =IF('Input-Infra'!$AI77>='Input-Gen'!$M$29,S1050,0) + S2020 + S4929 - S2990 -> 0 | T80: =IF('Input-Infra'!$AI77>='Input-Gen'!$M$29,T1050,0) + T2020 + T4929 - T2990 -> 0 | U80: =IF('Input-Infra'!$AI77>='Input-Gen'!$M$29,U1050,0) + U2020 + U4929 - U2990 -> 0 | V80: =IF('Input-Infra'!$AI77>='Input-Gen'!$M$29,V1050,0) + V2020 + V4929 - V2990 -> 205.8684356 | W80: =IF('Input-Infra'!$AI77>='Input-Gen'!$M$29,W1050,0) + W2020 + W4929 - W2990 -> 0 | X80: =IF('Input-Infra'!$AI77>='Input-Gen'!$M$29,X1050,0) + X2020 + X4929 - X2990 -> 0 | Y80: =IF('Input-Infra'!$AI77>='Input-Gen'!$M$29,Y1050,0) + Y2020 + Y4929 - Y2990 -> 0 | Z80: =IF('Input-Infra'!$AI77>='Input-Gen'!$M$29,Z1050,0) + Z2020 + Z4929 - Z2990 -> 0 | AA80: =IF('Input-Infra'!$AI77>='Input-Gen'!$M$29,AA1050,0) + AA2020 + AA4929 - AA2990 -> 0 | AB80: =IF('Input-Infra'!$AI77>='Input-Gen'!$M$29,AB1050,0) + AB2020 + AB4929 - AB2990 -> 0 | AC80: =IF('Input-Infra'!$AI77>='Input-Gen'!$M$29,AC1050,0) + AC2020 + AC4929 - AC2990 -> 0 | AD80: =IF('Input-Infra'!$AI77>='Input-Gen'!$M$29,AD1050,0) + AD2020 + AD4929 - AD2990 ->  | AE80: =IF('Input-Infra'!$AI77>='Input-Gen'!$M$29,AE1050,0) + AE2020 + AE4929 - AE2990 ->  | AF80: =IF('Input-Infra'!$AI77>='Input-Gen'!$M$29,AF1050,0) + AF2020 + AF4929 - AF2990 ->  | AG80: =IF('Input-Infra'!$AI77>='Input-Gen'!$M$29,AG1050,0) + AG2020 + AG4929 - AG2990 ->  | AH80: =IF('Input-Infra'!$AI77>='Input-Gen'!$M$29,AH1050,0) + AH2020 + AH4929 - AH2990 ->  | AI80: =IF('Input-Infra'!$AI77>='Input-Gen'!$M$29,AI1050,0) + AI2020 + AI4929 - AI2990 ->  | AJ80: =IF('Input-Infra'!$AI77>='Input-Gen'!$M$29,AJ1050,0) + AJ2020 + AJ4929 - AJ2990 ->  | AK80: =IF('Input-Infra'!$AI77>='Input-Gen'!$M$29,AK1050,0) + AK2020 + AK4929 - AK2990 ->  | AL80: =IF('Input-Infra'!$AI77>='Input-Gen'!$M$29,AL1050,0) + AL2020 + AL4929 - AL2990 ->  | AM80: =IF('Input-Infra'!$AI77>='Input-Gen'!$M$29,AM1050,0) + AM2020 + AM4929 - AM2990 -> 
G81: MKA-SP-003 | I81: $'000 | K81: 365.7367854 | Q81: 578.9811008 | S81: =IF('Input-Infra'!$AI78>='Input-Gen'!$M$29,S1051,0) + S2021 + S4930 - S2991 -> 0 | T81: =IF('Input-Infra'!$AI78>='Input-Gen'!$M$29,T1051,0) + T2021 + T4930 - T2991 -> 0 | U81: =IF('Input-Infra'!$AI78>='Input-Gen'!$M$29,U1051,0) + U2021 + U4930 - U2991 -> 0 | V81: =IF('Input-Infra'!$AI78>='Input-Gen'!$M$29,V1051,0) + V2021 + V4930 - V2991 -> 0 | W81: =IF('Input-Infra'!$AI78>='Input-Gen'!$M$29,W1051,0) + W2021 + W4930 - W2991 -> 0 | X81: =IF('Input-Infra'!$AI78>='Input-Gen'!$M$29,X1051,0) + X2021 + X4930 - X2991 -> 0 | Y81: =IF('Input-Infra'!$AI78>='Input-Gen'!$M$29,Y1051,0) + Y2021 + Y4930 - Y2991 -> 0 | Z81: =IF('Input-Infra'!$AI78>='Input-Gen'!$M$29,Z1051,0) + Z2021 + Z4930 - Z2991 -> 0 | AA81: =IF('Input-Infra'!$AI78>='Input-Gen'!$M$29,AA1051,0) + AA2021 + AA4930 - AA2991 -> 578.9811008 | AB81: =IF('Input-Infra'!$AI78>='Input-Gen'!$M$29,AB1051,0) + AB2021 + AB4930 - AB2991 -> 0 | AC81: =IF('Input-Infra'!$AI78>='Input-Gen'!$M$29,AC1051,0) + AC2021 + AC4930 - AC2991 -> 0 | AD81: =IF('Input-Infra'!$AI78>='Input-Gen'!$M$29,AD1051,0) + AD2021 + AD4930 - AD2991 ->  | AE81: =IF('Input-Infra'!$AI78>='Input-Gen'!$M$29,AE1051,0) + AE2021 + AE4930 - AE2991 ->  | AF81: =IF('Input-Infra'!$AI78>='Input-Gen'!$M$29,AF1051,0) + AF2021 + AF4930 - AF2991 ->  | AG81: =IF('Input-Infra'!$AI78>='Input-Gen'!$M$29,AG1051,0) + AG2021 + AG4930 - AG2991 ->  | AH81: =IF('Input-Infra'!$AI78>='Input-Gen'!$M$29,AH1051,0) + AH2021 + AH4930 - AH2991 ->  | AI81: =IF('Input-Infra'!$AI78>='Input-Gen'!$M$29,AI1051,0) + AI2021 + AI4930 - AI2991 ->  | AJ81: =IF('Input-Infra'!$AI78>='Input-Gen'!$M$29,AJ1051,0) + AJ2021 + AJ4930 - AJ2991 ->  | AK81: =IF('Input-Infra'!$AI78>='Input-Gen'!$M$29,AK1051,0) + AK2021 + AK4930 - AK2991 ->  | AL81: =IF('Input-Infra'!$AI78>='Input-Gen'!$M$29,AL1051,0) + AL2021 + AL4930 - AL2991 ->  | AM81: =IF('Input-Infra'!$AI78>='Input-Gen'!$M$29,AM1051,0) + AM2021 + AM4930 - AM2991 -> 
G82: MKA-SP-005 | I82: $'000 | K82: 97.20745462 | Q82: 153.8846551 | S82: =IF('Input-Infra'!$AI79>='Input-Gen'!$M$29,S1052,0) + S2022 + S4931 - S2992 -> 0 | T82: =IF('Input-Infra'!$AI79>='Input-Gen'!$M$29,T1052,0) + T2022 + T4931 - T2992 -> 0 | U82: =IF('Input-Infra'!$AI79>='Input-Gen'!$M$29,U1052,0) + U2022 + U4931 - U2992 -> 0 | V82: =IF('Input-Infra'!$AI79>='Input-Gen'!$M$29,V1052,0) + V2022 + V4931 - V2992 -> 0 | W82: =IF('Input-Infra'!$AI79>='Input-Gen'!$M$29,W1052,0) + W2022 + W4931 - W2992 -> 0 | X82: =IF('Input-Infra'!$AI79>='Input-Gen'!$M$29,X1052,0) + X2022 + X4931 - X2992 -> 0 | Y82: =IF('Input-Infra'!$AI79>='Input-Gen'!$M$29,Y1052,0) + Y2022 + Y4931 - Y2992 -> 0 | Z82: =IF('Input-Infra'!$AI79>='Input-Gen'!$M$29,Z1052,0) + Z2022 + Z4931 - Z2992 -> 0 | AA82: =IF('Input-Infra'!$AI79>='Input-Gen'!$M$29,AA1052,0) + AA2022 + AA4931 - AA2992 -> 153.8846551 | AB82: =IF('Input-Infra'!$AI79>='Input-Gen'!$M$29,AB1052,0) + AB2022 + AB4931 - AB2992 -> 0 | AC82: =IF('Input-Infra'!$AI79>='Input-Gen'!$M$29,AC1052,0) + AC2022 + AC4931 - AC2992 -> 0 | AD82: =IF('Input-Infra'!$AI79>='Input-Gen'!$M$29,AD1052,0) + AD2022 + AD4931 - AD2992 ->  | AE82: =IF('Input-Infra'!$AI79>='Input-Gen'!$M$29,AE1052,0) + AE2022 + AE4931 - AE2992 ->  | AF82: =IF('Input-Infra'!$AI79>='Input-Gen'!$M$29,AF1052,0) + AF2022 + AF4931 - AF2992 ->  | AG82: =IF('Input-Infra'!$AI79>='Input-Gen'!$M$29,AG1052,0) + AG2022 + AG4931 - AG2992 ->  | AH82: =IF('Input-Infra'!$AI79>='Input-Gen'!$M$29,AH1052,0) + AH2022 + AH4931 - AH2992 ->  | AI82: =IF('Input-Infra'!$AI79>='Input-Gen'!$M$29,AI1052,0) + AI2022 + AI4931 - AI2992 ->  | AJ82: =IF('Input-Infra'!$AI79>='Input-Gen'!$M$29,AJ1052,0) + AJ2022 + AJ4931 - AJ2992 ->  | AK82: =IF('Input-Infra'!$AI79>='Input-Gen'!$M$29,AK1052,0) + AK2022 + AK4931 - AK2992 ->  | AL82: =IF('Input-Infra'!$AI79>='Input-Gen'!$M$29,AL1052,0) + AL2022 + AL4931 - AL2992 ->  | AM82: =IF('Input-Infra'!$AI79>='Input-Gen'!$M$29,AM1052,0) + AM2022 + AM4931 - AM2992 -> 
G83: MOR-SP-001 | I83: $'000 | K83: 258.4559174 | Q83: 409.1496878 | S83: =IF('Input-Infra'!$AI80>='Input-Gen'!$M$29,S1053,0) + S2023 + S4932 - S2993 -> 0 | T83: =IF('Input-Infra'!$AI80>='Input-Gen'!$M$29,T1053,0) + T2023 + T4932 - T2993 -> 0 | U83: =IF('Input-Infra'!$AI80>='Input-Gen'!$M$29,U1053,0) + U2023 + U4932 - U2993 -> 0 | V83: =IF('Input-Infra'!$AI80>='Input-Gen'!$M$29,V1053,0) + V2023 + V4932 - V2993 -> 0 | W83: =IF('Input-Infra'!$AI80>='Input-Gen'!$M$29,W1053,0) + W2023 + W4932 - W2993 -> 0 | X83: =IF('Input-Infra'!$AI80>='Input-Gen'!$M$29,X1053,0) + X2023 + X4932 - X2993 -> 0 | Y83: =IF('Input-Infra'!$AI80>='Input-Gen'!$M$29,Y1053,0) + Y2023 + Y4932 - Y2993 -> 0 | Z83: =IF('Input-Infra'!$AI80>='Input-Gen'!$M$29,Z1053,0) + Z2023 + Z4932 - Z2993 -> 0 | AA83: =IF('Input-Infra'!$AI80>='Input-Gen'!$M$29,AA1053,0) + AA2023 + AA4932 - AA2993 -> 409.1496878 | AB83: =IF('Input-Infra'!$AI80>='Input-Gen'!$M$29,AB1053,0) + AB2023 + AB4932 - AB2993 -> 0 | AC83: =IF('Input-Infra'!$AI80>='Input-Gen'!$M$29,AC1053,0) + AC2023 + AC4932 - AC2993 -> 0 | AD83: =IF('Input-Infra'!$AI80>='Input-Gen'!$M$29,AD1053,0) + AD2023 + AD4932 - AD2993 ->  | AE83: =IF('Input-Infra'!$AI80>='Input-Gen'!$M$29,AE1053,0) + AE2023 + AE4932 - AE2993 ->  | AF83: =IF('Input-Infra'!$AI80>='Input-Gen'!$M$29,AF1053,0) + AF2023 + AF4932 - AF2993 ->  | AG83: =IF('Input-Infra'!$AI80>='Input-Gen'!$M$29,AG1053,0) + AG2023 + AG4932 - AG2993 ->  | AH83: =IF('Input-Infra'!$AI80>='Input-Gen'!$M$29,AH1053,0) + AH2023 + AH4932 - AH2993 ->  | AI83: =IF('Input-Infra'!$AI80>='Input-Gen'!$M$29,AI1053,0) + AI2023 + AI4932 - AI2993 ->  | AJ83: =IF('Input-Infra'!$AI80>='Input-Gen'!$M$29,AJ1053,0) + AJ2023 + AJ4932 - AJ2993 ->  | AK83: =IF('Input-Infra'!$AI80>='Input-Gen'!$M$29,AK1053,0) + AK2023 + AK4932 - AK2993 ->  | AL83: =IF('Input-Infra'!$AI80>='Input-Gen'!$M$29,AL1053,0) + AL2023 + AL4932 - AL2993 ->  | AM83: =IF('Input-Infra'!$AI80>='Input-Gen'!$M$29,AM1053,0) + AM2023 + AM4932 - AM2993 -> 
G84: MOR-SP-004 | I84: $'000 | K84: 201.386786 | Q84: 318.806168 | S84: =IF('Input-Infra'!$AI81>='Input-Gen'!$M$29,S1054,0) + S2024 + S4933 - S2994 -> 0 | T84: =IF('Input-Infra'!$AI81>='Input-Gen'!$M$29,T1054,0) + T2024 + T4933 - T2994 -> 0 | U84: =IF('Input-Infra'!$AI81>='Input-Gen'!$M$29,U1054,0) + U2024 + U4933 - U2994 -> 0 | V84: =IF('Input-Infra'!$AI81>='Input-Gen'!$M$29,V1054,0) + V2024 + V4933 - V2994 -> 0 | W84: =IF('Input-Infra'!$AI81>='Input-Gen'!$M$29,W1054,0) + W2024 + W4933 - W2994 -> 0 | X84: =IF('Input-Infra'!$AI81>='Input-Gen'!$M$29,X1054,0) + X2024 + X4933 - X2994 -> 0 | Y84: =IF('Input-Infra'!$AI81>='Input-Gen'!$M$29,Y1054,0) + Y2024 + Y4933 - Y2994 -> 0 | Z84: =IF('Input-Infra'!$AI81>='Input-Gen'!$M$29,Z1054,0) + Z2024 + Z4933 - Z2994 -> 0 | AA84: =IF('Input-Infra'!$AI81>='Input-Gen'!$M$29,AA1054,0) + AA2024 + AA4933 - AA2994 -> 318.806168 | AB84: =IF('Input-Infra'!$AI81>='Input-Gen'!$M$29,AB1054,0) + AB2024 + AB4933 - AB2994 -> 0 | AC84: =IF('Input-Infra'!$AI81>='Input-Gen'!$M$29,AC1054,0) + AC2024 + AC4933 - AC2994 -> 0 | AD84: =IF('Input-Infra'!$AI81>='Input-Gen'!$M$29,AD1054,0) + AD2024 + AD4933 - AD2994 ->  | AE84: =IF('Input-Infra'!$AI81>='Input-Gen'!$M$29,AE1054,0) + AE2024 + AE4933 - AE2994 ->  | AF84: =IF('Input-Infra'!$AI81>='Input-Gen'!$M$29,AF1054,0) + AF2024 + AF4933 - AF2994 ->  | AG84: =IF('Input-Infra'!$AI81>='Input-Gen'!$M$29,AG1054,0) + AG2024 + AG4933 - AG2994 ->  | AH84: =IF('Input-Infra'!$AI81>='Input-Gen'!$M$29,AH1054,0) + AH2024 + AH4933 - AH2994 ->  | AI84: =IF('Input-Infra'!$AI81>='Input-Gen'!$M$29,AI1054,0) + AI2024 + AI4933 - AI2994 ->  | AJ84: =IF('Input-Infra'!$AI81>='Input-Gen'!$M$29,AJ1054,0) + AJ2024 + AJ4933 - AJ2994 ->  | AK84: =IF('Input-Infra'!$AI81>='Input-Gen'!$M$29,AK1054,0) + AK2024 + AK4933 - AK2994 ->  | AL84: =IF('Input-Infra'!$AI81>='Input-Gen'!$M$29,AL1054,0) + AL2024 + AL4933 - AL2994 ->  | AM84: =IF('Input-Infra'!$AI81>='Input-Gen'!$M$29,AM1054,0) + AM2024 + AM4933 - AM2994 -> 
G85: MOR-SP-008 | I85: $'000 | K85: 1329.624131 | Q85: 1579.57333 | S85: =IF('Input-Infra'!$AI82>='Input-Gen'!$M$29,S1055,0) + S2025 + S4934 - S2995 -> 0 | T85: =IF('Input-Infra'!$AI82>='Input-Gen'!$M$29,T1055,0) + T2025 + T4934 - T2995 -> 0 | U85: =IF('Input-Infra'!$AI82>='Input-Gen'!$M$29,U1055,0) + U2025 + U4934 - U2995 -> 0 | V85: =IF('Input-Infra'!$AI82>='Input-Gen'!$M$29,V1055,0) + V2025 + V4934 - V2995 -> 1579.57333 | W85: =IF('Input-Infra'!$AI82>='Input-Gen'!$M$29,W1055,0) + W2025 + W4934 - W2995 -> 0 | X85: =IF('Input-Infra'!$AI82>='Input-Gen'!$M$29,X1055,0) + X2025 + X4934 - X2995 -> 0 | Y85: =IF('Input-Infra'!$AI82>='Input-Gen'!$M$29,Y1055,0) + Y2025 + Y4934 - Y2995 -> 0 | Z85: =IF('Input-Infra'!$AI82>='Input-Gen'!$M$29,Z1055,0) + Z2025 + Z4934 - Z2995 -> 0 | AA85: =IF('Input-Infra'!$AI82>='Input-Gen'!$M$29,AA1055,0) + AA2025 + AA4934 - AA2995 -> 0 | AB85: =IF('Input-Infra'!$AI82>='Input-Gen'!$M$29,AB1055,0) + AB2025 + AB4934 - AB2995 -> 0 | AC85: =IF('Input-Infra'!$AI82>='Input-Gen'!$M$29,AC1055,0) + AC2025 + AC4934 - AC2995 -> 0 | AD85: =IF('Input-Infra'!$AI82>='Input-Gen'!$M$29,AD1055,0) + AD2025 + AD4934 - AD2995 ->  | AE85: =IF('Input-Infra'!$AI82>='Input-Gen'!$M$29,AE1055,0) + AE2025 + AE4934 - AE2995 ->  | AF85: =IF('Input-Infra'!$AI82>='Input-Gen'!$M$29,AF1055,0) + AF2025 + AF4934 - AF2995 ->  | AG85: =IF('Input-Infra'!$AI82>='Input-Gen'!$M$29,AG1055,0) + AG2025 + AG4934 - AG2995 ->  | AH85: =IF('Input-Infra'!$AI82>='Input-Gen'!$M$29,AH1055,0) + AH2025 + AH4934 - AH2995 ->  | AI85: =IF('Input-Infra'!$AI82>='Input-Gen'!$M$29,AI1055,0) + AI2025 + AI4934 - AI2995 ->  | AJ85: =IF('Input-Infra'!$AI82>='Input-Gen'!$M$29,AJ1055,0) + AJ2025 + AJ4934 - AJ2995 ->  | AK85: =IF('Input-Infra'!$AI82>='Input-Gen'!$M$29,AK1055,0) + AK2025 + AK4934 - AK2995 ->  | AL85: =IF('Input-Infra'!$AI82>='Input-Gen'!$M$29,AL1055,0) + AL2025 + AL4934 - AL2995 ->  | AM85: =IF('Input-Infra'!$AI82>='Input-Gen'!$M$29,AM1055,0) + AM2025 + AM4934 - AM2995 -> 
G86: NOG-SP-001 | I86: $'000 | K86: 697.9284539 | Q86: 1104.858468 | S86: =IF('Input-Infra'!$AI83>='Input-Gen'!$M$29,S1056,0) + S2026 + S4935 - S2996 -> 0 | T86: =IF('Input-Infra'!$AI83>='Input-Gen'!$M$29,T1056,0) + T2026 + T4935 - T2996 -> 0 | U86: =IF('Input-Infra'!$AI83>='Input-Gen'!$M$29,U1056,0) + U2026 + U4935 - U2996 -> 0 | V86: =IF('Input-Infra'!$AI83>='Input-Gen'!$M$29,V1056,0) + V2026 + V4935 - V2996 -> 0 | W86: =IF('Input-Infra'!$AI83>='Input-Gen'!$M$29,W1056,0) + W2026 + W4935 - W2996 -> 0 | X86: =IF('Input-Infra'!$AI83>='Input-Gen'!$M$29,X1056,0) + X2026 + X4935 - X2996 -> 0 | Y86: =IF('Input-Infra'!$AI83>='Input-Gen'!$M$29,Y1056,0) + Y2026 + Y4935 - Y2996 -> 0 | Z86: =IF('Input-Infra'!$AI83>='Input-Gen'!$M$29,Z1056,0) + Z2026 + Z4935 - Z2996 -> 0 | AA86: =IF('Input-Infra'!$AI83>='Input-Gen'!$M$29,AA1056,0) + AA2026 + AA4935 - AA2996 -> 1104.858468 | AB86: =IF('Input-Infra'!$AI83>='Input-Gen'!$M$29,AB1056,0) + AB2026 + AB4935 - AB2996 -> 0 | AC86: =IF('Input-Infra'!$AI83>='Input-Gen'!$M$29,AC1056,0) + AC2026 + AC4935 - AC2996 -> 0 | AD86: =IF('Input-Infra'!$AI83>='Input-Gen'!$M$29,AD1056,0) + AD2026 + AD4935 - AD2996 ->  | AE86: =IF('Input-Infra'!$AI83>='Input-Gen'!$M$29,AE1056,0) + AE2026 + AE4935 - AE2996 ->  | AF86: =IF('Input-Infra'!$AI83>='Input-Gen'!$M$29,AF1056,0) + AF2026 + AF4935 - AF2996 ->  | AG86: =IF('Input-Infra'!$AI83>='Input-Gen'!$M$29,AG1056,0) + AG2026 + AG4935 - AG2996 ->  | AH86: =IF('Input-Infra'!$AI83>='Input-Gen'!$M$29,AH1056,0) + AH2026 + AH4935 - AH2996 ->  | AI86: =IF('Input-Infra'!$AI83>='Input-Gen'!$M$29,AI1056,0) + AI2026 + AI4935 - AI2996 ->  | AJ86: =IF('Input-Infra'!$AI83>='Input-Gen'!$M$29,AJ1056,0) + AJ2026 + AJ4935 - AJ2996 ->  | AK86: =IF('Input-Infra'!$AI83>='Input-Gen'!$M$29,AK1056,0) + AK2026 + AK4935 - AK2996 ->  | AL86: =IF('Input-Infra'!$AI83>='Input-Gen'!$M$29,AL1056,0) + AL2026 + AL4935 - AL2996 ->  | AM86: =IF('Input-Infra'!$AI83>='Input-Gen'!$M$29,AM1056,0) + AM2026 + AM4935 - AM2996 -> 
G87: OXY-SP-001 | I87: $'000 | K87: 739.7420887 | Q87: 1171.051712 | S87: =IF('Input-Infra'!$AI84>='Input-Gen'!$M$29,S1057,0) + S2027 + S4936 - S2997 -> 0 | T87: =IF('Input-Infra'!$AI84>='Input-Gen'!$M$29,T1057,0) + T2027 + T4936 - T2997 -> 0 | U87: =IF('Input-Infra'!$AI84>='Input-Gen'!$M$29,U1057,0) + U2027 + U4936 - U2997 -> 0 | V87: =IF('Input-Infra'!$AI84>='Input-Gen'!$M$29,V1057,0) + V2027 + V4936 - V2997 -> 0 | W87: =IF('Input-Infra'!$AI84>='Input-Gen'!$M$29,W1057,0) + W2027 + W4936 - W2997 -> 0 | X87: =IF('Input-Infra'!$AI84>='Input-Gen'!$M$29,X1057,0) + X2027 + X4936 - X2997 -> 0 | Y87: =IF('Input-Infra'!$AI84>='Input-Gen'!$M$29,Y1057,0) + Y2027 + Y4936 - Y2997 -> 0 | Z87: =IF('Input-Infra'!$AI84>='Input-Gen'!$M$29,Z1057,0) + Z2027 + Z4936 - Z2997 -> 0 | AA87: =IF('Input-Infra'!$AI84>='Input-Gen'!$M$29,AA1057,0) + AA2027 + AA4936 - AA2997 -> 1171.051712 | AB87: =IF('Input-Infra'!$AI84>='Input-Gen'!$M$29,AB1057,0) + AB2027 + AB4936 - AB2997 -> 0 | AC87: =IF('Input-Infra'!$AI84>='Input-Gen'!$M$29,AC1057,0) + AC2027 + AC4936 - AC2997 -> 0 | AD87: =IF('Input-Infra'!$AI84>='Input-Gen'!$M$29,AD1057,0) + AD2027 + AD4936 - AD2997 ->  | AE87: =IF('Input-Infra'!$AI84>='Input-Gen'!$M$29,AE1057,0) + AE2027 + AE4936 - AE2997 ->  | AF87: =IF('Input-Infra'!$AI84>='Input-Gen'!$M$29,AF1057,0) + AF2027 + AF4936 - AF2997 ->  | AG87: =IF('Input-Infra'!$AI84>='Input-Gen'!$M$29,AG1057,0) + AG2027 + AG4936 - AG2997 ->  | AH87: =IF('Input-Infra'!$AI84>='Input-Gen'!$M$29,AH1057,0) + AH2027 + AH4936 - AH2997 ->  | AI87: =IF('Input-Infra'!$AI84>='Input-Gen'!$M$29,AI1057,0) + AI2027 + AI4936 - AI2997 ->  | AJ87: =IF('Input-Infra'!$AI84>='Input-Gen'!$M$29,AJ1057,0) + AJ2027 + AJ4936 - AJ2997 ->  | AK87: =IF('Input-Infra'!$AI84>='Input-Gen'!$M$29,AK1057,0) + AK2027 + AK4936 - AK2997 ->  | AL87: =IF('Input-Infra'!$AI84>='Input-Gen'!$M$29,AL1057,0) + AL2027 + AL4936 - AL2997 ->  | AM87: =IF('Input-Infra'!$AI84>='Input-Gen'!$M$29,AM1057,0) + AM2027 + AM4936 - AM2997 -> 
G88: OXY-SP-002 | I88: $'000 | K88: 952.3265679 | Q88: 1507.584434 | S88: =IF('Input-Infra'!$AI85>='Input-Gen'!$M$29,S1058,0) + S2028 + S4937 - S2998 -> 0 | T88: =IF('Input-Infra'!$AI85>='Input-Gen'!$M$29,T1058,0) + T2028 + T4937 - T2998 -> 0 | U88: =IF('Input-Infra'!$AI85>='Input-Gen'!$M$29,U1058,0) + U2028 + U4937 - U2998 -> 0 | V88: =IF('Input-Infra'!$AI85>='Input-Gen'!$M$29,V1058,0) + V2028 + V4937 - V2998 -> 0 | W88: =IF('Input-Infra'!$AI85>='Input-Gen'!$M$29,W1058,0) + W2028 + W4937 - W2998 -> 0 | X88: =IF('Input-Infra'!$AI85>='Input-Gen'!$M$29,X1058,0) + X2028 + X4937 - X2998 -> 0 | Y88: =IF('Input-Infra'!$AI85>='Input-Gen'!$M$29,Y1058,0) + Y2028 + Y4937 - Y2998 -> 0 | Z88: =IF('Input-Infra'!$AI85>='Input-Gen'!$M$29,Z1058,0) + Z2028 + Z4937 - Z2998 -> 0 | AA88: =IF('Input-Infra'!$AI85>='Input-Gen'!$M$29,AA1058,0) + AA2028 + AA4937 - AA2998 -> 1507.584434 | AB88: =IF('Input-Infra'!$AI85>='Input-Gen'!$M$29,AB1058,0) + AB2028 + AB4937 - AB2998 -> 0 | AC88: =IF('Input-Infra'!$AI85>='Input-Gen'!$M$29,AC1058,0) + AC2028 + AC4937 - AC2998 -> 0 | AD88: =IF('Input-Infra'!$AI85>='Input-Gen'!$M$29,AD1058,0) + AD2028 + AD4937 - AD2998 ->  | AE88: =IF('Input-Infra'!$AI85>='Input-Gen'!$M$29,AE1058,0) + AE2028 + AE4937 - AE2998 ->  | AF88: =IF('Input-Infra'!$AI85>='Input-Gen'!$M$29,AF1058,0) + AF2028 + AF4937 - AF2998 ->  | AG88: =IF('Input-Infra'!$AI85>='Input-Gen'!$M$29,AG1058,0) + AG2028 + AG4937 - AG2998 ->  | AH88: =IF('Input-Infra'!$AI85>='Input-Gen'!$M$29,AH1058,0) + AH2028 + AH4937 - AH2998 ->  | AI88: =IF('Input-Infra'!$AI85>='Input-Gen'!$M$29,AI1058,0) + AI2028 + AI4937 - AI2998 ->  | AJ88: =IF('Input-Infra'!$AI85>='Input-Gen'!$M$29,AJ1058,0) + AJ2028 + AJ4937 - AJ2998 ->  | AK88: =IF('Input-Infra'!$AI85>='Input-Gen'!$M$29,AK1058,0) + AK2028 + AK4937 - AK2998 ->  | AL88: =IF('Input-Infra'!$AI85>='Input-Gen'!$M$29,AL1058,0) + AL2028 + AL4937 - AL2998 ->  | AM88: =IF('Input-Infra'!$AI85>='Input-Gen'!$M$29,AM1058,0) + AM2028 + AM4937 - AM2998 -> 
G89: OXY-SP-005 | I89: $'000 | K89: 1016.123567 | Q89: 1608.578532 | S89: =IF('Input-Infra'!$AI86>='Input-Gen'!$M$29,S1059,0) + S2029 + S4938 - S2999 -> 0 | T89: =IF('Input-Infra'!$AI86>='Input-Gen'!$M$29,T1059,0) + T2029 + T4938 - T2999 -> 0 | U89: =IF('Input-Infra'!$AI86>='Input-Gen'!$M$29,U1059,0) + U2029 + U4938 - U2999 -> 0 | V89: =IF('Input-Infra'!$AI86>='Input-Gen'!$M$29,V1059,0) + V2029 + V4938 - V2999 -> 0 | W89: =IF('Input-Infra'!$AI86>='Input-Gen'!$M$29,W1059,0) + W2029 + W4938 - W2999 -> 0 | X89: =IF('Input-Infra'!$AI86>='Input-Gen'!$M$29,X1059,0) + X2029 + X4938 - X2999 -> 0 | Y89: =IF('Input-Infra'!$AI86>='Input-Gen'!$M$29,Y1059,0) + Y2029 + Y4938 - Y2999 -> 0 | Z89: =IF('Input-Infra'!$AI86>='Input-Gen'!$M$29,Z1059,0) + Z2029 + Z4938 - Z2999 -> 0 | AA89: =IF('Input-Infra'!$AI86>='Input-Gen'!$M$29,AA1059,0) + AA2029 + AA4938 - AA2999 -> 1608.578532 | AB89: =IF('Input-Infra'!$AI86>='Input-Gen'!$M$29,AB1059,0) + AB2029 + AB4938 - AB2999 -> 0 | AC89: =IF('Input-Infra'!$AI86>='Input-Gen'!$M$29,AC1059,0) + AC2029 + AC4938 - AC2999 -> 0 | AD89: =IF('Input-Infra'!$AI86>='Input-Gen'!$M$29,AD1059,0) + AD2029 + AD4938 - AD2999 ->  | AE89: =IF('Input-Infra'!$AI86>='Input-Gen'!$M$29,AE1059,0) + AE2029 + AE4938 - AE2999 ->  | AF89: =IF('Input-Infra'!$AI86>='Input-Gen'!$M$29,AF1059,0) + AF2029 + AF4938 - AF2999 ->  | AG89: =IF('Input-Infra'!$AI86>='Input-Gen'!$M$29,AG1059,0) + AG2029 + AG4938 - AG2999 ->  | AH89: =IF('Input-Infra'!$AI86>='Input-Gen'!$M$29,AH1059,0) + AH2029 + AH4938 - AH2999 ->  | AI89: =IF('Input-Infra'!$AI86>='Input-Gen'!$M$29,AI1059,0) + AI2029 + AI4938 - AI2999 ->  | AJ89: =IF('Input-Infra'!$AI86>='Input-Gen'!$M$29,AJ1059,0) + AJ2029 + AJ4938 - AJ2999 ->  | AK89: =IF('Input-Infra'!$AI86>='Input-Gen'!$M$29,AK1059,0) + AK2029 + AK4938 - AK2999 ->  | AL89: =IF('Input-Infra'!$AI86>='Input-Gen'!$M$29,AL1059,0) + AL2029 + AL4938 - AL2999 ->  | AM89: =IF('Input-Infra'!$AI86>='Input-Gen'!$M$29,AM1059,0) + AM2029 + AM4938 - AM2999 -> 
G90: OXY-SP-006 | I90: $'000 | K90: 827.3768369 | Q90: 1309.782256 | S90: =IF('Input-Infra'!$AI87>='Input-Gen'!$M$29,S1060,0) + S2030 + S4939 - S3000 -> 0 | T90: =IF('Input-Infra'!$AI87>='Input-Gen'!$M$29,T1060,0) + T2030 + T4939 - T3000 -> 0 | U90: =IF('Input-Infra'!$AI87>='Input-Gen'!$M$29,U1060,0) + U2030 + U4939 - U3000 -> 0 | V90: =IF('Input-Infra'!$AI87>='Input-Gen'!$M$29,V1060,0) + V2030 + V4939 - V3000 -> 0 | W90: =IF('Input-Infra'!$AI87>='Input-Gen'!$M$29,W1060,0) + W2030 + W4939 - W3000 -> 0 | X90: =IF('Input-Infra'!$AI87>='Input-Gen'!$M$29,X1060,0) + X2030 + X4939 - X3000 -> 0 | Y90: =IF('Input-Infra'!$AI87>='Input-Gen'!$M$29,Y1060,0) + Y2030 + Y4939 - Y3000 -> 0 | Z90: =IF('Input-Infra'!$AI87>='Input-Gen'!$M$29,Z1060,0) + Z2030 + Z4939 - Z3000 -> 0 | AA90: =IF('Input-Infra'!$AI87>='Input-Gen'!$M$29,AA1060,0) + AA2030 + AA4939 - AA3000 -> 1309.782256 | AB90: =IF('Input-Infra'!$AI87>='Input-Gen'!$M$29,AB1060,0) + AB2030 + AB4939 - AB3000 -> 0 | AC90: =IF('Input-Infra'!$AI87>='Input-Gen'!$M$29,AC1060,0) + AC2030 + AC4939 - AC3000 -> 0 | AD90: =IF('Input-Infra'!$AI87>='Input-Gen'!$M$29,AD1060,0) + AD2030 + AD4939 - AD3000 ->  | AE90: =IF('Input-Infra'!$AI87>='Input-Gen'!$M$29,AE1060,0) + AE2030 + AE4939 - AE3000 ->  | AF90: =IF('Input-Infra'!$AI87>='Input-Gen'!$M$29,AF1060,0) + AF2030 + AF4939 - AF3000 ->  | AG90: =IF('Input-Infra'!$AI87>='Input-Gen'!$M$29,AG1060,0) + AG2030 + AG4939 - AG3000 ->  | AH90: =IF('Input-Infra'!$AI87>='Input-Gen'!$M$29,AH1060,0) + AH2030 + AH4939 - AH3000 ->  | AI90: =IF('Input-Infra'!$AI87>='Input-Gen'!$M$29,AI1060,0) + AI2030 + AI4939 - AI3000 ->  | AJ90: =IF('Input-Infra'!$AI87>='Input-Gen'!$M$29,AJ1060,0) + AJ2030 + AJ4939 - AJ3000 ->  | AK90: =IF('Input-Infra'!$AI87>='Input-Gen'!$M$29,AK1060,0) + AK2030 + AK4939 - AK3000 ->  | AL90: =IF('Input-Infra'!$AI87>='Input-Gen'!$M$29,AL1060,0) + AL2030 + AL4939 - AL3000 ->  | AM90: =IF('Input-Infra'!$AI87>='Input-Gen'!$M$29,AM1060,0) + AM2030 + AM4939 - AM3000 -> 
G91: RIC-SP-002 | I91: $'000 | K91: 98.25339236 | Q91: 155.5404311 | S91: =IF('Input-Infra'!$AI88>='Input-Gen'!$M$29,S1061,0) + S2031 + S4940 - S3001 -> 0 | T91: =IF('Input-Infra'!$AI88>='Input-Gen'!$M$29,T1061,0) + T2031 + T4940 - T3001 -> 0 | U91: =IF('Input-Infra'!$AI88>='Input-Gen'!$M$29,U1061,0) + U2031 + U4940 - U3001 -> 0 | V91: =IF('Input-Infra'!$AI88>='Input-Gen'!$M$29,V1061,0) + V2031 + V4940 - V3001 -> 0 | W91: =IF('Input-Infra'!$AI88>='Input-Gen'!$M$29,W1061,0) + W2031 + W4940 - W3001 -> 0 | X91: =IF('Input-Infra'!$AI88>='Input-Gen'!$M$29,X1061,0) + X2031 + X4940 - X3001 -> 0 | Y91: =IF('Input-Infra'!$AI88>='Input-Gen'!$M$29,Y1061,0) + Y2031 + Y4940 - Y3001 -> 0 | Z91: =IF('Input-Infra'!$AI88>='Input-Gen'!$M$29,Z1061,0) + Z2031 + Z4940 - Z3001 -> 0 | AA91: =IF('Input-Infra'!$AI88>='Input-Gen'!$M$29,AA1061,0) + AA2031 + AA4940 - AA3001 -> 155.5404311 | AB91: =IF('Input-Infra'!$AI88>='Input-Gen'!$M$29,AB1061,0) + AB2031 + AB4940 - AB3001 -> 0 | AC91: =IF('Input-Infra'!$AI88>='Input-Gen'!$M$29,AC1061,0) + AC2031 + AC4940 - AC3001 -> 0 | AD91: =IF('Input-Infra'!$AI88>='Input-Gen'!$M$29,AD1061,0) + AD2031 + AD4940 - AD3001 ->  | AE91: =IF('Input-Infra'!$AI88>='Input-Gen'!$M$29,AE1061,0) + AE2031 + AE4940 - AE3001 ->  | AF91: =IF('Input-Infra'!$AI88>='Input-Gen'!$M$29,AF1061,0) + AF2031 + AF4940 - AF3001 ->  | AG91: =IF('Input-Infra'!$AI88>='Input-Gen'!$M$29,AG1061,0) + AG2031 + AG4940 - AG3001 ->  | AH91: =IF('Input-Infra'!$AI88>='Input-Gen'!$M$29,AH1061,0) + AH2031 + AH4940 - AH3001 ->  | AI91: =IF('Input-Infra'!$AI88>='Input-Gen'!$M$29,AI1061,0) + AI2031 + AI4940 - AI3001 ->  | AJ91: =IF('Input-Infra'!$AI88>='Input-Gen'!$M$29,AJ1061,0) + AJ2031 + AJ4940 - AJ3001 ->  | AK91: =IF('Input-Infra'!$AI88>='Input-Gen'!$M$29,AK1061,0) + AK2031 + AK4940 - AK3001 ->  | AL91: =IF('Input-Infra'!$AI88>='Input-Gen'!$M$29,AL1061,0) + AL2031 + AL4940 - AL3001 ->  | AM91: =IF('Input-Infra'!$AI88>='Input-Gen'!$M$29,AM1061,0) + AM2031 + AM4940 - AM3001 -> 
G92: RIC-SP-003 | I92: $'000 | K92: 615.5862258 | Q92: 731.3071132 | S92: =IF('Input-Infra'!$AI89>='Input-Gen'!$M$29,S1062,0) + S2032 + S4941 - S3002 -> 0 | T92: =IF('Input-Infra'!$AI89>='Input-Gen'!$M$29,T1062,0) + T2032 + T4941 - T3002 -> 0 | U92: =IF('Input-Infra'!$AI89>='Input-Gen'!$M$29,U1062,0) + U2032 + U4941 - U3002 -> 0 | V92: =IF('Input-Infra'!$AI89>='Input-Gen'!$M$29,V1062,0) + V2032 + V4941 - V3002 -> 731.3071132 | W92: =IF('Input-Infra'!$AI89>='Input-Gen'!$M$29,W1062,0) + W2032 + W4941 - W3002 -> 0 | X92: =IF('Input-Infra'!$AI89>='Input-Gen'!$M$29,X1062,0) + X2032 + X4941 - X3002 -> 0 | Y92: =IF('Input-Infra'!$AI89>='Input-Gen'!$M$29,Y1062,0) + Y2032 + Y4941 - Y3002 -> 0 | Z92: =IF('Input-Infra'!$AI89>='Input-Gen'!$M$29,Z1062,0) + Z2032 + Z4941 - Z3002 -> 0 | AA92: =IF('Input-Infra'!$AI89>='Input-Gen'!$M$29,AA1062,0) + AA2032 + AA4941 - AA3002 -> 0 | AB92: =IF('Input-Infra'!$AI89>='Input-Gen'!$M$29,AB1062,0) + AB2032 + AB4941 - AB3002 -> 0 | AC92: =IF('Input-Infra'!$AI89>='Input-Gen'!$M$29,AC1062,0) + AC2032 + AC4941 - AC3002 -> 0 | AD92: =IF('Input-Infra'!$AI89>='Input-Gen'!$M$29,AD1062,0) + AD2032 + AD4941 - AD3002 ->  | AE92: =IF('Input-Infra'!$AI89>='Input-Gen'!$M$29,AE1062,0) + AE2032 + AE4941 - AE3002 ->  | AF92: =IF('Input-Infra'!$AI89>='Input-Gen'!$M$29,AF1062,0) + AF2032 + AF4941 - AF3002 ->  | AG92: =IF('Input-Infra'!$AI89>='Input-Gen'!$M$29,AG1062,0) + AG2032 + AG4941 - AG3002 ->  | AH92: =IF('Input-Infra'!$AI89>='Input-Gen'!$M$29,AH1062,0) + AH2032 + AH4941 - AH3002 ->  | AI92: =IF('Input-Infra'!$AI89>='Input-Gen'!$M$29,AI1062,0) + AI2032 + AI4941 - AI3002 ->  | AJ92: =IF('Input-Infra'!$AI89>='Input-Gen'!$M$29,AJ1062,0) + AJ2032 + AJ4941 - AJ3002 ->  | AK92: =IF('Input-Infra'!$AI89>='Input-Gen'!$M$29,AK1062,0) + AK2032 + AK4941 - AK3002 ->  | AL92: =IF('Input-Infra'!$AI89>='Input-Gen'!$M$29,AL1062,0) + AL2032 + AL4941 - AL3002 ->  | AM92: =IF('Input-Infra'!$AI89>='Input-Gen'!$M$29,AM1062,0) + AM2032 + AM4941 - AM3002 -> 
G93: RIC-SP-004 | I93: $'000 | K93: 278.3525003 | Q93: 330.6785547 | S93: =IF('Input-Infra'!$AI90>='Input-Gen'!$M$29,S1063,0) + S2033 + S4942 - S3003 -> 0 | T93: =IF('Input-Infra'!$AI90>='Input-Gen'!$M$29,T1063,0) + T2033 + T4942 - T3003 -> 0 | U93: =IF('Input-Infra'!$AI90>='Input-Gen'!$M$29,U1063,0) + U2033 + U4942 - U3003 -> 0 | V93: =IF('Input-Infra'!$AI90>='Input-Gen'!$M$29,V1063,0) + V2033 + V4942 - V3003 -> 330.6785547 | W93: =IF('Input-Infra'!$AI90>='Input-Gen'!$M$29,W1063,0) + W2033 + W4942 - W3003 -> 0 | X93: =IF('Input-Infra'!$AI90>='Input-Gen'!$M$29,X1063,0) + X2033 + X4942 - X3003 -> 0 | Y93: =IF('Input-Infra'!$AI90>='Input-Gen'!$M$29,Y1063,0) + Y2033 + Y4942 - Y3003 -> 0 | Z93: =IF('Input-Infra'!$AI90>='Input-Gen'!$M$29,Z1063,0) + Z2033 + Z4942 - Z3003 -> 0 | AA93: =IF('Input-Infra'!$AI90>='Input-Gen'!$M$29,AA1063,0) + AA2033 + AA4942 - AA3003 -> 0 | AB93: =IF('Input-Infra'!$AI90>='Input-Gen'!$M$29,AB1063,0) + AB2033 + AB4942 - AB3003 -> 0 | AC93: =IF('Input-Infra'!$AI90>='Input-Gen'!$M$29,AC1063,0) + AC2033 + AC4942 - AC3003 -> 0 | AD93: =IF('Input-Infra'!$AI90>='Input-Gen'!$M$29,AD1063,0) + AD2033 + AD4942 - AD3003 ->  | AE93: =IF('Input-Infra'!$AI90>='Input-Gen'!$M$29,AE1063,0) + AE2033 + AE4942 - AE3003 ->  | AF93: =IF('Input-Infra'!$AI90>='Input-Gen'!$M$29,AF1063,0) + AF2033 + AF4942 - AF3003 ->  | AG93: =IF('Input-Infra'!$AI90>='Input-Gen'!$M$29,AG1063,0) + AG2033 + AG4942 - AG3003 ->  | AH93: =IF('Input-Infra'!$AI90>='Input-Gen'!$M$29,AH1063,0) + AH2033 + AH4942 - AH3003 ->  | AI93: =IF('Input-Infra'!$AI90>='Input-Gen'!$M$29,AI1063,0) + AI2033 + AI4942 - AI3003 ->  | AJ93: =IF('Input-Infra'!$AI90>='Input-Gen'!$M$29,AJ1063,0) + AJ2033 + AJ4942 - AJ3003 ->  | AK93: =IF('Input-Infra'!$AI90>='Input-Gen'!$M$29,AK1063,0) + AK2033 + AK4942 - AK3003 ->  | AL93: =IF('Input-Infra'!$AI90>='Input-Gen'!$M$29,AL1063,0) + AL2033 + AL4942 - AL3003 ->  | AM93: =IF('Input-Infra'!$AI90>='Input-Gen'!$M$29,AM1063,0) + AM2033 + AM4942 - AM3003 -> 
G94: RIC-SP-005 | I94: $'000 | K94: 571.79467 | Q94: 679.2834082 | S94: =IF('Input-Infra'!$AI91>='Input-Gen'!$M$29,S1064,0) + S2034 + S4943 - S3004 -> 0 | T94: =IF('Input-Infra'!$AI91>='Input-Gen'!$M$29,T1064,0) + T2034 + T4943 - T3004 -> 0 | U94: =IF('Input-Infra'!$AI91>='Input-Gen'!$M$29,U1064,0) + U2034 + U4943 - U3004 -> 0 | V94: =IF('Input-Infra'!$AI91>='Input-Gen'!$M$29,V1064,0) + V2034 + V4943 - V3004 -> 679.2834082 | W94: =IF('Input-Infra'!$AI91>='Input-Gen'!$M$29,W1064,0) + W2034 + W4943 - W3004 -> 0 | X94: =IF('Input-Infra'!$AI91>='Input-Gen'!$M$29,X1064,0) + X2034 + X4943 - X3004 -> 0 | Y94: =IF('Input-Infra'!$AI91>='Input-Gen'!$M$29,Y1064,0) + Y2034 + Y4943 - Y3004 -> 0 | Z94: =IF('Input-Infra'!$AI91>='Input-Gen'!$M$29,Z1064,0) + Z2034 + Z4943 - Z3004 -> 0 | AA94: =IF('Input-Infra'!$AI91>='Input-Gen'!$M$29,AA1064,0) + AA2034 + AA4943 - AA3004 -> 0 | AB94: =IF('Input-Infra'!$AI91>='Input-Gen'!$M$29,AB1064,0) + AB2034 + AB4943 - AB3004 -> 0 | AC94: =IF('Input-Infra'!$AI91>='Input-Gen'!$M$29,AC1064,0) + AC2034 + AC4943 - AC3004 -> 0 | AD94: =IF('Input-Infra'!$AI91>='Input-Gen'!$M$29,AD1064,0) + AD2034 + AD4943 - AD3004 ->  | AE94: =IF('Input-Infra'!$AI91>='Input-Gen'!$M$29,AE1064,0) + AE2034 + AE4943 - AE3004 ->  | AF94: =IF('Input-Infra'!$AI91>='Input-Gen'!$M$29,AF1064,0) + AF2034 + AF4943 - AF3004 ->  | AG94: =IF('Input-Infra'!$AI91>='Input-Gen'!$M$29,AG1064,0) + AG2034 + AG4943 - AG3004 ->  | AH94: =IF('Input-Infra'!$AI91>='Input-Gen'!$M$29,AH1064,0) + AH2034 + AH4943 - AH3004 ->  | AI94: =IF('Input-Infra'!$AI91>='Input-Gen'!$M$29,AI1064,0) + AI2034 + AI4943 - AI3004 ->  | AJ94: =IF('Input-Infra'!$AI91>='Input-Gen'!$M$29,AJ1064,0) + AJ2034 + AJ4943 - AJ3004 ->  | AK94: =IF('Input-Infra'!$AI91>='Input-Gen'!$M$29,AK1064,0) + AK2034 + AK4943 - AK3004 ->  | AL94: =IF('Input-Infra'!$AI91>='Input-Gen'!$M$29,AL1064,0) + AL2034 + AL4943 - AL3004 ->  | AM94: =IF('Input-Infra'!$AI91>='Input-Gen'!$M$29,AM1064,0) + AM2034 + AM4943 - AM3004 -> 
G95: RIC-SP-006 | I95: $'000 | K95: 66.8122536 | Q95: 79.37194541 | S95: =IF('Input-Infra'!$AI92>='Input-Gen'!$M$29,S1065,0) + S2035 + S4944 - S3005 -> 0 | T95: =IF('Input-Infra'!$AI92>='Input-Gen'!$M$29,T1065,0) + T2035 + T4944 - T3005 -> 0 | U95: =IF('Input-Infra'!$AI92>='Input-Gen'!$M$29,U1065,0) + U2035 + U4944 - U3005 -> 0 | V95: =IF('Input-Infra'!$AI92>='Input-Gen'!$M$29,V1065,0) + V2035 + V4944 - V3005 -> 79.37194541 | W95: =IF('Input-Infra'!$AI92>='Input-Gen'!$M$29,W1065,0) + W2035 + W4944 - W3005 -> 0 | X95: =IF('Input-Infra'!$AI92>='Input-Gen'!$M$29,X1065,0) + X2035 + X4944 - X3005 -> 0 | Y95: =IF('Input-Infra'!$AI92>='Input-Gen'!$M$29,Y1065,0) + Y2035 + Y4944 - Y3005 -> 0 | Z95: =IF('Input-Infra'!$AI92>='Input-Gen'!$M$29,Z1065,0) + Z2035 + Z4944 - Z3005 -> 0 | AA95: =IF('Input-Infra'!$AI92>='Input-Gen'!$M$29,AA1065,0) + AA2035 + AA4944 - AA3005 -> 0 | AB95: =IF('Input-Infra'!$AI92>='Input-Gen'!$M$29,AB1065,0) + AB2035 + AB4944 - AB3005 -> 0 | AC95: =IF('Input-Infra'!$AI92>='Input-Gen'!$M$29,AC1065,0) + AC2035 + AC4944 - AC3005 -> 0 | AD95: =IF('Input-Infra'!$AI92>='Input-Gen'!$M$29,AD1065,0) + AD2035 + AD4944 - AD3005 ->  | AE95: =IF('Input-Infra'!$AI92>='Input-Gen'!$M$29,AE1065,0) + AE2035 + AE4944 - AE3005 ->  | AF95: =IF('Input-Infra'!$AI92>='Input-Gen'!$M$29,AF1065,0) + AF2035 + AF4944 - AF3005 ->  | AG95: =IF('Input-Infra'!$AI92>='Input-Gen'!$M$29,AG1065,0) + AG2035 + AG4944 - AG3005 ->  | AH95: =IF('Input-Infra'!$AI92>='Input-Gen'!$M$29,AH1065,0) + AH2035 + AH4944 - AH3005 ->  | AI95: =IF('Input-Infra'!$AI92>='Input-Gen'!$M$29,AI1065,0) + AI2035 + AI4944 - AI3005 ->  | AJ95: =IF('Input-Infra'!$AI92>='Input-Gen'!$M$29,AJ1065,0) + AJ2035 + AJ4944 - AJ3005 ->  | AK95: =IF('Input-Infra'!$AI92>='Input-Gen'!$M$29,AK1065,0) + AK2035 + AK4944 - AK3005 ->  | AL95: =IF('Input-Infra'!$AI92>='Input-Gen'!$M$29,AL1065,0) + AL2035 + AL4944 - AL3005 ->  | AM95: =IF('Input-Infra'!$AI92>='Input-Gen'!$M$29,AM1065,0) + AM2035 + AM4944 - AM3005 -> 
G96: RIV-SP-001 | I96: $'000 | K96: 1846.20803 | Q96: 2193.267179 | S96: =IF('Input-Infra'!$AI93>='Input-Gen'!$M$29,S1066,0) + S2036 + S4945 - S3006 -> 0 | T96: =IF('Input-Infra'!$AI93>='Input-Gen'!$M$29,T1066,0) + T2036 + T4945 - T3006 -> 0 | U96: =IF('Input-Infra'!$AI93>='Input-Gen'!$M$29,U1066,0) + U2036 + U4945 - U3006 -> 0 | V96: =IF('Input-Infra'!$AI93>='Input-Gen'!$M$29,V1066,0) + V2036 + V4945 - V3006 -> 2193.267179 | W96: =IF('Input-Infra'!$AI93>='Input-Gen'!$M$29,W1066,0) + W2036 + W4945 - W3006 -> 0 | X96: =IF('Input-Infra'!$AI93>='Input-Gen'!$M$29,X1066,0) + X2036 + X4945 - X3006 -> 0 | Y96: =IF('Input-Infra'!$AI93>='Input-Gen'!$M$29,Y1066,0) + Y2036 + Y4945 - Y3006 -> 0 | Z96: =IF('Input-Infra'!$AI93>='Input-Gen'!$M$29,Z1066,0) + Z2036 + Z4945 - Z3006 -> 0 | AA96: =IF('Input-Infra'!$AI93>='Input-Gen'!$M$29,AA1066,0) + AA2036 + AA4945 - AA3006 -> 0 | AB96: =IF('Input-Infra'!$AI93>='Input-Gen'!$M$29,AB1066,0) + AB2036 + AB4945 - AB3006 -> 0 | AC96: =IF('Input-Infra'!$AI93>='Input-Gen'!$M$29,AC1066,0) + AC2036 + AC4945 - AC3006 -> 0 | AD96: =IF('Input-Infra'!$AI93>='Input-Gen'!$M$29,AD1066,0) + AD2036 + AD4945 - AD3006 ->  | AE96: =IF('Input-Infra'!$AI93>='Input-Gen'!$M$29,AE1066,0) + AE2036 + AE4945 - AE3006 ->  | AF96: =IF('Input-Infra'!$AI93>='Input-Gen'!$M$29,AF1066,0) + AF2036 + AF4945 - AF3006 ->  | AG96: =IF('Input-Infra'!$AI93>='Input-Gen'!$M$29,AG1066,0) + AG2036 + AG4945 - AG3006 ->  | AH96: =IF('Input-Infra'!$AI93>='Input-Gen'!$M$29,AH1066,0) + AH2036 + AH4945 - AH3006 ->  | AI96: =IF('Input-Infra'!$AI93>='Input-Gen'!$M$29,AI1066,0) + AI2036 + AI4945 - AI3006 ->  | AJ96: =IF('Input-Infra'!$AI93>='Input-Gen'!$M$29,AJ1066,0) + AJ2036 + AJ4945 - AJ3006 ->  | AK96: =IF('Input-Infra'!$AI93>='Input-Gen'!$M$29,AK1066,0) + AK2036 + AK4945 - AK3006 ->  | AL96: =IF('Input-Infra'!$AI93>='Input-Gen'!$M$29,AL1066,0) + AL2036 + AL4945 - AL3006 ->  | AM96: =IF('Input-Infra'!$AI93>='Input-Gen'!$M$29,AM1066,0) + AM2036 + AM4945 - AM3006 -> 
G97: ROC-SP-002 | I97: $'000 | K97: 732.9135453 | Q97: 1160.241759 | S97: =IF('Input-Infra'!$AI94>='Input-Gen'!$M$29,S1067,0) + S2037 + S4946 - S3007 -> 0 | T97: =IF('Input-Infra'!$AI94>='Input-Gen'!$M$29,T1067,0) + T2037 + T4946 - T3007 -> 0 | U97: =IF('Input-Infra'!$AI94>='Input-Gen'!$M$29,U1067,0) + U2037 + U4946 - U3007 -> 0 | V97: =IF('Input-Infra'!$AI94>='Input-Gen'!$M$29,V1067,0) + V2037 + V4946 - V3007 -> 0 | W97: =IF('Input-Infra'!$AI94>='Input-Gen'!$M$29,W1067,0) + W2037 + W4946 - W3007 -> 0 | X97: =IF('Input-Infra'!$AI94>='Input-Gen'!$M$29,X1067,0) + X2037 + X4946 - X3007 -> 0 | Y97: =IF('Input-Infra'!$AI94>='Input-Gen'!$M$29,Y1067,0) + Y2037 + Y4946 - Y3007 -> 0 | Z97: =IF('Input-Infra'!$AI94>='Input-Gen'!$M$29,Z1067,0) + Z2037 + Z4946 - Z3007 -> 0 | AA97: =IF('Input-Infra'!$AI94>='Input-Gen'!$M$29,AA1067,0) + AA2037 + AA4946 - AA3007 -> 1160.241759 | AB97: =IF('Input-Infra'!$AI94>='Input-Gen'!$M$29,AB1067,0) + AB2037 + AB4946 - AB3007 -> 0 | AC97: =IF('Input-Infra'!$AI94>='Input-Gen'!$M$29,AC1067,0) + AC2037 + AC4946 - AC3007 -> 0 | AD97: =IF('Input-Infra'!$AI94>='Input-Gen'!$M$29,AD1067,0) + AD2037 + AD4946 - AD3007 ->  | AE97: =IF('Input-Infra'!$AI94>='Input-Gen'!$M$29,AE1067,0) + AE2037 + AE4946 - AE3007 ->  | AF97: =IF('Input-Infra'!$AI94>='Input-Gen'!$M$29,AF1067,0) + AF2037 + AF4946 - AF3007 ->  | AG97: =IF('Input-Infra'!$AI94>='Input-Gen'!$M$29,AG1067,0) + AG2037 + AG4946 - AG3007 ->  | AH97: =IF('Input-Infra'!$AI94>='Input-Gen'!$M$29,AH1067,0) + AH2037 + AH4946 - AH3007 ->  | AI97: =IF('Input-Infra'!$AI94>='Input-Gen'!$M$29,AI1067,0) + AI2037 + AI4946 - AI3007 ->  | AJ97: =IF('Input-Infra'!$AI94>='Input-Gen'!$M$29,AJ1067,0) + AJ2037 + AJ4946 - AJ3007 ->  | AK97: =IF('Input-Infra'!$AI94>='Input-Gen'!$M$29,AK1067,0) + AK2037 + AK4946 - AK3007 ->  | AL97: =IF('Input-Infra'!$AI94>='Input-Gen'!$M$29,AL1067,0) + AL2037 + AL4946 - AL3007 ->  | AM97: =IF('Input-Infra'!$AI94>='Input-Gen'!$M$29,AM1067,0) + AM2037 + AM4946 - AM3007 -> 
G98: ROC-SP-004 | I98: $'000 | K98: 1012.125994 | Q98: 1602.250158 | S98: =IF('Input-Infra'!$AI95>='Input-Gen'!$M$29,S1068,0) + S2038 + S4947 - S3008 -> 0 | T98: =IF('Input-Infra'!$AI95>='Input-Gen'!$M$29,T1068,0) + T2038 + T4947 - T3008 -> 0 | U98: =IF('Input-Infra'!$AI95>='Input-Gen'!$M$29,U1068,0) + U2038 + U4947 - U3008 -> 0 | V98: =IF('Input-Infra'!$AI95>='Input-Gen'!$M$29,V1068,0) + V2038 + V4947 - V3008 -> 0 | W98: =IF('Input-Infra'!$AI95>='Input-Gen'!$M$29,W1068,0) + W2038 + W4947 - W3008 -> 0 | X98: =IF('Input-Infra'!$AI95>='Input-Gen'!$M$29,X1068,0) + X2038 + X4947 - X3008 -> 0 | Y98: =IF('Input-Infra'!$AI95>='Input-Gen'!$M$29,Y1068,0) + Y2038 + Y4947 - Y3008 -> 0 | Z98: =IF('Input-Infra'!$AI95>='Input-Gen'!$M$29,Z1068,0) + Z2038 + Z4947 - Z3008 -> 0 | AA98: =IF('Input-Infra'!$AI95>='Input-Gen'!$M$29,AA1068,0) + AA2038 + AA4947 - AA3008 -> 1602.250158 | AB98: =IF('Input-Infra'!$AI95>='Input-Gen'!$M$29,AB1068,0) + AB2038 + AB4947 - AB3008 -> 0 | AC98: =IF('Input-Infra'!$AI95>='Input-Gen'!$M$29,AC1068,0) + AC2038 + AC4947 - AC3008 -> 0 | AD98: =IF('Input-Infra'!$AI95>='Input-Gen'!$M$29,AD1068,0) + AD2038 + AD4947 - AD3008 ->  | AE98: =IF('Input-Infra'!$AI95>='Input-Gen'!$M$29,AE1068,0) + AE2038 + AE4947 - AE3008 ->  | AF98: =IF('Input-Infra'!$AI95>='Input-Gen'!$M$29,AF1068,0) + AF2038 + AF4947 - AF3008 ->  | AG98: =IF('Input-Infra'!$AI95>='Input-Gen'!$M$29,AG1068,0) + AG2038 + AG4947 - AG3008 ->  | AH98: =IF('Input-Infra'!$AI95>='Input-Gen'!$M$29,AH1068,0) + AH2038 + AH4947 - AH3008 ->  | AI98: =IF('Input-Infra'!$AI95>='Input-Gen'!$M$29,AI1068,0) + AI2038 + AI4947 - AI3008 ->  | AJ98: =IF('Input-Infra'!$AI95>='Input-Gen'!$M$29,AJ1068,0) + AJ2038 + AJ4947 - AJ3008 ->  | AK98: =IF('Input-Infra'!$AI95>='Input-Gen'!$M$29,AK1068,0) + AK2038 + AK4947 - AK3008 ->  | AL98: =IF('Input-Infra'!$AI95>='Input-Gen'!$M$29,AL1068,0) + AL2038 + AL4947 - AL3008 ->  | AM98: =IF('Input-Infra'!$AI95>='Input-Gen'!$M$29,AM1068,0) + AM2038 + AM4947 - AM3008 -> 
G99: ROC-SP-005 | I99: $'000 | K99: =NPV(WACC_nom,T99:AC99)+S99 -> 1554.706502 | Q99: 2461.184431 | S99: =IF('Input-Infra'!$AI96>='Input-Gen'!$M$29,S1069,0) + S2039 + S4948 - S3009 -> 0 | T99: =IF('Input-Infra'!$AI96>='Input-Gen'!$M$29,T1069,0) + T2039 + T4948 - T3009 -> 0 | U99: =IF('Input-Infra'!$AI96>='Input-Gen'!$M$29,U1069,0) + U2039 + U4948 - U3009 -> 0 | V99: =IF('Input-Infra'!$AI96>='Input-Gen'!$M$29,V1069,0) + V2039 + V4948 - V3009 -> 0 | W99: =IF('Input-Infra'!$AI96>='Input-Gen'!$M$29,W1069,0) + W2039 + W4948 - W3009 -> 0 | X99: =IF('Input-Infra'!$AI96>='Input-Gen'!$M$29,X1069,0) + X2039 + X4948 - X3009 -> 0 | Y99: =IF('Input-Infra'!$AI96>='Input-Gen'!$M$29,Y1069,0) + Y2039 + Y4948 - Y3009 -> 0 | Z99: =IF('Input-Infra'!$AI96>='Input-Gen'!$M$29,Z1069,0) + Z2039 + Z4948 - Z3009 -> 0 | AA99: =IF('Input-Infra'!$AI96>='Input-Gen'!$M$29,AA1069,0) + AA2039 + AA4948 - AA3009 -> 2461.184431 | AB99: =IF('Input-Infra'!$AI96>='Input-Gen'!$M$29,AB1069,0) + AB2039 + AB4948 - AB3009 -> 0 | AC99: =IF('Input-Infra'!$AI96>='Input-Gen'!$M$29,AC1069,0) + AC2039 + AC4948 - AC3009 -> 0 | AD99: =IF('Input-Infra'!$AI96>='Input-Gen'!$M$29,AD1069,0) + AD2039 + AD4948 - AD3009 ->  | AE99: =IF('Input-Infra'!$AI96>='Input-Gen'!$M$29,AE1069,0) + AE2039 + AE4948 - AE3009 ->  | AF99: =IF('Input-Infra'!$AI96>='Input-Gen'!$M$29,AF1069,0) + AF2039 + AF4948 - AF3009 ->  | AG99: =IF('Input-Infra'!$AI96>='Input-Gen'!$M$29,AG1069,0) + AG2039 + AG4948 - AG3009 ->  | AH99: =IF('Input-Infra'!$AI96>='Input-Gen'!$M$29,AH1069,0) + AH2039 + AH4948 - AH3009 ->  | AI99: =IF('Input-Infra'!$AI96>='Input-Gen'!$M$29,AI1069,0) + AI2039 + AI4948 - AI3009 ->  | AJ99: =IF('Input-Infra'!$AI96>='Input-Gen'!$M$29,AJ1069,0) + AJ2039 + AJ4948 - AJ3009 ->  | AK99: =IF('Input-Infra'!$AI96>='Input-Gen'!$M$29,AK1069,0) + AK2039 + AK4948 - AK3009 ->  | AL99: =IF('Input-Infra'!$AI96>='Input-Gen'!$M$29,AL1069,0) + AL2039 + AL4948 - AL3009 ->  | AM99: =IF('Input-Infra'!$AI96>='Input-Gen'!$M$29,AM1069,0) + AM2039 + AM4948 - AM3009 -> 
G100: ROC-SP-012 | I100: $'000 | K100: 1723.026734 | Q100: =SUM(S100:AC100) -> 2727.644457 | S100: =IF('Input-Infra'!$AI97>='Input-Gen'!$M$29,S1070,0) + S2040 + S4949 - S3010 -> 0 | T100: =IF('Input-Infra'!$AI97>='Input-Gen'!$M$29,T1070,0) + T2040 + T4949 - T3010 -> 0 | U100: =IF('Input-Infra'!$AI97>='Input-Gen'!$M$29,U1070,0) + U2040 + U4949 - U3010 -> 0 | V100: =IF('Input-Infra'!$AI97>='Input-Gen'!$M$29,V1070,0) + V2040 + V4949 - V3010 -> 0 | W100: =IF('Input-Infra'!$AI97>='Input-Gen'!$M$29,W1070,0) + W2040 + W4949 - W3010 -> 0 | X100: =IF('Input-Infra'!$AI97>='Input-Gen'!$M$29,X1070,0) + X2040 + X4949 - X3010 -> 0 | Y100: =IF('Input-Infra'!$AI97>='Input-Gen'!$M$29,Y1070,0) + Y2040 + Y4949 - Y3010 -> 0 | Z100: =IF('Input-Infra'!$AI97>='Input-Gen'!$M$29,Z1070,0) + Z2040 + Z4949 - Z3010 -> 0 | AA100: =IF('Input-Infra'!$AI97>='Input-Gen'!$M$29,AA1070,0) + AA2040 + AA4949 - AA3010 -> 2727.644457 | AB100: =IF('Input-Infra'!$AI97>='Input-Gen'!$M$29,AB1070,0) + AB2040 + AB4949 - AB3010 -> 0 | AC100: =IF('Input-Infra'!$AI97>='Input-Gen'!$M$29,AC1070,0) + AC2040 + AC4949 - AC3010 -> 0 | AD100: =IF('Input-Infra'!$AI97>='Input-Gen'!$M$29,AD1070,0) + AD2040 + AD4949 - AD3010 ->  | AE100: =IF('Input-Infra'!$AI97>='Input-Gen'!$M$29,AE1070,0) + AE2040 + AE4949 - AE3010 ->  | AF100: =IF('Input-Infra'!$AI97>='Input-Gen'!$M$29,AF1070,0) + AF2040 + AF4949 - AF3010 ->  | AG100: =IF('Input-Infra'!$AI97>='Input-Gen'!$M$29,AG1070,0) + AG2040 + AG4949 - AG3010 ->  | AH100: =IF('Input-Infra'!$AI97>='Input-Gen'!$M$29,AH1070,0) + AH2040 + AH4949 - AH3010 ->  | AI100: =IF('Input-Infra'!$AI97>='Input-Gen'!$M$29,AI1070,0) + AI2040 + AI4949 - AI3010 ->  | AJ100: =IF('Input-Infra'!$AI97>='Input-Gen'!$M$29,AJ1070,0) + AJ2040 + AJ4949 - AJ3010 ->  | AK100: =IF('Input-Infra'!$AI97>='Input-Gen'!$M$29,AK1070,0) + AK2040 + AK4949 - AK3010 ->  | AL100: =IF('Input-Infra'!$AI97>='Input-Gen'!$M$29,AL1070,0) + AL2040 + AL4949 - AL3010 ->  | AM100: =IF('Input-Infra'!$AI97>='Input-Gen'!$M$29,AM1070,0) + AM2040 + AM4949 - AM3010 -> 
G101: ROC-SP-015 | I101: $'000 | K101: 725.0079355 | Q101: 861.2984472 | S101: =IF('Input-Infra'!$AI98>='Input-Gen'!$M$29,S1071,0) + S2041 + S4950 - S3011 -> 0 | T101: =IF('Input-Infra'!$AI98>='Input-Gen'!$M$29,T1071,0) + T2041 + T4950 - T3011 -> 0 | U101: =IF('Input-Infra'!$AI98>='Input-Gen'!$M$29,U1071,0) + U2041 + U4950 - U3011 -> 0 | V101: =IF('Input-Infra'!$AI98>='Input-Gen'!$M$29,V1071,0) + V2041 + V4950 - V3011 -> 861.2984472 | W101: =IF('Input-Infra'!$AI98>='Input-Gen'!$M$29,W1071,0) + W2041 + W4950 - W3011 -> 0 | X101: =IF('Input-Infra'!$AI98>='Input-Gen'!$M$29,X1071,0) + X2041 + X4950 - X3011 -> 0 | Y101: =IF('Input-Infra'!$AI98>='Input-Gen'!$M$29,Y1071,0) + Y2041 + Y4950 - Y3011 -> 0 | Z101: =IF('Input-Infra'!$AI98>='Input-Gen'!$M$29,Z1071,0) + Z2041 + Z4950 - Z3011 -> 0 | AA101: =IF('Input-Infra'!$AI98>='Input-Gen'!$M$29,AA1071,0) + AA2041 + AA4950 - AA3011 -> 0 | AB101: =IF('Input-Infra'!$AI98>='Input-Gen'!$M$29,AB1071,0) + AB2041 + AB4950 - AB3011 -> 0 | AC101: =IF('Input-Infra'!$AI98>='Input-Gen'!$M$29,AC1071,0) + AC2041 + AC4950 - AC3011 -> 0 | AD101: =IF('Input-Infra'!$AI98>='Input-Gen'!$M$29,AD1071,0) + AD2041 + AD4950 - AD3011 ->  | AE101: =IF('Input-Infra'!$AI98>='Input-Gen'!$M$29,AE1071,0) + AE2041 + AE4950 - AE3011 ->  | AF101: =IF('Input-Infra'!$AI98>='Input-Gen'!$M$29,AF1071,0) + AF2041 + AF4950 - AF3011 ->  | AG101: =IF('Input-Infra'!$AI98>='Input-Gen'!$M$29,AG1071,0) + AG2041 + AG4950 - AG3011 ->  | AH101: =IF('Input-Infra'!$AI98>='Input-Gen'!$M$29,AH1071,0) + AH2041 + AH4950 - AH3011 ->  | AI101: =IF('Input-Infra'!$AI98>='Input-Gen'!$M$29,AI1071,0) + AI2041 + AI4950 - AI3011 ->  | AJ101: =IF('Input-Infra'!$AI98>='Input-Gen'!$M$29,AJ1071,0) + AJ2041 + AJ4950 - AJ3011 ->  | AK101: =IF('Input-Infra'!$AI98>='Input-Gen'!$M$29,AK1071,0) + AK2041 + AK4950 - AK3011 ->  | AL101: =IF('Input-Infra'!$AI98>='Input-Gen'!$M$29,AL1071,0) + AL2041 + AL4950 - AL3011 ->  | AM101: =IF('Input-Infra'!$AI98>='Input-Gen'!$M$29,AM1071,0) + AM2041 + AM4950 - AM3011 -> 
G102: RUN-SP-002 | I102: $'000 | K102: 703.2659178 | Q102: 835.4692595 | S102: =IF('Input-Infra'!$AI99>='Input-Gen'!$M$29,S1072,0) + S2042 + S4951 - S3012 -> 0 | T102: =IF('Input-Infra'!$AI99>='Input-Gen'!$M$29,T1072,0) + T2042 + T4951 - T3012 -> 0 | U102: =IF('Input-Infra'!$AI99>='Input-Gen'!$M$29,U1072,0) + U2042 + U4951 - U3012 -> 0 | V102: =IF('Input-Infra'!$AI99>='Input-Gen'!$M$29,V1072,0) + V2042 + V4951 - V3012 -> 835.4692595 | W102: =IF('Input-Infra'!$AI99>='Input-Gen'!$M$29,W1072,0) + W2042 + W4951 - W3012 -> 0 | X102: =IF('Input-Infra'!$AI99>='Input-Gen'!$M$29,X1072,0) + X2042 + X4951 - X3012 -> 0 | Y102: =IF('Input-Infra'!$AI99>='Input-Gen'!$M$29,Y1072,0) + Y2042 + Y4951 - Y3012 -> 0 | Z102: =IF('Input-Infra'!$AI99>='Input-Gen'!$M$29,Z1072,0) + Z2042 + Z4951 - Z3012 -> 0 | AA102: =IF('Input-Infra'!$AI99>='Input-Gen'!$M$29,AA1072,0) + AA2042 + AA4951 - AA3012 -> 0 | AB102: =IF('Input-Infra'!$AI99>='Input-Gen'!$M$29,AB1072,0) + AB2042 + AB4951 - AB3012 -> 0 | AC102: =IF('Input-Infra'!$AI99>='Input-Gen'!$M$29,AC1072,0) + AC2042 + AC4951 - AC3012 -> 0 | AD102: =IF('Input-Infra'!$AI99>='Input-Gen'!$M$29,AD1072,0) + AD2042 + AD4951 - AD3012 ->  | AE102: =IF('Input-Infra'!$AI99>='Input-Gen'!$M$29,AE1072,0) + AE2042 + AE4951 - AE3012 ->  | AF102: =IF('Input-Infra'!$AI99>='Input-Gen'!$M$29,AF1072,0) + AF2042 + AF4951 - AF3012 ->  | AG102: =IF('Input-Infra'!$AI99>='Input-Gen'!$M$29,AG1072,0) + AG2042 + AG4951 - AG3012 ->  | AH102: =IF('Input-Infra'!$AI99>='Input-Gen'!$M$29,AH1072,0) + AH2042 + AH4951 - AH3012 ->  | AI102: =IF('Input-Infra'!$AI99>='Input-Gen'!$M$29,AI1072,0) + AI2042 + AI4951 - AI3012 ->  | AJ102: =IF('Input-Infra'!$AI99>='Input-Gen'!$M$29,AJ1072,0) + AJ2042 + AJ4951 - AJ3012 ->  | AK102: =IF('Input-Infra'!$AI99>='Input-Gen'!$M$29,AK1072,0) + AK2042 + AK4951 - AK3012 ->  | AL102: =IF('Input-Infra'!$AI99>='Input-Gen'!$M$29,AL1072,0) + AL2042 + AL4951 - AL3012 ->  | AM102: =IF('Input-Infra'!$AI99>='Input-Gen'!$M$29,AM1072,0) + AM2042 + AM4951 - AM3012 -> 
G103: RUN-SP-003 | I103: $'000 | K103: 1309.413551 | Q103: 2072.87243 | S103: =IF('Input-Infra'!$AI100>='Input-Gen'!$M$29,S1073,0) + S2043 + S4952 - S3013 -> 0 | T103: =IF('Input-Infra'!$AI100>='Input-Gen'!$M$29,T1073,0) + T2043 + T4952 - T3013 -> 0 | U103: =IF('Input-Infra'!$AI100>='Input-Gen'!$M$29,U1073,0) + U2043 + U4952 - U3013 -> 0 | V103: =IF('Input-Infra'!$AI100>='Input-Gen'!$M$29,V1073,0) + V2043 + V4952 - V3013 -> 0 | W103: =IF('Input-Infra'!$AI100>='Input-Gen'!$M$29,W1073,0) + W2043 + W4952 - W3013 -> 0 | X103: =IF('Input-Infra'!$AI100>='Input-Gen'!$M$29,X1073,0) + X2043 + X4952 - X3013 -> 0 | Y103: =IF('Input-Infra'!$AI100>='Input-Gen'!$M$29,Y1073,0) + Y2043 + Y4952 - Y3013 -> 0 | Z103: =IF('Input-Infra'!$AI100>='Input-Gen'!$M$29,Z1073,0) + Z2043 + Z4952 - Z3013 -> 0 | AA103: =IF('Input-Infra'!$AI100>='Input-Gen'!$M$29,AA1073,0) + AA2043 + AA4952 - AA3013 -> 2072.87243 | AB103: =IF('Input-Infra'!$AI100>='Input-Gen'!$M$29,AB1073,0) + AB2043 + AB4952 - AB3013 -> 0 | AC103: =IF('Input-Infra'!$AI100>='Input-Gen'!$M$29,AC1073,0) + AC2043 + AC4952 - AC3013 -> 0 | AD103: =IF('Input-Infra'!$AI100>='Input-Gen'!$M$29,AD1073,0) + AD2043 + AD4952 - AD3013 ->  | AE103: =IF('Input-Infra'!$AI100>='Input-Gen'!$M$29,AE1073,0) + AE2043 + AE4952 - AE3013 ->  | AF103: =IF('Input-Infra'!$AI100>='Input-Gen'!$M$29,AF1073,0) + AF2043 + AF4952 - AF3013 ->  | AG103: =IF('Input-Infra'!$AI100>='Input-Gen'!$M$29,AG1073,0) + AG2043 + AG4952 - AG3013 ->  | AH103: =IF('Input-Infra'!$AI100>='Input-Gen'!$M$29,AH1073,0) + AH2043 + AH4952 - AH3013 ->  | AI103: =IF('Input-Infra'!$AI100>='Input-Gen'!$M$29,AI1073,0) + AI2043 + AI4952 - AI3013 ->  | AJ103: =IF('Input-Infra'!$AI100>='Input-Gen'!$M$29,AJ1073,0) + AJ2043 + AJ4952 - AJ3013 ->  | AK103: =IF('Input-Infra'!$AI100>='Input-Gen'!$M$29,AK1073,0) + AK2043 + AK4952 - AK3013 ->  | AL103: =IF('Input-Infra'!$AI100>='Input-Gen'!$M$29,AL1073,0) + AL2043 + AL4952 - AL3013 ->  | AM103: =IF('Input-Infra'!$AI100>='Input-Gen'!$M$29,AM1073,0) + AM2043 + AM4952 - AM3013 -> 
G104: RUN-SP-004 | I104: $'000 | K104: 1527.097356 | Q104: 2417.477661 | S104: =IF('Input-Infra'!$AI101>='Input-Gen'!$M$29,S1074,0) + S2044 + S4953 - S3014 -> 0 | T104: =IF('Input-Infra'!$AI101>='Input-Gen'!$M$29,T1074,0) + T2044 + T4953 - T3014 -> 0 | U104: =IF('Input-Infra'!$AI101>='Input-Gen'!$M$29,U1074,0) + U2044 + U4953 - U3014 -> 0 | V104: =IF('Input-Infra'!$AI101>='Input-Gen'!$M$29,V1074,0) + V2044 + V4953 - V3014 -> 0 | W104: =IF('Input-Infra'!$AI101>='Input-Gen'!$M$29,W1074,0) + W2044 + W4953 - W3014 -> 0 | X104: =IF('Input-Infra'!$AI101>='Input-Gen'!$M$29,X1074,0) + X2044 + X4953 - X3014 -> 0 | Y104: =IF('Input-Infra'!$AI101>='Input-Gen'!$M$29,Y1074,0) + Y2044 + Y4953 - Y3014 -> 0 | Z104: =IF('Input-Infra'!$AI101>='Input-Gen'!$M$29,Z1074,0) + Z2044 + Z4953 - Z3014 -> 0 | AA104: =IF('Input-Infra'!$AI101>='Input-Gen'!$M$29,AA1074,0) + AA2044 + AA4953 - AA3014 -> 2417.477661 | AB104: =IF('Input-Infra'!$AI101>='Input-Gen'!$M$29,AB1074,0) + AB2044 + AB4953 - AB3014 -> 0 | AC104: =IF('Input-Infra'!$AI101>='Input-Gen'!$M$29,AC1074,0) + AC2044 + AC4953 - AC3014 -> 0 | AD104: =IF('Input-Infra'!$AI101>='Input-Gen'!$M$29,AD1074,0) + AD2044 + AD4953 - AD3014 ->  | AE104: =IF('Input-Infra'!$AI101>='Input-Gen'!$M$29,AE1074,0) + AE2044 + AE4953 - AE3014 ->  | AF104: =IF('Input-Infra'!$AI101>='Input-Gen'!$M$29,AF1074,0) + AF2044 + AF4953 - AF3014 ->  | AG104: =IF('Input-Infra'!$AI101>='Input-Gen'!$M$29,AG1074,0) + AG2044 + AG4953 - AG3014 ->  | AH104: =IF('Input-Infra'!$AI101>='Input-Gen'!$M$29,AH1074,0) + AH2044 + AH4953 - AH3014 ->  | AI104: =IF('Input-Infra'!$AI101>='Input-Gen'!$M$29,AI1074,0) + AI2044 + AI4953 - AI3014 ->  | AJ104: =IF('Input-Infra'!$AI101>='Input-Gen'!$M$29,AJ1074,0) + AJ2044 + AJ4953 - AJ3014 ->  | AK104: =IF('Input-Infra'!$AI101>='Input-Gen'!$M$29,AK1074,0) + AK2044 + AK4953 - AK3014 ->  | AL104: =IF('Input-Infra'!$AI101>='Input-Gen'!$M$29,AL1074,0) + AL2044 + AL4953 - AL3014 ->  | AM104: =IF('Input-Infra'!$AI101>='Input-Gen'!$M$29,AM1074,0) + AM2044 + AM4953 - AM3014 -> 
G105: SAL-SP-002 | I105: $'000 | K105: 358.1497454 | Q105: 566.9704064 | S105: =IF('Input-Infra'!$AI102>='Input-Gen'!$M$29,S1075,0) + S2045 + S4954 - S3015 -> 0 | T105: =IF('Input-Infra'!$AI102>='Input-Gen'!$M$29,T1075,0) + T2045 + T4954 - T3015 -> 0 | U105: =IF('Input-Infra'!$AI102>='Input-Gen'!$M$29,U1075,0) + U2045 + U4954 - U3015 -> 0 | V105: =IF('Input-Infra'!$AI102>='Input-Gen'!$M$29,V1075,0) + V2045 + V4954 - V3015 -> 0 | W105: =IF('Input-Infra'!$AI102>='Input-Gen'!$M$29,W1075,0) + W2045 + W4954 - W3015 -> 0 | X105: =IF('Input-Infra'!$AI102>='Input-Gen'!$M$29,X1075,0) + X2045 + X4954 - X3015 -> 0 | Y105: =IF('Input-Infra'!$AI102>='Input-Gen'!$M$29,Y1075,0) + Y2045 + Y4954 - Y3015 -> 0 | Z105: =IF('Input-Infra'!$AI102>='Input-Gen'!$M$29,Z1075,0) + Z2045 + Z4954 - Z3015 -> 0 | AA105: =IF('Input-Infra'!$AI102>='Input-Gen'!$M$29,AA1075,0) + AA2045 + AA4954 - AA3015 -> 566.9704064 | AB105: =IF('Input-Infra'!$AI102>='Input-Gen'!$M$29,AB1075,0) + AB2045 + AB4954 - AB3015 -> 0 | AC105: =IF('Input-Infra'!$AI102>='Input-Gen'!$M$29,AC1075,0) + AC2045 + AC4954 - AC3015 -> 0 | AD105: =IF('Input-Infra'!$AI102>='Input-Gen'!$M$29,AD1075,0) + AD2045 + AD4954 - AD3015 ->  | AE105: =IF('Input-Infra'!$AI102>='Input-Gen'!$M$29,AE1075,0) + AE2045 + AE4954 - AE3015 ->  | AF105: =IF('Input-Infra'!$AI102>='Input-Gen'!$M$29,AF1075,0) + AF2045 + AF4954 - AF3015 ->  | AG105: =IF('Input-Infra'!$AI102>='Input-Gen'!$M$29,AG1075,0) + AG2045 + AG4954 - AG3015 ->  | AH105: =IF('Input-Infra'!$AI102>='Input-Gen'!$M$29,AH1075,0) + AH2045 + AH4954 - AH3015 ->  | AI105: =IF('Input-Infra'!$AI102>='Input-Gen'!$M$29,AI1075,0) + AI2045 + AI4954 - AI3015 ->  | AJ105: =IF('Input-Infra'!$AI102>='Input-Gen'!$M$29,AJ1075,0) + AJ2045 + AJ4954 - AJ3015 ->  | AK105: =IF('Input-Infra'!$AI102>='Input-Gen'!$M$29,AK1075,0) + AK2045 + AK4954 - AK3015 ->  | AL105: =IF('Input-Infra'!$AI102>='Input-Gen'!$M$29,AL1075,0) + AL2045 + AL4954 - AL3015 ->  | AM105: =IF('Input-Infra'!$AI102>='Input-Gen'!$M$29,AM1075,0) + AM2045 + AM4954 - AM3015 -> 
G106: SAL-SP-003 | I106: $'000 | K106: 389.1880243 | Q106: 616.1056796 | S106: =IF('Input-Infra'!$AI103>='Input-Gen'!$M$29,S1076,0) + S2046 + S4955 - S3016 -> 0 | T106: =IF('Input-Infra'!$AI103>='Input-Gen'!$M$29,T1076,0) + T2046 + T4955 - T3016 -> 0 | U106: =IF('Input-Infra'!$AI103>='Input-Gen'!$M$29,U1076,0) + U2046 + U4955 - U3016 -> 0 | V106: =IF('Input-Infra'!$AI103>='Input-Gen'!$M$29,V1076,0) + V2046 + V4955 - V3016 -> 0 | W106: =IF('Input-Infra'!$AI103>='Input-Gen'!$M$29,W1076,0) + W2046 + W4955 - W3016 -> 0 | X106: =IF('Input-Infra'!$AI103>='Input-Gen'!$M$29,X1076,0) + X2046 + X4955 - X3016 -> 0 | Y106: =IF('Input-Infra'!$AI103>='Input-Gen'!$M$29,Y1076,0) + Y2046 + Y4955 - Y3016 -> 0 | Z106: =IF('Input-Infra'!$AI103>='Input-Gen'!$M$29,Z1076,0) + Z2046 + Z4955 - Z3016 -> 0 | AA106: =IF('Input-Infra'!$AI103>='Input-Gen'!$M$29,AA1076,0) + AA2046 + AA4955 - AA3016 -> 616.1056796 | AB106: =IF('Input-Infra'!$AI103>='Input-Gen'!$M$29,AB1076,0) + AB2046 + AB4955 - AB3016 -> 0 | AC106: =IF('Input-Infra'!$AI103>='Input-Gen'!$M$29,AC1076,0) + AC2046 + AC4955 - AC3016 -> 0 | AD106: =IF('Input-Infra'!$AI103>='Input-Gen'!$M$29,AD1076,0) + AD2046 + AD4955 - AD3016 ->  | AE106: =IF('Input-Infra'!$AI103>='Input-Gen'!$M$29,AE1076,0) + AE2046 + AE4955 - AE3016 ->  | AF106: =IF('Input-Infra'!$AI103>='Input-Gen'!$M$29,AF1076,0) + AF2046 + AF4955 - AF3016 ->  | AG106: =IF('Input-Infra'!$AI103>='Input-Gen'!$M$29,AG1076,0) + AG2046 + AG4955 - AG3016 ->  | AH106: =IF('Input-Infra'!$AI103>='Input-Gen'!$M$29,AH1076,0) + AH2046 + AH4955 - AH3016 ->  | AI106: =IF('Input-Infra'!$AI103>='Input-Gen'!$M$29,AI1076,0) + AI2046 + AI4955 - AI3016 ->  | AJ106: =IF('Input-Infra'!$AI103>='Input-Gen'!$M$29,AJ1076,0) + AJ2046 + AJ4955 - AJ3016 ->  | AK106: =IF('Input-Infra'!$AI103>='Input-Gen'!$M$29,AK1076,0) + AK2046 + AK4955 - AK3016 ->  | AL106: =IF('Input-Infra'!$AI103>='Input-Gen'!$M$29,AL1076,0) + AL2046 + AL4955 - AL3016 ->  | AM106: =IF('Input-Infra'!$AI103>='Input-Gen'!$M$29,AM1076,0) + AM2046 + AM4955 - AM3016 -> 
G107: SAL-SP-004 | I107: $'000 | K107: 704.733825 | Q107: 1115.631739 | S107: =IF('Input-Infra'!$AI104>='Input-Gen'!$M$29,S1077,0) + S2047 + S4956 - S3017 -> 0 | T107: =IF('Input-Infra'!$AI104>='Input-Gen'!$M$29,T1077,0) + T2047 + T4956 - T3017 -> 0 | U107: =IF('Input-Infra'!$AI104>='Input-Gen'!$M$29,U1077,0) + U2047 + U4956 - U3017 -> 0 | V107: =IF('Input-Infra'!$AI104>='Input-Gen'!$M$29,V1077,0) + V2047 + V4956 - V3017 -> 0 | W107: =IF('Input-Infra'!$AI104>='Input-Gen'!$M$29,W1077,0) + W2047 + W4956 - W3017 -> 0 | X107: =IF('Input-Infra'!$AI104>='Input-Gen'!$M$29,X1077,0) + X2047 + X4956 - X3017 -> 0 | Y107: =IF('Input-Infra'!$AI104>='Input-Gen'!$M$29,Y1077,0) + Y2047 + Y4956 - Y3017 -> 0 | Z107: =IF('Input-Infra'!$AI104>='Input-Gen'!$M$29,Z1077,0) + Z2047 + Z4956 - Z3017 -> 0 | AA107: =IF('Input-Infra'!$AI104>='Input-Gen'!$M$29,AA1077,0) + AA2047 + AA4956 - AA3017 -> 1115.631739 | AB107: =IF('Input-Infra'!$AI104>='Input-Gen'!$M$29,AB1077,0) + AB2047 + AB4956 - AB3017 -> 0 | AC107: =IF('Input-Infra'!$AI104>='Input-Gen'!$M$29,AC1077,0) + AC2047 + AC4956 - AC3017 -> 0 | AD107: =IF('Input-Infra'!$AI104>='Input-Gen'!$M$29,AD1077,0) + AD2047 + AD4956 - AD3017 ->  | AE107: =IF('Input-Infra'!$AI104>='Input-Gen'!$M$29,AE1077,0) + AE2047 + AE4956 - AE3017 ->  | AF107: =IF('Input-Infra'!$AI104>='Input-Gen'!$M$29,AF1077,0) + AF2047 + AF4956 - AF3017 ->  | AG107: =IF('Input-Infra'!$AI104>='Input-Gen'!$M$29,AG1077,0) + AG2047 + AG4956 - AG3017 ->  | AH107: =IF('Input-Infra'!$AI104>='Input-Gen'!$M$29,AH1077,0) + AH2047 + AH4956 - AH3017 ->  | AI107: =IF('Input-Infra'!$AI104>='Input-Gen'!$M$29,AI1077,0) + AI2047 + AI4956 - AI3017 ->  | AJ107: =IF('Input-Infra'!$AI104>='Input-Gen'!$M$29,AJ1077,0) + AJ2047 + AJ4956 - AJ3017 ->  | AK107: =IF('Input-Infra'!$AI104>='Input-Gen'!$M$29,AK1077,0) + AK2047 + AK4956 - AK3017 ->  | AL107: =IF('Input-Infra'!$AI104>='Input-Gen'!$M$29,AL1077,0) + AL2047 + AL4956 - AL3017 ->  | AM107: =IF('Input-Infra'!$AI104>='Input-Gen'!$M$29,AM1077,0) + AM2047 + AM4956 - AM3017 -> 
